Workbook

Sheet General
A2: TODO: enter the correct values in column 'B'.
A4: Key | B4: Value
A5: Contest name | B5: Youth Lead Championship 09-03-2013
A6: President name | B6: Lieven Vlassenroot

Sheet DF
A2: =CONCATENATE(General!$B$5," - RESULTS D Female") -> Youth Lead Championship 09-03-2013 - RESULTS D Female
A5: RANK | B5: Nr | C5: Name | D5: Team | E5: Route 1 | I5: Ranking Points Route 1 | J5: Route 2 | N5: Ranking Points Route 2 | O5: Root R1 x R2 | P5: Final | S5: Super Final | V5: base pour calcul rang | W5: RANK | X5: Team points
A6: =RANK(V6,$V$6:$V$105) -> 1 | B6: DF04 | C6: DELCOIGNE Lucie | D6: CC | E6: TOP | G6: =IF(E6="TOP",$F$108,IF(F6="-",E6-0.01,IF(F6="+",E6+0.01,E6))) -> 28 | H6: =RANK(G6,$G$6:$G$105) -> 1 | I6: =IF(COUNTIF($H$6:$H$105,H6)=1,H6,(H6*2+COUNTIF($H$6:$H$105,H6)-1)/2) -> 6.5 | J6: TOP | L6: =IF(J6="TOP",$K$108,IF(K6="-",J6-0.01,IF(K6="+",J6+0.01,J6))) -> 30 | M6: =RANK(L6,$L$6:$L$105) -> 1 | N6: =IF(COUNTIF($M$6:$M$105,M6)=1,M6,(M6*2+COUNTIF($M$6:$M$105,M6)-1)/2) -> 1.5 | O6: =SQRT(I6*N6) -> 3.122498999 | P6: TOP | R6: =IF(P6="TOP",$Q$108,IF(Q6="-",P6-0.01,IF(Q6="+",P6+0.01,P6))) -> 31 | U6: =IF($S6="TOP",$T$108,IF($T6="-",$S6-0.01,IF($T6="+",$S6+0.01,$S6))) -> 0 | V6: =IF(U6<>0,U6*1000+R6*100+1/O6,IF(R6<>0,R6*100+1/O6,1/O6)) -> 3100.320256 | W6: =A6 -> 1 | X6: =IF(W6<31,AVERAGE(OFFSET(INDEX('Points team et quota finales'!$C$5:$C$34,W6),0,0,COUNTIF($W$6:$W$105,W6))),0) -> 100
A7: =RANK(V7,$V$6:$V$105) -> 2 | B7: DF09 | C7: TILBORGHS Charlène | D7: KLI | E7: TOP | G7: 28 | H7: 1 | I7: 6.5 | J7: 27 | K7: + | L7: 27.01 | M7: 3 | N7: 3 | O7: 4.415880433 | P7: TOP | R7: 31 | U7: 0 | V7: 3100.226455 | W7: 2 | X7: =IF(W7<31,AVERAGE(OFFSET(INDEX('Points team et quota finales'!$C$5:$C$34,W7),0,0,COUNTIF($W$6:$W$105,W7))),0) -> 80
A8: 3 | B8: DF05 | C8: VANDERSTRAETEN Justine | D8: CC | E8: TOP | G8: 28 | H8: 1 | I8: 6.5 | J8: 26 | K8: + | L8: 26.01 | M8: 4 | N8: 4.5 | O8: 5.408326913 | P8: TOP | R8: 31 | U8: 0 | V8: 3100.1849 | W8: 3 | X8: =IF(W8<31,AVERAGE(OFFSET(INDEX('Points team et quota finales'!$C$5:$C$34,W8),0,0,COUNTIF($W$6:$W$105,W8))),0) -> 65
A9: 4 | B9: DF08 | C9: WATILLON Lucie | D9: REJ | E9: TOP | G9: 28 | H9: 1 | I9: 6.5 | J9: TOP | L9: 30 | M9: 1 | N9: 1.5 | O9: 3.122498999 | P9: 30 | Q9: + | R9: 30.01 | U9: 0 | V9: 3001.320256 | W9: 4 | X9: =IF(W9<31,AVERAGE(OFFSET(INDEX('Points team et quota finales'!$C$5:$C$34,W9),0,0,COUNTIF($W$6:$W$105,W9))),0) -> 55
A10: 5 | B10: DF06 | C10: DE WIT Camille | D10: HUN | E10: TOP | G10: 28 | H10: 1 | I10: 6.5 | J10: 26 | L10: 26 | M10: 6 | N10: 7 | O10: 6.745368782 | P10: 22 | Q10: + | R10: 22.01 | U10: 0 | V10: 2201.14825 | W10: 5 | X10: =IF(W10<31,AVERAGE(OFFSET(INDEX('Points team et quota finales'!$C$5:$C$34,W10),0,0,COUNTIF($W$6:$W$105,W10))),0) -> 51
A11: 6 | B11: DF03 | C11: SCHLIT Chloe | D11: REJ | E11: TOP | G11: 28 | H11: 1 | I11: 6.5 | J11: 26 | L11: 26 | M11: 6 | N11: 7 | O11: 6.745368782 | P11: 20 | Q11: + | R11: 20.01 | U11: 0 | V11: 2001.14825 | W11: 6 | X11: =IF(W11<31,AVERAGE(OFFSET(INDEX('Points team et quota finales'!$C$5:$C$34,W11),0,0,COUNTIF($W$6:$W$105,W11))),0) -> 47
A12: 7 | B12: DF01 | C12: BOURGOIN Laetitia | D12: ECT | E12: TOP | G12: 28 | H12: 1 | I12: 6.5 | J12: 26 | L12: 26 | M12: 6 | N12: 7 | O12: 6.745368782 | P12: 18 | Q12: + | R12: 18.01 | U12: 0 | V12: 1801.14825 | W12: 7 | X12: =IF(W12<31,AVERAGE(OFFSET(INDEX('Points team et quota finales'!$C$5:$C$34,W12),0,0,COUNTIF($W$6:$W$105,W12))),0) -> 43
A13: 8 | B13: DF07 | C13: CAPELLE Marie | D13: BMC | E13: TOP | G13: 28 | H13: 1 | I13: 6.5 | J13: 26 | K13: + | L13: 26.01 | M13: 4 | N13: 4.5 | O13: 5.408326913 | P13: 17 | Q13: + | R13: 17.01 | U13: 0 | V13: 1701.1849 | W13: 8 | X13: =IF(W13<31,AVERAGE(OFFSET(INDEX('Points team et quota finales'!$C$5:$C$34,W13),0,0,COUNTIF($W$6:$W$105,W13))),0) -> 40
A14: 9 | B14: DF10 | C14: DE LEUS Siri | D14: ECT | E14: TOP | G14: 28 | H14: 1 | I14: 6.5 | J14: 24.5 | L14: 24.5 | M14: 9 | N14: 9 | O14: 7.64852927 | R14: 0 | U14: 0 | V14: 0.1307440901 | W14: 9 | X14: =IF(W14<31,AVERAGE(OFFSET(INDEX('Points team et quota finales'!$C$5:$C$34,W14),0,0,COUNTIF($W$6:$W$105,W14))),0) -> 37
A15: 10 | B15: DF11 | C15: REYNIERS Rafflesia | D15: KLI | E15: TOP | G15: 28 | H15: 1 | I15: 6.5 | J15: 24 | K15: + | L15: 24.01 | M15: 10 | N15: 10 | O15: 8.062257748 | R15: 0 | U15: 0 | V15: 0.1240347346 | W15: 10 | X15: =IF(W15<31,AVERAGE(OFFSET(INDEX('Points team et quota finales'!$C$5:$C$34,W15),0,0,COUNTIF($W$6:$W$105,W15))),0) -> 34
A16: 11 | B16: DF02 | C16: CRAENEN Elise | D16: HUN | E16: TOP | G16: 28 | H16: 1 | I16: 6.5 | J16: 24 | L16: 24 | M16: 11 | N16: 11 | O16: 8.455767263 | R16: 0 | U16: 0 | V16: 0.1182624792 | W16: 11 | X16: =IF(W16<31,AVERAGE(OFFSET(INDEX('Points team et quota finales'!$C$5:$C$34,W16),0,0,COUNTIF($W$6:$W$105,W16))),0) -> 31
A17: 12 | B17: DF12 | C17: OURY Pauline | D17: ESC | E17: TOP | G17: 28 | H17: 1 | I17: 6.5 | J17: 21 | L17: 21 | M17: 12 | N17: 12 | O17: 8.831760866 | R17: 0 | U17: 0 | V17: 0.1132277034 | W17: 12 | X17: =IF(W17<31,AVERAGE(OFFSET(INDEX('Points team et quota finales'!$C$5:$C$34,W17),0,0,COUNTIF($W$6:$W$105,W17))),0) -> 28
A18: 13 | G18: =IF(E18="TOP",$F$108,IF(F18="-",E18-0.01,IF(F18="+",E18+0.01,E18))) -> 0 | H18: =RANK(G18,$G$6:$G$105) -> 13 | I18: =IF(COUNTIF($H$6:$H$105,H18)=1,H18,(H18*2+COUNTIF($H$6:$H$105,H18)-1)/2) -> 56.5 | L18: =IF(J18="TOP",$K$108,IF(K18="-",J18-0.01,IF(K18="+",J18+0.01,J18))) -> 0 | M18: =RANK(L18,$L$6:$L$105) -> 13 | N18: =IF(COUNTIF($M$6:$M$105,M18)=1,M18,(M18*2+COUNTIF($M$6:$M$105,M18)-1)/2) -> 56.5 | O18: =SQRT(I18*N18) -> 56.5 | R18: =IF(P18="TOP",$Q$108,IF(Q18="-",P18-0.01,IF(Q18="+",P18+0.01,P18))) -> 0 | U18: =IF($S18="TOP",$T$108,IF($T18="-",$S18-0.01,IF($T18="+",$S18+0.01,$S18))) -> 0 | V18: =IF(U18<>0,U18*1000+R18*100+1/O18,IF(R18<>0,R18*100+1/O18,1/O18)) -> 0.01769911504 | W18: 13 | X18: =IF(W18<31,AVERAGE(OFFSET(INDEX('Points team et quota finales'!$C$5:$C$34,W18),0,0,COUNTIF($W$6:$W$105,W18))),0) -> 11.5
A19: 13 | G19: 0 | H19: 13 | I19: 56.5 | L19: 0 | M19: 13 | N19: 56.5 | O19: 56.5 | R19: 0 | U19: 0 | V19: 0.01769911504 | W19: 13 | X19: =IF(W19<31,AVERAGE(OFFSET(INDEX('Points team et quota finales'!$C$5:$C$34,W19),0,0,COUNTIF($W$6:$W$105,W19))),0) -> 11.5
A20: 13 | G20: 0 | H20: 13 | I20: 56.5 | L20: 0 | M20: 13 | N20: 56.5 | O20: 56.5 | R20: 0 | U20: 0 | V20: 0.01769911504 | W20: 13 | X20: =IF(W20<31,AVERAGE(OFFSET(INDEX('Points team et quota finales'!$C$5:$C$34,W20),0,0,COUNTIF($W$6:$W$105,W20))),0) -> 11.5
A21: 13 | G21: 0 | H21: 13 | I21: 56.5 | L21: 0 | M21: 13 | N21: 56.5 | O21: 56.5 | R21: 0 | U21: 0 | V21: 0.01769911504 | W21: 13 | X21: =IF(W21<31,AVERAGE(OFFSET(INDEX('Points team et quota finales'!$C$5:$C$34,W21),0,0,COUNTIF($W$6:$W$105,W21))),0) -> 11.5
A22: 13 | G22: 0 | H22: 13 | I22: 56.5 | L22: 0 | M22: 13 | N22: 56.5 | O22: 56.5 | R22: 0 | U22: 0 | V22: 0.01769911504 | W22: 13 | X22: =IF(W22<31,AVERAGE(OFFSET(INDEX('Points team et quota finales'!$C$5:$C$34,W22),0,0,COUNTIF($W$6:$W$105,W22))),0) -> 11.5
A23: 13 | G23: 0 | H23: 13 | I23: 56.5 | L23: 0 | M23: 13 | N23: 56.5 | O23: 56.5 | R23: 0 | U23: 0 | V23: 0.01769911504 | W23: 13 | X23: =IF(W23<31,AVERAGE(OFFSET(INDEX('Points team et quota finales'!$C$5:$C$34,W23),0,0,COUNTIF($W$6:$W$105,W23))),0) -> 11.5
A24: 13 | G24: 0 | H24: 13 | I24: 56.5 | L24: 0 | M24: 13 | N24: 56.5 | O24: 56.5 | R24: 0 | U24: 0 | V24: 0.01769911504 | W24: 13 | X24: =IF(W24<31,AVERAGE(OFFSET(INDEX('Points team et quota finales'!$C$5:$C$34,W24),0,0,COUNTIF($W$6:$W$105,W24))),0) -> 11.5
A25: 13 | G25: 0 | H25: 13 | I25: 56.5 | L25: 0 | M25: 13 | N25: 56.5 | O25: 56.5 | R25: 0 | U25: 0 | V25: 0.01769911504 | W25: 13 | X25: =IF(W25<31,AVERAGE(OFFSET(INDEX('Points team et quota finales'!$C$5:$C$34,W25),0,0,COUNTIF($W$6:$W$105,W25))),0) -> 11.5
A26: 13 | G26: 0 | H26: 13 | I26: 56.5 | L26: 0 | M26: 13 | N26: 56.5 | O26: 56.5 | R26: 0 | U26: 0 | V26: 0.01769911504 | W26: 13 | X26: =IF(W26<31,AVERAGE(OFFSET(INDEX('Points team et quota finales'!$C$5:$C$34,W26),0,0,COUNTIF($W$6:$W$105,W26))),0) -> 11.5
A27: 13 | G27: 0 | H27: 13 | I27: 56.5 | L27: 0 | M27: 13 | N27: 56.5 | O27: 56.5 | R27: 0 | U27: 0 | V27: 0.01769911504 | W27: 13 | X27: =IF(W27<31,AVERAGE(OFFSET(INDEX('Points team et quota finales'!$C$5:$C$34,W27),0,0,COUNTIF($W$6:$W$105,W27))),0) -> 11.5
A28: 13 | G28: 0 | H28: 13 | I28: 56.5 | L28: 0 | M28: 13 | N28: 56.5 | O28: 56.5 | R28: 0 | U28: 0 | V28: 0.01769911504 | W28: 13 | X28: =IF(W28<31,AVERAGE(OFFSET(INDEX('Points team et quota finales'!$C$5:$C$34,W28),0,0,COUNTIF($W$6:$W$105,W28))),0) -> 11.5
A29: 13 | G29: 0 | H29: 13 | I29: 56.5 | L29: 0 | M29: 13 | N29: 56.5 | O29: 56.5 | R29: 0 | U29: 0 | V29: 0.01769911504 | W29: 13 | X29: =IF(W29<31,AVERAGE(OFFSET(INDEX('Points team et quota finales'!$C$5:$C$34,W29),0,0,COUNTIF($W$6:$W$105,W29))),0) -> 11.5
A30: 13 | G30: 0 | H30: 13 | I30: 56.5 | L30: 0 | M30: 13 | N30: 56.5 | O30: 56.5 | R30: 0 | U30: 0 | V30: 0.01769911504 | W30: 13 | X30: =IF(W30<31,AVERAGE(OFFSET(INDEX('Points team et quota finales'!$C$5:$C$34,W30),0,0,COUNTIF($W$6:$W$105,W30))),0) -> 11.5
A31: 13 | G31: 0 | H31: 13 | I31: 56.5 | L31: 0 | M31: 13 | N31: 56.5 | O31: 56.5 | R31: 0 | U31: 0 | V31: 0.01769911504 | W31: 13 | X31: =IF(W31<31,AVERAGE(OFFSET(INDEX('Points team et quota finales'!$C$5:$C$34,W31),0,0,COUNTIF($W$6:$W$105,W31))),0) -> 11.5
A32: 13 | G32: 0 | H32: 13 | I32: 56.5 | L32: 0 | M32: 13 | N32: 56.5 | O32: 56.5 | R32: 0 | U32: 0 | V32: 0.01769911504 | W32: 13 | X32: =IF(W32<31,AVERAGE(OFFSET(INDEX('Points team et quota finales'!$C$5:$C$34,W32),0,0,COUNTIF($W$6:$W$105,W32))),0) -> 11.5
A33: 13 | G33: 0 | H33: 13 | I33: 56.5 | L33: 0 | M33: 13 | N33: 56.5 | O33: 56.5 | R33: 0 | U33: 0 | V33: 0.01769911504 | W33: 13 | X33: =IF(W33<31,AVERAGE(OFFSET(INDEX('Points team et quota finales'!$C$5:$C$34,W33),0,0,COUNTIF($W$6:$W$105,W33))),0) -> 11.5
A34: 13 | G34: 0 | H34: 13 | I34: 56.5 | L34: 0 | M34: 13 | N34: 56.5 | O34: 56.5 | R34: 0 | U34: 0 | V34: 0.01769911504 | W34: 13 | X34: =IF(W34<31,AVERAGE(OFFSET(INDEX('Points team et quota finales'!$C$5:$C$34,W34),0,0,COUNTIF($W$6:$W$105,W34))),0) -> 11.5
A35: 13 | G35: 0 | H35: 13 | I35: 56.5 | L35: 0 | M35: 13 | N35: 56.5 | O35: 56.5 | R35: 0 | U35: 0 | V35: 0.01769911504 | W35: 13 | X35: =IF(W35<31,AVERAGE(OFFSET(INDEX('Points team et quota finales'!$C$5:$C$34,W35),0,0,COUNTIF($W$6:$W$105,W35))),0) -> 11.5
A36: 13 | G36: 0 | H36: 13 | I36: 56.5 | L36: 0 | M36: 13 | N36: 56.5 | O36: 56.5 | R36: 0 | U36: 0 | V36: 0.01769911504 | W36: 13 | X36: =IF(W36<31,AVERAGE(OFFSET(INDEX('Points team et quota finales'!$C$5:$C$34,W36),0,0,COUNTIF($W$6:$W$105,W36))),0) -> 11.5
A37: 13 | G37: 0 | H37: 13 | I37: 56.5 | L37: 0 | M37: 13 | N37: 56.5 | O37: 56.5 | R37: 0 | U37: 0 | V37: 0.01769911504 | W37: 13 | X37: =IF(W37<31,AVERAGE(OFFSET(INDEX('Points team et quota finales'!$C$5:$C$34,W37),0,0,COUNTIF($W$6:$W$105,W37))),0) -> 11.5
A38: 13 | G38: =IF(E38="TOP",$F$108,IF(F38="-",E38-0.01,IF(F38="+",E38+0.01,E38))) -> 0 | H38: =RANK(G38,$G$6:$G$105) -> 13 | I38: =IF(COUNTIF($H$6:$H$105,H38)=1,H38,(H38*2+COUNTIF($H$6:$H$105,H38)-1)/2) -> 56.5 | L38: =IF(J38="TOP",$K$108,IF(K38="-",J38-0.01,IF(K38="+",J38+0.01,J38))) -> 0 | M38: =RANK(L38,$L$6:$L$105) -> 13 | N38: =IF(COUNTIF($M$6:$M$105,M38)=1,M38,(M38*2+COUNTIF($M$6:$M$105,M38)-1)/2) -> 56.5 | O38: =SQRT(I38*N38) -> 56.5 | R38: =IF(P38="TOP",$Q$108,IF(Q38="-",P38-0.01,IF(Q38="+",P38+0.01,P38))) -> 0 | U38: =IF($S38="TOP",$T$108,IF($T38="-",$S38-0.01,IF($T38="+",$S38+0.01,$S38))) -> 0 | V38: =IF(U38<>0,U38*1000+R38*100+1/O38,IF(R38<>0,R38*100+1/O38,1/O38)) -> 0.01769911504 | W38: 13 | X38: =IF(W38<31,AVERAGE(OFFSET(INDEX('Points team et quota finales'!$C$5:$C$34,W38),0,0,COUNTIF($W$6:$W$105,W38))),0) -> 11.5
A39: 13 | G39: 0 | H39: 13 | I39: 56.5 | L39: 0 | M39: 13 | N39: 56.5 | O39: 56.5 | R39: 0 | U39: 0 | V39: 0.01769911504 | W39: 13 | X39: =IF(W39<31,AVERAGE(OFFSET(INDEX('Points team et quota finales'!$C$5:$C$34,W39),0,0,COUNTIF($W$6:$W$105,W39))),0) -> 11.5
A40: 13 | G40: 0 | H40: 13 | I40: 56.5 | L40: 0 | M40: 13 | N40: 56.5 | O40: 56.5 | R40: 0 | U40: 0 | V40: 0.01769911504 | W40: 13 | X40: =IF(W40<31,AVERAGE(OFFSET(INDEX('Points team et quota finales'!$C$5:$C$34,W40),0,0,COUNTIF($W$6:$W$105,W40))),0) -> 11.5
A41: 13 | G41: 0 | H41: 13 | I41: 56.5 | L41: 0 | M41: 13 | N41: 56.5 | O41: 56.5 | R41: 0 | U41: 0 | V41: 0.01769911504 | W41: 13 | X41: =IF(W41<31,AVERAGE(OFFSET(INDEX('Points team et quota finales'!$C$5:$C$34,W41),0,0,COUNTIF($W$6:$W$105,W41))),0) -> 11.5
A42: 13 | G42: 0 | H42: 13 | I42: 56.5 | L42: 0 | M42: 13 | N42: 56.5 | O42: 56.5 | R42: 0 | U42: 0 | V42: 0.01769911504 | W42: 13 | X42: =IF(W42<31,AVERAGE(OFFSET(INDEX('Points team et quota finales'!$C$5:$C$34,W42),0,0,COUNTIF($W$6:$W$105,W42))),0) -> 11.5
A43: 13 | G43: 0 | H43: 13 | I43: 56.5 | L43: 0 | M43: 13 | N43: 56.5 | O43: 56.5 | R43: 0 | U43: 0 | V43: 0.01769911504 | W43: 13 | X43: =IF(W43<31,AVERAGE(OFFSET(INDEX('Points team et quota finales'!$C$5:$C$34,W43),0,0,COUNTIF($W$6:$W$105,W43))),0) -> 11.5
A44: 13 | G44: 0 | H44: 13 | I44: 56.5 | L44: 0 | M44: 13 | N44: 56.5 | O44: 56.5 | R44: 0 | U44: 0 | V44: 0.01769911504 | W44: 13 | X44: =IF(W44<31,AVERAGE(OFFSET(INDEX('Points team et quota finales'!$C$5:$C$34,W44),0,0,COUNTIF($W$6:$W$105,W44))),0) -> 11.5
A45: 13 | G45: 0 | H45: 13 | I45: 56.5 | L45: 0 | M45: 13 | N45: 56.5 | O45: 56.5 | R45: 0 | U45: 0 | V45: 0.01769911504 | W45: 13 | X45: =IF(W45<31,AVERAGE(OFFSET(INDEX('Points team et quota finales'!$C$5:$C$34,W45),0,0,COUNTIF($W$6:$W$105,W45))),0) -> 11.5
A46: 13 | G46: 0 | H46: 13 | I46: 56.5 | L46: 0 | M46: 13 | N46: 56.5 | O46: 56.5 | R46: 0 | U46: 0 | V46: 0.01769911504 | W46: 13 | X46: =IF(W46<31,AVERAGE(OFFSET(INDEX('Points team et quota finales'!$C$5:$C$34,W46),0,0,COUNTIF($W$6:$W$105,W46))),0) -> 11.5
A47: 13 | G47: 0 | H47: 13 | I47: 56.5 | L47: 0 | M47: 13 | N47: 56.5 | O47: 56.5 | R47: 0 | U47: 0 | V47: 0.01769911504 | W47: 13 | X47: =IF(W47<31,AVERAGE(OFFSET(INDEX('Points team et quota finales'!$C$5:$C$34,W47),0,0,COUNTIF($W$6:$W$105,W47))),0) -> 11.5
A48: 13 | G48: 0 | H48: 13 | I48: 56.5 | L48: 0 | M48: 13 | N48: 56.5 | O48: 56.5 | R48: 0 | U48: 0 | V48: 0.01769911504 | W48: =A48 -> 13 | X48: =IF(W48<31,AVERAGE(OFFSET(INDEX('Points team et quota finales'!$C$5:$C$34,W48),0,0,COUNTIF($W$6:$W$105,W48))),0) -> 11.5
A49: 13 | G49: 0 | H49: 13 | I49: 56.5 | L49: 0 | M49: 13 | N49: 56.5 | O49: 56.5 | R49: 0 | U49: 0 | V49: 0.01769911504 | W49: 13 | X49: =IF(W49<31,AVERAGE(OFFSET(INDEX('Points team et quota finales'!$C$5:$C$34,W49),0,0,COUNTIF($W$6:$W$105,W49))),0) -> 11.5
A50: 13 | G50: 0 | H50: 13 | I50: 56.5 | L50: 0 | M50: 13 | N50: 56.5 | O50: 56.5 | R50: 0 | U50: 0 | V50: 0.01769911504 | W50: 13 | X50: =IF(W50<31,AVERAGE(OFFSET(INDEX('Points team et quota finales'!$C$5:$C$34,W50),0,0,COUNTIF($W$6:$W$105,W50))),0) -> 11.5
A51: 13 | G51: 0 | H51: 13 | I51: 56.5 | L51: 0 | M51: 13 | N51: 56.5 | O51: 56.5 | R51: 0 | U51: 0 | V51: 0.01769911504 | W51: 13 | X51: =IF(W51<31,AVERAGE(OFFSET(INDEX('Points team et quota finales'!$C$5:$C$34,W51),0,0,COUNTIF($W$6:$W$105,W51))),0) -> 11.5
A52: 13 | G52: 0 | H52: 13 | I52: 56.5 | L52: 0 | M52: 13 | N52: 56.5 | O52: 56.5 | R52: 0 | U52: 0 | V52: 0.01769911504 | W52: 13 | X52: =IF(W52<31,AVERAGE(OFFSET(INDEX('Points team et quota finales'!$C$5:$C$34,W52),0,0,COUNTIF($W$6:$W$105,W52))),0) -> 11.5
A53: 13 | G53: 0 | H53: 13 | I53: 56.5 | L53: 0 | M53: 13 | N53: 56.5 | O53: 56.5 | R53: 0 | U53: 0 | V53: 0.01769911504 | W53: 13 | X53: =IF(W53<31,AVERAGE(OFFSET(INDEX('Points team et quota finales'!$C$5:$C$34,W53),0,0,COUNTIF($W$6:$W$105,W53))),0) -> 11.5
A54: 13 | G54: 0 | H54: 13 | I54: 56.5 | L54: 0 | M54: 13 | N54: 56.5 | O54: 56.5 | R54: 0 | U54: 0 | V54: 0.01769911504 | W54: 13 | X54: =IF(W54<31,AVERAGE(OFFSET(INDEX('Points team et quota finales'!$C$5:$C$34,W54),0,0,COUNTIF($W$6:$W$105,W54))),0) -> 11.5
A55: 13 | G55: 0 | H55: 13 | I55: 56.5 | L55: 0 | M55: 13 | N55: 56.5 | O55: 56.5 | R55: 0 | U55: 0 | V55: 0.01769911504 | W55: 13 | X55: =IF(W55<31,AVERAGE(OFFSET(INDEX('Points team et quota finales'!$C$5:$C$34,W55),0,0,COUNTIF($W$6:$W$105,W55))),0) -> 11.5
A56: 13 | G56: 0 | H56: 13 | I56: 56.5 | L56: 0 | M56: 13 | N56: 56.5 | O56: 56.5 | R56: 0 | U56: 0 | V56: 0.01769911504 | W56: 13 | X56: =IF(W56<31,AVERAGE(OFFSET(INDEX('Points team et quota finales'!$C$5:$C$34,W56),0,0,COUNTIF($W$6:$W$105,W56))),0) -> 11.5
A57: 13 | G57: 0 | H57: 13 | I57: 56.5 | L57: 0 | M57: 13 | N57: 56.5 | O57: 56.5 | R57: 0 | U57: 0 | V57: 0.01769911504 | W57: 13 | X57: =IF(W57<31,AVERAGE(OFFSET(INDEX('Points team et quota finales'!$C$5:$C$34,W57),0,0,COUNTIF($W$6:$W$105,W57))),0) -> 11.5
A58: 13 | G58: 0 | H58: 13 | I58: 56.5 | L58: 0 | M58: 13 | N58: 56.5 | O58: 56.5 | R58: 0 | U58: 0 | V58: 0.01769911504 | W58: 13 | X58: =IF(W58<31,AVERAGE(OFFSET(INDEX('Points team et quota finales'!$C$5:$C$34,W58),0,0,COUNTIF($W$6:$W$105,W58))),0) -> 11.5
A59: 13 | G59: 0 | H59: 13 | I59: 56.5 | L59: 0 | M59: 13 | N59: 56.5 | O59: 56.5 | R59: 0 | U59: 0 | V59: 0.01769911504 | W59: 13 | X59: =IF(W59<31,AVERAGE(OFFSET(INDEX('Points team et quota finales'!$C$5:$C$34,W59),0,0,COUNTIF($W$6:$W$105,W59))),0) -> 11.5
A60: 13 | G60: 0 | H60: 13 | I60: 56.5 | L60: 0 | M60: 13 | N60: 56.5 | O60: 56.5 | R60: 0 | U60: 0 | V60: 0.01769911504 | W60: 13 | X60: =IF(W60<31,AVERAGE(OFFSET(INDEX('Points team et quota finales'!$C$5:$C$34,W60),0,0,COUNTIF($W$6:$W$105,W60))),0) -> 11.5
A61: 13 | G61: 0 | H61: 13 | I61: 56.5 | L61: 0 | M61: 13 | N61: 56.5 | O61: 56.5 | R61: 0 | U61: 0 | V61: 0.01769911504 | W61: 13 | X61: =IF(W61<31,AVERAGE(OFFSET(INDEX('Points team et quota finales'!$C$5:$C$34,W61),0,0,COUNTIF($W$6:$W$105,W61))),0) -> 11.5
A62: 13 | G62: 0 | H62: 13 | I62: 56.5 | L62: 0 | M62: 13 | N62: 56.5 | O62: 56.5 | R62: 0 | U62: 0 | V62: 0.01769911504 | W62: 13 | X62: =IF(W62<31,AVERAGE(OFFSET(INDEX('Points team et quota finales'!$C$5:$C$34,W62),0,0,COUNTIF($W$6:$W$105,W62))),0) -> 11.5
A63: 13 | G63: 0 | H63: 13 | I63: 56.5 | L63: 0 | M63: 13 | N63: 56.5 | O63: 56.5 | R63: 0 | U63: 0 | V63: 0.01769911504 | W63: 13 | X63: =IF(W63<31,AVERAGE(OFFSET(INDEX('Points team et quota finales'!$C$5:$C$34,W63),0,0,COUNTIF($W$6:$W$105,W63))),0) -> 11.5
A64: 13 | G64: 0 | H64: 13 | I64: 56.5 | L64: 0 | M64: 13 | N64: 56.5 | O64: 56.5 | R64: 0 | U64: 0 | V64: 0.01769911504 | W64: 13 | X64: =IF(W64<31,AVERAGE(OFFSET(INDEX('Points team et quota finales'!$C$5:$C$34,W64),0,0,COUNTIF($W$6:$W$105,W64))),0) -> 11.5
A65: 13 | G65: 0 | H65: 13 | I65: 56.5 | L65: 0 | M65: 13 | N65: 56.5 | O65: 56.5 | R65: 0 | U65: 0 | V65: 0.01769911504 | W65: 13 | X65: =IF(W65<31,AVERAGE(OFFSET(INDEX('Points team et quota finales'!$C$5:$C$34,W65),0,0,COUNTIF($W$6:$W$105,W65))),0) -> 11.5
A66: 13 | G66: 0 | H66: 13 | I66: 56.5 | L66: 0 | M66: 13 | N66: 56.5 | O66: 56.5 | R66: 0 | U66: 0 | V66: 0.01769911504 | W66: 13 | X66: =IF(W66<31,AVERAGE(OFFSET(INDEX('Points team et quota finales'!$C$5:$C$34,W66),0,0,COUNTIF($W$6:$W$105,W66))),0) -> 11.5
A67: 13 | G67: 0 | H67: 13 | I67: 56.5 | L67: 0 | M67: 13 | N67: 56.5 | O67: 56.5 | R67: 0 | U67: 0 | V67: 0.01769911504 | W67: 13 | X67: =IF(W67<31,AVERAGE(OFFSET(INDEX('Points team et quota finales'!$C$5:$C$34,W67),0,0,COUNTIF($W$6:$W$105,W67))),0) -> 11.5
A68: 13 | G68: 0 | H68: 13 | I68: 56.5 | L68: 0 | M68: 13 | N68: 56.5 | O68: 56.5 | R68: 0 | U68: 0 | V68: 0.01769911504 | W68: 13 | X68: =IF(W68<31,AVERAGE(OFFSET(INDEX('Points team et quota finales'!$C$5:$C$34,W68),0,0,COUNTIF($W$6:$W$105,W68))),0) -> 11.5
A69: 13 | G69: 0 | H69: 13 | I69: 56.5 | L69: 0 | M69: 13 | N69: 56.5 | O69: 56.5 | R69: 0 | U69: 0 | V69: 0.01769911504 | W69: 13 | X69: =IF(W69<31,AVERAGE(OFFSET(INDEX('Points team et quota finales'!$C$5:$C$34,W69),0,0,COUNTIF($W$6:$W$105,W69))),0) -> 11.5
A70: 13 | G70: =IF(E70="TOP",$F$108,IF(F70="-",E70-0.01,IF(F70="+",E70+0.01,E70))) -> 0 | H70: =RANK(G70,$G$6:$G$105) -> 13 | I70: =IF(COUNTIF($H$6:$H$105,H70)=1,H70,(H70*2+COUNTIF($H$6:$H$105,H70)-1)/2) -> 56.5 | L70: =IF(J70="TOP",$K$108,IF(K70="-",J70-0.01,IF(K70="+",J70+0.01,J70))) -> 0 | M70: =RANK(L70,$L$6:$L$105) -> 13 | N70: =IF(COUNTIF($M$6:$M$105,M70)=1,M70,(M70*2+COUNTIF($M$6:$M$105,M70)-1)/2) -> 56.5 | O70: =SQRT(I70*N70) -> 56.5 | R70: =IF(P70="TOP",$Q$108,IF(Q70="-",P70-0.01,IF(Q70="+",P70+0.01,P70))) -> 0 | U70: =IF($S70="TOP",$T$108,IF($T70="-",$S70-0.01,IF($T70="+",$S70+0.01,$S70))) -> 0 | V70: =IF(U70<>0,U70*1000+R70*100+1/O70,IF(R70<>0,R70*100+1/O70,1/O70)) -> 0.01769911504 | W70: =A70 -> 13 | X70: =IF(W70<31,AVERAGE(OFFSET(INDEX('Points team et quota finales'!$C$5:$C$34,W70),0,0,COUNTIF($W$6:$W$105,W70))),0) -> 11.5
A71: =RANK(V71,$V$6:$V$105) -> 13 | G71: 0 | H71: 13 | I71: 56.5 | L71: 0 | M71: 13 | N71: 56.5 | O71: 56.5 | R71: 0 | U71: 0 | V71: 0.01769911504 | W71: 13 | X71: =IF(W71<31,AVERAGE(OFFSET(INDEX('Points team et quota finales'!$C$5:$C$34,W71),0,0,COUNTIF($W$6:$W$105,W71))),0) -> 11.5
A72: 13 | G72: 0 | H72: 13 | I72: 56.5 | L72: 0 | M72: 13 | N72: 56.5 | O72: 56.5 | R72: 0 | U72: 0 | V72: 0.01769911504 | W72: 13 | X72: =IF(W72<31,AVERAGE(OFFSET(INDEX('Points team et quota finales'!$C$5:$C$34,W72),0,0,COUNTIF($W$6:$W$105,W72))),0) -> 11.5
A73: 13 | G73: 0 | H73: 13 | I73: 56.5 | L73: 0 | M73: 13 | N73: 56.5 | O73: 56.5 | R73: 0 | U73: 0 | V73: 0.01769911504 | W73: 13 | X73: =IF(W73<31,AVERAGE(OFFSET(INDEX('Points team et quota finales'!$C$5:$C$34,W73),0,0,COUNTIF($W$6:$W$105,W73))),0) -> 11.5
A74: 13 | G74: 0 | H74: 13 | I74: 56.5 | L74: 0 | M74: 13 | N74: 56.5 | O74: 56.5 | R74: 0 | U74: 0 | V74: 0.01769911504 | W74: 13 | X74: =IF(W74<31,AVERAGE(OFFSET(INDEX('Points team et quota finales'!$C$5:$C$34,W74),0,0,COUNTIF($W$6:$W$105,W74))),0) -> 11.5
A75: 13 | G75: 0 | H75: 13 | I75: 56.5 | L75: 0 | M75: 13 | N75: 56.5 | O75: 56.5 | R75: 0 | U75: 0 | V75: 0.01769911504 | W75: 13 | X75: =IF(W75<31,AVERAGE(OFFSET(INDEX('Points team et quota finales'!$C$5:$C$34,W75),0,0,COUNTIF($W$6:$W$105,W75))),0) -> 11.5
A76: 13 | G76: 0 | H76: 13 | I76: 56.5 | L76: 0 | M76: 13 | N76: 56.5 | O76: 56.5 | R76: 0 | U76: 0 | V76: 0.01769911504 | W76: 13 | X76: =IF(W76<31,AVERAGE(OFFSET(INDEX('Points team et quota finales'!$C$5:$C$34,W76),0,0,COUNTIF($W$6:$W$105,W76))),0) -> 11.5
A77: 13 | G77: 0 | H77: 13 | I77: 56.5 | L77: 0 | M77: 13 | N77: 56.5 | O77: 56.5 | R77: 0 | U77: 0 | V77: 0.01769911504 | W77: 13 | X77: =IF(W77<31,AVERAGE(OFFSET(INDEX('Points team et quota finales'!$C$5:$C$34,W77),0,0,COUNTIF($W$6:$W$105,W77))),0) -> 11.5
A78: 13 | G78: 0 | H78: 13 | I78: 56.5 | L78: 0 | M78: 13 | N78: 56.5 | O78: 56.5 | R78: 0 | U78: 0 | V78: 0.01769911504 | W78: 13 | X78: =IF(W78<31,AVERAGE(OFFSET(INDEX('Points team et quota finales'!$C$5:$C$34,W78),0,0,COUNTIF($W$6:$W$105,W78))),0) -> 11.5
A79: 13 | G79: 0 | H79: 13 | I79: 56.5 | L79: 0 | M79: 13 | N79: 56.5 | O79: 56.5 | R79: 0 | U79: 0 | V79: 0.01769911504 | W79: 13 | X79: =IF(W79<31,AVERAGE(OFFSET(INDEX('Points team et quota finales'!$C$5:$C$34,W79),0,0,COUNTIF($W$6:$W$105,W79))),0) -> 11.5
A80: 13 | G80: 0 | H80: 13 | I80: 56.5 | L80: 0 | M80: 13 | N80: 56.5 | O80: 56.5 | R80: 0 | U80: 0 | V80: 0.01769911504 | W80: 13 | X80: =IF(W80<31,AVERAGE(OFFSET(INDEX('Points team et quota finales'!$C$5:$C$34,W80),0,0,COUNTIF($W$6:$W$105,W80))),0) -> 11.5
A81: 13 | G81: 0 | H81: 13 | I81: 56.5 | L81: 0 | M81: 13 | N81: 56.5 | O81: 56.5 | R81: 0 | U81: 0 | V81: 0.01769911504 | W81: 13 | X81: =IF(W81<31,AVERAGE(OFFSET(INDEX('Points team et quota finales'!$C$5:$C$34,W81),0,0,COUNTIF($W$6:$W$105,W81))),0) -> 11.5
A82: 13 | G82: 0 | H82: 13 | I82: 56.5 | L82: 0 | M82: 13 | N82: 56.5 | O82: 56.5 | R82: 0 | U82: 0 | V82: 0.01769911504 | W82: 13 | X82: =IF(W82<31,AVERAGE(OFFSET(INDEX('Points team et quota finales'!$C$5:$C$34,W82),0,0,COUNTIF($W$6:$W$105,W82))),0) -> 11.5
A83: 13 | G83: 0 | H83: 13 | I83: 56.5 | L83: 0 | M83: 13 | N83: 56.5 | O83: 56.5 | R83: 0 | U83: 0 | V83: 0.01769911504 | W83: 13 | X83: =IF(W83<31,AVERAGE(OFFSET(INDEX('Points team et quota finales'!$C$5:$C$34,W83),0,0,COUNTIF($W$6:$W$105,W83))),0) -> 11.5
A84: 13 | G84: 0 | H84: 13 | I84: 56.5 | L84: 0 | M84: 13 | N84: 56.5 | O84: 56.5 | R84: 0 | U84: 0 | V84: 0.01769911504 | W84: 13 | X84: =IF(W84<31,AVERAGE(OFFSET(INDEX('Points team et quota finales'!$C$5:$C$34,W84),0,0,COUNTIF($W$6:$W$105,W84))),0) -> 11.5
A85: 13 | G85: 0 | H85: 13 | I85: 56.5 | L85: 0 | M85: 13 | N85: 56.5 | O85: 56.5 | R85: 0 | U85: 0 | V85: 0.01769911504 | W85: 13 | X85: =IF(W85<31,AVERAGE(OFFSET(INDEX('Points team et quota finales'!$C$5:$C$34,W85),0,0,COUNTIF($W$6:$W$105,W85))),0) -> 11.5
A86: 13 | G86: 0 | H86: 13 | I86: 56.5 | L86: 0 | M86: 13 | N86: 56.5 | O86: 56.5 | R86: 0 | U86: 0 | V86: 0.01769911504 | W86: 13 | X86: =IF(W86<31,AVERAGE(OFFSET(INDEX('Points team et quota finales'!$C$5:$C$34,W86),0,0,COUNTIF($W$6:$W$105,W86))),0) -> 11.5
A87: 13 | G87: 0 | H87: 13 | I87: 56.5 | L87: 0 | M87: 13 | N87: 56.5 | O87: 56.5 | R87: 0 | U87: 0 | V87: 0.01769911504 | W87: 13 | X87: =IF(W87<31,AVERAGE(OFFSET(INDEX('Points team et quota finales'!$C$5:$C$34,W87),0,0,COUNTIF($W$6:$W$105,W87))),0) -> 11.5
A88: 13 | G88: 0 | H88: 13 | I88: 56.5 | L88: 0 | M88: 13 | N88: 56.5 | O88: 56.5 | R88: 0 | U88: 0 | V88: 0.01769911504 | W88: 13 | X88: =IF(W88<31,AVERAGE(OFFSET(INDEX('Points team et quota finales'!$C$5:$C$34,W88),0,0,COUNTIF($W$6:$W$105,W88))),0) -> 11.5
A89: 13 | G89: 0 | H89: 13 | I89: 56.5 | L89: 0 | M89: 13 | N89: 56.5 | O89: 56.5 | R89: 0 | U89: 0 | V89: 0.01769911504 | W89: 13 | X89: =IF(W89<31,AVERAGE(OFFSET(INDEX('Points team et quota finales'!$C$5:$C$34,W89),0,0,COUNTIF($W$6:$W$105,W89))),0) -> 11.5
A90: 13 | G90: 0 | H90: 13 | I90: 56.5 | L90: 0 | M90: 13 | N90: 56.5 | O90: 56.5 | R90: 0 | U90: 0 | V90: 0.01769911504 | W90: 13 | X90: =IF(W90<31,AVERAGE(OFFSET(INDEX('Points team et quota finales'!$C$5:$C$34,W90),0,0,COUNTIF($W$6:$W$105,W90))),0) -> 11.5
A91: 13 | G91: 0 | H91: 13 | I91: 56.5 | L91: 0 | M91: 13 | N91: 56.5 | O91: 56.5 | R91: 0 | U91: 0 | V91: 0.01769911504 | W91: 13 | X91: =IF(W91<31,AVERAGE(OFFSET(INDEX('Points team et quota finales'!$C$5:$C$34,W91),0,0,COUNTIF($W$6:$W$105,W91))),0) -> 11.5
A92: 13 | G92: 0 | H92: 13 | I92: 56.5 | L92: 0 | M92: 13 | N92: 56.5 | O92: 56.5 | R92: 0 | U92: 0 | V92: 0.01769911504 | W92: 13 | X92: =IF(W92<31,AVERAGE(OFFSET(INDEX('Points team et quota finales'!$C$5:$C$34,W92),0,0,COUNTIF($W$6:$W$105,W92))),0) -> 11.5
A93: 13 | G93: 0 | H93: 13 | I93: 56.5 | L93: 0 | M93: 13 | N93: 56.5 | O93: 56.5 | R93: 0 | U93: 0 | V93: 0.01769911504 | W93: 13 | X93: =IF(W93<31,AVERAGE(OFFSET(INDEX('Points team et quota finales'!$C$5:$C$34,W93),0,0,COUNTIF($W$6:$W$105,W93))),0) -> 11.5
A94: 13 | G94: 0 | H94: 13 | I94: 56.5 | L94: 0 | M94: 13 | N94: 56.5 | O94: 56.5 | R94: 0 | U94: 0 | V94: 0.01769911504 | W94: 13 | X94: =IF(W94<31,AVERAGE(OFFSET(INDEX('Points team et quota finales'!$C$5:$C$34,W94),0,0,COUNTIF($W$6:$W$105,W94))),0) -> 11.5
A95: 13 | G95: 0 | H95: 13 | I95: 56.5 | L95: 0 | M95: 13 | N95: 56.5 | O95: 56.5 | R95: 0 | U95: 0 | V95: 0.01769911504 | W95: 13 | X95: =IF(W95<31,AVERAGE(OFFSET(INDEX('Points team et quota finales'!$C$5:$C$34,W95),0,0,COUNTIF($W$6:$W$105,W95))),0) -> 11.5
A96: 13 | G96: 0 | H96: 13 | I96: 56.5 | L96: 0 | M96: 13 | N96: 56.5 | O96: 56.5 | R96: 0 | U96: 0 | V96: 0.01769911504 | W96: 13 | X96: =IF(W96<31,AVERAGE(OFFSET(INDEX('Points team et quota finales'!$C$5:$C$34,W96),0,0,COUNTIF($W$6:$W$105,W96))),0) -> 11.5
A97: 13 | G97: 0 | H97: 13 | I97: 56.5 | L97: 0 | M97: 13 | N97: 56.5 | O97: 56.5 | R97: 0 | U97: 0 | V97: 0.01769911504 | W97: 13 | X97: =IF(W97<31,AVERAGE(OFFSET(INDEX('Points team et quota finales'!$C$5:$C$34,W97),0,0,COUNTIF($W$6:$W$105,W97))),0) -> 11.5
A98: 13 | G98: 0 | H98: 13 | I98: 56.5 | L98: 0 | M98: 13 | N98: 56.5 | O98: 56.5 | R98: 0 | U98: 0 | V98: 0.01769911504 | W98: 13 | X98: =IF(W98<31,AVERAGE(OFFSET(INDEX('Points team et quota finales'!$C$5:$C$34,W98),0,0,COUNTIF($W$6:$W$105,W98))),0) -> 11.5
A99: 13 | G99: 0 | H99: 13 | I99: 56.5 | L99: 0 | M99: 13 | N99: 56.5 | O99: 56.5 | R99: 0 | U99: 0 | V99: 0.01769911504 | W99: 13 | X99: =IF(W99<31,AVERAGE(OFFSET(INDEX('Points team et quota finales'!$C$5:$C$34,W99),0,0,COUNTIF($W$6:$W$105,W99))),0) -> 11.5
A100: 13 | G100: 0 | H100: 13 | I100: 56.5 | L100: 0 | M100: 13 | N100: 56.5 | O100: 56.5 | R100: 0 | U100: 0 | V100: 0.01769911504 | W100: 13 | X100: =IF(W100<31,AVERAGE(OFFSET(INDEX('Points team et quota finales'!$C$5:$C$34,W100),0,0,COUNTIF($W$6:$W$105,W100))),0) -> 11.5
A101: 13 | G101: 0 | H101: 13 | I101: 56.5 | L101: 0 | M101: 13 | N101: 56.5 | O101: 56.5 | R101: 0 | U101: 0 | V101: 0.01769911504 | W101: 13 | X101: =IF(W101<31,AVERAGE(OFFSET(INDEX('Points team et quota finales'!$C$5:$C$34,W101),0,0,COUNTIF($W$6:$W$105,W101))),0) -> 11.5
A102: 13 | G102: =IF(E102="TOP",$F$108,IF(F102="-",E102-0.01,IF(F102="+",E102+0.01,E102))) -> 0 | H102: =RANK(G102,$G$6:$G$105) -> 13 | I102: =IF(COUNTIF($H$6:$H$105,H102)=1,H102,(H102*2+COUNTIF($H$6:$H$105,H102)-1)/2) -> 56.5 | L102: =IF(J102="TOP",$K$108,IF(K102="-",J102-0.01,IF(K102="+",J102+0.01,J102))) -> 0 | M102: =RANK(L102,$L$6:$L$105) -> 13 | N102: =IF(COUNTIF($M$6:$M$105,M102)=1,M102,(M102*2+COUNTIF($M$6:$M$105,M102)-1)/2) -> 56.5 | O102: =SQRT(I102*N102) -> 56.5 | R102: =IF(P102="TOP",$Q$108,IF(Q102="-",P102-0.01,IF(Q102="+",P102+0.01,P102))) -> 0 | U102: 0 | V102: =IF(U102<>0,U102*1000+R102*100+1/O102,IF(R102<>0,R102*100+1/O102,1/O102)) -> 0.01769911504 | W102: 13 | X102: =IF(W102<31,AVERAGE(OFFSET(INDEX('Points team et quota finales'!$C$5:$C$34,W102),0,0,COUNTIF($W$6:$W$105,W102))),0) -> 11.5
A103: 13 | G103: 0 | H103: 13 | I103: 56.5 | L103: 0 | M103: 13 | N103: 56.5 | O103: 56.5 | R103: 0 | U103: 0 | V103: 0.01769911504 | W103: 13 | X103: =IF(W103<31,AVERAGE(OFFSET(INDEX('Points team et quota finales'!$C$5:$C$34,W103),0,0,COUNTIF($W$6:$W$105,W103))),0) -> 11.5
A104: 13 | G104: 0 | H104: 13 | I104: 56.5 | L104: 0 | M104: 13 | N104: 56.5 | O104: 56.5 | R104: 0 | U104: 0 | V104: 0.01769911504 | W104: 13 | X104: =IF(W104<31,AVERAGE(OFFSET(INDEX('Points team et quota finales'!$C$5:$C$34,W104),0,0,COUNTIF($W$6:$W$105,W104))),0) -> 11.5
A105: 13 | G105: 0 | H105: 13 | I105: 56.5 | L105: 0 | M105: 13 | N105: 56.5 | O105: 56.5 | R105: 0 | U105: 0 | V105: 0.01769911504 | W105: 13 | X105: =IF(W105<31,AVERAGE(OFFSET(INDEX('Points team et quota finales'!$C$5:$C$34,W105),0,0,COUNTIF($W$6:$W$105,W105))),0) -> 11.5
E108: Top = | F108: 28 | J108: Top = | K108: 30 | P108: Top = | Q108: 31 | S108: Top =
B109: =CONCATENATE("Jury President: ",General!$B$6) -> Jury President: Lieven Vlassenroot
B111: Appeal until :

Sheet CF
A2: =CONCATENATE(General!$B$5," - RESULTS C Female") -> Youth Lead Championship 09-03-2013 - RESULTS C Female
A5: RANK | B5: Nr | C5: Name | D5: Team | E5: Route 1 | I5: Ranking Points Route 1 | J5: Route 2 | N5: Ranking Points Route 2 | O5: Root R1 x R2 | P5: Final | S5: Super Final | V5: base pour calcul rang | W5: RANK | X5: Team points
A6: =RANK(V6,$V$6:$V$105) -> 1 | B6: CF01 | C6: TILBORGHS Cathinka | D6: KLI | E6: TOP | G6: =IF(E6="TOP",$F$108,IF(F6="-",E6-0.01,IF(F6="+",E6+0.01,E6))) -> 30 | H6: =RANK(G6,$G$6:$G$105) -> 1 | I6: =IF(COUNTIF($H$6:$H$105,H6)=1,H6,(H6*2+COUNTIF($H$6:$H$105,H6)-1)/2) -> 3 | J6: TOP | L6: =IF(J6="TOP",$K$108,IF(K6="-",J6-0.01,IF(K6="+",J6+0.01,J6))) -> 28 | M6: =RANK(L6,$L$6:$L$105) -> 1 | N6: =IF(COUNTIF($M$6:$M$105,M6)=1,M6,(M6*2+COUNTIF($M$6:$M$105,M6)-1)/2) -> 2 | O6: =SQRT(I6*N6) -> 2.449489743 | P6: 28 | Q6: + | R6: =IF(P6="TOP",$Q$108,IF(Q6="-",P6-0.01,IF(Q6="+",P6+0.01,P6))) -> 28.01 | S6: 35 | U6: =IF($S6="TOP",$T$108,IF($T6="-",$S6-0.01,IF($T6="+",$S6+0.01,$S6))) -> 35 | V6: =IF(U6<>0,U6*1000+R6*100+1/O6,IF(R6<>0,R6*100+1/O6,1/O6)) -> 37801.40825 | W6: =A6 -> 1 | X6: =IF(W6<31,AVERAGE(OFFSET(INDEX('Points team et quota finales'!$C$5:$C$34,W6),0,0,COUNTIF($W$6:$W$105,W6))),0) -> 100
A7: =RANK(V7,$V$6:$V$105) -> 2 | B7: CF11 | C7: DEGUEE Manon | D7: ESC | E7: TOP | G7: 30 | H7: 1 | I7: 3 | J7: TOP | L7: 28 | M7: 1 | N7: 2 | O7: 2.449489743 | P7: 28 | Q7: + | R7: 28.01 | S7: 34 | T7: + | U7: 34.01 | V7: 36811.40825 | W7: 2 | X7: =IF(W7<31,AVERAGE(OFFSET(INDEX('Points team et quota finales'!$C$5:$C$34,W7),0,0,COUNTIF($W$6:$W$105,W7))),0) -> 80
A8: 3 | B8: CF03 | C8: STEVENS Laure-Anne | D8: KLI | E8: TOP | G8: 30 | H8: 1 | I8: 3 | J8: 26 | L8: 26 | M8: 4 | N8: 4 | O8: 3.464101615 | P8: 28 | Q8: + | R8: 28.01 | U8: 0 | V8: 2801.288675 | W8: 3 | X8: =IF(W8<31,AVERAGE(OFFSET(INDEX('Points team et quota finales'!$C$5:$C$34,W8),0,0,COUNTIF($W$6:$W$105,W8))),0) -> 65
A9: 4 | B9: CF06 | C9: LIPPERT Mahault | D9: ESC | E9: TOP | G9: 30 | H9: 1 | I9: 3 | J9: 25 | K9: + | L9: 25.01 | M9: 5 | N9: 5 | O9: 3.872983346 | P9: 28 | Q9: + | R9: 28.01 | U9: 0 | V9: 2801.258199 | W9: 4 | X9: =IF(W9<31,AVERAGE(OFFSET(INDEX('Points team et quota finales'!$C$5:$C$34,W9),0,0,COUNTIF($W$6:$W$105,W9))),0) -> 55
A10: 5 | B10: CF09 | C10: COOREMAN Zara | D10: BMC | E10: 26 | F10: + | G10: 26.01 | H10: 6 | I10: 6.5 | J10: 22 | L10: 22 | M10: 6 | N10: 6 | O10: 6.244997998 | P10: 28 | Q10: + | R10: 28.01 | U10: 0 | V10: 2801.160128 | W10: 5 | X10: =IF(W10<31,AVERAGE(OFFSET(INDEX('Points team et quota finales'!$C$5:$C$34,W10),0,0,COUNTIF($W$6:$W$105,W10))),0) -> 51
A11: 6 | B11: CF05 | C11: COLOT Marie | D11: ESC | E11: TOP | G11: 30 | H11: 1 | I11: 3 | J11: TOP | L11: 28 | M11: 1 | N11: 2 | O11: 2.449489743 | P11: 14 | Q11: + | R11: 14.01 | U11: 0 | V11: 1401.408248 | W11: 6 | X11: =IF(W11<31,AVERAGE(OFFSET(INDEX('Points team et quota finales'!$C$5:$C$34,W11),0,0,COUNTIF($W$6:$W$105,W11))),0) -> 47
A12: 7 | B12: CF04 | C12: VAN ZEGBROECK Ine | D12: KLI | E12: 26 | F12: + | G12: 26.01 | H12: 6 | I12: 6.5 | J12: 21 | L12: 21 | M12: 7 | N12: 7 | O12: 6.745368782 | P12: 14 | Q12: + | R12: 14.01 | U12: 0 | V12: 1401.14825 | W12: 7 | X12: =IF(W12<31,AVERAGE(OFFSET(INDEX('Points team et quota finales'!$C$5:$C$34,W12),0,0,COUNTIF($W$6:$W$105,W12))),0) -> 43
A13: 8 | B13: CF10 | C13: RAMIS Léonie | D13: FN | E13: 26 | G13: 26 | H13: 8 | I13: 9 | J13: 20 | K13: + | L13: 20.01 | M13: 8 | N13: 8 | O13: 8.485281374 | R13: 0 | U13: 0 | V13: 0.1178511302 | W13: 8 | X13: =IF(W13<31,AVERAGE(OFFSET(INDEX('Points team et quota finales'!$C$5:$C$34,W13),0,0,COUNTIF($W$6:$W$105,W13))),0) -> 40
A14: 9 | B14: CF07 | C14: ISTACE Tess-liwei | D14: GT | E14: 26 | G14: 26 | H14: 8 | I14: 9 | J14: 18 | K14: + | L14: 18.01 | M14: 9 | N14: 9 | O14: 9 | R14: 0 | U14: 0 | V14: 0.1111111111 | W14: 9 | X14: =IF(W14<31,AVERAGE(OFFSET(INDEX('Points team et quota finales'!$C$5:$C$34,W14),0,0,COUNTIF($W$6:$W$105,W14))),0) -> 37
A15: 10 | B15: CF02 | C15: DE SMEDT Lotte | D15: KLI | E15: 26 | G15: 26 | H15: 8 | I15: 9 | J15: 18 | L15: 18 | M15: 10 | N15: 10 | O15: 9.486832981 | R15: 0 | U15: 0 | V15: 0.1054092553 | W15: 10 | X15: =IF(W15<31,AVERAGE(OFFSET(INDEX('Points team et quota finales'!$C$5:$C$34,W15),0,0,COUNTIF($W$6:$W$105,W15))),0) -> 34
A16: 11 | B16: CF08 | C16: DORZEE Clara | D16: GT | E16: 24 | F16: + | G16: 24.01 | H16: 11 | I16: 11 | J16: 13 | K16: + | L16: 13.01 | M16: 11 | N16: 11 | O16: 11 | R16: 0 | U16: 0 | V16: 0.09090909091 | W16: 11 | X16: =IF(W16<31,AVERAGE(OFFSET(INDEX('Points team et quota finales'!$C$5:$C$34,W16),0,0,COUNTIF($W$6:$W$105,W16))),0) -> 31
A17: 12 | B17: CF12 | C17: VANHAEREN Femke | D17: HUN | E17: 24 | G17: 24 | H17: 12 | I17: 12 | J17: 8 | K17: + | L17: 8.01 | M17: 12 | N17: 12 | O17: 12 | R17: 0 | U17: 0 | V17: 0.08333333333 | W17: 12 | X17: =IF(W17<31,AVERAGE(OFFSET(INDEX('Points team et quota finales'!$C$5:$C$34,W17),0,0,COUNTIF($W$6:$W$105,W17))),0) -> 28
A18: 13 | G18: =IF(E18="TOP",$F$108,IF(F18="-",E18-0.01,IF(F18="+",E18+0.01,E18))) -> 0 | H18: =RANK(G18,$G$6:$G$105) -> 13 | I18: =IF(COUNTIF($H$6:$H$105,H18)=1,H18,(H18*2+COUNTIF($H$6:$H$105,H18)-1)/2) -> 56.5 | L18: =IF(J18="TOP",$K$108,IF(K18="-",J18-0.01,IF(K18="+",J18+0.01,J18))) -> 0 | M18: =RANK(L18,$L$6:$L$105) -> 13 | N18: =IF(COUNTIF($M$6:$M$105,M18)=1,M18,(M18*2+COUNTIF($M$6:$M$105,M18)-1)/2) -> 56.5 | O18: =SQRT(I18*N18) -> 56.5 | R18: =IF(P18="TOP",$Q$108,IF(Q18="-",P18-0.01,IF(Q18="+",P18+0.01,P18))) -> 0 | U18: =IF($S18="TOP",$T$108,IF($T18="-",$S18-0.01,IF($T18="+",$S18+0.01,$S18))) -> 0 | V18: =IF(U18<>0,U18*1000+R18*100+1/O18,IF(R18<>0,R18*100+1/O18,1/O18)) -> 0.01769911504 | W18: 13 | X18: =IF(W18<31,AVERAGE(OFFSET(INDEX('Points team et quota finales'!$C$5:$C$34,W18),0,0,COUNTIF($W$6:$W$105,W18))),0) -> 11.5
A19: 13 | G19: 0 | H19: 13 | I19: 56.5 | L19: 0 | M19: 13 | N19: 56.5 | O19: 56.5 | R19: 0 | U19: 0 | V19: 0.01769911504 | W19: 13 | X19: =IF(W19<31,AVERAGE(OFFSET(INDEX('Points team et quota finales'!$C$5:$C$34,W19),0,0,COUNTIF($W$6:$W$105,W19))),0) -> 11.5
A20: 13 | G20: 0 | H20: 13 | I20: 56.5 | L20: 0 | M20: 13 | N20: 56.5 | O20: 56.5 | R20: 0 | U20: 0 | V20: 0.01769911504 | W20: 13 | X20: =IF(W20<31,AVERAGE(OFFSET(INDEX('Points team et quota finales'!$C$5:$C$34,W20),0,0,COUNTIF($W$6:$W$105,W20))),0) -> 11.5
A21: 13 | G21: 0 | H21: 13 | I21: 56.5 | L21: 0 | M21: 13 | N21: 56.5 | O21: 56.5 | R21: 0 | U21: 0 | V21: 0.01769911504 | W21: 13 | X21: =IF(W21<31,AVERAGE(OFFSET(INDEX('Points team et quota finales'!$C$5:$C$34,W21),0,0,COUNTIF($W$6:$W$105,W21))),0) -> 11.5
A22: 13 | G22: 0 | H22: 13 | I22: 56.5 | L22: 0 | M22: 13 | N22: 56.5 | O22: 56.5 | R22: 0 | U22: 0 | V22: 0.01769911504 | W22: 13 | X22: =IF(W22<31,AVERAGE(OFFSET(INDEX('Points team et quota finales'!$C$5:$C$34,W22),0,0,COUNTIF($W$6:$W$105,W22))),0) -> 11.5
A23: 13 | G23: 0 | H23: 13 | I23: 56.5 | L23: 0 | M23: 13 | N23: 56.5 | O23: 56.5 | R23: 0 | U23: 0 | V23: 0.01769911504 | W23: 13 | X23: =IF(W23<31,AVERAGE(OFFSET(INDEX('Points team et quota finales'!$C$5:$C$34,W23),0,0,COUNTIF($W$6:$W$105,W23))),0) -> 11.5
A24: 13 | G24: 0 | H24: 13 | I24: 56.5 | L24: 0 | M24: 13 | N24: 56.5 | O24: 56.5 | R24: 0 | U24: 0 | V24: 0.01769911504 | W24: 13 | X24: =IF(W24<31,AVERAGE(OFFSET(INDEX('Points team et quota finales'!$C$5:$C$34,W24),0,0,COUNTIF($W$6:$W$105,W24))),0) -> 11.5
A25: 13 | G25: 0 | H25: 13 | I25: 56.5 | L25: 0 | M25: 13 | N25: 56.5 | O25: 56.5 | R25: 0 | U25: 0 | V25: 0.01769911504 | W25: 13 | X25: =IF(W25<31,AVERAGE(OFFSET(INDEX('Points team et quota finales'!$C$5:$C$34,W25),0,0,COUNTIF($W$6:$W$105,W25))),0) -> 11.5
A26: 13 | G26: 0 | H26: 13 | I26: 56.5 | L26: 0 | M26: 13 | N26: 56.5 | O26: 56.5 | R26: 0 | U26: 0 | V26: 0.01769911504 | W26: 13 | X26: =IF(W26<31,AVERAGE(OFFSET(INDEX('Points team et quota finales'!$C$5:$C$34,W26),0,0,COUNTIF($W$6:$W$105,W26))),0) -> 11.5
A27: 13 | G27: 0 | H27: 13 | I27: 56.5 | L27: 0 | M27: 13 | N27: 56.5 | O27: 56.5 | R27: 0 | U27: 0 | V27: 0.01769911504 | W27: 13 | X27: =IF(W27<31,AVERAGE(OFFSET(INDEX('Points team et quota finales'!$C$5:$C$34,W27),0,0,COUNTIF($W$6:$W$105,W27))),0) -> 11.5
A28: 13 | G28: 0 | H28: 13 | I28: 56.5 | L28: 0 | M28: 13 | N28: 56.5 | O28: 56.5 | R28: 0 | U28: 0 | V28: 0.01769911504 | W28: 13 | X28: =IF(W28<31,AVERAGE(OFFSET(INDEX('Points team et quota finales'!$C$5:$C$34,W28),0,0,COUNTIF($W$6:$W$105,W28))),0) -> 11.5
A29: 13 | G29: 0 | H29: 13 | I29: 56.5 | L29: 0 | M29: 13 | N29: 56.5 | O29: 56.5 | R29: 0 | U29: 0 | V29: 0.01769911504 | W29: 13 | X29: =IF(W29<31,AVERAGE(OFFSET(INDEX('Points team et quota finales'!$C$5:$C$34,W29),0,0,COUNTIF($W$6:$W$105,W29))),0) -> 11.5
A30: 13 | G30: 0 | H30: 13 | I30: 56.5 | L30: 0 | M30: 13 | N30: 56.5 | O30: 56.5 | R30: 0 | U30: 0 | V30: 0.01769911504 | W30: 13 | X30: =IF(W30<31,AVERAGE(OFFSET(INDEX('Points team et quota finales'!$C$5:$C$34,W30),0,0,COUNTIF($W$6:$W$105,W30))),0) -> 11.5
A31: 13 | G31: 0 | H31: 13 | I31: 56.5 | L31: 0 | M31: 13 | N31: 56.5 | O31: 56.5 | R31: 0 | U31: 0 | V31: 0.01769911504 | W31: 13 | X31: =IF(W31<31,AVERAGE(OFFSET(INDEX('Points team et quota finales'!$C$5:$C$34,W31),0,0,COUNTIF($W$6:$W$105,W31))),0) -> 11.5
A32: 13 | G32: 0 | H32: 13 | I32: 56.5 | L32: 0 | M32: 13 | N32: 56.5 | O32: 56.5 | R32: 0 | U32: 0 | V32: 0.01769911504 | W32: 13 | X32: =IF(W32<31,AVERAGE(OFFSET(INDEX('Points team et quota finales'!$C$5:$C$34,W32),0,0,COUNTIF($W$6:$W$105,W32))),0) -> 11.5
A33: 13 | G33: 0 | H33: 13 | I33: 56.5 | L33: 0 | M33: 13 | N33: 56.5 | O33: 56.5 | R33: 0 | U33: 0 | V33: 0.01769911504 | W33: 13 | X33: =IF(W33<31,AVERAGE(OFFSET(INDEX('Points team et quota finales'!$C$5:$C$34,W33),0,0,COUNTIF($W$6:$W$105,W33))),0) -> 11.5
A34: 13 | G34: 0 | H34: 13 | I34: 56.5 | L34: 0 | M34: 13 | N34: 56.5 | O34: 56.5 | R34: 0 | U34: 0 | V34: 0.01769911504 | W34: 13 | X34: =IF(W34<31,AVERAGE(OFFSET(INDEX('Points team et quota finales'!$C$5:$C$34,W34),0,0,COUNTIF($W$6:$W$105,W34))),0) -> 11.5
A35: 13 | G35: 0 | H35: 13 | I35: 56.5 | L35: 0 | M35: 13 | N35: 56.5 | O35: 56.5 | R35: 0 | U35: 0 | V35: 0.01769911504 | W35: 13 | X35: =IF(W35<31,AVERAGE(OFFSET(INDEX('Points team et quota finales'!$C$5:$C$34,W35),0,0,COUNTIF($W$6:$W$105,W35))),0) -> 11.5
A36: 13 | G36: 0 | H36: 13 | I36: 56.5 | L36: 0 | M36: 13 | N36: 56.5 | O36: 56.5 | R36: 0 | U36: 0 | V36: 0.01769911504 | W36: 13 | X36: =IF(W36<31,AVERAGE(OFFSET(INDEX('Points team et quota finales'!$C$5:$C$34,W36),0,0,COUNTIF($W$6:$W$105,W36))),0) -> 11.5
A37: 13 | G37: 0 | H37: 13 | I37: 56.5 | L37: 0 | M37: 13 | N37: 56.5 | O37: 56.5 | R37: 0 | U37: 0 | V37: 0.01769911504 | W37: 13 | X37: =IF(W37<31,AVERAGE(OFFSET(INDEX('Points team et quota finales'!$C$5:$C$34,W37),0,0,COUNTIF($W$6:$W$105,W37))),0) -> 11.5
A38: 13 | G38: 0 | H38: 13 | I38: 56.5 | L38: 0 | M38: 13 | N38: 56.5 | O38: 56.5 | R38: 0 | U38: 0 | V38: 0.01769911504 | W38: 13 | X38: =IF(W38<31,AVERAGE(OFFSET(INDEX('Points team et quota finales'!$C$5:$C$34,W38),0,0,COUNTIF($W$6:$W$105,W38))),0) -> 11.5
A39: 13 | G39: 0 | H39: 13 | I39: 56.5 | L39: 0 | M39: 13 | N39: 56.5 | O39: 56.5 | R39: 0 | U39: 0 | V39: 0.01769911504 | W39: 13 | X39: =IF(W39<31,AVERAGE(OFFSET(INDEX('Points team et quota finales'!$C$5:$C$34,W39),0,0,COUNTIF($W$6:$W$105,W39))),0) -> 11.5
A40: 13 | G40: 0 | H40: 13 | I40: 56.5 | L40: 0 | M40: 13 | N40: 56.5 | O40: 56.5 | R40: 0 | U40: 0 | V40: 0.01769911504 | W40: 13 | X40: =IF(W40<31,AVERAGE(OFFSET(INDEX('Points team et quota finales'!$C$5:$C$34,W40),0,0,COUNTIF($W$6:$W$105,W40))),0) -> 11.5
A41: 13 | G41: 0 | H41: 13 | I41: 56.5 | L41: 0 | M41: 13 | N41: 56.5 | O41: 56.5 | R41: 0 | U41: 0 | V41: 0.01769911504 | W41: 13 | X41: =IF(W41<31,AVERAGE(OFFSET(INDEX('Points team et quota finales'!$C$5:$C$34,W41),0,0,COUNTIF($W$6:$W$105,W41))),0) -> 11.5
A42: 13 | G42: 0 | H42: 13 | I42: 56.5 | L42: 0 | M42: 13 | N42: 56.5 | O42: 56.5 | R42: 0 | U42: 0 | V42: 0.01769911504 | W42: 13 | X42: =IF(W42<31,AVERAGE(OFFSET(INDEX('Points team et quota finales'!$C$5:$C$34,W42),0,0,COUNTIF($W$6:$W$105,W42))),0) -> 11.5
A43: 13 | G43: 0 | H43: 13 | I43: 56.5 | L43: 0 | M43: 13 | N43: 56.5 | O43: 56.5 | R43: 0 | U43: 0 | V43: 0.01769911504 | W43: 13 | X43: =IF(W43<31,AVERAGE(OFFSET(INDEX('Points team et quota finales'!$C$5:$C$34,W43),0,0,COUNTIF($W$6:$W$105,W43))),0) -> 11.5
A44: 13 | G44: 0 | H44: 13 | I44: 56.5 | L44: 0 | M44: 13 | N44: 56.5 | O44: 56.5 | R44: 0 | U44: 0 | V44: 0.01769911504 | W44: 13 | X44: =IF(W44<31,AVERAGE(OFFSET(INDEX('Points team et quota finales'!$C$5:$C$34,W44),0,0,COUNTIF($W$6:$W$105,W44))),0) -> 11.5
A45: 13 | G45: 0 | H45: 13 | I45: 56.5 | L45: 0 | M45: 13 | N45: 56.5 | O45: 56.5 | R45: 0 | U45: 0 | V45: 0.01769911504 | W45: 13 | X45: =IF(W45<31,AVERAGE(OFFSET(INDEX('Points team et quota finales'!$C$5:$C$34,W45),0,0,COUNTIF($W$6:$W$105,W45))),0) -> 11.5
A46: 13 | G46: 0 | H46: 13 | I46: 56.5 | L46: 0 | M46: 13 | N46: 56.5 | O46: 56.5 | R46: 0 | U46: 0 | V46: 0.01769911504 | W46: 13 | X46: =IF(W46<31,AVERAGE(OFFSET(INDEX('Points team et quota finales'!$C$5:$C$34,W46),0,0,COUNTIF($W$6:$W$105,W46))),0) -> 11.5
A47: 13 | G47: 0 | H47: 13 | I47: 56.5 | L47: 0 | M47: 13 | N47: 56.5 | O47: 56.5 | R47: 0 | U47: 0 | V47: 0.01769911504 | W47: 13 | X47: =IF(W47<31,AVERAGE(OFFSET(INDEX('Points team et quota finales'!$C$5:$C$34,W47),0,0,COUNTIF($W$6:$W$105,W47))),0) -> 11.5
A48: 13 | G48: 0 | H48: 13 | I48: 56.5 | L48: 0 | M48: 13 | N48: 56.5 | O48: 56.5 | R48: 0 | U48: 0 | V48: 0.01769911504 | W48: 13 | X48: =IF(W48<31,AVERAGE(OFFSET(INDEX('Points team et quota finales'!$C$5:$C$34,W48),0,0,COUNTIF($W$6:$W$105,W48))),0) -> 11.5
A49: 13 | G49: 0 | H49: 13 | I49: 56.5 | L49: 0 | M49: 13 | N49: 56.5 | O49: 56.5 | R49: 0 | U49: 0 | V49: 0.01769911504 | W49: 13 | X49: =IF(W49<31,AVERAGE(OFFSET(INDEX('Points team et quota finales'!$C$5:$C$34,W49),0,0,COUNTIF($W$6:$W$105,W49))),0) -> 11.5
A50: 13 | G50: 0 | H50: 13 | I50: 56.5 | L50: 0 | M50: 13 | N50: 56.5 | O50: 56.5 | R50: 0 | U50: 0 | V50: 0.01769911504 | W50: 13 | X50: =IF(W50<31,AVERAGE(OFFSET(INDEX('Points team et quota finales'!$C$5:$C$34,W50),0,0,COUNTIF($W$6:$W$105,W50))),0) -> 11.5
A51: 13 | G51: 0 | H51: 13 | I51: 56.5 | L51: 0 | M51: 13 | N51: 56.5 | O51: 56.5 | R51: 0 | U51: 0 | V51: 0.01769911504 | W51: 13 | X51: =IF(W51<31,AVERAGE(OFFSET(INDEX('Points team et quota finales'!$C$5:$C$34,W51),0,0,COUNTIF($W$6:$W$105,W51))),0) -> 11.5
A52: 13 | G52: 0 | H52: 13 | I52: 56.5 | L52: 0 | M52: 13 | N52: 56.5 | O52: 56.5 | R52: 0 | U52: 0 | V52: 0.01769911504 | W52: 13 | X52: =IF(W52<31,AVERAGE(OFFSET(INDEX('Points team et quota finales'!$C$5:$C$34,W52),0,0,COUNTIF($W$6:$W$105,W52))),0) -> 11.5
A53: 13 | G53: 0 | H53: 13 | I53: 56.5 | L53: 0 | M53: 13 | N53: 56.5 | O53: 56.5 | R53: 0 | U53: 0 | V53: 0.01769911504 | W53: 13 | X53: =IF(W53<31,AVERAGE(OFFSET(INDEX('Points team et quota finales'!$C$5:$C$34,W53),0,0,COUNTIF($W$6:$W$105,W53))),0) -> 11.5
A54: 13 | G54: 0 | H54: 13 | I54: 56.5 | L54: 0 | M54: 13 | N54: 56.5 | O54: 56.5 | R54: 0 | U54: 0 | V54: 0.01769911504 | W54: 13 | X54: =IF(W54<31,AVERAGE(OFFSET(INDEX('Points team et quota finales'!$C$5:$C$34,W54),0,0,COUNTIF($W$6:$W$105,W54))),0) -> 11.5
A55: 13 | G55: 0 | H55: 13 | I55: 56.5 | L55: 0 | M55: 13 | N55: 56.5 | O55: 56.5 | R55: 0 | U55: 0 | V55: 0.01769911504 | W55: 13 | X55: =IF(W55<31,AVERAGE(OFFSET(INDEX('Points team et quota finales'!$C$5:$C$34,W55),0,0,COUNTIF($W$6:$W$105,W55))),0) -> 11.5
A56: 13 | G56: 0 | H56: 13 | I56: 56.5 | L56: 0 | M56: 13 | N56: 56.5 | O56: 56.5 | R56: 0 | U56: 0 | V56: 0.01769911504 | W56: 13 | X56: =IF(W56<31,AVERAGE(OFFSET(INDEX('Points team et quota finales'!$C$5:$C$34,W56),0,0,COUNTIF($W$6:$W$105,W56))),0) -> 11.5
A57: 13 | G57: 0 | H57: 13 | I57: 56.5 | L57: 0 | M57: 13 | N57: 56.5 | O57: 56.5 | R57: 0 | U57: 0 | V57: 0.01769911504 | W57: 13 | X57: =IF(W57<31,AVERAGE(OFFSET(INDEX('Points team et quota finales'!$C$5:$C$34,W57),0,0,COUNTIF($W$6:$W$105,W57))),0) -> 11.5
A58: 13 | G58: 0 | H58: 13 | I58: 56.5 | L58: 0 | M58: 13 | N58: 56.5 | O58: 56.5 | R58: 0 | U58: 0 | V58: 0.01769911504 | W58: 13 | X58: =IF(W58<31,AVERAGE(OFFSET(INDEX('Points team et quota finales'!$C$5:$C$34,W58),0,0,COUNTIF($W$6:$W$105,W58))),0) -> 11.5
A59: 13 | G59: 0 | H59: 13 | I59: 56.5 | L59: 0 | M59: 13 | N59: 56.5 | O59: 56.5 | R59: 0 | U59: 0 | V59: 0.01769911504 | W59: 13 | X59: =IF(W59<31,AVERAGE(OFFSET(INDEX('Points team et quota finales'!$C$5:$C$34,W59),0,0,COUNTIF($W$6:$W$105,W59))),0) -> 11.5
A60: 13 | G60: 0 | H60: 13 | I60: 56.5 | L60: 0 | M60: 13 | N60: 56.5 | O60: 56.5 | R60: 0 | U60: 0 | V60: 0.01769911504 | W60: 13 | X60: =IF(W60<31,AVERAGE(OFFSET(INDEX('Points team et quota finales'!$C$5:$C$34,W60),0,0,COUNTIF($W$6:$W$105,W60))),0) -> 11.5
A61: 13 | G61: 0 | H61: 13 | I61: 56.5 | L61: 0 | M61: 13 | N61: 56.5 | O61: 56.5 | R61: 0 | U61: 0 | V61: 0.01769911504 | W61: 13 | X61: =IF(W61<31,AVERAGE(OFFSET(INDEX('Points team et quota finales'!$C$5:$C$34,W61),0,0,COUNTIF($W$6:$W$105,W61))),0) -> 11.5
A62: 13 | G62: 0 | H62: 13 | I62: 56.5 | L62: 0 | M62: 13 | N62: 56.5 | O62: 56.5 | R62: 0 | U62: 0 | V62: 0.01769911504 | W62: 13 | X62: =IF(W62<31,AVERAGE(OFFSET(INDEX('Points team et quota finales'!$C$5:$C$34,W62),0,0,COUNTIF($W$6:$W$105,W62))),0) -> 11.5
A63: 13 | G63: 0 | H63: 13 | I63: 56.5 | L63: 0 | M63: 13 | N63: 56.5 | O63: 56.5 | R63: 0 | U63: 0 | V63: 0.01769911504 | W63: 13 | X63: =IF(W63<31,AVERAGE(OFFSET(INDEX('Points team et quota finales'!$C$5:$C$34,W63),0,0,COUNTIF($W$6:$W$105,W63))),0) -> 11.5
A64: 13 | G64: 0 | H64: 13 | I64: 56.5 | L64: 0 | M64: 13 | N64: 56.5 | O64: 56.5 | R64: 0 | U64: 0 | V64: 0.01769911504 | W64: 13 | X64: =IF(W64<31,AVERAGE(OFFSET(INDEX('Points team et quota finales'!$C$5:$C$34,W64),0,0,COUNTIF($W$6:$W$105,W64))),0) -> 11.5
A65: 13 | G65: 0 | H65: 13 | I65: 56.5 | L65: 0 | M65: 13 | N65: 56.5 | O65: 56.5 | R65: 0 | U65: 0 | V65: 0.01769911504 | W65: 13 | X65: =IF(W65<31,AVERAGE(OFFSET(INDEX('Points team et quota finales'!$C$5:$C$34,W65),0,0,COUNTIF($W$6:$W$105,W65))),0) -> 11.5
A66: 13 | G66: 0 | H66: 13 | I66: 56.5 | L66: 0 | M66: 13 | N66: 56.5 | O66: 56.5 | R66: 0 | U66: 0 | V66: 0.01769911504 | W66: 13 | X66: =IF(W66<31,AVERAGE(OFFSET(INDEX('Points team et quota finales'!$C$5:$C$34,W66),0,0,COUNTIF($W$6:$W$105,W66))),0) -> 11.5
A67: 13 | G67: 0 | H67: 13 | I67: 56.5 | L67: 0 | M67: 13 | N67: 56.5 | O67: 56.5 | R67: 0 | U67: 0 | V67: 0.01769911504 | W67: 13 | X67: =IF(W67<31,AVERAGE(OFFSET(INDEX('Points team et quota finales'!$C$5:$C$34,W67),0,0,COUNTIF($W$6:$W$105,W67))),0) -> 11.5
A68: 13 | G68: 0 | H68: 13 | I68: 56.5 | L68: 0 | M68: 13 | N68: 56.5 | O68: 56.5 | R68: 0 | U68: 0 | V68: 0.01769911504 | W68: 13 | X68: =IF(W68<31,AVERAGE(OFFSET(INDEX('Points team et quota finales'!$C$5:$C$34,W68),0,0,COUNTIF($W$6:$W$105,W68))),0) -> 11.5
A69: 13 | G69: 0 | H69: 13 | I69: 56.5 | L69: 0 | M69: 13 | N69: 56.5 | O69: 56.5 | R69: 0 | U69: 0 | V69: 0.01769911504 | W69: 13 | X69: =IF(W69<31,AVERAGE(OFFSET(INDEX('Points team et quota finales'!$C$5:$C$34,W69),0,0,COUNTIF($W$6:$W$105,W69))),0) -> 11.5
A70: 13 | G70: =IF(E70="TOP",$F$108,IF(F70="-",E70-0.01,IF(F70="+",E70+0.01,E70))) -> 0 | H70: =RANK(G70,$G$6:$G$105) -> 13 | I70: =IF(COUNTIF($H$6:$H$105,H70)=1,H70,(H70*2+COUNTIF($H$6:$H$105,H70)-1)/2) -> 56.5 | L70: =IF(J70="TOP",$K$108,IF(K70="-",J70-0.01,IF(K70="+",J70+0.01,J70))) -> 0 | M70: =RANK(L70,$L$6:$L$105) -> 13 | N70: =IF(COUNTIF($M$6:$M$105,M70)=1,M70,(M70*2+COUNTIF($M$6:$M$105,M70)-1)/2) -> 56.5 | O70: =SQRT(I70*N70) -> 56.5 | R70: =IF(P70="TOP",$Q$108,IF(Q70="-",P70-0.01,IF(Q70="+",P70+0.01,P70))) -> 0 | U70: =IF($S70="TOP",$T$108,IF($T70="-",$S70-0.01,IF($T70="+",$S70+0.01,$S70))) -> 0 | V70: =IF(U70<>0,U70*1000+R70*100+1/O70,IF(R70<>0,R70*100+1/O70,1/O70)) -> 0.01769911504 | W70: =A70 -> 13 | X70: =IF(W70<31,AVERAGE(OFFSET(INDEX('Points team et quota finales'!$C$5:$C$34,W70),0,0,COUNTIF($W$6:$W$105,W70))),0) -> 11.5
A71: =RANK(V71,$V$6:$V$105) -> 13 | G71: 0 | H71: 13 | I71: 56.5 | L71: 0 | M71: 13 | N71: 56.5 | O71: 56.5 | R71: 0 | U71: 0 | V71: 0.01769911504 | W71: 13 | X71: =IF(W71<31,AVERAGE(OFFSET(INDEX('Points team et quota finales'!$C$5:$C$34,W71),0,0,COUNTIF($W$6:$W$105,W71))),0) -> 11.5
A72: 13 | G72: 0 | H72: 13 | I72: 56.5 | L72: 0 | M72: 13 | N72: 56.5 | O72: 56.5 | R72: 0 | U72: 0 | V72: 0.01769911504 | W72: 13 | X72: =IF(W72<31,AVERAGE(OFFSET(INDEX('Points team et quota finales'!$C$5:$C$34,W72),0,0,COUNTIF($W$6:$W$105,W72))),0) -> 11.5
A73: 13 | G73: 0 | H73: 13 | I73: 56.5 | L73: 0 | M73: 13 | N73: 56.5 | O73: 56.5 | R73: 0 | U73: 0 | V73: 0.01769911504 | W73: 13 | X73: =IF(W73<31,AVERAGE(OFFSET(INDEX('Points team et quota finales'!$C$5:$C$34,W73),0,0,COUNTIF($W$6:$W$105,W73))),0) -> 11.5
A74: 13 | G74: 0 | H74: 13 | I74: 56.5 | L74: 0 | M74: 13 | N74: 56.5 | O74: 56.5 | R74: 0 | U74: 0 | V74: 0.01769911504 | W74: 13 | X74: =IF(W74<31,AVERAGE(OFFSET(INDEX('Points team et quota finales'!$C$5:$C$34,W74),0,0,COUNTIF($W$6:$W$105,W74))),0) -> 11.5
A75: 13 | G75: 0 | H75: 13 | I75: 56.5 | L75: 0 | M75: 13 | N75: 56.5 | O75: 56.5 | R75: 0 | U75: 0 | V75: 0.01769911504 | W75: 13 | X75: =IF(W75<31,AVERAGE(OFFSET(INDEX('Points team et quota finales'!$C$5:$C$34,W75),0,0,COUNTIF($W$6:$W$105,W75))),0) -> 11.5
A76: 13 | G76: 0 | H76: 13 | I76: 56.5 | L76: 0 | M76: 13 | N76: 56.5 | O76: 56.5 | R76: 0 | U76: 0 | V76: 0.01769911504 | W76: 13 | X76: =IF(W76<31,AVERAGE(OFFSET(INDEX('Points team et quota finales'!$C$5:$C$34,W76),0,0,COUNTIF($W$6:$W$105,W76))),0) -> 11.5
A77: 13 | G77: 0 | H77: 13 | I77: 56.5 | L77: 0 | M77: 13 | N77: 56.5 | O77: 56.5 | R77: 0 | U77: 0 | V77: 0.01769911504 | W77: 13 | X77: =IF(W77<31,AVERAGE(OFFSET(INDEX('Points team et quota finales'!$C$5:$C$34,W77),0,0,COUNTIF($W$6:$W$105,W77))),0) -> 11.5
A78: 13 | G78: 0 | H78: 13 | I78: 56.5 | L78: 0 | M78: 13 | N78: 56.5 | O78: 56.5 | R78: 0 | U78: 0 | V78: 0.01769911504 | W78: 13 | X78: =IF(W78<31,AVERAGE(OFFSET(INDEX('Points team et quota finales'!$C$5:$C$34,W78),0,0,COUNTIF($W$6:$W$105,W78))),0) -> 11.5
A79: 13 | G79: 0 | H79: 13 | I79: 56.5 | L79: 0 | M79: 13 | N79: 56.5 | O79: 56.5 | R79: 0 | U79: 0 | V79: 0.01769911504 | W79: 13 | X79: =IF(W79<31,AVERAGE(OFFSET(INDEX('Points team et quota finales'!$C$5:$C$34,W79),0,0,COUNTIF($W$6:$W$105,W79))),0) -> 11.5
A80: 13 | G80: 0 | H80: 13 | I80: 56.5 | L80: 0 | M80: 13 | N80: 56.5 | O80: 56.5 | R80: 0 | U80: 0 | V80: 0.01769911504 | W80: 13 | X80: =IF(W80<31,AVERAGE(OFFSET(INDEX('Points team et quota finales'!$C$5:$C$34,W80),0,0,COUNTIF($W$6:$W$105,W80))),0) -> 11.5
A81: 13 | G81: 0 | H81: 13 | I81: 56.5 | L81: 0 | M81: 13 | N81: 56.5 | O81: 56.5 | R81: 0 | U81: 0 | V81: 0.01769911504 | W81: 13 | X81: =IF(W81<31,AVERAGE(OFFSET(INDEX('Points team et quota finales'!$C$5:$C$34,W81),0,0,COUNTIF($W$6:$W$105,W81))),0) -> 11.5
A82: 13 | G82: 0 | H82: 13 | I82: 56.5 | L82: 0 | M82: 13 | N82: 56.5 | O82: 56.5 | R82: 0 | U82: 0 | V82: 0.01769911504 | W82: 13 | X82: =IF(W82<31,AVERAGE(OFFSET(INDEX('Points team et quota finales'!$C$5:$C$34,W82),0,0,COUNTIF($W$6:$W$105,W82))),0) -> 11.5
A83: 13 | G83: 0 | H83: 13 | I83: 56.5 | L83: 0 | M83: 13 | N83: 56.5 | O83: 56.5 | R83: 0 | U83: 0 | V83: 0.01769911504 | W83: 13 | X83: =IF(W83<31,AVERAGE(OFFSET(INDEX('Points team et quota finales'!$C$5:$C$34,W83),0,0,COUNTIF($W$6:$W$105,W83))),0) -> 11.5
A84: 13 | G84: 0 | H84: 13 | I84: 56.5 | L84: 0 | M84: 13 | N84: 56.5 | O84: 56.5 | R84: 0 | U84: 0 | V84: 0.01769911504 | W84: 13 | X84: =IF(W84<31,AVERAGE(OFFSET(INDEX('Points team et quota finales'!$C$5:$C$34,W84),0,0,COUNTIF($W$6:$W$105,W84))),0) -> 11.5
A85: 13 | G85: 0 | H85: 13 | I85: 56.5 | L85: 0 | M85: 13 | N85: 56.5 | O85: 56.5 | R85: 0 | U85: 0 | V85: 0.01769911504 | W85: 13 | X85: =IF(W85<31,AVERAGE(OFFSET(INDEX('Points team et quota finales'!$C$5:$C$34,W85),0,0,COUNTIF($W$6:$W$105,W85))),0) -> 11.5
A86: 13 | G86: 0 | H86: 13 | I86: 56.5 | L86: 0 | M86: 13 | N86: 56.5 | O86: 56.5 | R86: 0 | U86: 0 | V86: 0.01769911504 | W86: 13 | X86: =IF(W86<31,AVERAGE(OFFSET(INDEX('Points team et quota finales'!$C$5:$C$34,W86),0,0,COUNTIF($W$6:$W$105,W86))),0) -> 11.5
A87: 13 | G87: 0 | H87: 13 | I87: 56.5 | L87: 0 | M87: 13 | N87: 56.5 | O87: 56.5 | R87: 0 | U87: 0 | V87: 0.01769911504 | W87: 13 | X87: =IF(W87<31,AVERAGE(OFFSET(INDEX('Points team et quota finales'!$C$5:$C$34,W87),0,0,COUNTIF($W$6:$W$105,W87))),0) -> 11.5
A88: 13 | G88: 0 | H88: 13 | I88: 56.5 | L88: 0 | M88: 13 | N88: 56.5 | O88: 56.5 | R88: 0 | U88: 0 | V88: 0.01769911504 | W88: 13 | X88: =IF(W88<31,AVERAGE(OFFSET(INDEX('Points team et quota finales'!$C$5:$C$34,W88),0,0,COUNTIF($W$6:$W$105,W88))),0) -> 11.5
A89: 13 | G89: 0 | H89: 13 | I89: 56.5 | L89: 0 | M89: 13 | N89: 56.5 | O89: 56.5 | R89: 0 | U89: 0 | V89: 0.01769911504 | W89: 13 | X89: =IF(W89<31,AVERAGE(OFFSET(INDEX('Points team et quota finales'!$C$5:$C$34,W89),0,0,COUNTIF($W$6:$W$105,W89))),0) -> 11.5
A90: 13 | G90: 0 | H90: 13 | I90: 56.5 | L90: 0 | M90: 13 | N90: 56.5 | O90: 56.5 | R90: 0 | U90: 0 | V90: 0.01769911504 | W90: 13 | X90: =IF(W90<31,AVERAGE(OFFSET(INDEX('Points team et quota finales'!$C$5:$C$34,W90),0,0,COUNTIF($W$6:$W$105,W90))),0) -> 11.5
A91: 13 | G91: 0 | H91: 13 | I91: 56.5 | L91: 0 | M91: 13 | N91: 56.5 | O91: 56.5 | R91: 0 | U91: 0 | V91: 0.01769911504 | W91: 13 | X91: =IF(W91<31,AVERAGE(OFFSET(INDEX('Points team et quota finales'!$C$5:$C$34,W91),0,0,COUNTIF($W$6:$W$105,W91))),0) -> 11.5
A92: 13 | G92: 0 | H92: 13 | I92: 56.5 | L92: 0 | M92: 13 | N92: 56.5 | O92: 56.5 | R92: 0 | U92: 0 | V92: 0.01769911504 | W92: 13 | X92: =IF(W92<31,AVERAGE(OFFSET(INDEX('Points team et quota finales'!$C$5:$C$34,W92),0,0,COUNTIF($W$6:$W$105,W92))),0) -> 11.5
A93: 13 | G93: 0 | H93: 13 | I93: 56.5 | L93: 0 | M93: 13 | N93: 56.5 | O93: 56.5 | R93: 0 | U93: 0 | V93: 0.01769911504 | W93: 13 | X93: =IF(W93<31,AVERAGE(OFFSET(INDEX('Points team et quota finales'!$C$5:$C$34,W93),0,0,COUNTIF($W$6:$W$105,W93))),0) -> 11.5
A94: 13 | G94: 0 | H94: 13 | I94: 56.5 | L94: 0 | M94: 13 | N94: 56.5 | O94: 56.5 | R94: 0 | U94: 0 | V94: 0.01769911504 | W94: 13 | X94: =IF(W94<31,AVERAGE(OFFSET(INDEX('Points team et quota finales'!$C$5:$C$34,W94),0,0,COUNTIF($W$6:$W$105,W94))),0) -> 11.5
A95: 13 | G95: 0 | H95: 13 | I95: 56.5 | L95: 0 | M95: 13 | N95: 56.5 | O95: 56.5 | R95: 0 | U95: 0 | V95: 0.01769911504 | W95: 13 | X95: =IF(W95<31,AVERAGE(OFFSET(INDEX('Points team et quota finales'!$C$5:$C$34,W95),0,0,COUNTIF($W$6:$W$105,W95))),0) -> 11.5
A96: 13 | G96: 0 | H96: 13 | I96: 56.5 | L96: 0 | M96: 13 | N96: 56.5 | O96: 56.5 | R96: 0 | U96: 0 | V96: 0.01769911504 | W96: 13 | X96: =IF(W96<31,AVERAGE(OFFSET(INDEX('Points team et quota finales'!$C$5:$C$34,W96),0,0,COUNTIF($W$6:$W$105,W96))),0) -> 11.5
A97: 13 | G97: 0 | H97: 13 | I97: 56.5 | L97: 0 | M97: 13 | N97: 56.5 | O97: 56.5 | R97: 0 | U97: 0 | V97: 0.01769911504 | W97: 13 | X97: =IF(W97<31,AVERAGE(OFFSET(INDEX('Points team et quota finales'!$C$5:$C$34,W97),0,0,COUNTIF($W$6:$W$105,W97))),0) -> 11.5
A98: 13 | G98: 0 | H98: 13 | I98: 56.5 | L98: 0 | M98: 13 | N98: 56.5 | O98: 56.5 | R98: 0 | U98: 0 | V98: 0.01769911504 | W98: 13 | X98: =IF(W98<31,AVERAGE(OFFSET(INDEX('Points team et quota finales'!$C$5:$C$34,W98),0,0,COUNTIF($W$6:$W$105,W98))),0) -> 11.5
A99: 13 | G99: 0 | H99: 13 | I99: 56.5 | L99: 0 | M99: 13 | N99: 56.5 | O99: 56.5 | R99: 0 | U99: 0 | V99: 0.01769911504 | W99: 13 | X99: =IF(W99<31,AVERAGE(OFFSET(INDEX('Points team et quota finales'!$C$5:$C$34,W99),0,0,COUNTIF($W$6:$W$105,W99))),0) -> 11.5
A100: 13 | G100: 0 | H100: 13 | I100: 56.5 | L100: 0 | M100: 13 | N100: 56.5 | O100: 56.5 | R100: 0 | U100: 0 | V100: 0.01769911504 | W100: 13 | X100: =IF(W100<31,AVERAGE(OFFSET(INDEX('Points team et quota finales'!$C$5:$C$34,W100),0,0,COUNTIF($W$6:$W$105,W100))),0) -> 11.5
A101: 13 | G101: 0 | H101: 13 | I101: 56.5 | L101: 0 | M101: 13 | N101: 56.5 | O101: 56.5 | R101: 0 | U101: 0 | V101: 0.01769911504 | W101: 13 | X101: =IF(W101<31,AVERAGE(OFFSET(INDEX('Points team et quota finales'!$C$5:$C$34,W101),0,0,COUNTIF($W$6:$W$105,W101))),0) -> 11.5
A102: 13 | G102: 0 | H102: 13 | I102: 56.5 | L102: 0 | M102: 13 | N102: 56.5 | O102: 56.5 | R102: 0 | U102: 0 | V102: 0.01769911504 | W102: 13 | X102: =IF(W102<31,AVERAGE(OFFSET(INDEX('Points team et quota finales'!$C$5:$C$34,W102),0,0,COUNTIF($W$6:$W$105,W102))),0) -> 11.5
A103: 13 | G103: 0 | H103: 13 | I103: 56.5 | L103: 0 | M103: 13 | N103: 56.5 | O103: 56.5 | R103: 0 | U103: 0 | V103: 0.01769911504 | W103: 13 | X103: =IF(W103<31,AVERAGE(OFFSET(INDEX('Points team et quota finales'!$C$5:$C$34,W103),0,0,COUNTIF($W$6:$W$105,W103))),0) -> 11.5
A104: 13 | G104: 0 | H104: 13 | I104: 56.5 | L104: 0 | M104: 13 | N104: 56.5 | O104: 56.5 | R104: 0 | U104: 0 | V104: 0.01769911504 | W104: 13 | X104: =IF(W104<31,AVERAGE(OFFSET(INDEX('Points team et quota finales'!$C$5:$C$34,W104),0,0,COUNTIF($W$6:$W$105,W104))),0) -> 11.5
A105: 13 | G105: 0 | H105: 13 | I105: 56.5 | L105: 0 | M105: 13 | N105: 56.5 | O105: 56.5 | R105: 0 | U105: 0 | V105: 0.01769911504 | W105: 13 | X105: =IF(W105<31,AVERAGE(OFFSET(INDEX('Points team et quota finales'!$C$5:$C$34,W105),0,0,COUNTIF($W$6:$W$105,W105))),0) -> 11.5
E108: Top = | F108: 30 | J108: Top = | K108: 28 | P108: Top = | Q108: 30 | S108: Top = | T108: 40
B109: =CONCATENATE("Jury President: ",General!$B$6) -> Jury President: Lieven Vlassenroot
B111: Appeal until :

Sheet BF PARA
A2: =CONCATENATE(General!$B$5," - RESULTS B Female Para") -> Youth Lead Championship 09-03-2013 - RESULTS B Female Para
A5: RANK | B5: Nr | C5: Name | D5: Team | E5: Route 1 | I5: Ranking Points Route 1 | J5: Route 2 | N5: Ranking Points Route 2 | O5: Root R1 x R2 | P5: Final | S5: Super Final | V5: base pour calcul rang | W5: RANK | X5: Team points
A6: =RANK(V6,$V$6:$V$105) -> 1 | B6: BFP01 | C6: VANDENHOVEN Pavitra | D6: KLI | E6: TOP | G6: =IF(E6="TOP",$F$108,IF(F6="-",E6-0.01,IF(F6="+",E6+0.01,E6))) -> 26 | H6: =RANK(G6,$G$6:$G$105) -> 1 | I6: =IF(COUNTIF($H$6:$H$105,H6)=1,H6,(H6*2+COUNTIF($H$6:$H$105,H6)-1)/2) -> 1 | J6: TOP | L6: =IF(J6="TOP",$K$108,IF(K6="-",J6-0.01,IF(K6="+",J6+0.01,J6))) -> 33 | M6: =RANK(L6,$L$6:$L$105) -> 1 | N6: =IF(COUNTIF($M$6:$M$105,M6)=1,M6,(M6*2+COUNTIF($M$6:$M$105,M6)-1)/2) -> 1 | O6: =SQRT(I6*N6) -> 1 | P6: TOP | R6: =IF(P6="TOP",$Q$108,IF(Q6="-",P6-0.01,IF(Q6="+",P6+0.01,P6))) -> 35 | U6: =IF($S6="TOP",$T$108,IF($T6="-",$S6-0.01,IF($T6="+",$S6+0.01,$S6))) -> 0 | V6: =IF(U6<>0,U6*1000+R6*100+1/O6,IF(R6<>0,R6*100+1/O6,1/O6)) -> 3501 | W6: =A6 -> 1 | X6: =IF(W6<31,AVERAGE(OFFSET(INDEX('Points team et quota finales'!$C$5:$C$34,W6),0,0,COUNTIF($W$6:$W$105,W6))),0) -> 100
A7: =RANK(V7,$V$6:$V$105) -> 2 | G7: 0 | H7: 2 | I7: 51 | L7: 0 | M7: 2 | N7: 51 | O7: 51 | R7: 0 | U7: 0 | V7: 0.01960784314 | W7: 2 | X7: =IF(W7<31,AVERAGE(OFFSET(INDEX('Points team et quota finales'!$C$5:$C$34,W7),0,0,COUNTIF($W$6:$W$105,W7))),0) -> 24.75862069
A8: 2 | G8: 0 | H8: 2 | I8: 51 | L8: 0 | M8: 2 | N8: 51 | O8: 51 | R8: 0 | U8: 0 | V8: 0.01960784314 | W8: 2 | X8: =IF(W8<31,AVERAGE(OFFSET(INDEX('Points team et quota finales'!$C$5:$C$34,W8),0,0,COUNTIF($W$6:$W$105,W8))),0) -> 24.75862069
A9: 2 | G9: 0 | H9: 2 | I9: 51 | L9: 0 | M9: 2 | N9: 51 | O9: 51 | R9: 0 | U9: 0 | V9: 0.01960784314 | W9: 2 | X9: =IF(W9<31,AVERAGE(OFFSET(INDEX('Points team et quota finales'!$C$5:$C$34,W9),0,0,COUNTIF($W$6:$W$105,W9))),0) -> 24.75862069
A10: 2 | G10: 0 | H10: 2 | I10: 51 | L10: 0 | M10: 2 | N10: 51 | O10: 51 | R10: 0 | U10: 0 | V10: 0.01960784314 | W10: 2 | X10: =IF(W10<31,AVERAGE(OFFSET(INDEX('Points team et quota finales'!$C$5:$C$34,W10),0,0,COUNTIF($W$6:$W$105,W10))),0) -> 24.75862069
A11: 2 | G11: 0 | H11: 2 | I11: 51 | L11: 0 | M11: 2 | N11: 51 | O11: 51 | R11: 0 | U11: 0 | V11: 0.01960784314 | W11: 2 | X11: =IF(W11<31,AVERAGE(OFFSET(INDEX('Points team et quota finales'!$C$5:$C$34,W11),0,0,COUNTIF($W$6:$W$105,W11))),0) -> 24.75862069
A12: 2 | G12: 0 | H12: 2 | I12: 51 | L12: 0 | M12: 2 | N12: 51 | O12: 51 | R12: 0 | U12: 0 | V12: 0.01960784314 | W12: 2 | X12: =IF(W12<31,AVERAGE(OFFSET(INDEX('Points team et quota finales'!$C$5:$C$34,W12),0,0,COUNTIF($W$6:$W$105,W12))),0) -> 24.75862069
A13: 2 | G13: 0 | H13: 2 | I13: 51 | L13: 0 | M13: 2 | N13: 51 | O13: 51 | R13: 0 | U13: 0 | V13: 0.01960784314 | W13: 2 | X13: =IF(W13<31,AVERAGE(OFFSET(INDEX('Points team et quota finales'!$C$5:$C$34,W13),0,0,COUNTIF($W$6:$W$105,W13))),0) -> 24.75862069
A14: 2 | G14: 0 | H14: 2 | I14: 51 | L14: 0 | M14: 2 | N14: 51 | O14: 51 | R14: 0 | U14: 0 | V14: 0.01960784314 | W14: 2 | X14: =IF(W14<31,AVERAGE(OFFSET(INDEX('Points team et quota finales'!$C$5:$C$34,W14),0,0,COUNTIF($W$6:$W$105,W14))),0) -> 24.75862069
A15: 2 | G15: 0 | H15: 2 | I15: 51 | L15: 0 | M15: 2 | N15: 51 | O15: 51 | R15: 0 | U15: 0 | V15: 0.01960784314 | W15: 2 | X15: =IF(W15<31,AVERAGE(OFFSET(INDEX('Points team et quota finales'!$C$5:$C$34,W15),0,0,COUNTIF($W$6:$W$105,W15))),0) -> 24.75862069
A16: 2 | G16: 0 | H16: 2 | I16: 51 | L16: 0 | M16: 2 | N16: 51 | O16: 51 | R16: 0 | U16: 0 | V16: 0.01960784314 | W16: 2 | X16: =IF(W16<31,AVERAGE(OFFSET(INDEX('Points team et quota finales'!$C$5:$C$34,W16),0,0,COUNTIF($W$6:$W$105,W16))),0) -> 24.75862069
A17: 2 | G17: 0 | H17: 2 | I17: 51 | L17: 0 | M17: 2 | N17: 51 | O17: 51 | R17: 0 | U17: 0 | V17: 0.01960784314 | W17: 2 | X17: =IF(W17<31,AVERAGE(OFFSET(INDEX('Points team et quota finales'!$C$5:$C$34,W17),0,0,COUNTIF($W$6:$W$105,W17))),0) -> 24.75862069
A18: 2 | G18: 0 | H18: 2 | I18: 51 | L18: 0 | M18: 2 | N18: 51 | O18: 51 | R18: 0 | U18: 0 | V18: 0.01960784314 | W18: 2 | X18: =IF(W18<31,AVERAGE(OFFSET(INDEX('Points team et quota finales'!$C$5:$C$34,W18),0,0,COUNTIF($W$6:$W$105,W18))),0) -> 24.75862069
A19: 2 | G19: 0 | H19: 2 | I19: 51 | L19: 0 | M19: 2 | N19: 51 | O19: 51 | R19: 0 | U19: 0 | V19: 0.01960784314 | W19: 2 | X19: =IF(W19<31,AVERAGE(OFFSET(INDEX('Points team et quota finales'!$C$5:$C$34,W19),0,0,COUNTIF($W$6:$W$105,W19))),0) -> 24.75862069
A20: 2 | G20: 0 | H20: 2 | I20: 51 | L20: 0 | M20: 2 | N20: 51 | O20: 51 | R20: 0 | U20: 0 | V20: 0.01960784314 | W20: 2 | X20: =IF(W20<31,AVERAGE(OFFSET(INDEX('Points team et quota finales'!$C$5:$C$34,W20),0,0,COUNTIF($W$6:$W$105,W20))),0) -> 24.75862069
A21: 2 | G21: 0 | H21: 2 | I21: 51 | L21: 0 | M21: 2 | N21: 51 | O21: 51 | R21: 0 | U21: 0 | V21: 0.01960784314 | W21: 2 | X21: =IF(W21<31,AVERAGE(OFFSET(INDEX('Points team et quota finales'!$C$5:$C$34,W21),0,0,COUNTIF($W$6:$W$105,W21))),0) -> 24.75862069
A22: 2 | G22: 0 | H22: 2 | I22: 51 | L22: 0 | M22: 2 | N22: 51 | O22: 51 | R22: 0 | U22: 0 | V22: 0.01960784314 | W22: 2 | X22: =IF(W22<31,AVERAGE(OFFSET(INDEX('Points team et quota finales'!$C$5:$C$34,W22),0,0,COUNTIF($W$6:$W$105,W22))),0) -> 24.75862069
A23: 2 | G23: 0 | H23: 2 | I23: 51 | L23: 0 | M23: 2 | N23: 51 | O23: 51 | R23: 0 | U23: 0 | V23: 0.01960784314 | W23: 2 | X23: =IF(W23<31,AVERAGE(OFFSET(INDEX('Points team et quota finales'!$C$5:$C$34,W23),0,0,COUNTIF($W$6:$W$105,W23))),0) -> 24.75862069
A24: 2 | G24: 0 | H24: 2 | I24: 51 | L24: 0 | M24: 2 | N24: 51 | O24: 51 | R24: 0 | U24: 0 | V24: 0.01960784314 | W24: 2 | X24: =IF(W24<31,AVERAGE(OFFSET(INDEX('Points team et quota finales'!$C$5:$C$34,W24),0,0,COUNTIF($W$6:$W$105,W24))),0) -> 24.75862069
A25: 2 | G25: 0 | H25: 2 | I25: 51 | L25: 0 | M25: 2 | N25: 51 | O25: 51 | R25: 0 | U25: 0 | V25: 0.01960784314 | W25: 2 | X25: =IF(W25<31,AVERAGE(OFFSET(INDEX('Points team et quota finales'!$C$5:$C$34,W25),0,0,COUNTIF($W$6:$W$105,W25))),0) -> 24.75862069
A26: 2 | G26: 0 | H26: 2 | I26: 51 | L26: 0 | M26: 2 | N26: 51 | O26: 51 | R26: 0 | U26: 0 | V26: 0.01960784314 | W26: 2 | X26: =IF(W26<31,AVERAGE(OFFSET(INDEX('Points team et quota finales'!$C$5:$C$34,W26),0,0,COUNTIF($W$6:$W$105,W26))),0) -> 24.75862069
A27: 2 | G27: 0 | H27: 2 | I27: 51 | L27: 0 | M27: 2 | N27: 51 | O27: 51 | R27: 0 | U27: 0 | V27: 0.01960784314 | W27: 2 | X27: =IF(W27<31,AVERAGE(OFFSET(INDEX('Points team et quota finales'!$C$5:$C$34,W27),0,0,COUNTIF($W$6:$W$105,W27))),0) -> 24.75862069
A28: 2 | G28: 0 | H28: 2 | I28: 51 | L28: 0 | M28: 2 | N28: 51 | O28: 51 | R28: 0 | U28: 0 | V28: 0.01960784314 | W28: 2 | X28: =IF(W28<31,AVERAGE(OFFSET(INDEX('Points team et quota finales'!$C$5:$C$34,W28),0,0,COUNTIF($W$6:$W$105,W28))),0) -> 24.75862069
A29: 2 | G29: 0 | H29: 2 | I29: 51 | L29: 0 | M29: 2 | N29: 51 | O29: 51 | R29: 0 | U29: 0 | V29: 0.01960784314 | W29: 2 | X29: =IF(W29<31,AVERAGE(OFFSET(INDEX('Points team et quota finales'!$C$5:$C$34,W29),0,0,COUNTIF($W$6:$W$105,W29))),0) -> 24.75862069
A30: 2 | G30: 0 | H30: 2 | I30: 51 | L30: 0 | M30: 2 | N30: 51 | O30: 51 | R30: 0 | U30: 0 | V30: 0.01960784314 | W30: 2 | X30: =IF(W30<31,AVERAGE(OFFSET(INDEX('Points team et quota finales'!$C$5:$C$34,W30),0,0,COUNTIF($W$6:$W$105,W30))),0) -> 24.75862069
A31: 2 | G31: 0 | H31: 2 | I31: 51 | L31: 0 | M31: 2 | N31: 51 | O31: 51 | R31: 0 | U31: 0 | V31: 0.01960784314 | W31: 2 | X31: =IF(W31<31,AVERAGE(OFFSET(INDEX('Points team et quota finales'!$C$5:$C$34,W31),0,0,COUNTIF($W$6:$W$105,W31))),0) -> 24.75862069
A32: 2 | G32: 0 | H32: 2 | I32: 51 | L32: 0 | M32: 2 | N32: 51 | O32: 51 | R32: 0 | U32: 0 | V32: 0.01960784314 | W32: 2 | X32: =IF(W32<31,AVERAGE(OFFSET(INDEX('Points team et quota finales'!$C$5:$C$34,W32),0,0,COUNTIF($W$6:$W$105,W32))),0) -> 24.75862069
A33: 2 | G33: 0 | H33: 2 | I33: 51 | L33: 0 | M33: 2 | N33: 51 | O33: 51 | R33: 0 | U33: 0 | V33: 0.01960784314 | W33: 2 | X33: =IF(W33<31,AVERAGE(OFFSET(INDEX('Points team et quota finales'!$C$5:$C$34,W33),0,0,COUNTIF($W$6:$W$105,W33))),0) -> 24.75862069
A34: 2 | G34: 0 | H34: 2 | I34: 51 | L34: 0 | M34: 2 | N34: 51 | O34: 51 | R34: 0 | U34: 0 | V34: 0.01960784314 | W34: 2 | X34: =IF(W34<31,AVERAGE(OFFSET(INDEX('Points team et quota finales'!$C$5:$C$34,W34),0,0,COUNTIF($W$6:$W$105,W34))),0) -> 24.75862069
A35: 2 | G35: 0 | H35: 2 | I35: 51 | L35: 0 | M35: 2 | N35: 51 | O35: 51 | R35: 0 | U35: 0 | V35: 0.01960784314 | W35: 2 | X35: =IF(W35<31,AVERAGE(OFFSET(INDEX('Points team et quota finales'!$C$5:$C$34,W35),0,0,COUNTIF($W$6:$W$105,W35))),0) -> 24.75862069
A36: 2 | G36: 0 | H36: 2 | I36: 51 | L36: 0 | M36: 2 | N36: 51 | O36: 51 | R36: 0 | U36: 0 | V36: 0.01960784314 | W36: 2 | X36: =IF(W36<31,AVERAGE(OFFSET(INDEX('Points team et quota finales'!$C$5:$C$34,W36),0,0,COUNTIF($W$6:$W$105,W36))),0) -> 24.75862069
A37: 2 | G37: 0 | H37: 2 | I37: 51 | L37: 0 | M37: 2 | N37: 51 | O37: 51 | R37: 0 | U37: 0 | V37: 0.01960784314 | W37: 2 | X37: =IF(W37<31,AVERAGE(OFFSET(INDEX('Points team et quota finales'!$C$5:$C$34,W37),0,0,COUNTIF($W$6:$W$105,W37))),0) -> 24.75862069
A38: 2 | G38: 0 | H38: 2 | I38: 51 | L38: 0 | M38: 2 | N38: 51 | O38: 51 | R38: 0 | U38: 0 | V38: 0.01960784314 | W38: 2 | X38: =IF(W38<31,AVERAGE(OFFSET(INDEX('Points team et quota finales'!$C$5:$C$34,W38),0,0,COUNTIF($W$6:$W$105,W38))),0) -> 24.75862069
A39: 2 | G39: 0 | H39: 2 | I39: 51 | L39: 0 | M39: 2 | N39: 51 | O39: 51 | R39: 0 | U39: 0 | V39: 0.01960784314 | W39: 2 | X39: =IF(W39<31,AVERAGE(OFFSET(INDEX('Points team et quota finales'!$C$5:$C$34,W39),0,0,COUNTIF($W$6:$W$105,W39))),0) -> 24.75862069
A40: 2 | G40: 0 | H40: 2 | I40: 51 | L40: 0 | M40: 2 | N40: 51 | O40: 51 | R40: 0 | U40: 0 | V40: 0.01960784314 | W40: 2 | X40: =IF(W40<31,AVERAGE(OFFSET(INDEX('Points team et quota finales'!$C$5:$C$34,W40),0,0,COUNTIF($W$6:$W$105,W40))),0) -> 24.75862069
A41: 2 | G41: 0 | H41: 2 | I41: 51 | L41: 0 | M41: 2 | N41: 51 | O41: 51 | R41: 0 | U41: 0 | V41: 0.01960784314 | W41: 2 | X41: =IF(W41<31,AVERAGE(OFFSET(INDEX('Points team et quota finales'!$C$5:$C$34,W41),0,0,COUNTIF($W$6:$W$105,W41))),0) -> 24.75862069
A42: 2 | G42: 0 | H42: 2 | I42: 51 | L42: 0 | M42: 2 | N42: 51 | O42: 51 | R42: 0 | U42: 0 | V42: 0.01960784314 | W42: 2 | X42: =IF(W42<31,AVERAGE(OFFSET(INDEX('Points team et quota finales'!$C$5:$C$34,W42),0,0,COUNTIF($W$6:$W$105,W42))),0) -> 24.75862069
A43: 2 | G43: 0 | H43: 2 | I43: 51 | L43: 0 | M43: 2 | N43: 51 | O43: 51 | R43: 0 | U43: 0 | V43: 0.01960784314 | W43: 2 | X43: =IF(W43<31,AVERAGE(OFFSET(INDEX('Points team et quota finales'!$C$5:$C$34,W43),0,0,COUNTIF($W$6:$W$105,W43))),0) -> 24.75862069
A44: 2 | G44: 0 | H44: 2 | I44: 51 | L44: 0 | M44: 2 | N44: 51 | O44: 51 | R44: 0 | U44: 0 | V44: 0.01960784314 | W44: 2 | X44: =IF(W44<31,AVERAGE(OFFSET(INDEX('Points team et quota finales'!$C$5:$C$34,W44),0,0,COUNTIF($W$6:$W$105,W44))),0) -> 24.75862069
A45: 2 | G45: 0 | H45: 2 | I45: 51 | L45: 0 | M45: 2 | N45: 51 | O45: 51 | R45: 0 | U45: 0 | V45: 0.01960784314 | W45: 2 | X45: =IF(W45<31,AVERAGE(OFFSET(INDEX('Points team et quota finales'!$C$5:$C$34,W45),0,0,COUNTIF($W$6:$W$105,W45))),0) -> 24.75862069
A46: 2 | G46: 0 | H46: 2 | I46: 51 | L46: 0 | M46: 2 | N46: 51 | O46: 51 | R46: 0 | U46: 0 | V46: 0.01960784314 | W46: 2 | X46: =IF(W46<31,AVERAGE(OFFSET(INDEX('Points team et quota finales'!$C$5:$C$34,W46),0,0,COUNTIF($W$6:$W$105,W46))),0) -> 24.75862069
A47: 2 | G47: 0 | H47: 2 | I47: 51 | L47: 0 | M47: 2 | N47: 51 | O47: 51 | R47: 0 | U47: 0 | V47: 0.01960784314 | W47: 2 | X47: =IF(W47<31,AVERAGE(OFFSET(INDEX('Points team et quota finales'!$C$5:$C$34,W47),0,0,COUNTIF($W$6:$W$105,W47))),0) -> 24.75862069
A48: 2 | G48: 0 | H48: 2 | I48: 51 | L48: 0 | M48: 2 | N48: 51 | O48: 51 | R48: 0 | U48: 0 | V48: 0.01960784314 | W48: 2 | X48: =IF(W48<31,AVERAGE(OFFSET(INDEX('Points team et quota finales'!$C$5:$C$34,W48),0,0,COUNTIF($W$6:$W$105,W48))),0) -> 24.75862069
A49: 2 | G49: 0 | H49: 2 | I49: 51 | L49: 0 | M49: 2 | N49: 51 | O49: 51 | R49: 0 | U49: 0 | V49: 0.01960784314 | W49: 2 | X49: =IF(W49<31,AVERAGE(OFFSET(INDEX('Points team et quota finales'!$C$5:$C$34,W49),0,0,COUNTIF($W$6:$W$105,W49))),0) -> 24.75862069
A50: 2 | G50: 0 | H50: 2 | I50: 51 | L50: 0 | M50: 2 | N50: 51 | O50: 51 | R50: 0 | U50: 0 | V50: 0.01960784314 | W50: 2 | X50: =IF(W50<31,AVERAGE(OFFSET(INDEX('Points team et quota finales'!$C$5:$C$34,W50),0,0,COUNTIF($W$6:$W$105,W50))),0) -> 24.75862069
A51: 2 | G51: 0 | H51: 2 | I51: 51 | L51: 0 | M51: 2 | N51: 51 | O51: 51 | R51: 0 | U51: 0 | V51: 0.01960784314 | W51: 2 | X51: =IF(W51<31,AVERAGE(OFFSET(INDEX('Points team et quota finales'!$C$5:$C$34,W51),0,0,COUNTIF($W$6:$W$105,W51))),0) -> 24.75862069
A52: 2 | G52: 0 | H52: 2 | I52: 51 | L52: 0 | M52: 2 | N52: 51 | O52: 51 | R52: 0 | U52: 0 | V52: 0.01960784314 | W52: 2 | X52: =IF(W52<31,AVERAGE(OFFSET(INDEX('Points team et quota finales'!$C$5:$C$34,W52),0,0,COUNTIF($W$6:$W$105,W52))),0) -> 24.75862069
A53: 2 | G53: 0 | H53: 2 | I53: 51 | L53: 0 | M53: 2 | N53: 51 | O53: 51 | R53: 0 | U53: 0 | V53: 0.01960784314 | W53: 2 | X53: =IF(W53<31,AVERAGE(OFFSET(INDEX('Points team et quota finales'!$C$5:$C$34,W53),0,0,COUNTIF($W$6:$W$105,W53))),0) -> 24.75862069
A54: 2 | G54: 0 | H54: 2 | I54: 51 | L54: 0 | M54: 2 | N54: 51 | O54: 51 | R54: 0 | U54: 0 | V54: 0.01960784314 | W54: 2 | X54: =IF(W54<31,AVERAGE(OFFSET(INDEX('Points team et quota finales'!$C$5:$C$34,W54),0,0,COUNTIF($W$6:$W$105,W54))),0) -> 24.75862069
A55: 2 | G55: 0 | H55: 2 | I55: 51 | L55: 0 | M55: 2 | N55: 51 | O55: 51 | R55: 0 | U55: 0 | V55: 0.01960784314 | W55: 2 | X55: =IF(W55<31,AVERAGE(OFFSET(INDEX('Points team et quota finales'!$C$5:$C$34,W55),0,0,COUNTIF($W$6:$W$105,W55))),0) -> 24.75862069
A56: 2 | G56: 0 | H56: 2 | I56: 51 | L56: 0 | M56: 2 | N56: 51 | O56: 51 | R56: 0 | U56: 0 | V56: 0.01960784314 | W56: 2 | X56: =IF(W56<31,AVERAGE(OFFSET(INDEX('Points team et quota finales'!$C$5:$C$34,W56),0,0,COUNTIF($W$6:$W$105,W56))),0) -> 24.75862069
A57: 2 | G57: 0 | H57: 2 | I57: 51 | L57: 0 | M57: 2 | N57: 51 | O57: 51 | R57: 0 | U57: 0 | V57: 0.01960784314 | W57: 2 | X57: =IF(W57<31,AVERAGE(OFFSET(INDEX('Points team et quota finales'!$C$5:$C$34,W57),0,0,COUNTIF($W$6:$W$105,W57))),0) -> 24.75862069
A58: 2 | G58: 0 | H58: 2 | I58: 51 | L58: 0 | M58: 2 | N58: 51 | O58: 51 | R58: 0 | U58: 0 | V58: 0.01960784314 | W58: 2 | X58: =IF(W58<31,AVERAGE(OFFSET(INDEX('Points team et quota finales'!$C$5:$C$34,W58),0,0,COUNTIF($W$6:$W$105,W58))),0) -> 24.75862069
A59: 2 | G59: 0 | H59: 2 | I59: 51 | L59: 0 | M59: 2 | N59: 51 | O59: 51 | R59: 0 | U59: 0 | V59: 0.01960784314 | W59: 2 | X59: =IF(W59<31,AVERAGE(OFFSET(INDEX('Points team et quota finales'!$C$5:$C$34,W59),0,0,COUNTIF($W$6:$W$105,W59))),0) -> 24.75862069
A60: 2 | G60: 0 | H60: 2 | I60: 51 | L60: 0 | M60: 2 | N60: 51 | O60: 51 | R60: 0 | U60: 0 | V60: 0.01960784314 | W60: 2 | X60: =IF(W60<31,AVERAGE(OFFSET(INDEX('Points team et quota finales'!$C$5:$C$34,W60),0,0,COUNTIF($W$6:$W$105,W60))),0) -> 24.75862069
A61: 2 | G61: 0 | H61: 2 | I61: 51 | L61: 0 | M61: 2 | N61: 51 | O61: 51 | R61: 0 | U61: 0 | V61: 0.01960784314 | W61: 2 | X61: =IF(W61<31,AVERAGE(OFFSET(INDEX('Points team et quota finales'!$C$5:$C$34,W61),0,0,COUNTIF($W$6:$W$105,W61))),0) -> 24.75862069
A62: 2 | G62: 0 | H62: 2 | I62: 51 | L62: 0 | M62: 2 | N62: 51 | O62: 51 | R62: 0 | U62: 0 | V62: 0.01960784314 | W62: 2 | X62: =IF(W62<31,AVERAGE(OFFSET(INDEX('Points team et quota finales'!$C$5:$C$34,W62),0,0,COUNTIF($W$6:$W$105,W62))),0) -> 24.75862069
A63: 2 | G63: 0 | H63: 2 | I63: 51 | L63: 0 | M63: 2 | N63: 51 | O63: 51 | R63: 0 | U63: 0 | V63: 0.01960784314 | W63: 2 | X63: =IF(W63<31,AVERAGE(OFFSET(INDEX('Points team et quota finales'!$C$5:$C$34,W63),0,0,COUNTIF($W$6:$W$105,W63))),0) -> 24.75862069
A64: 2 | G64: 0 | H64: 2 | I64: 51 | L64: 0 | M64: 2 | N64: 51 | O64: 51 | R64: 0 | U64: 0 | V64: 0.01960784314 | W64: 2 | X64: =IF(W64<31,AVERAGE(OFFSET(INDEX('Points team et quota finales'!$C$5:$C$34,W64),0,0,COUNTIF($W$6:$W$105,W64))),0) -> 24.75862069
A65: 2 | G65: 0 | H65: 2 | I65: 51 | L65: 0 | M65: 2 | N65: 51 | O65: 51 | R65: 0 | U65: 0 | V65: 0.01960784314 | W65: 2 | X65: =IF(W65<31,AVERAGE(OFFSET(INDEX('Points team et quota finales'!$C$5:$C$34,W65),0,0,COUNTIF($W$6:$W$105,W65))),0) -> 24.75862069
A66: 2 | G66: 0 | H66: 2 | I66: 51 | L66: 0 | M66: 2 | N66: 51 | O66: 51 | R66: 0 | U66: 0 | V66: 0.01960784314 | W66: 2 | X66: =IF(W66<31,AVERAGE(OFFSET(INDEX('Points team et quota finales'!$C$5:$C$34,W66),0,0,COUNTIF($W$6:$W$105,W66))),0) -> 24.75862069
A67: 2 | G67: 0 | H67: 2 | I67: 51 | L67: 0 | M67: 2 | N67: 51 | O67: 51 | R67: 0 | U67: 0 | V67: 0.01960784314 | W67: 2 | X67: =IF(W67<31,AVERAGE(OFFSET(INDEX('Points team et quota finales'!$C$5:$C$34,W67),0,0,COUNTIF($W$6:$W$105,W67))),0) -> 24.75862069
A68: 2 | G68: 0 | H68: 2 | I68: 51 | L68: 0 | M68: 2 | N68: 51 | O68: 51 | R68: 0 | U68: 0 | V68: 0.01960784314 | W68: 2 | X68: =IF(W68<31,AVERAGE(OFFSET(INDEX('Points team et quota finales'!$C$5:$C$34,W68),0,0,COUNTIF($W$6:$W$105,W68))),0) -> 24.75862069
A69: 2 | G69: 0 | H69: 2 | I69: 51 | L69: 0 | M69: 2 | N69: 51 | O69: 51 | R69: 0 | U69: 0 | V69: 0.01960784314 | W69: 2 | X69: =IF(W69<31,AVERAGE(OFFSET(INDEX('Points team et quota finales'!$C$5:$C$34,W69),0,0,COUNTIF($W$6:$W$105,W69))),0) -> 24.75862069
A70: 2 | G70: =IF(E70="TOP",$F$108,IF(F70="-",E70-0.01,IF(F70="+",E70+0.01,E70))) -> 0 | H70: =RANK(G70,$G$6:$G$105) -> 2 | I70: =IF(COUNTIF($H$6:$H$105,H70)=1,H70,(H70*2+COUNTIF($H$6:$H$105,H70)-1)/2) -> 51 | L70: =IF(J70="TOP",$K$108,IF(K70="-",J70-0.01,IF(K70="+",J70+0.01,J70))) -> 0 | M70: =RANK(L70,$L$6:$L$105) -> 2 | N70: =IF(COUNTIF($M$6:$M$105,M70)=1,M70,(M70*2+COUNTIF($M$6:$M$105,M70)-1)/2) -> 51 | O70: =SQRT(I70*N70) -> 51 | R70: =IF(P70="TOP",$Q$108,IF(Q70="-",P70-0.01,IF(Q70="+",P70+0.01,P70))) -> 0 | U70: =IF($S70="TOP",$T$108,IF($T70="-",$S70-0.01,IF($T70="+",$S70+0.01,$S70))) -> 0 | V70: =IF(U70<>0,U70*1000+R70*100+1/O70,IF(R70<>0,R70*100+1/O70,1/O70)) -> 0.01960784314 | W70: =A70 -> 2 | X70: =IF(W70<31,AVERAGE(OFFSET(INDEX('Points team et quota finales'!$C$5:$C$34,W70),0,0,COUNTIF($W$6:$W$105,W70))),0) -> 24.75862069
A71: =RANK(V71,$V$6:$V$105) -> 2 | G71: 0 | H71: 2 | I71: 51 | L71: 0 | M71: 2 | N71: 51 | O71: 51 | R71: 0 | U71: 0 | V71: 0.01960784314 | W71: 2 | X71: =IF(W71<31,AVERAGE(OFFSET(INDEX('Points team et quota finales'!$C$5:$C$34,W71),0,0,COUNTIF($W$6:$W$105,W71))),0) -> 24.75862069
A72: 2 | G72: 0 | H72: 2 | I72: 51 | L72: 0 | M72: 2 | N72: 51 | O72: 51 | R72: 0 | U72: 0 | V72: 0.01960784314 | W72: 2 | X72: =IF(W72<31,AVERAGE(OFFSET(INDEX('Points team et quota finales'!$C$5:$C$34,W72),0,0,COUNTIF($W$6:$W$105,W72))),0) -> 24.75862069
A73: 2 | G73: 0 | H73: 2 | I73: 51 | L73: 0 | M73: 2 | N73: 51 | O73: 51 | R73: 0 | U73: 0 | V73: 0.01960784314 | W73: 2 | X73: =IF(W73<31,AVERAGE(OFFSET(INDEX('Points team et quota finales'!$C$5:$C$34,W73),0,0,COUNTIF($W$6:$W$105,W73))),0) -> 24.75862069
A74: 2 | G74: 0 | H74: 2 | I74: 51 | L74: 0 | M74: 2 | N74: 51 | O74: 51 | R74: 0 | U74: 0 | V74: 0.01960784314 | W74: 2 | X74: =IF(W74<31,AVERAGE(OFFSET(INDEX('Points team et quota finales'!$C$5:$C$34,W74),0,0,COUNTIF($W$6:$W$105,W74))),0) -> 24.75862069
A75: 2 | G75: 0 | H75: 2 | I75: 51 | L75: 0 | M75: 2 | N75: 51 | O75: 51 | R75: 0 | U75: 0 | V75: 0.01960784314 | W75: 2 | X75: =IF(W75<31,AVERAGE(OFFSET(INDEX('Points team et quota finales'!$C$5:$C$34,W75),0,0,COUNTIF($W$6:$W$105,W75))),0) -> 24.75862069
A76: 2 | G76: 0 | H76: 2 | I76: 51 | L76: 0 | M76: 2 | N76: 51 | O76: 51 | R76: 0 | U76: 0 | V76: 0.01960784314 | W76: 2 | X76: =IF(W76<31,AVERAGE(OFFSET(INDEX('Points team et quota finales'!$C$5:$C$34,W76),0,0,COUNTIF($W$6:$W$105,W76))),0) -> 24.75862069
A77: 2 | G77: 0 | H77: 2 | I77: 51 | L77: 0 | M77: 2 | N77: 51 | O77: 51 | R77: 0 | U77: 0 | V77: 0.01960784314 | W77: 2 | X77: =IF(W77<31,AVERAGE(OFFSET(INDEX('Points team et quota finales'!$C$5:$C$34,W77),0,0,COUNTIF($W$6:$W$105,W77))),0) -> 24.75862069
A78: 2 | G78: 0 | H78: 2 | I78: 51 | L78: 0 | M78: 2 | N78: 51 | O78: 51 | R78: 0 | U78: 0 | V78: 0.01960784314 | W78: 2 | X78: =IF(W78<31,AVERAGE(OFFSET(INDEX('Points team et quota finales'!$C$5:$C$34,W78),0,0,COUNTIF($W$6:$W$105,W78))),0) -> 24.75862069
A79: 2 | G79: 0 | H79: 2 | I79: 51 | L79: 0 | M79: 2 | N79: 51 | O79: 51 | R79: 0 | U79: 0 | V79: 0.01960784314 | W79: 2 | X79: =IF(W79<31,AVERAGE(OFFSET(INDEX('Points team et quota finales'!$C$5:$C$34,W79),0,0,COUNTIF($W$6:$W$105,W79))),0) -> 24.75862069
A80: 2 | G80: 0 | H80: 2 | I80: 51 | L80: 0 | M80: 2 | N80: 51 | O80: 51 | R80: 0 | U80: 0 | V80: 0.01960784314 | W80: 2 | X80: =IF(W80<31,AVERAGE(OFFSET(INDEX('Points team et quota finales'!$C$5:$C$34,W80),0,0,COUNTIF($W$6:$W$105,W80))),0) -> 24.75862069
A81: 2 | G81: 0 | H81: 2 | I81: 51 | L81: 0 | M81: 2 | N81: 51 | O81: 51 | R81: 0 | U81: 0 | V81: 0.01960784314 | W81: 2 | X81: =IF(W81<31,AVERAGE(OFFSET(INDEX('Points team et quota finales'!$C$5:$C$34,W81),0,0,COUNTIF($W$6:$W$105,W81))),0) -> 24.75862069
A82: 2 | G82: 0 | H82: 2 | I82: 51 | L82: 0 | M82: 2 | N82: 51 | O82: 51 | R82: 0 | U82: 0 | V82: 0.01960784314 | W82: 2 | X82: =IF(W82<31,AVERAGE(OFFSET(INDEX('Points team et quota finales'!$C$5:$C$34,W82),0,0,COUNTIF($W$6:$W$105,W82))),0) -> 24.75862069
A83: 2 | G83: 0 | H83: 2 | I83: 51 | L83: 0 | M83: 2 | N83: 51 | O83: 51 | R83: 0 | U83: 0 | V83: 0.01960784314 | W83: 2 | X83: =IF(W83<31,AVERAGE(OFFSET(INDEX('Points team et quota finales'!$C$5:$C$34,W83),0,0,COUNTIF($W$6:$W$105,W83))),0) -> 24.75862069
A84: 2 | G84: 0 | H84: 2 | I84: 51 | L84: 0 | M84: 2 | N84: 51 | O84: 51 | R84: 0 | U84: 0 | V84: 0.01960784314 | W84: 2 | X84: =IF(W84<31,AVERAGE(OFFSET(INDEX('Points team et quota finales'!$C$5:$C$34,W84),0,0,COUNTIF($W$6:$W$105,W84))),0) -> 24.75862069
A85: 2 | G85: 0 | H85: 2 | I85: 51 | L85: 0 | M85: 2 | N85: 51 | O85: 51 | R85: 0 | U85: 0 | V85: 0.01960784314 | W85: 2 | X85: =IF(W85<31,AVERAGE(OFFSET(INDEX('Points team et quota finales'!$C$5:$C$34,W85),0,0,COUNTIF($W$6:$W$105,W85))),0) -> 24.75862069
A86: 2 | G86: 0 | H86: 2 | I86: 51 | L86: 0 | M86: 2 | N86: 51 | O86: 51 | R86: 0 | U86: 0 | V86: 0.01960784314 | W86: 2 | X86: =IF(W86<31,AVERAGE(OFFSET(INDEX('Points team et quota finales'!$C$5:$C$34,W86),0,0,COUNTIF($W$6:$W$105,W86))),0) -> 24.75862069
A87: 2 | G87: 0 | H87: 2 | I87: 51 | L87: 0 | M87: 2 | N87: 51 | O87: 51 | R87: 0 | U87: 0 | V87: 0.01960784314 | W87: 2 | X87: =IF(W87<31,AVERAGE(OFFSET(INDEX('Points team et quota finales'!$C$5:$C$34,W87),0,0,COUNTIF($W$6:$W$105,W87))),0) -> 24.75862069
A88: 2 | G88: 0 | H88: 2 | I88: 51 | L88: 0 | M88: 2 | N88: 51 | O88: 51 | R88: 0 | U88: 0 | V88: 0.01960784314 | W88: 2 | X88: =IF(W88<31,AVERAGE(OFFSET(INDEX('Points team et quota finales'!$C$5:$C$34,W88),0,0,COUNTIF($W$6:$W$105,W88))),0) -> 24.75862069
A89: 2 | G89: 0 | H89: 2 | I89: 51 | L89: 0 | M89: 2 | N89: 51 | O89: 51 | R89: 0 | U89: 0 | V89: 0.01960784314 | W89: 2 | X89: =IF(W89<31,AVERAGE(OFFSET(INDEX('Points team et quota finales'!$C$5:$C$34,W89),0,0,COUNTIF($W$6:$W$105,W89))),0) -> 24.75862069
A90: 2 | G90: 0 | H90: 2 | I90: 51 | L90: 0 | M90: 2 | N90: 51 | O90: 51 | R90: 0 | U90: 0 | V90: 0.01960784314 | W90: 2 | X90: =IF(W90<31,AVERAGE(OFFSET(INDEX('Points team et quota finales'!$C$5:$C$34,W90),0,0,COUNTIF($W$6:$W$105,W90))),0) -> 24.75862069
A91: 2 | G91: 0 | H91: 2 | I91: 51 | L91: 0 | M91: 2 | N91: 51 | O91: 51 | R91: 0 | U91: 0 | V91: 0.01960784314 | W91: 2 | X91: =IF(W91<31,AVERAGE(OFFSET(INDEX('Points team et quota finales'!$C$5:$C$34,W91),0,0,COUNTIF($W$6:$W$105,W91))),0) -> 24.75862069
A92: 2 | G92: 0 | H92: 2 | I92: 51 | L92: 0 | M92: 2 | N92: 51 | O92: 51 | R92: 0 | U92: 0 | V92: 0.01960784314 | W92: 2 | X92: =IF(W92<31,AVERAGE(OFFSET(INDEX('Points team et quota finales'!$C$5:$C$34,W92),0,0,COUNTIF($W$6:$W$105,W92))),0) -> 24.75862069
A93: 2 | G93: 0 | H93: 2 | I93: 51 | L93: 0 | M93: 2 | N93: 51 | O93: 51 | R93: 0 | U93: 0 | V93: 0.01960784314 | W93: 2 | X93: =IF(W93<31,AVERAGE(OFFSET(INDEX('Points team et quota finales'!$C$5:$C$34,W93),0,0,COUNTIF($W$6:$W$105,W93))),0) -> 24.75862069
A94: 2 | G94: 0 | H94: 2 | I94: 51 | L94: 0 | M94: 2 | N94: 51 | O94: 51 | R94: 0 | U94: 0 | V94: 0.01960784314 | W94: 2 | X94: =IF(W94<31,AVERAGE(OFFSET(INDEX('Points team et quota finales'!$C$5:$C$34,W94),0,0,COUNTIF($W$6:$W$105,W94))),0) -> 24.75862069
A95: 2 | G95: 0 | H95: 2 | I95: 51 | L95: 0 | M95: 2 | N95: 51 | O95: 51 | R95: 0 | U95: 0 | V95: 0.01960784314 | W95: 2 | X95: =IF(W95<31,AVERAGE(OFFSET(INDEX('Points team et quota finales'!$C$5:$C$34,W95),0,0,COUNTIF($W$6:$W$105,W95))),0) -> 24.75862069
A96: 2 | G96: 0 | H96: 2 | I96: 51 | L96: 0 | M96: 2 | N96: 51 | O96: 51 | R96: 0 | U96: 0 | V96: 0.01960784314 | W96: 2 | X96: =IF(W96<31,AVERAGE(OFFSET(INDEX('Points team et quota finales'!$C$5:$C$34,W96),0,0,COUNTIF($W$6:$W$105,W96))),0) -> 24.75862069
A97: 2 | G97: 0 | H97: 2 | I97: 51 | L97: 0 | M97: 2 | N97: 51 | O97: 51 | R97: 0 | U97: 0 | V97: 0.01960784314 | W97: 2 | X97: =IF(W97<31,AVERAGE(OFFSET(INDEX('Points team et quota finales'!$C$5:$C$34,W97),0,0,COUNTIF($W$6:$W$105,W97))),0) -> 24.75862069
A98: 2 | G98: 0 | H98: 2 | I98: 51 | L98: 0 | M98: 2 | N98: 51 | O98: 51 | R98: 0 | U98: 0 | V98: 0.01960784314 | W98: 2 | X98: =IF(W98<31,AVERAGE(OFFSET(INDEX('Points team et quota finales'!$C$5:$C$34,W98),0,0,COUNTIF($W$6:$W$105,W98))),0) -> 24.75862069
A99: 2 | G99: 0 | H99: 2 | I99: 51 | L99: 0 | M99: 2 | N99: 51 | O99: 51 | R99: 0 | U99: 0 | V99: 0.01960784314 | W99: 2 | X99: =IF(W99<31,AVERAGE(OFFSET(INDEX('Points team et quota finales'!$C$5:$C$34,W99),0,0,COUNTIF($W$6:$W$105,W99))),0) -> 24.75862069
A100: 2 | G100: 0 | H100: 2 | I100: 51 | L100: 0 | M100: 2 | N100: 51 | O100: 51 | R100: 0 | U100: 0 | V100: 0.01960784314 | W100: 2 | X100: =IF(W100<31,AVERAGE(OFFSET(INDEX('Points team et quota finales'!$C$5:$C$34,W100),0,0,COUNTIF($W$6:$W$105,W100))),0) -> 24.75862069
A101: 2 | G101: 0 | H101: 2 | I101: 51 | L101: 0 | M101: 2 | N101: 51 | O101: 51 | R101: 0 | U101: 0 | V101: 0.01960784314 | W101: 2 | X101: =IF(W101<31,AVERAGE(OFFSET(INDEX('Points team et quota finales'!$C$5:$C$34,W101),0,0,COUNTIF($W$6:$W$105,W101))),0) -> 24.75862069
A102: 2 | G102: 0 | H102: 2 | I102: 51 | L102: 0 | M102: 2 | N102: 51 | O102: 51 | R102: 0 | U102: 0 | V102: 0.01960784314 | W102: 2 | X102: =IF(W102<31,AVERAGE(OFFSET(INDEX('Points team et quota finales'!$C$5:$C$34,W102),0,0,COUNTIF($W$6:$W$105,W102))),0) -> 24.75862069
A103: 2 | G103: 0 | H103: 2 | I103: 51 | L103: 0 | M103: 2 | N103: 51 | O103: 51 | R103: 0 | U103: 0 | V103: 0.01960784314 | W103: 2 | X103: =IF(W103<31,AVERAGE(OFFSET(INDEX('Points team et quota finales'!$C$5:$C$34,W103),0,0,COUNTIF($W$6:$W$105,W103))),0) -> 24.75862069
A104: 2 | G104: 0 | H104: 2 | I104: 51 | L104: 0 | M104: 2 | N104: 51 | O104: 51 | R104: 0 | U104: 0 | V104: 0.01960784314 | W104: 2 | X104: =IF(W104<31,AVERAGE(OFFSET(INDEX('Points team et quota finales'!$C$5:$C$34,W104),0,0,COUNTIF($W$6:$W$105,W104))),0) -> 24.75862069
A105: 2 | G105: 0 | H105: 2 | I105: 51 | L105: 0 | M105: 2 | N105: 51 | O105: 51 | R105: 0 | U105: 0 | V105: 0.01960784314 | W105: 2 | X105: =IF(W105<31,AVERAGE(OFFSET(INDEX('Points team et quota finales'!$C$5:$C$34,W105),0,0,COUNTIF($W$6:$W$105,W105))),0) -> 24.75862069
E108: Top = | F108: 26 | J108: Top = | K108: 33 | P108: Top = | Q108: 35 | S108: Top =
B109: =CONCATENATE("Jury President: ",General!$B$6) -> Jury President: Lieven Vlassenroot
B111: Appeal until :

Sheet BF
A2: =CONCATENATE(General!$B$5," - RESULTS B Female") -> Youth Lead Championship 09-03-2013 - RESULTS B Female
A5: RANK | B5: Nr | C5: Name | D5: Team | E5: Route 1 | I5: Ranking Points Route 1 | J5: Route 2 | N5: Ranking Points Route 2 | O5: Root R1 x R2 | P5: Final | S5: Super Final | V5: base pour calcul rang | W5: RANK | X5: Team points
A6: =RANK(V6,$V$6:$V$105) -> 1 | B6: BF03 | C6: CUYPERS Celine | D6: KLI | E6: TOP | G6: =IF(E6="TOP",$F$108,IF(F6="-",E6-0.01,IF(F6="+",E6+0.01,E6))) -> 29 | H6: =RANK(G6,$G$6:$G$105) -> 1 | I6: =IF(COUNTIF($H$6:$H$105,H6)=1,H6,(H6*2+COUNTIF($H$6:$H$105,H6)-1)/2) -> 1.5 | J6: TOP | L6: =IF(J6="TOP",$K$108,IF(K6="-",J6-0.01,IF(K6="+",J6+0.01,J6))) -> 25 | M6: =RANK(L6,$L$6:$L$105) -> 1 | N6: =IF(COUNTIF($M$6:$M$105,M6)=1,M6,(M6*2+COUNTIF($M$6:$M$105,M6)-1)/2) -> 2 | O6: =SQRT(I6*N6) -> 1.732050808 | P6: 34 | Q6: + | R6: =IF(P6="TOP",$Q$108,IF(Q6="-",P6-0.01,IF(Q6="+",P6+0.01,P6))) -> 34.01 | U6: =IF($S6="TOP",$T$108,IF($T6="-",$S6-0.01,IF($T6="+",$S6+0.01,$S6))) -> 0 | V6: =IF(U6<>0,U6*1000+R6*100+1/O6,IF(R6<>0,R6*100+1/O6,1/O6)) -> 3401.57735 | W6: =A6 -> 1 | X6: =IF(W6<31,AVERAGE(OFFSET(INDEX('Points team et quota finales'!$C$5:$C$34,W6),0,0,COUNTIF($W$6:$W$105,W6))),0) -> 100
A7: =RANK(V7,$V$6:$V$105) -> 2 | B7: BF02 | C7: GILLART Maëlys | D7: STC | E7: TOP | G7: 29 | H7: 1 | I7: 1.5 | J7: TOP | L7: 25 | M7: 1 | N7: 2 | O7: 1.732050808 | P7: 29 | R7: 29 | U7: 0 | V7: 2900.57735 | W7: 2 | X7: =IF(W7<31,AVERAGE(OFFSET(INDEX('Points team et quota finales'!$C$5:$C$34,W7),0,0,COUNTIF($W$6:$W$105,W7))),0) -> 80
A8: 3 | B8: BF01 | C8: DOUMONT Héloïse | D8: ARE | E8: 27 | F8: + | G8: 27.01 | H8: 3 | I8: 3 | J8: TOP | L8: 25 | M8: 1 | N8: 2 | O8: 2.449489743 | P8: 23 | Q8: + | R8: 23.01 | U8: 0 | V8: 2301.408248 | W8: 3 | X8: =IF(W8<31,AVERAGE(OFFSET(INDEX('Points team et quota finales'!$C$5:$C$34,W8),0,0,COUNTIF($W$6:$W$105,W8))),0) -> 65
A9: 4 | B9: BF05 | C9: CLAES Elfe | D9: KLI | E9: 21 | G9: 21 | H9: 5 | I9: 5 | J9: 18 | L9: 18 | M9: 4 | N9: 4 | O9: 4.472135955 | P9: 16 | Q9: + | R9: 16.01 | U9: 0 | V9: 1601.223607 | W9: 4 | X9: =IF(W9<31,AVERAGE(OFFSET(INDEX('Points team et quota finales'!$C$5:$C$34,W9),0,0,COUNTIF($W$6:$W$105,W9))),0) -> 55
A10: 5 | B10: BF06 | C10: LIPPERT Adèle | D10: ESC | E10: 22 | F10: + | G10: 22.01 | H10: 4 | I10: 4 | J10: 16 | L10: 16 | M10: 5 | N10: 5.5 | O10: 4.69041576 | R10: 0 | U10: 0 | V10: 0.2132007164 | W10: 5 | X10: =IF(W10<31,AVERAGE(OFFSET(INDEX('Points team et quota finales'!$C$5:$C$34,W10),0,0,COUNTIF($W$6:$W$105,W10))),0) -> 51
A11: 6 | B11: BF04 | C11: DOSSOGNE Agathe | D11: CC | E11: 20 | G11: 20 | H11: 6 | I11: 6 | J11: 16 | L11: 16 | M11: 5 | N11: 5.5 | O11: 5.744562647 | R11: 0 | U11: 0 | V11: 0.174077656 | W11: 6 | X11: =IF(W11<31,AVERAGE(OFFSET(INDEX('Points team et quota finales'!$C$5:$C$34,W11),0,0,COUNTIF($W$6:$W$105,W11))),0) -> 47
A12: 7 | G12: =IF(E12="TOP",$F$108,IF(F12="-",E12-0.01,IF(F12="+",E12+0.01,E12))) -> 0 | H12: =RANK(G12,$G$6:$G$105) -> 7 | I12: =IF(COUNTIF($H$6:$H$105,H12)=1,H12,(H12*2+COUNTIF($H$6:$H$105,H12)-1)/2) -> 53.5 | L12: =IF(J12="TOP",$K$108,IF(K12="-",J12-0.01,IF(K12="+",J12+0.01,J12))) -> 0 | M12: =RANK(L12,$L$6:$L$105) -> 7 | N12: =IF(COUNTIF($M$6:$M$105,M12)=1,M12,(M12*2+COUNTIF($M$6:$M$105,M12)-1)/2) -> 53.5 | O12: =SQRT(I12*N12) -> 53.5 | R12: =IF(P12="TOP",$Q$108,IF(Q12="-",P12-0.01,IF(Q12="+",P12+0.01,P12))) -> 0 | U12: =IF($S12="TOP",$T$108,IF($T12="-",$S12-0.01,IF($T12="+",$S12+0.01,$S12))) -> 0 | V12: =IF(U12<>0,U12*1000+R12*100+1/O12,IF(R12<>0,R12*100+1/O12,1/O12)) -> 0.01869158879 | W12: 7 | X12: =IF(W12<31,AVERAGE(OFFSET(INDEX('Points team et quota finales'!$C$5:$C$34,W12),0,0,COUNTIF($W$6:$W$105,W12))),0) -> 17.5
A13: 7 | G13: 0 | H13: 7 | I13: 53.5 | L13: 0 | M13: 7 | N13: 53.5 | O13: 53.5 | R13: 0 | U13: 0 | V13: 0.01869158879 | W13: 7 | X13: =IF(W13<31,AVERAGE(OFFSET(INDEX('Points team et quota finales'!$C$5:$C$34,W13),0,0,COUNTIF($W$6:$W$105,W13))),0) -> 17.5
A14: 7 | G14: 0 | H14: 7 | I14: 53.5 | L14: 0 | M14: 7 | N14: 53.5 | O14: 53.5 | R14: 0 | U14: 0 | V14: 0.01869158879 | W14: 7 | X14: =IF(W14<31,AVERAGE(OFFSET(INDEX('Points team et quota finales'!$C$5:$C$34,W14),0,0,COUNTIF($W$6:$W$105,W14))),0) -> 17.5
A15: 7 | G15: 0 | H15: 7 | I15: 53.5 | L15: 0 | M15: 7 | N15: 53.5 | O15: 53.5 | R15: 0 | U15: 0 | V15: 0.01869158879 | W15: 7 | X15: =IF(W15<31,AVERAGE(OFFSET(INDEX('Points team et quota finales'!$C$5:$C$34,W15),0,0,COUNTIF($W$6:$W$105,W15))),0) -> 17.5
A16: 7 | G16: 0 | H16: 7 | I16: 53.5 | L16: 0 | M16: 7 | N16: 53.5 | O16: 53.5 | R16: 0 | U16: 0 | V16: 0.01869158879 | W16: 7 | X16: =IF(W16<31,AVERAGE(OFFSET(INDEX('Points team et quota finales'!$C$5:$C$34,W16),0,0,COUNTIF($W$6:$W$105,W16))),0) -> 17.5
A17: 7 | G17: 0 | H17: 7 | I17: 53.5 | L17: 0 | M17: 7 | N17: 53.5 | O17: 53.5 | R17: 0 | U17: 0 | V17: 0.01869158879 | W17: 7 | X17: =IF(W17<31,AVERAGE(OFFSET(INDEX('Points team et quota finales'!$C$5:$C$34,W17),0,0,COUNTIF($W$6:$W$105,W17))),0) -> 17.5
A18: 7 | G18: 0 | H18: 7 | I18: 53.5 | L18: 0 | M18: 7 | N18: 53.5 | O18: 53.5 | R18: 0 | U18: 0 | V18: 0.01869158879 | W18: 7 | X18: =IF(W18<31,AVERAGE(OFFSET(INDEX('Points team et quota finales'!$C$5:$C$34,W18),0,0,COUNTIF($W$6:$W$105,W18))),0) -> 17.5
A19: 7 | G19: 0 | H19: 7 | I19: 53.5 | L19: 0 | M19: 7 | N19: 53.5 | O19: 53.5 | R19: 0 | U19: 0 | V19: 0.01869158879 | W19: 7 | X19: =IF(W19<31,AVERAGE(OFFSET(INDEX('Points team et quota finales'!$C$5:$C$34,W19),0,0,COUNTIF($W$6:$W$105,W19))),0) -> 17.5
A20: 7 | G20: 0 | H20: 7 | I20: 53.5 | L20: 0 | M20: 7 | N20: 53.5 | O20: 53.5 | R20: 0 | U20: 0 | V20: 0.01869158879 | W20: 7 | X20: =IF(W20<31,AVERAGE(OFFSET(INDEX('Points team et quota finales'!$C$5:$C$34,W20),0,0,COUNTIF($W$6:$W$105,W20))),0) -> 17.5
A21: 7 | G21: 0 | H21: 7 | I21: 53.5 | L21: 0 | M21: 7 | N21: 53.5 | O21: 53.5 | R21: 0 | U21: 0 | V21: 0.01869158879 | W21: 7 | X21: =IF(W21<31,AVERAGE(OFFSET(INDEX('Points team et quota finales'!$C$5:$C$34,W21),0,0,COUNTIF($W$6:$W$105,W21))),0) -> 17.5
A22: 7 | G22: 0 | H22: 7 | I22: 53.5 | L22: 0 | M22: 7 | N22: 53.5 | O22: 53.5 | R22: 0 | U22: 0 | V22: 0.01869158879 | W22: 7 | X22: =IF(W22<31,AVERAGE(OFFSET(INDEX('Points team et quota finales'!$C$5:$C$34,W22),0,0,COUNTIF($W$6:$W$105,W22))),0) -> 17.5
A23: 7 | G23: 0 | H23: 7 | I23: 53.5 | L23: 0 | M23: 7 | N23: 53.5 | O23: 53.5 | R23: 0 | U23: 0 | V23: 0.01869158879 | W23: 7 | X23: =IF(W23<31,AVERAGE(OFFSET(INDEX('Points team et quota finales'!$C$5:$C$34,W23),0,0,COUNTIF($W$6:$W$105,W23))),0) -> 17.5
A24: 7 | G24: 0 | H24: 7 | I24: 53.5 | L24: 0 | M24: 7 | N24: 53.5 | O24: 53.5 | R24: 0 | U24: 0 | V24: 0.01869158879 | W24: 7 | X24: =IF(W24<31,AVERAGE(OFFSET(INDEX('Points team et quota finales'!$C$5:$C$34,W24),0,0,COUNTIF($W$6:$W$105,W24))),0) -> 17.5
A25: 7 | G25: 0 | H25: 7 | I25: 53.5 | L25: 0 | M25: 7 | N25: 53.5 | O25: 53.5 | R25: 0 | U25: 0 | V25: 0.01869158879 | W25: 7 | X25: =IF(W25<31,AVERAGE(OFFSET(INDEX('Points team et quota finales'!$C$5:$C$34,W25),0,0,COUNTIF($W$6:$W$105,W25))),0) -> 17.5
A26: 7 | G26: 0 | H26: 7 | I26: 53.5 | L26: 0 | M26: 7 | N26: 53.5 | O26: 53.5 | R26: 0 | U26: 0 | V26: 0.01869158879 | W26: 7 | X26: =IF(W26<31,AVERAGE(OFFSET(INDEX('Points team et quota finales'!$C$5:$C$34,W26),0,0,COUNTIF($W$6:$W$105,W26))),0) -> 17.5
A27: 7 | G27: 0 | H27: 7 | I27: 53.5 | L27: 0 | M27: 7 | N27: 53.5 | O27: 53.5 | R27: 0 | U27: 0 | V27: 0.01869158879 | W27: 7 | X27: =IF(W27<31,AVERAGE(OFFSET(INDEX('Points team et quota finales'!$C$5:$C$34,W27),0,0,COUNTIF($W$6:$W$105,W27))),0) -> 17.5
A28: 7 | G28: 0 | H28: 7 | I28: 53.5 | L28: 0 | M28: 7 | N28: 53.5 | O28: 53.5 | R28: 0 | U28: 0 | V28: 0.01869158879 | W28: 7 | X28: =IF(W28<31,AVERAGE(OFFSET(INDEX('Points team et quota finales'!$C$5:$C$34,W28),0,0,COUNTIF($W$6:$W$105,W28))),0) -> 17.5
A29: 7 | G29: 0 | H29: 7 | I29: 53.5 | L29: 0 | M29: 7 | N29: 53.5 | O29: 53.5 | R29: 0 | U29: 0 | V29: 0.01869158879 | W29: 7 | X29: =IF(W29<31,AVERAGE(OFFSET(INDEX('Points team et quota finales'!$C$5:$C$34,W29),0,0,COUNTIF($W$6:$W$105,W29))),0) -> 17.5
A30: 7 | G30: 0 | H30: 7 | I30: 53.5 | L30: 0 | M30: 7 | N30: 53.5 | O30: 53.5 | R30: 0 | U30: 0 | V30: 0.01869158879 | W30: 7 | X30: =IF(W30<31,AVERAGE(OFFSET(INDEX('Points team et quota finales'!$C$5:$C$34,W30),0,0,COUNTIF($W$6:$W$105,W30))),0) -> 17.5
A31: 7 | G31: 0 | H31: 7 | I31: 53.5 | L31: 0 | M31: 7 | N31: 53.5 | O31: 53.5 | R31: 0 | U31: 0 | V31: 0.01869158879 | W31: 7 | X31: =IF(W31<31,AVERAGE(OFFSET(INDEX('Points team et quota finales'!$C$5:$C$34,W31),0,0,COUNTIF($W$6:$W$105,W31))),0) -> 17.5
A32: 7 | G32: 0 | H32: 7 | I32: 53.5 | L32: 0 | M32: 7 | N32: 53.5 | O32: 53.5 | R32: 0 | U32: 0 | V32: 0.01869158879 | W32: 7 | X32: =IF(W32<31,AVERAGE(OFFSET(INDEX('Points team et quota finales'!$C$5:$C$34,W32),0,0,COUNTIF($W$6:$W$105,W32))),0) -> 17.5
A33: 7 | G33: 0 | H33: 7 | I33: 53.5 | L33: 0 | M33: 7 | N33: 53.5 | O33: 53.5 | R33: 0 | U33: 0 | V33: 0.01869158879 | W33: 7 | X33: =IF(W33<31,AVERAGE(OFFSET(INDEX('Points team et quota finales'!$C$5:$C$34,W33),0,0,COUNTIF($W$6:$W$105,W33))),0) -> 17.5
A34: 7 | G34: 0 | H34: 7 | I34: 53.5 | L34: 0 | M34: 7 | N34: 53.5 | O34: 53.5 | R34: 0 | U34: 0 | V34: 0.01869158879 | W34: 7 | X34: =IF(W34<31,AVERAGE(OFFSET(INDEX('Points team et quota finales'!$C$5:$C$34,W34),0,0,COUNTIF($W$6:$W$105,W34))),0) -> 17.5
A35: 7 | G35: 0 | H35: 7 | I35: 53.5 | L35: 0 | M35: 7 | N35: 53.5 | O35: 53.5 | R35: 0 | U35: 0 | V35: 0.01869158879 | W35: 7 | X35: =IF(W35<31,AVERAGE(OFFSET(INDEX('Points team et quota finales'!$C$5:$C$34,W35),0,0,COUNTIF($W$6:$W$105,W35))),0) -> 17.5
A36: 7 | G36: 0 | H36: 7 | I36: 53.5 | L36: 0 | M36: 7 | N36: 53.5 | O36: 53.5 | R36: 0 | U36: 0 | V36: 0.01869158879 | W36: 7 | X36: =IF(W36<31,AVERAGE(OFFSET(INDEX('Points team et quota finales'!$C$5:$C$34,W36),0,0,COUNTIF($W$6:$W$105,W36))),0) -> 17.5
A37: 7 | G37: 0 | H37: 7 | I37: 53.5 | L37: 0 | M37: 7 | N37: 53.5 | O37: 53.5 | R37: 0 | U37: 0 | V37: 0.01869158879 | W37: 7 | X37: =IF(W37<31,AVERAGE(OFFSET(INDEX('Points team et quota finales'!$C$5:$C$34,W37),0,0,COUNTIF($W$6:$W$105,W37))),0) -> 17.5
A38: 7 | G38: 0 | H38: 7 | I38: 53.5 | L38: 0 | M38: 7 | N38: 53.5 | O38: 53.5 | R38: 0 | U38: 0 | V38: 0.01869158879 | W38: 7 | X38: =IF(W38<31,AVERAGE(OFFSET(INDEX('Points team et quota finales'!$C$5:$C$34,W38),0,0,COUNTIF($W$6:$W$105,W38))),0) -> 17.5
A39: 7 | G39: 0 | H39: 7 | I39: 53.5 | L39: 0 | M39: 7 | N39: 53.5 | O39: 53.5 | R39: 0 | U39: 0 | V39: 0.01869158879 | W39: 7 | X39: =IF(W39<31,AVERAGE(OFFSET(INDEX('Points team et quota finales'!$C$5:$C$34,W39),0,0,COUNTIF($W$6:$W$105,W39))),0) -> 17.5
A40: 7 | G40: 0 | H40: 7 | I40: 53.5 | L40: 0 | M40: 7 | N40: 53.5 | O40: 53.5 | R40: 0 | U40: 0 | V40: 0.01869158879 | W40: 7 | X40: =IF(W40<31,AVERAGE(OFFSET(INDEX('Points team et quota finales'!$C$5:$C$34,W40),0,0,COUNTIF($W$6:$W$105,W40))),0) -> 17.5
A41: 7 | G41: 0 | H41: 7 | I41: 53.5 | L41: 0 | M41: 7 | N41: 53.5 | O41: 53.5 | R41: 0 | U41: 0 | V41: 0.01869158879 | W41: 7 | X41: =IF(W41<31,AVERAGE(OFFSET(INDEX('Points team et quota finales'!$C$5:$C$34,W41),0,0,COUNTIF($W$6:$W$105,W41))),0) -> 17.5
A42: 7 | G42: 0 | H42: 7 | I42: 53.5 | L42: 0 | M42: 7 | N42: 53.5 | O42: 53.5 | R42: 0 | U42: 0 | V42: 0.01869158879 | W42: 7 | X42: =IF(W42<31,AVERAGE(OFFSET(INDEX('Points team et quota finales'!$C$5:$C$34,W42),0,0,COUNTIF($W$6:$W$105,W42))),0) -> 17.5
A43: 7 | G43: 0 | H43: 7 | I43: 53.5 | L43: 0 | M43: 7 | N43: 53.5 | O43: 53.5 | R43: 0 | U43: 0 | V43: 0.01869158879 | W43: 7 | X43: =IF(W43<31,AVERAGE(OFFSET(INDEX('Points team et quota finales'!$C$5:$C$34,W43),0,0,COUNTIF($W$6:$W$105,W43))),0) -> 17.5
A44: 7 | G44: 0 | H44: 7 | I44: 53.5 | L44: 0 | M44: 7 | N44: 53.5 | O44: 53.5 | R44: 0 | U44: 0 | V44: 0.01869158879 | W44: 7 | X44: =IF(W44<31,AVERAGE(OFFSET(INDEX('Points team et quota finales'!$C$5:$C$34,W44),0,0,COUNTIF($W$6:$W$105,W44))),0) -> 17.5
A45: 7 | G45: 0 | H45: 7 | I45: 53.5 | L45: 0 | M45: 7 | N45: 53.5 | O45: 53.5 | R45: 0 | U45: 0 | V45: 0.01869158879 | W45: 7 | X45: =IF(W45<31,AVERAGE(OFFSET(INDEX('Points team et quota finales'!$C$5:$C$34,W45),0,0,COUNTIF($W$6:$W$105,W45))),0) -> 17.5
A46: 7 | G46: 0 | H46: 7 | I46: 53.5 | L46: 0 | M46: 7 | N46: 53.5 | O46: 53.5 | R46: 0 | U46: 0 | V46: 0.01869158879 | W46: 7 | X46: =IF(W46<31,AVERAGE(OFFSET(INDEX('Points team et quota finales'!$C$5:$C$34,W46),0,0,COUNTIF($W$6:$W$105,W46))),0) -> 17.5
A47: 7 | G47: 0 | H47: 7 | I47: 53.5 | L47: 0 | M47: 7 | N47: 53.5 | O47: 53.5 | R47: 0 | U47: 0 | V47: 0.01869158879 | W47: 7 | X47: =IF(W47<31,AVERAGE(OFFSET(INDEX('Points team et quota finales'!$C$5:$C$34,W47),0,0,COUNTIF($W$6:$W$105,W47))),0) -> 17.5
A48: 7 | G48: 0 | H48: 7 | I48: 53.5 | L48: 0 | M48: 7 | N48: 53.5 | O48: 53.5 | R48: 0 | U48: 0 | V48: 0.01869158879 | W48: 7 | X48: =IF(W48<31,AVERAGE(OFFSET(INDEX('Points team et quota finales'!$C$5:$C$34,W48),0,0,COUNTIF($W$6:$W$105,W48))),0) -> 17.5
A49: 7 | G49: 0 | H49: 7 | I49: 53.5 | L49: 0 | M49: 7 | N49: 53.5 | O49: 53.5 | R49: 0 | U49: 0 | V49: 0.01869158879 | W49: 7 | X49: =IF(W49<31,AVERAGE(OFFSET(INDEX('Points team et quota finales'!$C$5:$C$34,W49),0,0,COUNTIF($W$6:$W$105,W49))),0) -> 17.5
A50: 7 | G50: 0 | H50: 7 | I50: 53.5 | L50: 0 | M50: 7 | N50: 53.5 | O50: 53.5 | R50: 0 | U50: 0 | V50: 0.01869158879 | W50: 7 | X50: =IF(W50<31,AVERAGE(OFFSET(INDEX('Points team et quota finales'!$C$5:$C$34,W50),0,0,COUNTIF($W$6:$W$105,W50))),0) -> 17.5
A51: 7 | G51: 0 | H51: 7 | I51: 53.5 | L51: 0 | M51: 7 | N51: 53.5 | O51: 53.5 | R51: 0 | U51: 0 | V51: 0.01869158879 | W51: 7 | X51: =IF(W51<31,AVERAGE(OFFSET(INDEX('Points team et quota finales'!$C$5:$C$34,W51),0,0,COUNTIF($W$6:$W$105,W51))),0) -> 17.5
A52: 7 | G52: 0 | H52: 7 | I52: 53.5 | L52: 0 | M52: 7 | N52: 53.5 | O52: 53.5 | R52: 0 | U52: 0 | V52: 0.01869158879 | W52: 7 | X52: =IF(W52<31,AVERAGE(OFFSET(INDEX('Points team et quota finales'!$C$5:$C$34,W52),0,0,COUNTIF($W$6:$W$105,W52))),0) -> 17.5
A53: 7 | G53: 0 | H53: 7 | I53: 53.5 | L53: 0 | M53: 7 | N53: 53.5 | O53: 53.5 | R53: 0 | U53: 0 | V53: 0.01869158879 | W53: 7 | X53: =IF(W53<31,AVERAGE(OFFSET(INDEX('Points team et quota finales'!$C$5:$C$34,W53),0,0,COUNTIF($W$6:$W$105,W53))),0) -> 17.5
A54: 7 | G54: 0 | H54: 7 | I54: 53.5 | L54: 0 | M54: 7 | N54: 53.5 | O54: 53.5 | R54: 0 | U54: 0 | V54: 0.01869158879 | W54: 7 | X54: =IF(W54<31,AVERAGE(OFFSET(INDEX('Points team et quota finales'!$C$5:$C$34,W54),0,0,COUNTIF($W$6:$W$105,W54))),0) -> 17.5
A55: 7 | G55: 0 | H55: 7 | I55: 53.5 | L55: 0 | M55: 7 | N55: 53.5 | O55: 53.5 | R55: 0 | U55: 0 | V55: 0.01869158879 | W55: 7 | X55: =IF(W55<31,AVERAGE(OFFSET(INDEX('Points team et quota finales'!$C$5:$C$34,W55),0,0,COUNTIF($W$6:$W$105,W55))),0) -> 17.5
A56: 7 | G56: 0 | H56: 7 | I56: 53.5 | L56: 0 | M56: 7 | N56: 53.5 | O56: 53.5 | R56: 0 | U56: 0 | V56: 0.01869158879 | W56: 7 | X56: =IF(W56<31,AVERAGE(OFFSET(INDEX('Points team et quota finales'!$C$5:$C$34,W56),0,0,COUNTIF($W$6:$W$105,W56))),0) -> 17.5
A57: 7 | G57: 0 | H57: 7 | I57: 53.5 | L57: 0 | M57: 7 | N57: 53.5 | O57: 53.5 | R57: 0 | U57: 0 | V57: 0.01869158879 | W57: 7 | X57: =IF(W57<31,AVERAGE(OFFSET(INDEX('Points team et quota finales'!$C$5:$C$34,W57),0,0,COUNTIF($W$6:$W$105,W57))),0) -> 17.5
A58: 7 | G58: 0 | H58: 7 | I58: 53.5 | L58: 0 | M58: 7 | N58: 53.5 | O58: 53.5 | R58: 0 | U58: 0 | V58: 0.01869158879 | W58: 7 | X58: =IF(W58<31,AVERAGE(OFFSET(INDEX('Points team et quota finales'!$C$5:$C$34,W58),0,0,COUNTIF($W$6:$W$105,W58))),0) -> 17.5
A59: 7 | G59: 0 | H59: 7 | I59: 53.5 | L59: 0 | M59: 7 | N59: 53.5 | O59: 53.5 | R59: 0 | U59: 0 | V59: 0.01869158879 | W59: 7 | X59: =IF(W59<31,AVERAGE(OFFSET(INDEX('Points team et quota finales'!$C$5:$C$34,W59),0,0,COUNTIF($W$6:$W$105,W59))),0) -> 17.5
A60: 7 | G60: 0 | H60: 7 | I60: 53.5 | L60: 0 | M60: 7 | N60: 53.5 | O60: 53.5 | R60: 0 | U60: 0 | V60: 0.01869158879 | W60: 7 | X60: =IF(W60<31,AVERAGE(OFFSET(INDEX('Points team et quota finales'!$C$5:$C$34,W60),0,0,COUNTIF($W$6:$W$105,W60))),0) -> 17.5
A61: 7 | G61: 0 | H61: 7 | I61: 53.5 | L61: 0 | M61: 7 | N61: 53.5 | O61: 53.5 | R61: 0 | U61: 0 | V61: 0.01869158879 | W61: 7 | X61: =IF(W61<31,AVERAGE(OFFSET(INDEX('Points team et quota finales'!$C$5:$C$34,W61),0,0,COUNTIF($W$6:$W$105,W61))),0) -> 17.5
A62: 7 | G62: 0 | H62: 7 | I62: 53.5 | L62: 0 | M62: 7 | N62: 53.5 | O62: 53.5 | R62: 0 | U62: 0 | V62: 0.01869158879 | W62: 7 | X62: =IF(W62<31,AVERAGE(OFFSET(INDEX('Points team et quota finales'!$C$5:$C$34,W62),0,0,COUNTIF($W$6:$W$105,W62))),0) -> 17.5
A63: 7 | G63: 0 | H63: 7 | I63: 53.5 | L63: 0 | M63: 7 | N63: 53.5 | O63: 53.5 | R63: 0 | U63: 0 | V63: 0.01869158879 | W63: 7 | X63: =IF(W63<31,AVERAGE(OFFSET(INDEX('Points team et quota finales'!$C$5:$C$34,W63),0,0,COUNTIF($W$6:$W$105,W63))),0) -> 17.5
A64: 7 | G64: 0 | H64: 7 | I64: 53.5 | L64: 0 | M64: 7 | N64: 53.5 | O64: 53.5 | R64: 0 | U64: 0 | V64: 0.01869158879 | W64: 7 | X64: =IF(W64<31,AVERAGE(OFFSET(INDEX('Points team et quota finales'!$C$5:$C$34,W64),0,0,COUNTIF($W$6:$W$105,W64))),0) -> 17.5
A65: 7 | G65: 0 | H65: 7 | I65: 53.5 | L65: 0 | M65: 7 | N65: 53.5 | O65: 53.5 | R65: 0 | U65: 0 | V65: 0.01869158879 | W65: 7 | X65: =IF(W65<31,AVERAGE(OFFSET(INDEX('Points team et quota finales'!$C$5:$C$34,W65),0,0,COUNTIF($W$6:$W$105,W65))),0) -> 17.5
A66: 7 | G66: 0 | H66: 7 | I66: 53.5 | L66: 0 | M66: 7 | N66: 53.5 | O66: 53.5 | R66: 0 | U66: 0 | V66: 0.01869158879 | W66: 7 | X66: =IF(W66<31,AVERAGE(OFFSET(INDEX('Points team et quota finales'!$C$5:$C$34,W66),0,0,COUNTIF($W$6:$W$105,W66))),0) -> 17.5
A67: 7 | G67: 0 | H67: 7 | I67: 53.5 | L67: 0 | M67: 7 | N67: 53.5 | O67: 53.5 | R67: 0 | U67: 0 | V67: 0.01869158879 | W67: 7 | X67: =IF(W67<31,AVERAGE(OFFSET(INDEX('Points team et quota finales'!$C$5:$C$34,W67),0,0,COUNTIF($W$6:$W$105,W67))),0) -> 17.5
A68: 7 | G68: 0 | H68: 7 | I68: 53.5 | L68: 0 | M68: 7 | N68: 53.5 | O68: 53.5 | R68: 0 | U68: 0 | V68: 0.01869158879 | W68: 7 | X68: =IF(W68<31,AVERAGE(OFFSET(INDEX('Points team et quota finales'!$C$5:$C$34,W68),0,0,COUNTIF($W$6:$W$105,W68))),0) -> 17.5
A69: 7 | G69: 0 | H69: 7 | I69: 53.5 | L69: 0 | M69: 7 | N69: 53.5 | O69: 53.5 | R69: 0 | U69: 0 | V69: 0.01869158879 | W69: 7 | X69: =IF(W69<31,AVERAGE(OFFSET(INDEX('Points team et quota finales'!$C$5:$C$34,W69),0,0,COUNTIF($W$6:$W$105,W69))),0) -> 17.5
A70: 7 | G70: =IF(E70="TOP",$F$108,IF(F70="-",E70-0.01,IF(F70="+",E70+0.01,E70))) -> 0 | H70: =RANK(G70,$G$6:$G$105) -> 7 | I70: =IF(COUNTIF($H$6:$H$105,H70)=1,H70,(H70*2+COUNTIF($H$6:$H$105,H70)-1)/2) -> 53.5 | L70: =IF(J70="TOP",$K$108,IF(K70="-",J70-0.01,IF(K70="+",J70+0.01,J70))) -> 0 | M70: =RANK(L70,$L$6:$L$105) -> 7 | N70: =IF(COUNTIF($M$6:$M$105,M70)=1,M70,(M70*2+COUNTIF($M$6:$M$105,M70)-1)/2) -> 53.5 | O70: =SQRT(I70*N70) -> 53.5 | R70: =IF(P70="TOP",$Q$108,IF(Q70="-",P70-0.01,IF(Q70="+",P70+0.01,P70))) -> 0 | U70: =IF($S70="TOP",$T$108,IF($T70="-",$S70-0.01,IF($T70="+",$S70+0.01,$S70))) -> 0 | V70: =IF(U70<>0,U70*1000+R70*100+1/O70,IF(R70<>0,R70*100+1/O70,1/O70)) -> 0.01869158879 | W70: =A70 -> 7 | X70: =IF(W70<31,AVERAGE(OFFSET(INDEX('Points team et quota finales'!$C$5:$C$34,W70),0,0,COUNTIF($W$6:$W$105,W70))),0) -> 17.5
A71: =RANK(V71,$V$6:$V$105) -> 7 | G71: 0 | H71: 7 | I71: 53.5 | L71: 0 | M71: 7 | N71: 53.5 | O71: 53.5 | R71: 0 | U71: 0 | V71: 0.01869158879 | W71: 7 | X71: =IF(W71<31,AVERAGE(OFFSET(INDEX('Points team et quota finales'!$C$5:$C$34,W71),0,0,COUNTIF($W$6:$W$105,W71))),0) -> 17.5
A72: 7 | G72: 0 | H72: 7 | I72: 53.5 | L72: 0 | M72: 7 | N72: 53.5 | O72: 53.5 | R72: 0 | U72: 0 | V72: 0.01869158879 | W72: 7 | X72: =IF(W72<31,AVERAGE(OFFSET(INDEX('Points team et quota finales'!$C$5:$C$34,W72),0,0,COUNTIF($W$6:$W$105,W72))),0) -> 17.5
A73: 7 | G73: 0 | H73: 7 | I73: 53.5 | L73: 0 | M73: 7 | N73: 53.5 | O73: 53.5 | R73: 0 | U73: 0 | V73: 0.01869158879 | W73: 7 | X73: =IF(W73<31,AVERAGE(OFFSET(INDEX('Points team et quota finales'!$C$5:$C$34,W73),0,0,COUNTIF($W$6:$W$105,W73))),0) -> 17.5
A74: 7 | G74: 0 | H74: 7 | I74: 53.5 | L74: 0 | M74: 7 | N74: 53.5 | O74: 53.5 | R74: 0 | U74: 0 | V74: 0.01869158879 | W74: 7 | X74: =IF(W74<31,AVERAGE(OFFSET(INDEX('Points team et quota finales'!$C$5:$C$34,W74),0,0,COUNTIF($W$6:$W$105,W74))),0) -> 17.5
A75: 7 | G75: 0 | H75: 7 | I75: 53.5 | L75: 0 | M75: 7 | N75: 53.5 | O75: 53.5 | R75: 0 | U75: 0 | V75: 0.01869158879 | W75: 7 | X75: =IF(W75<31,AVERAGE(OFFSET(INDEX('Points team et quota finales'!$C$5:$C$34,W75),0,0,COUNTIF($W$6:$W$105,W75))),0) -> 17.5
A76: 7 | G76: 0 | H76: 7 | I76: 53.5 | L76: 0 | M76: 7 | N76: 53.5 | O76: 53.5 | R76: 0 | U76: 0 | V76: 0.01869158879 | W76: 7 | X76: =IF(W76<31,AVERAGE(OFFSET(INDEX('Points team et quota finales'!$C$5:$C$34,W76),0,0,COUNTIF($W$6:$W$105,W76))),0) -> 17.5
A77: 7 | G77: 0 | H77: 7 | I77: 53.5 | L77: 0 | M77: 7 | N77: 53.5 | O77: 53.5 | R77: 0 | U77: 0 | V77: 0.01869158879 | W77: 7 | X77: =IF(W77<31,AVERAGE(OFFSET(INDEX('Points team et quota finales'!$C$5:$C$34,W77),0,0,COUNTIF($W$6:$W$105,W77))),0) -> 17.5
A78: 7 | G78: 0 | H78: 7 | I78: 53.5 | L78: 0 | M78: 7 | N78: 53.5 | O78: 53.5 | R78: 0 | U78: 0 | V78: 0.01869158879 | W78: 7 | X78: =IF(W78<31,AVERAGE(OFFSET(INDEX('Points team et quota finales'!$C$5:$C$34,W78),0,0,COUNTIF($W$6:$W$105,W78))),0) -> 17.5
A79: 7 | G79: 0 | H79: 7 | I79: 53.5 | L79: 0 | M79: 7 | N79: 53.5 | O79: 53.5 | R79: 0 | U79: 0 | V79: 0.01869158879 | W79: 7 | X79: =IF(W79<31,AVERAGE(OFFSET(INDEX('Points team et quota finales'!$C$5:$C$34,W79),0,0,COUNTIF($W$6:$W$105,W79))),0) -> 17.5
A80: 7 | G80: 0 | H80: 7 | I80: 53.5 | L80: 0 | M80: 7 | N80: 53.5 | O80: 53.5 | R80: 0 | U80: 0 | V80: 0.01869158879 | W80: 7 | X80: =IF(W80<31,AVERAGE(OFFSET(INDEX('Points team et quota finales'!$C$5:$C$34,W80),0,0,COUNTIF($W$6:$W$105,W80))),0) -> 17.5
A81: 7 | G81: 0 | H81: 7 | I81: 53.5 | L81: 0 | M81: 7 | N81: 53.5 | O81: 53.5 | R81: 0 | U81: 0 | V81: 0.01869158879 | W81: 7 | X81: =IF(W81<31,AVERAGE(OFFSET(INDEX('Points team et quota finales'!$C$5:$C$34,W81),0,0,COUNTIF($W$6:$W$105,W81))),0) -> 17.5
A82: 7 | G82: 0 | H82: 7 | I82: 53.5 | L82: 0 | M82: 7 | N82: 53.5 | O82: 53.5 | R82: 0 | U82: 0 | V82: 0.01869158879 | W82: 7 | X82: =IF(W82<31,AVERAGE(OFFSET(INDEX('Points team et quota finales'!$C$5:$C$34,W82),0,0,COUNTIF($W$6:$W$105,W82))),0) -> 17.5
A83: 7 | G83: 0 | H83: 7 | I83: 53.5 | L83: 0 | M83: 7 | N83: 53.5 | O83: 53.5 | R83: 0 | U83: 0 | V83: 0.01869158879 | W83: 7 | X83: =IF(W83<31,AVERAGE(OFFSET(INDEX('Points team et quota finales'!$C$5:$C$34,W83),0,0,COUNTIF($W$6:$W$105,W83))),0) -> 17.5
A84: 7 | G84: 0 | H84: 7 | I84: 53.5 | L84: 0 | M84: 7 | N84: 53.5 | O84: 53.5 | R84: 0 | U84: 0 | V84: 0.01869158879 | W84: 7 | X84: =IF(W84<31,AVERAGE(OFFSET(INDEX('Points team et quota finales'!$C$5:$C$34,W84),0,0,COUNTIF($W$6:$W$105,W84))),0) -> 17.5
A85: 7 | G85: 0 | H85: 7 | I85: 53.5 | L85: 0 | M85: 7 | N85: 53.5 | O85: 53.5 | R85: 0 | U85: 0 | V85: 0.01869158879 | W85: 7 | X85: =IF(W85<31,AVERAGE(OFFSET(INDEX('Points team et quota finales'!$C$5:$C$34,W85),0,0,COUNTIF($W$6:$W$105,W85))),0) -> 17.5
A86: 7 | G86: 0 | H86: 7 | I86: 53.5 | L86: 0 | M86: 7 | N86: 53.5 | O86: 53.5 | R86: 0 | U86: 0 | V86: 0.01869158879 | W86: 7 | X86: =IF(W86<31,AVERAGE(OFFSET(INDEX('Points team et quota finales'!$C$5:$C$34,W86),0,0,COUNTIF($W$6:$W$105,W86))),0) -> 17.5
A87: 7 | G87: 0 | H87: 7 | I87: 53.5 | L87: 0 | M87: 7 | N87: 53.5 | O87: 53.5 | R87: 0 | U87: 0 | V87: 0.01869158879 | W87: 7 | X87: =IF(W87<31,AVERAGE(OFFSET(INDEX('Points team et quota finales'!$C$5:$C$34,W87),0,0,COUNTIF($W$6:$W$105,W87))),0) -> 17.5
A88: 7 | G88: 0 | H88: 7 | I88: 53.5 | L88: 0 | M88: 7 | N88: 53.5 | O88: 53.5 | R88: 0 | U88: 0 | V88: 0.01869158879 | W88: 7 | X88: =IF(W88<31,AVERAGE(OFFSET(INDEX('Points team et quota finales'!$C$5:$C$34,W88),0,0,COUNTIF($W$6:$W$105,W88))),0) -> 17.5
A89: 7 | G89: 0 | H89: 7 | I89: 53.5 | L89: 0 | M89: 7 | N89: 53.5 | O89: 53.5 | R89: 0 | U89: 0 | V89: 0.01869158879 | W89: 7 | X89: =IF(W89<31,AVERAGE(OFFSET(INDEX('Points team et quota finales'!$C$5:$C$34,W89),0,0,COUNTIF($W$6:$W$105,W89))),0) -> 17.5
A90: 7 | G90: 0 | H90: 7 | I90: 53.5 | L90: 0 | M90: 7 | N90: 53.5 | O90: 53.5 | R90: 0 | U90: 0 | V90: 0.01869158879 | W90: 7 | X90: =IF(W90<31,AVERAGE(OFFSET(INDEX('Points team et quota finales'!$C$5:$C$34,W90),0,0,COUNTIF($W$6:$W$105,W90))),0) -> 17.5
A91: 7 | G91: 0 | H91: 7 | I91: 53.5 | L91: 0 | M91: 7 | N91: 53.5 | O91: 53.5 | R91: 0 | U91: 0 | V91: 0.01869158879 | W91: 7 | X91: =IF(W91<31,AVERAGE(OFFSET(INDEX('Points team et quota finales'!$C$5:$C$34,W91),0,0,COUNTIF($W$6:$W$105,W91))),0) -> 17.5
A92: 7 | G92: 0 | H92: 7 | I92: 53.5 | L92: 0 | M92: 7 | N92: 53.5 | O92: 53.5 | R92: 0 | U92: 0 | V92: 0.01869158879 | W92: 7 | X92: =IF(W92<31,AVERAGE(OFFSET(INDEX('Points team et quota finales'!$C$5:$C$34,W92),0,0,COUNTIF($W$6:$W$105,W92))),0) -> 17.5
A93: 7 | G93: 0 | H93: 7 | I93: 53.5 | L93: 0 | M93: 7 | N93: 53.5 | O93: 53.5 | R93: 0 | U93: 0 | V93: 0.01869158879 | W93: 7 | X93: =IF(W93<31,AVERAGE(OFFSET(INDEX('Points team et quota finales'!$C$5:$C$34,W93),0,0,COUNTIF($W$6:$W$105,W93))),0) -> 17.5
A94: 7 | G94: 0 | H94: 7 | I94: 53.5 | L94: 0 | M94: 7 | N94: 53.5 | O94: 53.5 | R94: 0 | U94: 0 | V94: 0.01869158879 | W94: 7 | X94: =IF(W94<31,AVERAGE(OFFSET(INDEX('Points team et quota finales'!$C$5:$C$34,W94),0,0,COUNTIF($W$6:$W$105,W94))),0) -> 17.5
A95: 7 | G95: 0 | H95: 7 | I95: 53.5 | L95: 0 | M95: 7 | N95: 53.5 | O95: 53.5 | R95: 0 | U95: 0 | V95: 0.01869158879 | W95: 7 | X95: =IF(W95<31,AVERAGE(OFFSET(INDEX('Points team et quota finales'!$C$5:$C$34,W95),0,0,COUNTIF($W$6:$W$105,W95))),0) -> 17.5
A96: 7 | G96: 0 | H96: 7 | I96: 53.5 | L96: 0 | M96: 7 | N96: 53.5 | O96: 53.5 | R96: 0 | U96: 0 | V96: 0.01869158879 | W96: 7 | X96: =IF(W96<31,AVERAGE(OFFSET(INDEX('Points team et quota finales'!$C$5:$C$34,W96),0,0,COUNTIF($W$6:$W$105,W96))),0) -> 17.5
A97: 7 | G97: 0 | H97: 7 | I97: 53.5 | L97: 0 | M97: 7 | N97: 53.5 | O97: 53.5 | R97: 0 | U97: 0 | V97: 0.01869158879 | W97: 7 | X97: =IF(W97<31,AVERAGE(OFFSET(INDEX('Points team et quota finales'!$C$5:$C$34,W97),0,0,COUNTIF($W$6:$W$105,W97))),0) -> 17.5
A98: 7 | G98: 0 | H98: 7 | I98: 53.5 | L98: 0 | M98: 7 | N98: 53.5 | O98: 53.5 | R98: 0 | U98: 0 | V98: 0.01869158879 | W98: 7 | X98: =IF(W98<31,AVERAGE(OFFSET(INDEX('Points team et quota finales'!$C$5:$C$34,W98),0,0,COUNTIF($W$6:$W$105,W98))),0) -> 17.5
A99: 7 | G99: 0 | H99: 7 | I99: 53.5 | L99: 0 | M99: 7 | N99: 53.5 | O99: 53.5 | R99: 0 | U99: 0 | V99: 0.01869158879 | W99: 7 | X99: =IF(W99<31,AVERAGE(OFFSET(INDEX('Points team et quota finales'!$C$5:$C$34,W99),0,0,COUNTIF($W$6:$W$105,W99))),0) -> 17.5
A100: 7 | G100: 0 | H100: 7 | I100: 53.5 | L100: 0 | M100: 7 | N100: 53.5 | O100: 53.5 | R100: 0 | U100: 0 | V100: 0.01869158879 | W100: 7 | X100: =IF(W100<31,AVERAGE(OFFSET(INDEX('Points team et quota finales'!$C$5:$C$34,W100),0,0,COUNTIF($W$6:$W$105,W100))),0) -> 17.5
A101: 7 | G101: 0 | H101: 7 | I101: 53.5 | L101: 0 | M101: 7 | N101: 53.5 | O101: 53.5 | R101: 0 | U101: 0 | V101: 0.01869158879 | W101: 7 | X101: =IF(W101<31,AVERAGE(OFFSET(INDEX('Points team et quota finales'!$C$5:$C$34,W101),0,0,COUNTIF($W$6:$W$105,W101))),0) -> 17.5
A102: 7 | G102: 0 | H102: 7 | I102: 53.5 | L102: 0 | M102: 7 | N102: 53.5 | O102: 53.5 | R102: 0 | U102: 0 | V102: 0.01869158879 | W102: 7 | X102: =IF(W102<31,AVERAGE(OFFSET(INDEX('Points team et quota finales'!$C$5:$C$34,W102),0,0,COUNTIF($W$6:$W$105,W102))),0) -> 17.5
A103: 7 | G103: 0 | H103: 7 | I103: 53.5 | L103: 0 | M103: 7 | N103: 53.5 | O103: 53.5 | R103: 0 | U103: 0 | V103: 0.01869158879 | W103: 7 | X103: =IF(W103<31,AVERAGE(OFFSET(INDEX('Points team et quota finales'!$C$5:$C$34,W103),0,0,COUNTIF($W$6:$W$105,W103))),0) -> 17.5
A104: 7 | G104: 0 | H104: 7 | I104: 53.5 | L104: 0 | M104: 7 | N104: 53.5 | O104: 53.5 | R104: 0 | U104: 0 | V104: 0.01869158879 | W104: 7 | X104: =IF(W104<31,AVERAGE(OFFSET(INDEX('Points team et quota finales'!$C$5:$C$34,W104),0,0,COUNTIF($W$6:$W$105,W104))),0) -> 17.5
A105: 7 | G105: 0 | H105: 7 | I105: 53.5 | L105: 0 | M105: 7 | N105: 53.5 | O105: 53.5 | R105: 0 | U105: 0 | V105: 0.01869158879 | W105: 7 | X105: =IF(W105<31,AVERAGE(OFFSET(INDEX('Points team et quota finales'!$C$5:$C$34,W105),0,0,COUNTIF($W$6:$W$105,W105))),0) -> 17.5
E108: Top = | F108: 29 | J108: Top = | K108: 25 | P108: Top = | Q108: 36 | S108: Top =
B109: =CONCATENATE("Jury President: ",General!$B$6) -> Jury President: Lieven Vlassenroot
B111: Appeal until :

Sheet AF
A2: =CONCATENATE(General!$B$5," - RESULTS A Female") -> Youth Lead Championship 09-03-2013 - RESULTS A Female
A5: RANK | B5: Nr | C5: Name | D5: Team | E5: Route 1 | I5: Ranking Points Route 1 | J5: Route 2 | N5: Ranking Points Route 2 | O5: Root R1 x R2 | P5: Final | S5: Super Final | V5: base pour calcul rang | W5: RANK | X5: Team points
A6: =RANK(V6,$V$6:$V$105) -> 1 | B6: AF01 | C6: VERHOEVEN Anak | D6: KLI | E6: TOP | G6: =IF(E6="TOP",$F$108,IF(F6="-",E6-0.01,IF(F6="+",E6+0.01,E6))) -> 24 | H6: =RANK(G6,$G$6:$G$105) -> 1 | I6: =IF(COUNTIF($H$6:$H$105,H6)=1,H6,(H6*2+COUNTIF($H$6:$H$105,H6)-1)/2) -> 2 | J6: TOP | L6: =IF(J6="TOP",$K$108,IF(K6="-",J6-0.01,IF(K6="+",J6+0.01,J6))) -> 36 | M6: =RANK(L6,$L$6:$L$105) -> 1 | N6: =IF(COUNTIF($M$6:$M$105,M6)=1,M6,(M6*2+COUNTIF($M$6:$M$105,M6)-1)/2) -> 1.5 | O6: =SQRT(I6*N6) -> 1.732050808 | P6: TOP | R6: =IF(P6="TOP",$Q$108,IF(Q6="-",P6-0.01,IF(Q6="+",P6+0.01,P6))) -> 36 | U6: =IF($S6="TOP",$T$108,IF($T6="-",$S6-0.01,IF($T6="+",$S6+0.01,$S6))) -> 0 | V6: =IF(U6<>0,U6*1000+R6*100+1/O6,IF(R6<>0,R6*100+1/O6,1/O6)) -> 3600.57735 | W6: =A6 -> 1 | X6: =IF(W6<31,AVERAGE(OFFSET(INDEX('Points team et quota finales'!$C$5:$C$34,W6),0,0,COUNTIF($W$6:$W$105,W6))),0) -> 100
A7: =RANK(V7,$V$6:$V$105) -> 2 | B7: AF06 | C7: CAULIER Chloé | D7: STC | E7: TOP | G7: 24 | H7: 1 | I7: 2 | J7: TOP | L7: 36 | M7: 1 | N7: 1.5 | O7: 1.732050808 | P7: 29 | Q7: + | R7: 29.01 | U7: 0 | V7: 2901.57735 | W7: 2 | X7: =IF(W7<31,AVERAGE(OFFSET(INDEX('Points team et quota finales'!$C$5:$C$34,W7),0,0,COUNTIF($W$6:$W$105,W7))),0) -> 80
A8: 3 | B8: AF05 | C8: VERHAEREN Margot | D8: STC | E8: TOP | G8: 24 | H8: 1 | I8: 2 | J8: 23 | K8: + | L8: 23.01 | M8: 3 | N8: 3 | O8: 2.449489743 | P8: 25.5 | R8: 25.5 | U8: 0 | V8: 2550.408248 | W8: 3 | X8: =IF(W8<31,AVERAGE(OFFSET(INDEX('Points team et quota finales'!$C$5:$C$34,W8),0,0,COUNTIF($W$6:$W$105,W8))),0) -> 65
A9: 4 | B9: AF03 | C9: ELSEVIERS Julie | D9: HUN | E9: 21 | F9: + | G9: 21.01 | H9: 4 | I9: 4 | J9: 22 | K9: + | L9: 22.01 | M9: 4 | N9: 4 | O9: 4 | P9: 16 | Q9: + | R9: 16.01 | U9: 0 | V9: 1601.25 | W9: 4 | X9: =IF(W9<31,AVERAGE(OFFSET(INDEX('Points team et quota finales'!$C$5:$C$34,W9),0,0,COUNTIF($W$6:$W$105,W9))),0) -> 55
A10: 5 | B10: AF02 | C10: WAUTHIER Delphine | D10: GT | E10: 16 | G10: 16 | H10: 5 | I10: 5.5 | J10: 19 | K10: + | L10: 19.01 | M10: 5 | N10: 5 | O10: 5.244044241 | R10: 0 | U10: 0 | V10: 0.1906925178 | W10: 5 | X10: =IF(W10<31,AVERAGE(OFFSET(INDEX('Points team et quota finales'!$C$5:$C$34,W10),0,0,COUNTIF($W$6:$W$105,W10))),0) -> 51
A11: 6 | B11: AF04 | C11: DEJONG Pauline | D11: STC | E11: 16 | G11: 16 | H11: 5 | I11: 5.5 | J11: 11 | K11: + | L11: 11.01 | M11: 6 | N11: 6 | O11: 5.744562647 | R11: 0 | U11: 0 | V11: 0.174077656 | W11: 6 | X11: =IF(W11<31,AVERAGE(OFFSET(INDEX('Points team et quota finales'!$C$5:$C$34,W11),0,0,COUNTIF($W$6:$W$105,W11))),0) -> 47
A12: 7 | G12: =IF(E12="TOP",$F$108,IF(F12="-",E12-0.01,IF(F12="+",E12+0.01,E12))) -> 0 | H12: =RANK(G12,$G$6:$G$105) -> 7 | I12: =IF(COUNTIF($H$6:$H$105,H12)=1,H12,(H12*2+COUNTIF($H$6:$H$105,H12)-1)/2) -> 53.5 | L12: =IF(J12="TOP",$K$108,IF(K12="-",J12-0.01,IF(K12="+",J12+0.01,J12))) -> 0 | M12: =RANK(L12,$L$6:$L$105) -> 7 | N12: =IF(COUNTIF($M$6:$M$105,M12)=1,M12,(M12*2+COUNTIF($M$6:$M$105,M12)-1)/2) -> 53.5 | O12: =SQRT(I12*N12) -> 53.5 | R12: =IF(P12="TOP",$Q$108,IF(Q12="-",P12-0.01,IF(Q12="+",P12+0.01,P12))) -> 0 | U12: =IF($S12="TOP",$T$108,IF($T12="-",$S12-0.01,IF($T12="+",$S12+0.01,$S12))) -> 0 | V12: =IF(U12<>0,U12*1000+R12*100+1/O12,IF(R12<>0,R12*100+1/O12,1/O12)) -> 0.01869158879 | W12: 7 | X12: =IF(W12<31,AVERAGE(OFFSET(INDEX('Points team et quota finales'!$C$5:$C$34,W12),0,0,COUNTIF($W$6:$W$105,W12))),0) -> 17.5
A13: 7 | G13: 0 | H13: 7 | I13: 53.5 | L13: 0 | M13: 7 | N13: 53.5 | O13: 53.5 | R13: 0 | U13: 0 | V13: 0.01869158879 | W13: 7 | X13: =IF(W13<31,AVERAGE(OFFSET(INDEX('Points team et quota finales'!$C$5:$C$34,W13),0,0,COUNTIF($W$6:$W$105,W13))),0) -> 17.5
A14: 7 | G14: 0 | H14: 7 | I14: 53.5 | L14: 0 | M14: 7 | N14: 53.5 | O14: 53.5 | R14: 0 | U14: 0 | V14: 0.01869158879 | W14: 7 | X14: =IF(W14<31,AVERAGE(OFFSET(INDEX('Points team et quota finales'!$C$5:$C$34,W14),0,0,COUNTIF($W$6:$W$105,W14))),0) -> 17.5
A15: 7 | G15: 0 | H15: 7 | I15: 53.5 | L15: 0 | M15: 7 | N15: 53.5 | O15: 53.5 | R15: 0 | U15: 0 | V15: 0.01869158879 | W15: 7 | X15: =IF(W15<31,AVERAGE(OFFSET(INDEX('Points team et quota finales'!$C$5:$C$34,W15),0,0,COUNTIF($W$6:$W$105,W15))),0) -> 17.5
A16: 7 | G16: 0 | H16: 7 | I16: 53.5 | L16: 0 | M16: 7 | N16: 53.5 | O16: 53.5 | R16: 0 | U16: 0 | V16: 0.01869158879 | W16: 7 | X16: =IF(W16<31,AVERAGE(OFFSET(INDEX('Points team et quota finales'!$C$5:$C$34,W16),0,0,COUNTIF($W$6:$W$105,W16))),0) -> 17.5
A17: 7 | G17: 0 | H17: 7 | I17: 53.5 | L17: 0 | M17: 7 | N17: 53.5 | O17: 53.5 | R17: 0 | U17: 0 | V17: 0.01869158879 | W17: 7 | X17: =IF(W17<31,AVERAGE(OFFSET(INDEX('Points team et quota finales'!$C$5:$C$34,W17),0,0,COUNTIF($W$6:$W$105,W17))),0) -> 17.5
A18: 7 | G18: 0 | H18: 7 | I18: 53.5 | L18: 0 | M18: 7 | N18: 53.5 | O18: 53.5 | R18: 0 | U18: 0 | V18: 0.01869158879 | W18: 7 | X18: =IF(W18<31,AVERAGE(OFFSET(INDEX('Points team et quota finales'!$C$5:$C$34,W18),0,0,COUNTIF($W$6:$W$105,W18))),0) -> 17.5
A19: 7 | G19: 0 | H19: 7 | I19: 53.5 | L19: 0 | M19: 7 | N19: 53.5 | O19: 53.5 | R19: 0 | U19: 0 | V19: 0.01869158879 | W19: 7 | X19: =IF(W19<31,AVERAGE(OFFSET(INDEX('Points team et quota finales'!$C$5:$C$34,W19),0,0,COUNTIF($W$6:$W$105,W19))),0) -> 17.5
A20: 7 | G20: 0 | H20: 7 | I20: 53.5 | L20: 0 | M20: 7 | N20: 53.5 | O20: 53.5 | R20: 0 | U20: 0 | V20: 0.01869158879 | W20: 7 | X20: =IF(W20<31,AVERAGE(OFFSET(INDEX('Points team et quota finales'!$C$5:$C$34,W20),0,0,COUNTIF($W$6:$W$105,W20))),0) -> 17.5
A21: 7 | G21: 0 | H21: 7 | I21: 53.5 | L21: 0 | M21: 7 | N21: 53.5 | O21: 53.5 | R21: 0 | U21: 0 | V21: 0.01869158879 | W21: 7 | X21: =IF(W21<31,AVERAGE(OFFSET(INDEX('Points team et quota finales'!$C$5:$C$34,W21),0,0,COUNTIF($W$6:$W$105,W21))),0) -> 17.5
A22: 7 | G22: 0 | H22: 7 | I22: 53.5 | L22: 0 | M22: 7 | N22: 53.5 | O22: 53.5 | R22: 0 | U22: 0 | V22: 0.01869158879 | W22: 7 | X22: =IF(W22<31,AVERAGE(OFFSET(INDEX('Points team et quota finales'!$C$5:$C$34,W22),0,0,COUNTIF($W$6:$W$105,W22))),0) -> 17.5
A23: 7 | G23: 0 | H23: 7 | I23: 53.5 | L23: 0 | M23: 7 | N23: 53.5 | O23: 53.5 | R23: 0 | U23: 0 | V23: 0.01869158879 | W23: 7 | X23: =IF(W23<31,AVERAGE(OFFSET(INDEX('Points team et quota finales'!$C$5:$C$34,W23),0,0,COUNTIF($W$6:$W$105,W23))),0) -> 17.5
A24: 7 | G24: 0 | H24: 7 | I24: 53.5 | L24: 0 | M24: 7 | N24: 53.5 | O24: 53.5 | R24: 0 | U24: 0 | V24: 0.01869158879 | W24: 7 | X24: =IF(W24<31,AVERAGE(OFFSET(INDEX('Points team et quota finales'!$C$5:$C$34,W24),0,0,COUNTIF($W$6:$W$105,W24))),0) -> 17.5
A25: 7 | G25: 0 | H25: 7 | I25: 53.5 | L25: 0 | M25: 7 | N25: 53.5 | O25: 53.5 | R25: 0 | U25: 0 | V25: 0.01869158879 | W25: 7 | X25: =IF(W25<31,AVERAGE(OFFSET(INDEX('Points team et quota finales'!$C$5:$C$34,W25),0,0,COUNTIF($W$6:$W$105,W25))),0) -> 17.5
A26: 7 | G26: 0 | H26: 7 | I26: 53.5 | L26: 0 | M26: 7 | N26: 53.5 | O26: 53.5 | R26: 0 | U26: 0 | V26: 0.01869158879 | W26: 7 | X26: =IF(W26<31,AVERAGE(OFFSET(INDEX('Points team et quota finales'!$C$5:$C$34,W26),0,0,COUNTIF($W$6:$W$105,W26))),0) -> 17.5
A27: 7 | G27: 0 | H27: 7 | I27: 53.5 | L27: 0 | M27: 7 | N27: 53.5 | O27: 53.5 | R27: 0 | U27: 0 | V27: 0.01869158879 | W27: 7 | X27: =IF(W27<31,AVERAGE(OFFSET(INDEX('Points team et quota finales'!$C$5:$C$34,W27),0,0,COUNTIF($W$6:$W$105,W27))),0) -> 17.5
A28: 7 | G28: 0 | H28: 7 | I28: 53.5 | L28: 0 | M28: 7 | N28: 53.5 | O28: 53.5 | R28: 0 | U28: 0 | V28: 0.01869158879 | W28: 7 | X28: =IF(W28<31,AVERAGE(OFFSET(INDEX('Points team et quota finales'!$C$5:$C$34,W28),0,0,COUNTIF($W$6:$W$105,W28))),0) -> 17.5
A29: 7 | G29: 0 | H29: 7 | I29: 53.5 | L29: 0 | M29: 7 | N29: 53.5 | O29: 53.5 | R29: 0 | U29: 0 | V29: 0.01869158879 | W29: 7 | X29: =IF(W29<31,AVERAGE(OFFSET(INDEX('Points team et quota finales'!$C$5:$C$34,W29),0,0,COUNTIF($W$6:$W$105,W29))),0) -> 17.5
A30: 7 | G30: 0 | H30: 7 | I30: 53.5 | L30: 0 | M30: 7 | N30: 53.5 | O30: 53.5 | R30: 0 | U30: 0 | V30: 0.01869158879 | W30: 7 | X30: =IF(W30<31,AVERAGE(OFFSET(INDEX('Points team et quota finales'!$C$5:$C$34,W30),0,0,COUNTIF($W$6:$W$105,W30))),0) -> 17.5
A31: 7 | G31: 0 | H31: 7 | I31: 53.5 | L31: 0 | M31: 7 | N31: 53.5 | O31: 53.5 | R31: 0 | U31: 0 | V31: 0.01869158879 | W31: 7 | X31: =IF(W31<31,AVERAGE(OFFSET(INDEX('Points team et quota finales'!$C$5:$C$34,W31),0,0,COUNTIF($W$6:$W$105,W31))),0) -> 17.5
A32: 7 | G32: 0 | H32: 7 | I32: 53.5 | L32: 0 | M32: 7 | N32: 53.5 | O32: 53.5 | R32: 0 | U32: 0 | V32: 0.01869158879 | W32: 7 | X32: =IF(W32<31,AVERAGE(OFFSET(INDEX('Points team et quota finales'!$C$5:$C$34,W32),0,0,COUNTIF($W$6:$W$105,W32))),0) -> 17.5
A33: 7 | G33: 0 | H33: 7 | I33: 53.5 | L33: 0 | M33: 7 | N33: 53.5 | O33: 53.5 | R33: 0 | U33: 0 | V33: 0.01869158879 | W33: 7 | X33: =IF(W33<31,AVERAGE(OFFSET(INDEX('Points team et quota finales'!$C$5:$C$34,W33),0,0,COUNTIF($W$6:$W$105,W33))),0) -> 17.5
A34: 7 | G34: 0 | H34: 7 | I34: 53.5 | L34: 0 | M34: 7 | N34: 53.5 | O34: 53.5 | R34: 0 | U34: 0 | V34: 0.01869158879 | W34: 7 | X34: =IF(W34<31,AVERAGE(OFFSET(INDEX('Points team et quota finales'!$C$5:$C$34,W34),0,0,COUNTIF($W$6:$W$105,W34))),0) -> 17.5
A35: 7 | G35: 0 | H35: 7 | I35: 53.5 | L35: 0 | M35: 7 | N35: 53.5 | O35: 53.5 | R35: 0 | U35: 0 | V35: 0.01869158879 | W35: 7 | X35: =IF(W35<31,AVERAGE(OFFSET(INDEX('Points team et quota finales'!$C$5:$C$34,W35),0,0,COUNTIF($W$6:$W$105,W35))),0) -> 17.5
A36: 7 | G36: 0 | H36: 7 | I36: 53.5 | L36: 0 | M36: 7 | N36: 53.5 | O36: 53.5 | R36: 0 | U36: 0 | V36: 0.01869158879 | W36: 7 | X36: =IF(W36<31,AVERAGE(OFFSET(INDEX('Points team et quota finales'!$C$5:$C$34,W36),0,0,COUNTIF($W$6:$W$105,W36))),0) -> 17.5
A37: 7 | G37: 0 | H37: 7 | I37: 53.5 | L37: 0 | M37: 7 | N37: 53.5 | O37: 53.5 | R37: 0 | U37: 0 | V37: 0.01869158879 | W37: 7 | X37: =IF(W37<31,AVERAGE(OFFSET(INDEX('Points team et quota finales'!$C$5:$C$34,W37),0,0,COUNTIF($W$6:$W$105,W37))),0) -> 17.5
A38: 7 | G38: 0 | H38: 7 | I38: 53.5 | L38: 0 | M38: 7 | N38: 53.5 | O38: 53.5 | R38: 0 | U38: 0 | V38: 0.01869158879 | W38: 7 | X38: =IF(W38<31,AVERAGE(OFFSET(INDEX('Points team et quota finales'!$C$5:$C$34,W38),0,0,COUNTIF($W$6:$W$105,W38))),0) -> 17.5
A39: 7 | G39: 0 | H39: 7 | I39: 53.5 | L39: 0 | M39: 7 | N39: 53.5 | O39: 53.5 | R39: 0 | U39: 0 | V39: 0.01869158879 | W39: 7 | X39: =IF(W39<31,AVERAGE(OFFSET(INDEX('Points team et quota finales'!$C$5:$C$34,W39),0,0,COUNTIF($W$6:$W$105,W39))),0) -> 17.5
A40: 7 | G40: 0 | H40: 7 | I40: 53.5 | L40: 0 | M40: 7 | N40: 53.5 | O40: 53.5 | R40: 0 | U40: 0 | V40: 0.01869158879 | W40: 7 | X40: =IF(W40<31,AVERAGE(OFFSET(INDEX('Points team et quota finales'!$C$5:$C$34,W40),0,0,COUNTIF($W$6:$W$105,W40))),0) -> 17.5
A41: 7 | G41: 0 | H41: 7 | I41: 53.5 | L41: 0 | M41: 7 | N41: 53.5 | O41: 53.5 | R41: 0 | U41: 0 | V41: 0.01869158879 | W41: 7 | X41: =IF(W41<31,AVERAGE(OFFSET(INDEX('Points team et quota finales'!$C$5:$C$34,W41),0,0,COUNTIF($W$6:$W$105,W41))),0) -> 17.5
A42: 7 | G42: 0 | H42: 7 | I42: 53.5 | L42: 0 | M42: 7 | N42: 53.5 | O42: 53.5 | R42: 0 | U42: 0 | V42: 0.01869158879 | W42: 7 | X42: =IF(W42<31,AVERAGE(OFFSET(INDEX('Points team et quota finales'!$C$5:$C$34,W42),0,0,COUNTIF($W$6:$W$105,W42))),0) -> 17.5
A43: 7 | G43: 0 | H43: 7 | I43: 53.5 | L43: 0 | M43: 7 | N43: 53.5 | O43: 53.5 | R43: 0 | U43: 0 | V43: 0.01869158879 | W43: 7 | X43: =IF(W43<31,AVERAGE(OFFSET(INDEX('Points team et quota finales'!$C$5:$C$34,W43),0,0,COUNTIF($W$6:$W$105,W43))),0) -> 17.5
A44: 7 | G44: 0 | H44: 7 | I44: 53.5 | L44: 0 | M44: 7 | N44: 53.5 | O44: 53.5 | R44: 0 | U44: 0 | V44: 0.01869158879 | W44: 7 | X44: =IF(W44<31,AVERAGE(OFFSET(INDEX('Points team et quota finales'!$C$5:$C$34,W44),0,0,COUNTIF($W$6:$W$105,W44))),0) -> 17.5
A45: 7 | G45: 0 | H45: 7 | I45: 53.5 | L45: 0 | M45: 7 | N45: 53.5 | O45: 53.5 | R45: 0 | U45: 0 | V45: 0.01869158879 | W45: 7 | X45: =IF(W45<31,AVERAGE(OFFSET(INDEX('Points team et quota finales'!$C$5:$C$34,W45),0,0,COUNTIF($W$6:$W$105,W45))),0) -> 17.5
A46: 7 | G46: 0 | H46: 7 | I46: 53.5 | L46: 0 | M46: 7 | N46: 53.5 | O46: 53.5 | R46: 0 | U46: 0 | V46: 0.01869158879 | W46: 7 | X46: =IF(W46<31,AVERAGE(OFFSET(INDEX('Points team et quota finales'!$C$5:$C$34,W46),0,0,COUNTIF($W$6:$W$105,W46))),0) -> 17.5
A47: 7 | G47: 0 | H47: 7 | I47: 53.5 | L47: 0 | M47: 7 | N47: 53.5 | O47: 53.5 | R47: 0 | U47: 0 | V47: 0.01869158879 | W47: 7 | X47: =IF(W47<31,AVERAGE(OFFSET(INDEX('Points team et quota finales'!$C$5:$C$34,W47),0,0,COUNTIF($W$6:$W$105,W47))),0) -> 17.5
A48: 7 | G48: 0 | H48: 7 | I48: 53.5 | L48: 0 | M48: 7 | N48: 53.5 | O48: 53.5 | R48: 0 | U48: 0 | V48: 0.01869158879 | W48: 7 | X48: =IF(W48<31,AVERAGE(OFFSET(INDEX('Points team et quota finales'!$C$5:$C$34,W48),0,0,COUNTIF($W$6:$W$105,W48))),0) -> 17.5
A49: 7 | G49: 0 | H49: 7 | I49: 53.5 | L49: 0 | M49: 7 | N49: 53.5 | O49: 53.5 | R49: 0 | U49: 0 | V49: 0.01869158879 | W49: 7 | X49: =IF(W49<31,AVERAGE(OFFSET(INDEX('Points team et quota finales'!$C$5:$C$34,W49),0,0,COUNTIF($W$6:$W$105,W49))),0) -> 17.5
A50: 7 | G50: 0 | H50: 7 | I50: 53.5 | L50: 0 | M50: 7 | N50: 53.5 | O50: 53.5 | R50: 0 | U50: 0 | V50: 0.01869158879 | W50: 7 | X50: =IF(W50<31,AVERAGE(OFFSET(INDEX('Points team et quota finales'!$C$5:$C$34,W50),0,0,COUNTIF($W$6:$W$105,W50))),0) -> 17.5
A51: 7 | G51: 0 | H51: 7 | I51: 53.5 | L51: 0 | M51: 7 | N51: 53.5 | O51: 53.5 | R51: 0 | U51: 0 | V51: 0.01869158879 | W51: 7 | X51: =IF(W51<31,AVERAGE(OFFSET(INDEX('Points team et quota finales'!$C$5:$C$34,W51),0,0,COUNTIF($W$6:$W$105,W51))),0) -> 17.5
A52: 7 | G52: 0 | H52: 7 | I52: 53.5 | L52: 0 | M52: 7 | N52: 53.5 | O52: 53.5 | R52: 0 | U52: 0 | V52: 0.01869158879 | W52: 7 | X52: =IF(W52<31,AVERAGE(OFFSET(INDEX('Points team et quota finales'!$C$5:$C$34,W52),0,0,COUNTIF($W$6:$W$105,W52))),0) -> 17.5
A53: 7 | G53: 0 | H53: 7 | I53: 53.5 | L53: 0 | M53: 7 | N53: 53.5 | O53: 53.5 | R53: 0 | U53: 0 | V53: 0.01869158879 | W53: 7 | X53: =IF(W53<31,AVERAGE(OFFSET(INDEX('Points team et quota finales'!$C$5:$C$34,W53),0,0,COUNTIF($W$6:$W$105,W53))),0) -> 17.5
A54: 7 | G54: 0 | H54: 7 | I54: 53.5 | L54: 0 | M54: 7 | N54: 53.5 | O54: 53.5 | R54: 0 | U54: 0 | V54: 0.01869158879 | W54: 7 | X54: =IF(W54<31,AVERAGE(OFFSET(INDEX('Points team et quota finales'!$C$5:$C$34,W54),0,0,COUNTIF($W$6:$W$105,W54))),0) -> 17.5
A55: 7 | G55: 0 | H55: 7 | I55: 53.5 | L55: 0 | M55: 7 | N55: 53.5 | O55: 53.5 | R55: 0 | U55: 0 | V55: 0.01869158879 | W55: 7 | X55: =IF(W55<31,AVERAGE(OFFSET(INDEX('Points team et quota finales'!$C$5:$C$34,W55),0,0,COUNTIF($W$6:$W$105,W55))),0) -> 17.5
A56: 7 | G56: 0 | H56: 7 | I56: 53.5 | L56: 0 | M56: 7 | N56: 53.5 | O56: 53.5 | R56: 0 | U56: 0 | V56: 0.01869158879 | W56: 7 | X56: =IF(W56<31,AVERAGE(OFFSET(INDEX('Points team et quota finales'!$C$5:$C$34,W56),0,0,COUNTIF($W$6:$W$105,W56))),0) -> 17.5
A57: 7 | G57: 0 | H57: 7 | I57: 53.5 | L57: 0 | M57: 7 | N57: 53.5 | O57: 53.5 | R57: 0 | U57: 0 | V57: 0.01869158879 | W57: 7 | X57: =IF(W57<31,AVERAGE(OFFSET(INDEX('Points team et quota finales'!$C$5:$C$34,W57),0,0,COUNTIF($W$6:$W$105,W57))),0) -> 17.5
A58: 7 | G58: 0 | H58: 7 | I58: 53.5 | L58: 0 | M58: 7 | N58: 53.5 | O58: 53.5 | R58: 0 | U58: 0 | V58: 0.01869158879 | W58: 7 | X58: =IF(W58<31,AVERAGE(OFFSET(INDEX('Points team et quota finales'!$C$5:$C$34,W58),0,0,COUNTIF($W$6:$W$105,W58))),0) -> 17.5
A59: 7 | G59: 0 | H59: 7 | I59: 53.5 | L59: 0 | M59: 7 | N59: 53.5 | O59: 53.5 | R59: 0 | U59: 0 | V59: 0.01869158879 | W59: 7 | X59: =IF(W59<31,AVERAGE(OFFSET(INDEX('Points team et quota finales'!$C$5:$C$34,W59),0,0,COUNTIF($W$6:$W$105,W59))),0) -> 17.5
A60: 7 | G60: 0 | H60: 7 | I60: 53.5 | L60: 0 | M60: 7 | N60: 53.5 | O60: 53.5 | R60: 0 | U60: 0 | V60: 0.01869158879 | W60: 7 | X60: =IF(W60<31,AVERAGE(OFFSET(INDEX('Points team et quota finales'!$C$5:$C$34,W60),0,0,COUNTIF($W$6:$W$105,W60))),0) -> 17.5
A61: 7 | G61: 0 | H61: 7 | I61: 53.5 | L61: 0 | M61: 7 | N61: 53.5 | O61: 53.5 | R61: 0 | U61: 0 | V61: 0.01869158879 | W61: 7 | X61: =IF(W61<31,AVERAGE(OFFSET(INDEX('Points team et quota finales'!$C$5:$C$34,W61),0,0,COUNTIF($W$6:$W$105,W61))),0) -> 17.5
A62: 7 | G62: 0 | H62: 7 | I62: 53.5 | L62: 0 | M62: 7 | N62: 53.5 | O62: 53.5 | R62: 0 | U62: 0 | V62: 0.01869158879 | W62: 7 | X62: =IF(W62<31,AVERAGE(OFFSET(INDEX('Points team et quota finales'!$C$5:$C$34,W62),0,0,COUNTIF($W$6:$W$105,W62))),0) -> 17.5
A63: 7 | G63: 0 | H63: 7 | I63: 53.5 | L63: 0 | M63: 7 | N63: 53.5 | O63: 53.5 | R63: 0 | U63: 0 | V63: 0.01869158879 | W63: 7 | X63: =IF(W63<31,AVERAGE(OFFSET(INDEX('Points team et quota finales'!$C$5:$C$34,W63),0,0,COUNTIF($W$6:$W$105,W63))),0) -> 17.5
A64: 7 | G64: 0 | H64: 7 | I64: 53.5 | L64: 0 | M64: 7 | N64: 53.5 | O64: 53.5 | R64: 0 | U64: 0 | V64: 0.01869158879 | W64: 7 | X64: =IF(W64<31,AVERAGE(OFFSET(INDEX('Points team et quota finales'!$C$5:$C$34,W64),0,0,COUNTIF($W$6:$W$105,W64))),0) -> 17.5
A65: 7 | G65: 0 | H65: 7 | I65: 53.5 | L65: 0 | M65: 7 | N65: 53.5 | O65: 53.5 | R65: 0 | U65: 0 | V65: 0.01869158879 | W65: 7 | X65: =IF(W65<31,AVERAGE(OFFSET(INDEX('Points team et quota finales'!$C$5:$C$34,W65),0,0,COUNTIF($W$6:$W$105,W65))),0) -> 17.5
A66: 7 | G66: 0 | H66: 7 | I66: 53.5 | L66: 0 | M66: 7 | N66: 53.5 | O66: 53.5 | R66: 0 | U66: 0 | V66: 0.01869158879 | W66: 7 | X66: =IF(W66<31,AVERAGE(OFFSET(INDEX('Points team et quota finales'!$C$5:$C$34,W66),0,0,COUNTIF($W$6:$W$105,W66))),0) -> 17.5
A67: 7 | G67: 0 | H67: 7 | I67: 53.5 | L67: 0 | M67: 7 | N67: 53.5 | O67: 53.5 | R67: 0 | U67: 0 | V67: 0.01869158879 | W67: 7 | X67: =IF(W67<31,AVERAGE(OFFSET(INDEX('Points team et quota finales'!$C$5:$C$34,W67),0,0,COUNTIF($W$6:$W$105,W67))),0) -> 17.5
A68: 7 | G68: 0 | H68: 7 | I68: 53.5 | L68: 0 | M68: 7 | N68: 53.5 | O68: 53.5 | R68: 0 | U68: 0 | V68: 0.01869158879 | W68: 7 | X68: =IF(W68<31,AVERAGE(OFFSET(INDEX('Points team et quota finales'!$C$5:$C$34,W68),0,0,COUNTIF($W$6:$W$105,W68))),0) -> 17.5
A69: 7 | G69: 0 | H69: 7 | I69: 53.5 | L69: 0 | M69: 7 | N69: 53.5 | O69: 53.5 | R69: 0 | U69: 0 | V69: 0.01869158879 | W69: 7 | X69: =IF(W69<31,AVERAGE(OFFSET(INDEX('Points team et quota finales'!$C$5:$C$34,W69),0,0,COUNTIF($W$6:$W$105,W69))),0) -> 17.5
A70: 7 | G70: =IF(E70="TOP",$F$108,IF(F70="-",E70-0.01,IF(F70="+",E70+0.01,E70))) -> 0 | H70: =RANK(G70,$G$6:$G$105) -> 7 | I70: =IF(COUNTIF($H$6:$H$105,H70)=1,H70,(H70*2+COUNTIF($H$6:$H$105,H70)-1)/2) -> 53.5 | L70: =IF(J70="TOP",$K$108,IF(K70="-",J70-0.01,IF(K70="+",J70+0.01,J70))) -> 0 | M70: =RANK(L70,$L$6:$L$105) -> 7 | N70: =IF(COUNTIF($M$6:$M$105,M70)=1,M70,(M70*2+COUNTIF($M$6:$M$105,M70)-1)/2) -> 53.5 | O70: =SQRT(I70*N70) -> 53.5 | R70: =IF(P70="TOP",$Q$108,IF(Q70="-",P70-0.01,IF(Q70="+",P70+0.01,P70))) -> 0 | U70: =IF($S70="TOP",$T$108,IF($T70="-",$S70-0.01,IF($T70="+",$S70+0.01,$S70))) -> 0 | V70: =IF(U70<>0,U70*1000+R70*100+1/O70,IF(R70<>0,R70*100+1/O70,1/O70)) -> 0.01869158879 | W70: =A70 -> 7 | X70: =IF(W70<31,AVERAGE(OFFSET(INDEX('Points team et quota finales'!$C$5:$C$34,W70),0,0,COUNTIF($W$6:$W$105,W70))),0) -> 17.5
A71: =RANK(V71,$V$6:$V$105) -> 7 | G71: 0 | H71: 7 | I71: 53.5 | L71: 0 | M71: 7 | N71: 53.5 | O71: 53.5 | R71: 0 | U71: 0 | V71: 0.01869158879 | W71: 7 | X71: =IF(W71<31,AVERAGE(OFFSET(INDEX('Points team et quota finales'!$C$5:$C$34,W71),0,0,COUNTIF($W$6:$W$105,W71))),0) -> 17.5
A72: 7 | G72: 0 | H72: 7 | I72: 53.5 | L72: 0 | M72: 7 | N72: 53.5 | O72: 53.5 | R72: 0 | U72: 0 | V72: 0.01869158879 | W72: 7 | X72: =IF(W72<31,AVERAGE(OFFSET(INDEX('Points team et quota finales'!$C$5:$C$34,W72),0,0,COUNTIF($W$6:$W$105,W72))),0) -> 17.5
A73: 7 | G73: 0 | H73: 7 | I73: 53.5 | L73: 0 | M73: 7 | N73: 53.5 | O73: 53.5 | R73: 0 | U73: 0 | V73: 0.01869158879 | W73: 7 | X73: =IF(W73<31,AVERAGE(OFFSET(INDEX('Points team et quota finales'!$C$5:$C$34,W73),0,0,COUNTIF($W$6:$W$105,W73))),0) -> 17.5
A74: 7 | G74: 0 | H74: 7 | I74: 53.5 | L74: 0 | M74: 7 | N74: 53.5 | O74: 53.5 | R74: 0 | U74: 0 | V74: 0.01869158879 | W74: 7 | X74: =IF(W74<31,AVERAGE(OFFSET(INDEX('Points team et quota finales'!$C$5:$C$34,W74),0,0,COUNTIF($W$6:$W$105,W74))),0) -> 17.5
A75: 7 | G75: 0 | H75: 7 | I75: 53.5 | L75: 0 | M75: 7 | N75: 53.5 | O75: 53.5 | R75: 0 | U75: 0 | V75: 0.01869158879 | W75: 7 | X75: =IF(W75<31,AVERAGE(OFFSET(INDEX('Points team et quota finales'!$C$5:$C$34,W75),0,0,COUNTIF($W$6:$W$105,W75))),0) -> 17.5
A76: 7 | G76: 0 | H76: 7 | I76: 53.5 | L76: 0 | M76: 7 | N76: 53.5 | O76: 53.5 | R76: 0 | U76: 0 | V76: 0.01869158879 | W76: 7 | X76: =IF(W76<31,AVERAGE(OFFSET(INDEX('Points team et quota finales'!$C$5:$C$34,W76),0,0,COUNTIF($W$6:$W$105,W76))),0) -> 17.5
A77: 7 | G77: 0 | H77: 7 | I77: 53.5 | L77: 0 | M77: 7 | N77: 53.5 | O77: 53.5 | R77: 0 | U77: 0 | V77: 0.01869158879 | W77: 7 | X77: =IF(W77<31,AVERAGE(OFFSET(INDEX('Points team et quota finales'!$C$5:$C$34,W77),0,0,COUNTIF($W$6:$W$105,W77))),0) -> 17.5
A78: 7 | G78: 0 | H78: 7 | I78: 53.5 | L78: 0 | M78: 7 | N78: 53.5 | O78: 53.5 | R78: 0 | U78: 0 | V78: 0.01869158879 | W78: 7 | X78: =IF(W78<31,AVERAGE(OFFSET(INDEX('Points team et quota finales'!$C$5:$C$34,W78),0,0,COUNTIF($W$6:$W$105,W78))),0) -> 17.5
A79: 7 | G79: 0 | H79: 7 | I79: 53.5 | L79: 0 | M79: 7 | N79: 53.5 | O79: 53.5 | R79: 0 | U79: 0 | V79: 0.01869158879 | W79: 7 | X79: =IF(W79<31,AVERAGE(OFFSET(INDEX('Points team et quota finales'!$C$5:$C$34,W79),0,0,COUNTIF($W$6:$W$105,W79))),0) -> 17.5
A80: 7 | G80: 0 | H80: 7 | I80: 53.5 | L80: 0 | M80: 7 | N80: 53.5 | O80: 53.5 | R80: 0 | U80: 0 | V80: 0.01869158879 | W80: 7 | X80: =IF(W80<31,AVERAGE(OFFSET(INDEX('Points team et quota finales'!$C$5:$C$34,W80),0,0,COUNTIF($W$6:$W$105,W80))),0) -> 17.5
A81: 7 | G81: 0 | H81: 7 | I81: 53.5 | L81: 0 | M81: 7 | N81: 53.5 | O81: 53.5 | R81: 0 | U81: 0 | V81: 0.01869158879 | W81: 7 | X81: =IF(W81<31,AVERAGE(OFFSET(INDEX('Points team et quota finales'!$C$5:$C$34,W81),0,0,COUNTIF($W$6:$W$105,W81))),0) -> 17.5
A82: 7 | G82: 0 | H82: 7 | I82: 53.5 | L82: 0 | M82: 7 | N82: 53.5 | O82: 53.5 | R82: 0 | U82: 0 | V82: 0.01869158879 | W82: 7 | X82: =IF(W82<31,AVERAGE(OFFSET(INDEX('Points team et quota finales'!$C$5:$C$34,W82),0,0,COUNTIF($W$6:$W$105,W82))),0) -> 17.5
A83: 7 | G83: 0 | H83: 7 | I83: 53.5 | L83: 0 | M83: 7 | N83: 53.5 | O83: 53.5 | R83: 0 | U83: 0 | V83: 0.01869158879 | W83: 7 | X83: =IF(W83<31,AVERAGE(OFFSET(INDEX('Points team et quota finales'!$C$5:$C$34,W83),0,0,COUNTIF($W$6:$W$105,W83))),0) -> 17.5
A84: 7 | G84: 0 | H84: 7 | I84: 53.5 | L84: 0 | M84: 7 | N84: 53.5 | O84: 53.5 | R84: 0 | U84: 0 | V84: 0.01869158879 | W84: 7 | X84: =IF(W84<31,AVERAGE(OFFSET(INDEX('Points team et quota finales'!$C$5:$C$34,W84),0,0,COUNTIF($W$6:$W$105,W84))),0) -> 17.5
A85: 7 | G85: 0 | H85: 7 | I85: 53.5 | L85: 0 | M85: 7 | N85: 53.5 | O85: 53.5 | R85: 0 | U85: 0 | V85: 0.01869158879 | W85: 7 | X85: =IF(W85<31,AVERAGE(OFFSET(INDEX('Points team et quota finales'!$C$5:$C$34,W85),0,0,COUNTIF($W$6:$W$105,W85))),0) -> 17.5
A86: 7 | G86: 0 | H86: 7 | I86: 53.5 | L86: 0 | M86: 7 | N86: 53.5 | O86: 53.5 | R86: 0 | U86: 0 | V86: 0.01869158879 | W86: 7 | X86: =IF(W86<31,AVERAGE(OFFSET(INDEX('Points team et quota finales'!$C$5:$C$34,W86),0,0,COUNTIF($W$6:$W$105,W86))),0) -> 17.5
A87: 7 | G87: 0 | H87: 7 | I87: 53.5 | L87: 0 | M87: 7 | N87: 53.5 | O87: 53.5 | R87: 0 | U87: 0 | V87: 0.01869158879 | W87: 7 | X87: =IF(W87<31,AVERAGE(OFFSET(INDEX('Points team et quota finales'!$C$5:$C$34,W87),0,0,COUNTIF($W$6:$W$105,W87))),0) -> 17.5
A88: 7 | G88: 0 | H88: 7 | I88: 53.5 | L88: 0 | M88: 7 | N88: 53.5 | O88: 53.5 | R88: 0 | U88: 0 | V88: 0.01869158879 | W88: 7 | X88: =IF(W88<31,AVERAGE(OFFSET(INDEX('Points team et quota finales'!$C$5:$C$34,W88),0,0,COUNTIF($W$6:$W$105,W88))),0) -> 17.5
A89: 7 | G89: 0 | H89: 7 | I89: 53.5 | L89: 0 | M89: 7 | N89: 53.5 | O89: 53.5 | R89: 0 | U89: 0 | V89: 0.01869158879 | W89: 7 | X89: =IF(W89<31,AVERAGE(OFFSET(INDEX('Points team et quota finales'!$C$5:$C$34,W89),0,0,COUNTIF($W$6:$W$105,W89))),0) -> 17.5
A90: 7 | G90: 0 | H90: 7 | I90: 53.5 | L90: 0 | M90: 7 | N90: 53.5 | O90: 53.5 | R90: 0 | U90: 0 | V90: 0.01869158879 | W90: 7 | X90: =IF(W90<31,AVERAGE(OFFSET(INDEX('Points team et quota finales'!$C$5:$C$34,W90),0,0,COUNTIF($W$6:$W$105,W90))),0) -> 17.5
A91: 7 | G91: 0 | H91: 7 | I91: 53.5 | L91: 0 | M91: 7 | N91: 53.5 | O91: 53.5 | R91: 0 | U91: 0 | V91: 0.01869158879 | W91: 7 | X91: =IF(W91<31,AVERAGE(OFFSET(INDEX('Points team et quota finales'!$C$5:$C$34,W91),0,0,COUNTIF($W$6:$W$105,W91))),0) -> 17.5
A92: 7 | G92: 0 | H92: 7 | I92: 53.5 | L92: 0 | M92: 7 | N92: 53.5 | O92: 53.5 | R92: 0 | U92: 0 | V92: 0.01869158879 | W92: 7 | X92: =IF(W92<31,AVERAGE(OFFSET(INDEX('Points team et quota finales'!$C$5:$C$34,W92),0,0,COUNTIF($W$6:$W$105,W92))),0) -> 17.5
A93: 7 | G93: 0 | H93: 7 | I93: 53.5 | L93: 0 | M93: 7 | N93: 53.5 | O93: 53.5 | R93: 0 | U93: 0 | V93: 0.01869158879 | W93: 7 | X93: =IF(W93<31,AVERAGE(OFFSET(INDEX('Points team et quota finales'!$C$5:$C$34,W93),0,0,COUNTIF($W$6:$W$105,W93))),0) -> 17.5
A94: 7 | G94: 0 | H94: 7 | I94: 53.5 | L94: 0 | M94: 7 | N94: 53.5 | O94: 53.5 | R94: 0 | U94: 0 | V94: 0.01869158879 | W94: 7 | X94: =IF(W94<31,AVERAGE(OFFSET(INDEX('Points team et quota finales'!$C$5:$C$34,W94),0,0,COUNTIF($W$6:$W$105,W94))),0) -> 17.5
A95: 7 | G95: 0 | H95: 7 | I95: 53.5 | L95: 0 | M95: 7 | N95: 53.5 | O95: 53.5 | R95: 0 | U95: 0 | V95: 0.01869158879 | W95: 7 | X95: =IF(W95<31,AVERAGE(OFFSET(INDEX('Points team et quota finales'!$C$5:$C$34,W95),0,0,COUNTIF($W$6:$W$105,W95))),0) -> 17.5
A96: 7 | G96: 0 | H96: 7 | I96: 53.5 | L96: 0 | M96: 7 | N96: 53.5 | O96: 53.5 | R96: 0 | U96: 0 | V96: 0.01869158879 | W96: 7 | X96: =IF(W96<31,AVERAGE(OFFSET(INDEX('Points team et quota finales'!$C$5:$C$34,W96),0,0,COUNTIF($W$6:$W$105,W96))),0) -> 17.5
A97: 7 | G97: 0 | H97: 7 | I97: 53.5 | L97: 0 | M97: 7 | N97: 53.5 | O97: 53.5 | R97: 0 | U97: 0 | V97: 0.01869158879 | W97: 7 | X97: =IF(W97<31,AVERAGE(OFFSET(INDEX('Points team et quota finales'!$C$5:$C$34,W97),0,0,COUNTIF($W$6:$W$105,W97))),0) -> 17.5
A98: 7 | G98: 0 | H98: 7 | I98: 53.5 | L98: 0 | M98: 7 | N98: 53.5 | O98: 53.5 | R98: 0 | U98: 0 | V98: 0.01869158879 | W98: 7 | X98: =IF(W98<31,AVERAGE(OFFSET(INDEX('Points team et quota finales'!$C$5:$C$34,W98),0,0,COUNTIF($W$6:$W$105,W98))),0) -> 17.5
A99: 7 | G99: 0 | H99: 7 | I99: 53.5 | L99: 0 | M99: 7 | N99: 53.5 | O99: 53.5 | R99: 0 | U99: 0 | V99: 0.01869158879 | W99: 7 | X99: =IF(W99<31,AVERAGE(OFFSET(INDEX('Points team et quota finales'!$C$5:$C$34,W99),0,0,COUNTIF($W$6:$W$105,W99))),0) -> 17.5
A100: 7 | G100: 0 | H100: 7 | I100: 53.5 | L100: 0 | M100: 7 | N100: 53.5 | O100: 53.5 | R100: 0 | U100: 0 | V100: 0.01869158879 | W100: 7 | X100: =IF(W100<31,AVERAGE(OFFSET(INDEX('Points team et quota finales'!$C$5:$C$34,W100),0,0,COUNTIF($W$6:$W$105,W100))),0) -> 17.5
A101: 7 | G101: 0 | H101: 7 | I101: 53.5 | L101: 0 | M101: 7 | N101: 53.5 | O101: 53.5 | R101: 0 | U101: 0 | V101: 0.01869158879 | W101: 7 | X101: =IF(W101<31,AVERAGE(OFFSET(INDEX('Points team et quota finales'!$C$5:$C$34,W101),0,0,COUNTIF($W$6:$W$105,W101))),0) -> 17.5
A102: 7 | G102: 0 | H102: 7 | I102: 53.5 | L102: 0 | M102: 7 | N102: 53.5 | O102: 53.5 | R102: 0 | U102: 0 | V102: 0.01869158879 | W102: 7 | X102: =IF(W102<31,AVERAGE(OFFSET(INDEX('Points team et quota finales'!$C$5:$C$34,W102),0,0,COUNTIF($W$6:$W$105,W102))),0) -> 17.5
A103: 7 | G103: 0 | H103: 7 | I103: 53.5 | L103: 0 | M103: 7 | N103: 53.5 | O103: 53.5 | R103: 0 | U103: 0 | V103: 0.01869158879 | W103: 7 | X103: =IF(W103<31,AVERAGE(OFFSET(INDEX('Points team et quota finales'!$C$5:$C$34,W103),0,0,COUNTIF($W$6:$W$105,W103))),0) -> 17.5
A104: 7 | G104: 0 | H104: 7 | I104: 53.5 | L104: 0 | M104: 7 | N104: 53.5 | O104: 53.5 | R104: 0 | U104: 0 | V104: 0.01869158879 | W104: 7 | X104: =IF(W104<31,AVERAGE(OFFSET(INDEX('Points team et quota finales'!$C$5:$C$34,W104),0,0,COUNTIF($W$6:$W$105,W104))),0) -> 17.5
A105: 7 | G105: 0 | H105: 7 | I105: 53.5 | L105: 0 | M105: 7 | N105: 53.5 | O105: 53.5 | R105: 0 | U105: 0 | V105: 0.01869158879 | W105: 7 | X105: =IF(W105<31,AVERAGE(OFFSET(INDEX('Points team et quota finales'!$C$5:$C$34,W105),0,0,COUNTIF($W$6:$W$105,W105))),0) -> 17.5
E108: Top = | F108: 24 | J108: Top = | K108: 36 | P108: Top = | Q108: 36 | S108: Top =
B109: =CONCATENATE("Jury President: ",General!$B$6) -> Jury President: Lieven Vlassenroot
B111: Appeal until :

Sheet JF
A2: =CONCATENATE(General!$B$5," - RESULTS Junior Female") -> Youth Lead Championship 09-03-2013 - RESULTS Junior Female
A5: RANK | B5: Nr | C5: Name | D5: Team | E5: Route 1 | I5: Ranking Points Route 1 | J5: Route 2 | N5: Ranking Points Route 2 | O5: Root R1 x R2 | P5: Final | S5: Super Final | V5: base pour calcul rang | W5: RANK | X5: Team points
A6: =RANK(V6,$V$6:$V$105) -> 1 | B6: JF02 | C6: GUERIT Emilie | D6: CC | E6: TOP | G6: =IF(E6="TOP",$F$108,IF(F6="-",E6-0.01,IF(F6="+",E6+0.01,E6))) -> 24 | H6: =RANK(G6,$G$6:$G$105) -> 1 | I6: =IF(COUNTIF($H$6:$H$105,H6)=1,H6,(H6*2+COUNTIF($H$6:$H$105,H6)-1)/2) -> 1.5 | J6: 33 | K6: + | L6: =IF(J6="TOP",$K$108,IF(K6="-",J6-0.01,IF(K6="+",J6+0.01,J6))) -> 33.01 | M6: =RANK(L6,$L$6:$L$105) -> 1 | N6: =IF(COUNTIF($M$6:$M$105,M6)=1,M6,(M6*2+COUNTIF($M$6:$M$105,M6)-1)/2) -> 1 | O6: =SQRT(I6*N6) -> 1.224744871 | P6: 29 | R6: =IF(P6="TOP",$Q$108,IF(Q6="-",P6-0.01,IF(Q6="+",P6+0.01,P6))) -> 29 | U6: =IF($S6="TOP",$T$108,IF($T6="-",$S6-0.01,IF($T6="+",$S6+0.01,$S6))) -> 0 | V6: =IF(U6<>0,U6*1000+R6*100+1/O6,IF(R6<>0,R6*100+1/O6,1/O6)) -> 2900.816497 | W6: =A6 -> 1 | X6: =IF(W6<31,AVERAGE(OFFSET(INDEX('Points team et quota finales'!$C$5:$C$34,W6),0,0,COUNTIF($W$6:$W$105,W6))),0) -> 100
A7: =RANK(V7,$V$6:$V$105) -> 2 | B7: JF03 | C7: MATHEYS Manon | D7: ESC | E7: 23 | F7: + | G7: =IF(E7="TOP",$F$108,IF(F7="-",E7-0.01,IF(F7="+",E7+0.01,E7))) -> 23.01 | H7: =RANK(G7,$G$6:$G$105) -> 3 | I7: =IF(COUNTIF($H$6:$H$105,H7)=1,H7,(H7*2+COUNTIF($H$6:$H$105,H7)-1)/2) -> 3 | J7: 19 | K7: + | L7: =IF(J7="TOP",$K$108,IF(K7="-",J7-0.01,IF(K7="+",J7+0.01,J7))) -> 19.01 | M7: =RANK(L7,$L$6:$L$105) -> 2 | N7: =IF(COUNTIF($M$6:$M$105,M7)=1,M7,(M7*2+COUNTIF($M$6:$M$105,M7)-1)/2) -> 2.5 | O7: =SQRT(I7*N7) -> 2.738612788 | P7: 22 | R7: =IF(P7="TOP",$Q$108,IF(Q7="-",P7-0.01,IF(Q7="+",P7+0.01,P7))) -> 22 | U7: =IF($S7="TOP",$T$108,IF($T7="-",$S7-0.01,IF($T7="+",$S7+0.01,$S7))) -> 0 | V7: =IF(U7<>0,U7*1000+R7*100+1/O7,IF(R7<>0,R7*100+1/O7,1/O7)) -> 2200.365148 | W7: 2 | X7: =IF(W7<31,AVERAGE(OFFSET(INDEX('Points team et quota finales'!$C$5:$C$34,W7),0,0,COUNTIF($W$6:$W$105,W7))),0) -> 80
A8: 3 | B8: JF01 | C8: DUTRIEUX Ninon | D8: STC | E8: TOP | G8: =IF(E8="TOP",$F$108,IF(F8="-",E8-0.01,IF(F8="+",E8+0.01,E8))) -> 24 | H8: =RANK(G8,$G$6:$G$105) -> 1 | I8: =IF(COUNTIF($H$6:$H$105,H8)=1,H8,(H8*2+COUNTIF($H$6:$H$105,H8)-1)/2) -> 1.5 | J8: 19 | K8: + | L8: =IF(J8="TOP",$K$108,IF(K8="-",J8-0.01,IF(K8="+",J8+0.01,J8))) -> 19.01 | M8: =RANK(L8,$L$6:$L$105) -> 2 | N8: =IF(COUNTIF($M$6:$M$105,M8)=1,M8,(M8*2+COUNTIF($M$6:$M$105,M8)-1)/2) -> 2.5 | O8: =SQRT(I8*N8) -> 1.936491673 | P8: 16 | Q8: + | R8: =IF(P8="TOP",$Q$108,IF(Q8="-",P8-0.01,IF(Q8="+",P8+0.01,P8))) -> 16.01 | U8: =IF($S8="TOP",$T$108,IF($T8="-",$S8-0.01,IF($T8="+",$S8+0.01,$S8))) -> 0 | V8: =IF(U8<>0,U8*1000+R8*100+1/O8,IF(R8<>0,R8*100+1/O8,1/O8)) -> 1601.516398 | W8: 3 | X8: =IF(W8<31,AVERAGE(OFFSET(INDEX('Points team et quota finales'!$C$5:$C$34,W8),0,0,COUNTIF($W$6:$W$105,W8))),0) -> 65
A9: 4 | G9: =IF(E9="TOP",$F$108,IF(F9="-",E9-0.01,IF(F9="+",E9+0.01,E9))) -> 0 | H9: =RANK(G9,$G$6:$G$105) -> 4 | I9: =IF(COUNTIF($H$6:$H$105,H9)=1,H9,(H9*2+COUNTIF($H$6:$H$105,H9)-1)/2) -> 52 | L9: =IF(J9="TOP",$K$108,IF(K9="-",J9-0.01,IF(K9="+",J9+0.01,J9))) -> 0 | M9: =RANK(L9,$L$6:$L$105) -> 4 | N9: =IF(COUNTIF($M$6:$M$105,M9)=1,M9,(M9*2+COUNTIF($M$6:$M$105,M9)-1)/2) -> 52 | O9: =SQRT(I9*N9) -> 52 | R9: =IF(P9="TOP",$Q$108,IF(Q9="-",P9-0.01,IF(Q9="+",P9+0.01,P9))) -> 0 | U9: =IF($S9="TOP",$T$108,IF($T9="-",$S9-0.01,IF($T9="+",$S9+0.01,$S9))) -> 0 | V9: =IF(U9<>0,U9*1000+R9*100+1/O9,IF(R9<>0,R9*100+1/O9,1/O9)) -> 0.01923076923 | W9: 4 | X9: =IF(W9<31,AVERAGE(OFFSET(INDEX('Points team et quota finales'!$C$5:$C$34,W9),0,0,COUNTIF($W$6:$W$105,W9))),0) -> 21.22222222
A10: 4 | G10: 0 | H10: 4 | I10: 52 | L10: 0 | M10: 4 | N10: 52 | O10: 52 | R10: 0 | U10: 0 | V10: 0.01923076923 | W10: 4 | X10: =IF(W10<31,AVERAGE(OFFSET(INDEX('Points team et quota finales'!$C$5:$C$34,W10),0,0,COUNTIF($W$6:$W$105,W10))),0) -> 21.22222222
A11: 4 | G11: 0 | H11: 4 | I11: 52 | L11: 0 | M11: 4 | N11: 52 | O11: 52 | R11: 0 | U11: 0 | V11: 0.01923076923 | W11: 4 | X11: =IF(W11<31,AVERAGE(OFFSET(INDEX('Points team et quota finales'!$C$5:$C$34,W11),0,0,COUNTIF($W$6:$W$105,W11))),0) -> 21.22222222
A12: 4 | G12: 0 | H12: 4 | I12: 52 | L12: 0 | M12: 4 | N12: 52 | O12: 52 | R12: 0 | U12: 0 | V12: 0.01923076923 | W12: 4 | X12: =IF(W12<31,AVERAGE(OFFSET(INDEX('Points team et quota finales'!$C$5:$C$34,W12),0,0,COUNTIF($W$6:$W$105,W12))),0) -> 21.22222222
A13: 4 | G13: 0 | H13: 4 | I13: 52 | L13: 0 | M13: 4 | N13: 52 | O13: 52 | R13: 0 | U13: 0 | V13: 0.01923076923 | W13: 4 | X13: =IF(W13<31,AVERAGE(OFFSET(INDEX('Points team et quota finales'!$C$5:$C$34,W13),0,0,COUNTIF($W$6:$W$105,W13))),0) -> 21.22222222
A14: 4 | G14: 0 | H14: 4 | I14: 52 | L14: 0 | M14: 4 | N14: 52 | O14: 52 | R14: 0 | U14: 0 | V14: 0.01923076923 | W14: 4 | X14: =IF(W14<31,AVERAGE(OFFSET(INDEX('Points team et quota finales'!$C$5:$C$34,W14),0,0,COUNTIF($W$6:$W$105,W14))),0) -> 21.22222222
A15: 4 | G15: 0 | H15: 4 | I15: 52 | L15: 0 | M15: 4 | N15: 52 | O15: 52 | R15: 0 | U15: 0 | V15: 0.01923076923 | W15: 4 | X15: =IF(W15<31,AVERAGE(OFFSET(INDEX('Points team et quota finales'!$C$5:$C$34,W15),0,0,COUNTIF($W$6:$W$105,W15))),0) -> 21.22222222
A16: 4 | G16: 0 | H16: 4 | I16: 52 | L16: 0 | M16: 4 | N16: 52 | O16: 52 | R16: 0 | U16: 0 | V16: 0.01923076923 | W16: 4 | X16: =IF(W16<31,AVERAGE(OFFSET(INDEX('Points team et quota finales'!$C$5:$C$34,W16),0,0,COUNTIF($W$6:$W$105,W16))),0) -> 21.22222222
A17: 4 | G17: 0 | H17: 4 | I17: 52 | L17: 0 | M17: 4 | N17: 52 | O17: 52 | R17: 0 | U17: 0 | V17: 0.01923076923 | W17: 4 | X17: =IF(W17<31,AVERAGE(OFFSET(INDEX('Points team et quota finales'!$C$5:$C$34,W17),0,0,COUNTIF($W$6:$W$105,W17))),0) -> 21.22222222
A18: 4 | G18: 0 | H18: 4 | I18: 52 | L18: 0 | M18: 4 | N18: 52 | O18: 52 | R18: 0 | U18: 0 | V18: 0.01923076923 | W18: 4 | X18: =IF(W18<31,AVERAGE(OFFSET(INDEX('Points team et quota finales'!$C$5:$C$34,W18),0,0,COUNTIF($W$6:$W$105,W18))),0) -> 21.22222222
A19: 4 | G19: 0 | H19: 4 | I19: 52 | L19: 0 | M19: 4 | N19: 52 | O19: 52 | R19: 0 | U19: 0 | V19: 0.01923076923 | W19: 4 | X19: =IF(W19<31,AVERAGE(OFFSET(INDEX('Points team et quota finales'!$C$5:$C$34,W19),0,0,COUNTIF($W$6:$W$105,W19))),0) -> 21.22222222
A20: 4 | G20: 0 | H20: 4 | I20: 52 | L20: 0 | M20: 4 | N20: 52 | O20: 52 | R20: 0 | U20: 0 | V20: 0.01923076923 | W20: 4 | X20: =IF(W20<31,AVERAGE(OFFSET(INDEX('Points team et quota finales'!$C$5:$C$34,W20),0,0,COUNTIF($W$6:$W$105,W20))),0) -> 21.22222222
A21: 4 | G21: 0 | H21: 4 | I21: 52 | L21: 0 | M21: 4 | N21: 52 | O21: 52 | R21: 0 | U21: 0 | V21: 0.01923076923 | W21: 4 | X21: =IF(W21<31,AVERAGE(OFFSET(INDEX('Points team et quota finales'!$C$5:$C$34,W21),0,0,COUNTIF($W$6:$W$105,W21))),0) -> 21.22222222
A22: 4 | G22: 0 | H22: 4 | I22: 52 | L22: 0 | M22: 4 | N22: 52 | O22: 52 | R22: 0 | U22: 0 | V22: 0.01923076923 | W22: 4 | X22: =IF(W22<31,AVERAGE(OFFSET(INDEX('Points team et quota finales'!$C$5:$C$34,W22),0,0,COUNTIF($W$6:$W$105,W22))),0) -> 21.22222222
A23: 4 | G23: 0 | H23: 4 | I23: 52 | L23: 0 | M23: 4 | N23: 52 | O23: 52 | R23: 0 | U23: 0 | V23: 0.01923076923 | W23: 4 | X23: =IF(W23<31,AVERAGE(OFFSET(INDEX('Points team et quota finales'!$C$5:$C$34,W23),0,0,COUNTIF($W$6:$W$105,W23))),0) -> 21.22222222
A24: 4 | G24: 0 | H24: 4 | I24: 52 | L24: 0 | M24: 4 | N24: 52 | O24: 52 | R24: 0 | U24: 0 | V24: 0.01923076923 | W24: 4 | X24: =IF(W24<31,AVERAGE(OFFSET(INDEX('Points team et quota finales'!$C$5:$C$34,W24),0,0,COUNTIF($W$6:$W$105,W24))),0) -> 21.22222222
A25: 4 | G25: 0 | H25: 4 | I25: 52 | L25: 0 | M25: 4 | N25: 52 | O25: 52 | R25: 0 | U25: 0 | V25: 0.01923076923 | W25: 4 | X25: =IF(W25<31,AVERAGE(OFFSET(INDEX('Points team et quota finales'!$C$5:$C$34,W25),0,0,COUNTIF($W$6:$W$105,W25))),0) -> 21.22222222
A26: 4 | G26: 0 | H26: 4 | I26: 52 | L26: 0 | M26: 4 | N26: 52 | O26: 52 | R26: 0 | U26: 0 | V26: 0.01923076923 | W26: 4 | X26: =IF(W26<31,AVERAGE(OFFSET(INDEX('Points team et quota finales'!$C$5:$C$34,W26),0,0,COUNTIF($W$6:$W$105,W26))),0) -> 21.22222222
A27: 4 | G27: 0 | H27: 4 | I27: 52 | L27: 0 | M27: 4 | N27: 52 | O27: 52 | R27: 0 | U27: 0 | V27: 0.01923076923 | W27: 4 | X27: =IF(W27<31,AVERAGE(OFFSET(INDEX('Points team et quota finales'!$C$5:$C$34,W27),0,0,COUNTIF($W$6:$W$105,W27))),0) -> 21.22222222
A28: 4 | G28: 0 | H28: 4 | I28: 52 | L28: 0 | M28: 4 | N28: 52 | O28: 52 | R28: 0 | U28: 0 | V28: 0.01923076923 | W28: 4 | X28: =IF(W28<31,AVERAGE(OFFSET(INDEX('Points team et quota finales'!$C$5:$C$34,W28),0,0,COUNTIF($W$6:$W$105,W28))),0) -> 21.22222222
A29: 4 | G29: 0 | H29: 4 | I29: 52 | L29: 0 | M29: 4 | N29: 52 | O29: 52 | R29: 0 | U29: 0 | V29: 0.01923076923 | W29: 4 | X29: =IF(W29<31,AVERAGE(OFFSET(INDEX('Points team et quota finales'!$C$5:$C$34,W29),0,0,COUNTIF($W$6:$W$105,W29))),0) -> 21.22222222
A30: 4 | G30: 0 | H30: 4 | I30: 52 | L30: 0 | M30: 4 | N30: 52 | O30: 52 | R30: 0 | U30: 0 | V30: 0.01923076923 | W30: 4 | X30: =IF(W30<31,AVERAGE(OFFSET(INDEX('Points team et quota finales'!$C$5:$C$34,W30),0,0,COUNTIF($W$6:$W$105,W30))),0) -> 21.22222222
A31: 4 | G31: 0 | H31: 4 | I31: 52 | L31: 0 | M31: 4 | N31: 52 | O31: 52 | R31: 0 | U31: 0 | V31: 0.01923076923 | W31: 4 | X31: =IF(W31<31,AVERAGE(OFFSET(INDEX('Points team et quota finales'!$C$5:$C$34,W31),0,0,COUNTIF($W$6:$W$105,W31))),0) -> 21.22222222
A32: 4 | G32: 0 | H32: 4 | I32: 52 | L32: 0 | M32: 4 | N32: 52 | O32: 52 | R32: 0 | U32: 0 | V32: 0.01923076923 | W32: 4 | X32: =IF(W32<31,AVERAGE(OFFSET(INDEX('Points team et quota finales'!$C$5:$C$34,W32),0,0,COUNTIF($W$6:$W$105,W32))),0) -> 21.22222222
A33: 4 | G33: 0 | H33: 4 | I33: 52 | L33: 0 | M33: 4 | N33: 52 | O33: 52 | R33: 0 | U33: 0 | V33: 0.01923076923 | W33: 4 | X33: =IF(W33<31,AVERAGE(OFFSET(INDEX('Points team et quota finales'!$C$5:$C$34,W33),0,0,COUNTIF($W$6:$W$105,W33))),0) -> 21.22222222
A34: 4 | G34: 0 | H34: 4 | I34: 52 | L34: 0 | M34: 4 | N34: 52 | O34: 52 | R34: 0 | U34: 0 | V34: 0.01923076923 | W34: 4 | X34: =IF(W34<31,AVERAGE(OFFSET(INDEX('Points team et quota finales'!$C$5:$C$34,W34),0,0,COUNTIF($W$6:$W$105,W34))),0) -> 21.22222222
A35: 4 | G35: 0 | H35: 4 | I35: 52 | L35: 0 | M35: 4 | N35: 52 | O35: 52 | R35: 0 | U35: 0 | V35: 0.01923076923 | W35: 4 | X35: =IF(W35<31,AVERAGE(OFFSET(INDEX('Points team et quota finales'!$C$5:$C$34,W35),0,0,COUNTIF($W$6:$W$105,W35))),0) -> 21.22222222
A36: 4 | G36: 0 | H36: 4 | I36: 52 | L36: 0 | M36: 4 | N36: 52 | O36: 52 | R36: 0 | U36: 0 | V36: 0.01923076923 | W36: 4 | X36: =IF(W36<31,AVERAGE(OFFSET(INDEX('Points team et quota finales'!$C$5:$C$34,W36),0,0,COUNTIF($W$6:$W$105,W36))),0) -> 21.22222222
A37: 4 | G37: 0 | H37: 4 | I37: 52 | L37: 0 | M37: 4 | N37: 52 | O37: 52 | R37: 0 | U37: 0 | V37: 0.01923076923 | W37: 4 | X37: =IF(W37<31,AVERAGE(OFFSET(INDEX('Points team et quota finales'!$C$5:$C$34,W37),0,0,COUNTIF($W$6:$W$105,W37))),0) -> 21.22222222
A38: 4 | G38: 0 | H38: 4 | I38: 52 | L38: 0 | M38: 4 | N38: 52 | O38: 52 | R38: 0 | U38: 0 | V38: 0.01923076923 | W38: 4 | X38: =IF(W38<31,AVERAGE(OFFSET(INDEX('Points team et quota finales'!$C$5:$C$34,W38),0,0,COUNTIF($W$6:$W$105,W38))),0) -> 21.22222222
A39: 4 | G39: 0 | H39: 4 | I39: 52 | L39: 0 | M39: 4 | N39: 52 | O39: 52 | R39: 0 | U39: 0 | V39: 0.01923076923 | W39: 4 | X39: =IF(W39<31,AVERAGE(OFFSET(INDEX('Points team et quota finales'!$C$5:$C$34,W39),0,0,COUNTIF($W$6:$W$105,W39))),0) -> 21.22222222
A40: 4 | G40: 0 | H40: 4 | I40: 52 | L40: 0 | M40: 4 | N40: 52 | O40: 52 | R40: 0 | U40: 0 | V40: 0.01923076923 | W40: 4 | X40: =IF(W40<31,AVERAGE(OFFSET(INDEX('Points team et quota finales'!$C$5:$C$34,W40),0,0,COUNTIF($W$6:$W$105,W40))),0) -> 21.22222222
A41: 4 | G41: 0 | H41: 4 | I41: 52 | L41: 0 | M41: 4 | N41: 52 | O41: 52 | R41: 0 | U41: 0 | V41: 0.01923076923 | W41: 4 | X41: =IF(W41<31,AVERAGE(OFFSET(INDEX('Points team et quota finales'!$C$5:$C$34,W41),0,0,COUNTIF($W$6:$W$105,W41))),0) -> 21.22222222
A42: 4 | G42: 0 | H42: 4 | I42: 52 | L42: 0 | M42: 4 | N42: 52 | O42: 52 | R42: 0 | U42: 0 | V42: 0.01923076923 | W42: 4 | X42: =IF(W42<31,AVERAGE(OFFSET(INDEX('Points team et quota finales'!$C$5:$C$34,W42),0,0,COUNTIF($W$6:$W$105,W42))),0) -> 21.22222222
A43: 4 | G43: 0 | H43: 4 | I43: 52 | L43: 0 | M43: 4 | N43: 52 | O43: 52 | R43: 0 | U43: 0 | V43: 0.01923076923 | W43: 4 | X43: =IF(W43<31,AVERAGE(OFFSET(INDEX('Points team et quota finales'!$C$5:$C$34,W43),0,0,COUNTIF($W$6:$W$105,W43))),0) -> 21.22222222
A44: 4 | G44: 0 | H44: 4 | I44: 52 | L44: 0 | M44: 4 | N44: 52 | O44: 52 | R44: 0 | U44: 0 | V44: 0.01923076923 | W44: 4 | X44: =IF(W44<31,AVERAGE(OFFSET(INDEX('Points team et quota finales'!$C$5:$C$34,W44),0,0,COUNTIF($W$6:$W$105,W44))),0) -> 21.22222222
A45: 4 | G45: 0 | H45: 4 | I45: 52 | L45: 0 | M45: 4 | N45: 52 | O45: 52 | R45: 0 | U45: 0 | V45: 0.01923076923 | W45: 4 | X45: =IF(W45<31,AVERAGE(OFFSET(INDEX('Points team et quota finales'!$C$5:$C$34,W45),0,0,COUNTIF($W$6:$W$105,W45))),0) -> 21.22222222
A46: 4 | G46: 0 | H46: 4 | I46: 52 | L46: 0 | M46: 4 | N46: 52 | O46: 52 | R46: 0 | U46: 0 | V46: 0.01923076923 | W46: 4 | X46: =IF(W46<31,AVERAGE(OFFSET(INDEX('Points team et quota finales'!$C$5:$C$34,W46),0,0,COUNTIF($W$6:$W$105,W46))),0) -> 21.22222222
A47: 4 | G47: 0 | H47: 4 | I47: 52 | L47: 0 | M47: 4 | N47: 52 | O47: 52 | R47: 0 | U47: 0 | V47: 0.01923076923 | W47: 4 | X47: =IF(W47<31,AVERAGE(OFFSET(INDEX('Points team et quota finales'!$C$5:$C$34,W47),0,0,COUNTIF($W$6:$W$105,W47))),0) -> 21.22222222
A48: 4 | G48: 0 | H48: 4 | I48: 52 | L48: 0 | M48: 4 | N48: 52 | O48: 52 | R48: 0 | U48: 0 | V48: 0.01923076923 | W48: 4 | X48: =IF(W48<31,AVERAGE(OFFSET(INDEX('Points team et quota finales'!$C$5:$C$34,W48),0,0,COUNTIF($W$6:$W$105,W48))),0) -> 21.22222222
A49: 4 | G49: 0 | H49: 4 | I49: 52 | L49: 0 | M49: 4 | N49: 52 | O49: 52 | R49: 0 | U49: 0 | V49: 0.01923076923 | W49: 4 | X49: =IF(W49<31,AVERAGE(OFFSET(INDEX('Points team et quota finales'!$C$5:$C$34,W49),0,0,COUNTIF($W$6:$W$105,W49))),0) -> 21.22222222
A50: 4 | G50: 0 | H50: 4 | I50: 52 | L50: 0 | M50: 4 | N50: 52 | O50: 52 | R50: 0 | U50: 0 | V50: 0.01923076923 | W50: 4 | X50: =IF(W50<31,AVERAGE(OFFSET(INDEX('Points team et quota finales'!$C$5:$C$34,W50),0,0,COUNTIF($W$6:$W$105,W50))),0) -> 21.22222222
A51: 4 | G51: 0 | H51: 4 | I51: 52 | L51: 0 | M51: 4 | N51: 52 | O51: 52 | R51: 0 | U51: 0 | V51: 0.01923076923 | W51: 4 | X51: =IF(W51<31,AVERAGE(OFFSET(INDEX('Points team et quota finales'!$C$5:$C$34,W51),0,0,COUNTIF($W$6:$W$105,W51))),0) -> 21.22222222
A52: 4 | G52: 0 | H52: 4 | I52: 52 | L52: 0 | M52: 4 | N52: 52 | O52: 52 | R52: 0 | U52: 0 | V52: 0.01923076923 | W52: 4 | X52: =IF(W52<31,AVERAGE(OFFSET(INDEX('Points team et quota finales'!$C$5:$C$34,W52),0,0,COUNTIF($W$6:$W$105,W52))),0) -> 21.22222222
A53: 4 | G53: 0 | H53: 4 | I53: 52 | L53: 0 | M53: 4 | N53: 52 | O53: 52 | R53: 0 | U53: 0 | V53: 0.01923076923 | W53: 4 | X53: =IF(W53<31,AVERAGE(OFFSET(INDEX('Points team et quota finales'!$C$5:$C$34,W53),0,0,COUNTIF($W$6:$W$105,W53))),0) -> 21.22222222
A54: 4 | G54: 0 | H54: 4 | I54: 52 | L54: 0 | M54: 4 | N54: 52 | O54: 52 | R54: 0 | U54: 0 | V54: 0.01923076923 | W54: 4 | X54: =IF(W54<31,AVERAGE(OFFSET(INDEX('Points team et quota finales'!$C$5:$C$34,W54),0,0,COUNTIF($W$6:$W$105,W54))),0) -> 21.22222222
A55: 4 | G55: 0 | H55: 4 | I55: 52 | L55: 0 | M55: 4 | N55: 52 | O55: 52 | R55: 0 | U55: 0 | V55: 0.01923076923 | W55: 4 | X55: =IF(W55<31,AVERAGE(OFFSET(INDEX('Points team et quota finales'!$C$5:$C$34,W55),0,0,COUNTIF($W$6:$W$105,W55))),0) -> 21.22222222
A56: 4 | G56: 0 | H56: 4 | I56: 52 | L56: 0 | M56: 4 | N56: 52 | O56: 52 | R56: 0 | U56: 0 | V56: 0.01923076923 | W56: 4 | X56: =IF(W56<31,AVERAGE(OFFSET(INDEX('Points team et quota finales'!$C$5:$C$34,W56),0,0,COUNTIF($W$6:$W$105,W56))),0) -> 21.22222222
A57: 4 | G57: 0 | H57: 4 | I57: 52 | L57: 0 | M57: 4 | N57: 52 | O57: 52 | R57: 0 | U57: 0 | V57: 0.01923076923 | W57: 4 | X57: =IF(W57<31,AVERAGE(OFFSET(INDEX('Points team et quota finales'!$C$5:$C$34,W57),0,0,COUNTIF($W$6:$W$105,W57))),0) -> 21.22222222
A58: 4 | G58: 0 | H58: 4 | I58: 52 | L58: 0 | M58: 4 | N58: 52 | O58: 52 | R58: 0 | U58: 0 | V58: 0.01923076923 | W58: 4 | X58: =IF(W58<31,AVERAGE(OFFSET(INDEX('Points team et quota finales'!$C$5:$C$34,W58),0,0,COUNTIF($W$6:$W$105,W58))),0) -> 21.22222222
A59: 4 | G59: 0 | H59: 4 | I59: 52 | L59: 0 | M59: 4 | N59: 52 | O59: 52 | R59: 0 | U59: 0 | V59: 0.01923076923 | W59: 4 | X59: =IF(W59<31,AVERAGE(OFFSET(INDEX('Points team et quota finales'!$C$5:$C$34,W59),0,0,COUNTIF($W$6:$W$105,W59))),0) -> 21.22222222
A60: 4 | G60: 0 | H60: 4 | I60: 52 | L60: 0 | M60: 4 | N60: 52 | O60: 52 | R60: 0 | U60: 0 | V60: 0.01923076923 | W60: 4 | X60: =IF(W60<31,AVERAGE(OFFSET(INDEX('Points team et quota finales'!$C$5:$C$34,W60),0,0,COUNTIF($W$6:$W$105,W60))),0) -> 21.22222222
A61: 4 | G61: 0 | H61: 4 | I61: 52 | L61: 0 | M61: 4 | N61: 52 | O61: 52 | R61: 0 | U61: 0 | V61: 0.01923076923 | W61: 4 | X61: =IF(W61<31,AVERAGE(OFFSET(INDEX('Points team et quota finales'!$C$5:$C$34,W61),0,0,COUNTIF($W$6:$W$105,W61))),0) -> 21.22222222
A62: 4 | G62: 0 | H62: 4 | I62: 52 | L62: 0 | M62: 4 | N62: 52 | O62: 52 | R62: 0 | U62: 0 | V62: 0.01923076923 | W62: 4 | X62: =IF(W62<31,AVERAGE(OFFSET(INDEX('Points team et quota finales'!$C$5:$C$34,W62),0,0,COUNTIF($W$6:$W$105,W62))),0) -> 21.22222222
A63: 4 | G63: 0 | H63: 4 | I63: 52 | L63: 0 | M63: 4 | N63: 52 | O63: 52 | R63: 0 | U63: 0 | V63: 0.01923076923 | W63: 4 | X63: =IF(W63<31,AVERAGE(OFFSET(INDEX('Points team et quota finales'!$C$5:$C$34,W63),0,0,COUNTIF($W$6:$W$105,W63))),0) -> 21.22222222
A64: 4 | G64: 0 | H64: 4 | I64: 52 | L64: 0 | M64: 4 | N64: 52 | O64: 52 | R64: 0 | U64: 0 | V64: 0.01923076923 | W64: 4 | X64: =IF(W64<31,AVERAGE(OFFSET(INDEX('Points team et quota finales'!$C$5:$C$34,W64),0,0,COUNTIF($W$6:$W$105,W64))),0) -> 21.22222222
A65: 4 | G65: 0 | H65: 4 | I65: 52 | L65: 0 | M65: 4 | N65: 52 | O65: 52 | R65: 0 | U65: 0 | V65: 0.01923076923 | W65: 4 | X65: =IF(W65<31,AVERAGE(OFFSET(INDEX('Points team et quota finales'!$C$5:$C$34,W65),0,0,COUNTIF($W$6:$W$105,W65))),0) -> 21.22222222
A66: 4 | G66: 0 | H66: 4 | I66: 52 | L66: 0 | M66: 4 | N66: 52 | O66: 52 | R66: 0 | U66: 0 | V66: 0.01923076923 | W66: 4 | X66: =IF(W66<31,AVERAGE(OFFSET(INDEX('Points team et quota finales'!$C$5:$C$34,W66),0,0,COUNTIF($W$6:$W$105,W66))),0) -> 21.22222222
A67: 4 | G67: 0 | H67: 4 | I67: 52 | L67: 0 | M67: 4 | N67: 52 | O67: 52 | R67: 0 | U67: 0 | V67: 0.01923076923 | W67: 4 | X67: =IF(W67<31,AVERAGE(OFFSET(INDEX('Points team et quota finales'!$C$5:$C$34,W67),0,0,COUNTIF($W$6:$W$105,W67))),0) -> 21.22222222
A68: 4 | G68: 0 | H68: 4 | I68: 52 | L68: 0 | M68: 4 | N68: 52 | O68: 52 | R68: 0 | U68: 0 | V68: 0.01923076923 | W68: 4 | X68: =IF(W68<31,AVERAGE(OFFSET(INDEX('Points team et quota finales'!$C$5:$C$34,W68),0,0,COUNTIF($W$6:$W$105,W68))),0) -> 21.22222222
A69: 4 | G69: 0 | H69: 4 | I69: 52 | L69: 0 | M69: 4 | N69: 52 | O69: 52 | R69: 0 | U69: 0 | V69: 0.01923076923 | W69: 4 | X69: =IF(W69<31,AVERAGE(OFFSET(INDEX('Points team et quota finales'!$C$5:$C$34,W69),0,0,COUNTIF($W$6:$W$105,W69))),0) -> 21.22222222
A70: 4 | G70: =IF(E70="TOP",$F$108,IF(F70="-",E70-0.01,IF(F70="+",E70+0.01,E70))) -> 0 | H70: =RANK(G70,$G$6:$G$105) -> 4 | I70: =IF(COUNTIF($H$6:$H$105,H70)=1,H70,(H70*2+COUNTIF($H$6:$H$105,H70)-1)/2) -> 52 | L70: =IF(J70="TOP",$K$108,IF(K70="-",J70-0.01,IF(K70="+",J70+0.01,J70))) -> 0 | M70: =RANK(L70,$L$6:$L$105) -> 4 | N70: =IF(COUNTIF($M$6:$M$105,M70)=1,M70,(M70*2+COUNTIF($M$6:$M$105,M70)-1)/2) -> 52 | O70: =SQRT(I70*N70) -> 52 | R70: =IF(P70="TOP",$Q$108,IF(Q70="-",P70-0.01,IF(Q70="+",P70+0.01,P70))) -> 0 | U70: =IF($S70="TOP",$T$108,IF($T70="-",$S70-0.01,IF($T70="+",$S70+0.01,$S70))) -> 0 | V70: =IF(U70<>0,U70*1000+R70*100+1/O70,IF(R70<>0,R70*100+1/O70,1/O70)) -> 0.01923076923 | W70: =A70 -> 4 | X70: =IF(W70<31,AVERAGE(OFFSET(INDEX('Points team et quota finales'!$C$5:$C$34,W70),0,0,COUNTIF($W$6:$W$105,W70))),0) -> 21.22222222
A71: =RANK(V71,$V$6:$V$105) -> 4 | G71: 0 | H71: 4 | I71: 52 | L71: 0 | M71: 4 | N71: 52 | O71: 52 | R71: 0 | U71: 0 | V71: 0.01923076923 | W71: 4 | X71: =IF(W71<31,AVERAGE(OFFSET(INDEX('Points team et quota finales'!$C$5:$C$34,W71),0,0,COUNTIF($W$6:$W$105,W71))),0) -> 21.22222222
A72: 4 | G72: 0 | H72: 4 | I72: 52 | L72: 0 | M72: 4 | N72: 52 | O72: 52 | R72: 0 | U72: 0 | V72: 0.01923076923 | W72: 4 | X72: =IF(W72<31,AVERAGE(OFFSET(INDEX('Points team et quota finales'!$C$5:$C$34,W72),0,0,COUNTIF($W$6:$W$105,W72))),0) -> 21.22222222
A73: 4 | G73: 0 | H73: 4 | I73: 52 | L73: 0 | M73: 4 | N73: 52 | O73: 52 | R73: 0 | U73: 0 | V73: 0.01923076923 | W73: 4 | X73: =IF(W73<31,AVERAGE(OFFSET(INDEX('Points team et quota finales'!$C$5:$C$34,W73),0,0,COUNTIF($W$6:$W$105,W73))),0) -> 21.22222222
A74: 4 | G74: 0 | H74: 4 | I74: 52 | L74: 0 | M74: 4 | N74: 52 | O74: 52 | R74: 0 | U74: 0 | V74: 0.01923076923 | W74: 4 | X74: =IF(W74<31,AVERAGE(OFFSET(INDEX('Points team et quota finales'!$C$5:$C$34,W74),0,0,COUNTIF($W$6:$W$105,W74))),0) -> 21.22222222
A75: 4 | G75: 0 | H75: 4 | I75: 52 | L75: 0 | M75: 4 | N75: 52 | O75: 52 | R75: 0 | U75: 0 | V75: 0.01923076923 | W75: 4 | X75: =IF(W75<31,AVERAGE(OFFSET(INDEX('Points team et quota finales'!$C$5:$C$34,W75),0,0,COUNTIF($W$6:$W$105,W75))),0) -> 21.22222222
A76: 4 | G76: 0 | H76: 4 | I76: 52 | L76: 0 | M76: 4 | N76: 52 | O76: 52 | R76: 0 | U76: 0 | V76: 0.01923076923 | W76: 4 | X76: =IF(W76<31,AVERAGE(OFFSET(INDEX('Points team et quota finales'!$C$5:$C$34,W76),0,0,COUNTIF($W$6:$W$105,W76))),0) -> 21.22222222
A77: 4 | G77: 0 | H77: 4 | I77: 52 | L77: 0 | M77: 4 | N77: 52 | O77: 52 | R77: 0 | U77: 0 | V77: 0.01923076923 | W77: 4 | X77: =IF(W77<31,AVERAGE(OFFSET(INDEX('Points team et quota finales'!$C$5:$C$34,W77),0,0,COUNTIF($W$6:$W$105,W77))),0) -> 21.22222222
A78: 4 | G78: 0 | H78: 4 | I78: 52 | L78: 0 | M78: 4 | N78: 52 | O78: 52 | R78: 0 | U78: 0 | V78: 0.01923076923 | W78: 4 | X78: =IF(W78<31,AVERAGE(OFFSET(INDEX('Points team et quota finales'!$C$5:$C$34,W78),0,0,COUNTIF($W$6:$W$105,W78))),0) -> 21.22222222
A79: 4 | G79: 0 | H79: 4 | I79: 52 | L79: 0 | M79: 4 | N79: 52 | O79: 52 | R79: 0 | U79: 0 | V79: 0.01923076923 | W79: 4 | X79: =IF(W79<31,AVERAGE(OFFSET(INDEX('Points team et quota finales'!$C$5:$C$34,W79),0,0,COUNTIF($W$6:$W$105,W79))),0) -> 21.22222222
A80: 4 | G80: 0 | H80: 4 | I80: 52 | L80: 0 | M80: 4 | N80: 52 | O80: 52 | R80: 0 | U80: 0 | V80: 0.01923076923 | W80: 4 | X80: =IF(W80<31,AVERAGE(OFFSET(INDEX('Points team et quota finales'!$C$5:$C$34,W80),0,0,COUNTIF($W$6:$W$105,W80))),0) -> 21.22222222
A81: 4 | G81: 0 | H81: 4 | I81: 52 | L81: 0 | M81: 4 | N81: 52 | O81: 52 | R81: 0 | U81: 0 | V81: 0.01923076923 | W81: 4 | X81: =IF(W81<31,AVERAGE(OFFSET(INDEX('Points team et quota finales'!$C$5:$C$34,W81),0,0,COUNTIF($W$6:$W$105,W81))),0) -> 21.22222222
A82: 4 | G82: 0 | H82: 4 | I82: 52 | L82: 0 | M82: 4 | N82: 52 | O82: 52 | R82: 0 | U82: 0 | V82: 0.01923076923 | W82: 4 | X82: =IF(W82<31,AVERAGE(OFFSET(INDEX('Points team et quota finales'!$C$5:$C$34,W82),0,0,COUNTIF($W$6:$W$105,W82))),0) -> 21.22222222
A83: 4 | G83: 0 | H83: 4 | I83: 52 | L83: 0 | M83: 4 | N83: 52 | O83: 52 | R83: 0 | U83: 0 | V83: 0.01923076923 | W83: 4 | X83: =IF(W83<31,AVERAGE(OFFSET(INDEX('Points team et quota finales'!$C$5:$C$34,W83),0,0,COUNTIF($W$6:$W$105,W83))),0) -> 21.22222222
A84: 4 | G84: 0 | H84: 4 | I84: 52 | L84: 0 | M84: 4 | N84: 52 | O84: 52 | R84: 0 | U84: 0 | V84: 0.01923076923 | W84: 4 | X84: =IF(W84<31,AVERAGE(OFFSET(INDEX('Points team et quota finales'!$C$5:$C$34,W84),0,0,COUNTIF($W$6:$W$105,W84))),0) -> 21.22222222
A85: 4 | G85: 0 | H85: 4 | I85: 52 | L85: 0 | M85: 4 | N85: 52 | O85: 52 | R85: 0 | U85: 0 | V85: 0.01923076923 | W85: 4 | X85: =IF(W85<31,AVERAGE(OFFSET(INDEX('Points team et quota finales'!$C$5:$C$34,W85),0,0,COUNTIF($W$6:$W$105,W85))),0) -> 21.22222222
A86: 4 | G86: 0 | H86: 4 | I86: 52 | L86: 0 | M86: 4 | N86: 52 | O86: 52 | R86: 0 | U86: 0 | V86: 0.01923076923 | W86: 4 | X86: =IF(W86<31,AVERAGE(OFFSET(INDEX('Points team et quota finales'!$C$5:$C$34,W86),0,0,COUNTIF($W$6:$W$105,W86))),0) -> 21.22222222
A87: 4 | G87: 0 | H87: 4 | I87: 52 | L87: 0 | M87: 4 | N87: 52 | O87: 52 | R87: 0 | U87: 0 | V87: 0.01923076923 | W87: 4 | X87: =IF(W87<31,AVERAGE(OFFSET(INDEX('Points team et quota finales'!$C$5:$C$34,W87),0,0,COUNTIF($W$6:$W$105,W87))),0) -> 21.22222222
A88: 4 | G88: 0 | H88: 4 | I88: 52 | L88: 0 | M88: 4 | N88: 52 | O88: 52 | R88: 0 | U88: 0 | V88: 0.01923076923 | W88: 4 | X88: =IF(W88<31,AVERAGE(OFFSET(INDEX('Points team et quota finales'!$C$5:$C$34,W88),0,0,COUNTIF($W$6:$W$105,W88))),0) -> 21.22222222
A89: 4 | G89: 0 | H89: 4 | I89: 52 | L89: 0 | M89: 4 | N89: 52 | O89: 52 | R89: 0 | U89: 0 | V89: 0.01923076923 | W89: 4 | X89: =IF(W89<31,AVERAGE(OFFSET(INDEX('Points team et quota finales'!$C$5:$C$34,W89),0,0,COUNTIF($W$6:$W$105,W89))),0) -> 21.22222222
A90: 4 | G90: 0 | H90: 4 | I90: 52 | L90: 0 | M90: 4 | N90: 52 | O90: 52 | R90: 0 | U90: 0 | V90: 0.01923076923 | W90: 4 | X90: =IF(W90<31,AVERAGE(OFFSET(INDEX('Points team et quota finales'!$C$5:$C$34,W90),0,0,COUNTIF($W$6:$W$105,W90))),0) -> 21.22222222
A91: 4 | G91: 0 | H91: 4 | I91: 52 | L91: 0 | M91: 4 | N91: 52 | O91: 52 | R91: 0 | U91: 0 | V91: 0.01923076923 | W91: 4 | X91: =IF(W91<31,AVERAGE(OFFSET(INDEX('Points team et quota finales'!$C$5:$C$34,W91),0,0,COUNTIF($W$6:$W$105,W91))),0) -> 21.22222222
A92: 4 | G92: 0 | H92: 4 | I92: 52 | L92: 0 | M92: 4 | N92: 52 | O92: 52 | R92: 0 | U92: 0 | V92: 0.01923076923 | W92: 4 | X92: =IF(W92<31,AVERAGE(OFFSET(INDEX('Points team et quota finales'!$C$5:$C$34,W92),0,0,COUNTIF($W$6:$W$105,W92))),0) -> 21.22222222
A93: 4 | G93: 0 | H93: 4 | I93: 52 | L93: 0 | M93: 4 | N93: 52 | O93: 52 | R93: 0 | U93: 0 | V93: 0.01923076923 | W93: 4 | X93: =IF(W93<31,AVERAGE(OFFSET(INDEX('Points team et quota finales'!$C$5:$C$34,W93),0,0,COUNTIF($W$6:$W$105,W93))),0) -> 21.22222222
A94: 4 | G94: 0 | H94: 4 | I94: 52 | L94: 0 | M94: 4 | N94: 52 | O94: 52 | R94: 0 | U94: 0 | V94: 0.01923076923 | W94: 4 | X94: =IF(W94<31,AVERAGE(OFFSET(INDEX('Points team et quota finales'!$C$5:$C$34,W94),0,0,COUNTIF($W$6:$W$105,W94))),0) -> 21.22222222
A95: 4 | G95: 0 | H95: 4 | I95: 52 | L95: 0 | M95: 4 | N95: 52 | O95: 52 | R95: 0 | U95: 0 | V95: 0.01923076923 | W95: 4 | X95: =IF(W95<31,AVERAGE(OFFSET(INDEX('Points team et quota finales'!$C$5:$C$34,W95),0,0,COUNTIF($W$6:$W$105,W95))),0) -> 21.22222222
A96: 4 | G96: 0 | H96: 4 | I96: 52 | L96: 0 | M96: 4 | N96: 52 | O96: 52 | R96: 0 | U96: 0 | V96: 0.01923076923 | W96: 4 | X96: =IF(W96<31,AVERAGE(OFFSET(INDEX('Points team et quota finales'!$C$5:$C$34,W96),0,0,COUNTIF($W$6:$W$105,W96))),0) -> 21.22222222
A97: 4 | G97: 0 | H97: 4 | I97: 52 | L97: 0 | M97: 4 | N97: 52 | O97: 52 | R97: 0 | U97: 0 | V97: 0.01923076923 | W97: 4 | X97: =IF(W97<31,AVERAGE(OFFSET(INDEX('Points team et quota finales'!$C$5:$C$34,W97),0,0,COUNTIF($W$6:$W$105,W97))),0) -> 21.22222222
A98: 4 | G98: 0 | H98: 4 | I98: 52 | L98: 0 | M98: 4 | N98: 52 | O98: 52 | R98: 0 | U98: 0 | V98: 0.01923076923 | W98: 4 | X98: =IF(W98<31,AVERAGE(OFFSET(INDEX('Points team et quota finales'!$C$5:$C$34,W98),0,0,COUNTIF($W$6:$W$105,W98))),0) -> 21.22222222
A99: 4 | G99: 0 | H99: 4 | I99: 52 | L99: 0 | M99: 4 | N99: 52 | O99: 52 | R99: 0 | U99: 0 | V99: 0.01923076923 | W99: 4 | X99: =IF(W99<31,AVERAGE(OFFSET(INDEX('Points team et quota finales'!$C$5:$C$34,W99),0,0,COUNTIF($W$6:$W$105,W99))),0) -> 21.22222222
A100: 4 | G100: 0 | H100: 4 | I100: 52 | L100: 0 | M100: 4 | N100: 52 | O100: 52 | R100: 0 | U100: 0 | V100: 0.01923076923 | W100: 4 | X100: =IF(W100<31,AVERAGE(OFFSET(INDEX('Points team et quota finales'!$C$5:$C$34,W100),0,0,COUNTIF($W$6:$W$105,W100))),0) -> 21.22222222
A101: 4 | G101: 0 | H101: 4 | I101: 52 | L101: 0 | M101: 4 | N101: 52 | O101: 52 | R101: 0 | U101: 0 | V101: 0.01923076923 | W101: 4 | X101: =IF(W101<31,AVERAGE(OFFSET(INDEX('Points team et quota finales'!$C$5:$C$34,W101),0,0,COUNTIF($W$6:$W$105,W101))),0) -> 21.22222222
A102: 4 | G102: 0 | H102: 4 | I102: 52 | L102: 0 | M102: 4 | N102: 52 | O102: 52 | R102: 0 | U102: 0 | V102: 0.01923076923 | W102: 4 | X102: =IF(W102<31,AVERAGE(OFFSET(INDEX('Points team et quota finales'!$C$5:$C$34,W102),0,0,COUNTIF($W$6:$W$105,W102))),0) -> 21.22222222
A103: 4 | G103: 0 | H103: 4 | I103: 52 | L103: 0 | M103: 4 | N103: 52 | O103: 52 | R103: 0 | U103: 0 | V103: 0.01923076923 | W103: 4 | X103: =IF(W103<31,AVERAGE(OFFSET(INDEX('Points team et quota finales'!$C$5:$C$34,W103),0,0,COUNTIF($W$6:$W$105,W103))),0) -> 21.22222222
A104: 4 | G104: 0 | H104: 4 | I104: 52 | L104: 0 | M104: 4 | N104: 52 | O104: 52 | R104: 0 | U104: 0 | V104: 0.01923076923 | W104: 4 | X104: =IF(W104<31,AVERAGE(OFFSET(INDEX('Points team et quota finales'!$C$5:$C$34,W104),0,0,COUNTIF($W$6:$W$105,W104))),0) -> 21.22222222
A105: 4 | G105: 0 | H105: 4 | I105: 52 | L105: 0 | M105: 4 | N105: 52 | O105: 52 | R105: 0 | U105: 0 | V105: 0.01923076923 | W105: 4 | X105: =IF(W105<31,AVERAGE(OFFSET(INDEX('Points team et quota finales'!$C$5:$C$34,W105),0,0,COUNTIF($W$6:$W$105,W105))),0) -> 21.22222222
E108: Top = | F108: 24 | J108: Top = | K108: 36 | P108: Top = | Q108: 36 | S108: Top =
B109: =CONCATENATE("Jury President: ",General!$B$6) -> Jury President: Lieven Vlassenroot
B111: Appeal until :

Sheet DM
A2: =CONCATENATE(General!$B$5," - RESULTS D Male") -> Youth Lead Championship 09-03-2013 - RESULTS D Male
A5: RANK | B5: Nr | C5: Name | D5: Team | E5: Route 1 | I5: Ranking Points Route 1 | J5: Route 2 | N5: Ranking Points Route 2 | O5: Root R1 x R2 | P5: Final | S5: Super Final | V5: base pour calcul rang | W5: RANK | X5: Team points
A6: =RANK(V6,$V$6:$V$104) -> 1 | B6: DM08 | C6: VAN MALDEREN Jasper | D6: KLI | E6: TOP | G6: =IF(E6="TOP",$F$107,IF(F6="-",E6-0.01,IF(F6="+",E6+0.01,E6))) -> 28 | H6: =RANK(G6,$G$6:$G$104) -> 1 | I6: =IF(COUNTIF($H$6:$H$104,H6)=1,H6,(H6*2+COUNTIF($H$6:$H$104,H6)-1)/2) -> 5.5 | J6: TOP | L6: =IF(J6="TOP",$K$107,IF(K6="-",J6-0.01,IF(K6="+",J6+0.01,J6))) -> 39 | M6: =RANK(L6,$L$6:$L$104) -> 1 | N6: =IF(COUNTIF($M$6:$M$104,M6)=1,M6,(M6*2+COUNTIF($M$6:$M$104,M6)-1)/2) -> 2 | O6: =SQRT(I6*N6) -> 3.31662479 | P6: 27 | R6: =IF(P6="TOP",$Q$107,IF(Q6="-",P6-0.01,IF(Q6="+",P6+0.01,P6))) -> 27 | U6: =IF($S6="TOP",$T$107,IF($T6="-",$S6-0.01,IF($T6="+",$S6+0.01,$S6))) -> 0 | V6: =IF(U6<>0,U6*1000+R6*100+1/O6,IF(R6<>0,R6*100+1/O6,1/O6)) -> 2700.301511 | W6: =A6 -> 1 | X6: =IF(W6<31,AVERAGE(OFFSET(INDEX('Points team et quota finales'!$C$5:$C$34,W6),0,0,COUNTIF($W$6:$W$104,W6))),0) -> 100
A7: 2 | B7: DM11 | C7: FERRARI Luca | D7: STC | E7: TOP | G7: 28 | H7: 1 | I7: 5.5 | J7: TOP | L7: 39 | M7: 1 | N7: 2 | O7: 3.31662479 | P7: 14 | Q7: + | R7: 14.01 | U7: 0 | V7: 1401.301511 | W7: 2 | X7: =IF(W7<31,AVERAGE(OFFSET(INDEX('Points team et quota finales'!$C$5:$C$34,W7),0,0,COUNTIF($W$6:$W$104,W7))),0) -> 80
A8: 3 | B8: DM06 | C8: VANCRAEYNEST Ties | D8: KLI | E8: TOP | G8: 28 | H8: 1 | I8: 5.5 | J8: TOP | L8: 39 | M8: 1 | N8: 2 | O8: 3.31662479 | P8: 14 | R8: 14 | U8: 0 | V8: 1400.301511 | W8: 3 | X8: =IF(W8<31,AVERAGE(OFFSET(INDEX('Points team et quota finales'!$C$5:$C$34,W8),0,0,COUNTIF($W$6:$W$104,W8))),0) -> 65
A9: 4 | B9: DM02 | C9: BOYEN Ian | D9: SPR | E9: TOP | G9: 28 | H9: 1 | I9: 5.5 | J9: 30 | K9: + | L9: 30.01 | M9: 4 | N9: 4 | O9: 4.69041576 | P9: 13 | Q9: + | R9: 13.01 | U9: 0 | V9: 1301.213201 | W9: 4 | X9: =IF(W9<31,AVERAGE(OFFSET(INDEX('Points team et quota finales'!$C$5:$C$34,W9),0,0,COUNTIF($W$6:$W$104,W9))),0) -> 55
A10: 5 | B10: DM05 | C10: STIJNS Mika | D10: ECT | E10: TOP | G10: 28 | H10: 1 | I10: 5.5 | J10: 30 | L10: 30 | M10: 5 | N10: 5.5 | O10: 5.5 | P10: 13 | Q10: + | R10: 13.01 | U10: 0 | V10: 1301.181818 | W10: 5 | X10: =IF(W10<31,AVERAGE(OFFSET(INDEX('Points team et quota finales'!$C$5:$C$34,W10),0,0,COUNTIF($W$6:$W$104,W10))),0) -> 51
A11: 6 | B11: DM03 | C11: ODOBESCU William | D11: ESC | E11: TOP | G11: 28 | H11: 1 | I11: 5.5 | J11: 30 | L11: 30 | M11: 5 | N11: 5.5 | O11: 5.5 | P11: 10 | Q11: + | R11: 10.01 | U11: 0 | V11: 1001.181818 | W11: 6 | X11: =IF(W11<31,AVERAGE(OFFSET(INDEX('Points team et quota finales'!$C$5:$C$34,W11),0,0,COUNTIF($W$6:$W$104,W11))),0) -> 47
A12: 7 | B12: DM10 | C12: VINK John-Alexandre | D12: ECT | E12: TOP | G12: 28 | H12: 1 | I12: 5.5 | J12: 28 | K12: + | L12: 28.01 | M12: 7 | N12: 7 | O12: 6.204836823 | R12: 0 | U12: 0 | V12: 0.1611645928 | W12: 7 | X12: =IF(W12<31,AVERAGE(OFFSET(INDEX('Points team et quota finales'!$C$5:$C$34,W12),0,0,COUNTIF($W$6:$W$104,W12))),0) -> 43
A13: 8 | B13: DM07 | C13: MARCHAL Samuel | D13: ECT | E13: TOP | G13: 28 | H13: 1 | I13: 5.5 | J13: 23 | K13: + | L13: 23.01 | M13: 8 | N13: 8 | O13: 6.633249581 | R13: 0 | U13: 0 | V13: 0.1507556723 | W13: 8 | X13: =IF(W13<31,AVERAGE(OFFSET(INDEX('Points team et quota finales'!$C$5:$C$34,W13),0,0,COUNTIF($W$6:$W$104,W13))),0) -> 40
A14: 9 | B14: DM09 | C14: BEDETTI Romain | D14: CC | E14: TOP | G14: 28 | H14: 1 | I14: 5.5 | J14: 17 | K14: + | L14: 17.01 | M14: 9 | N14: 9 | O14: 7.03562364 | R14: 0 | U14: 0 | V14: 0.1421338109 | W14: 9 | X14: =IF(W14<31,AVERAGE(OFFSET(INDEX('Points team et quota finales'!$C$5:$C$34,W14),0,0,COUNTIF($W$6:$W$104,W14))),0) -> 37
A15: 10 | B15: DM04 | C15: BERGIERS Nathan | D15: ECT | E15: TOP | G15: 28 | H15: 1 | I15: 5.5 | J15: 17 | L15: 17 | M15: 10 | N15: 10 | O15: 7.416198487 | R15: 0 | U15: 0 | V15: 0.1348399725 | W15: 10 | X15: =IF(W15<31,AVERAGE(OFFSET(INDEX('Points team et quota finales'!$C$5:$C$34,W15),0,0,COUNTIF($W$6:$W$104,W15))),0) -> 34
A16: 11 | G16: 0 | H16: 11 | I16: 55 | L16: 0 | M16: 11 | N16: 55 | O16: 55 | R16: 0 | U16: 0 | V16: 0.01818181818 | W16: 11 | X16: =IF(W16<31,AVERAGE(OFFSET(INDEX('Points team et quota finales'!$C$5:$C$34,W16),0,0,COUNTIF($W$6:$W$104,W16))),0) -> 13.3
A17: 11 | G17: 0 | H17: 11 | I17: 55 | L17: 0 | M17: 11 | N17: 55 | O17: 55 | R17: 0 | U17: 0 | V17: 0.01818181818 | W17: 11 | X17: =IF(W17<31,AVERAGE(OFFSET(INDEX('Points team et quota finales'!$C$5:$C$34,W17),0,0,COUNTIF($W$6:$W$104,W17))),0) -> 13.3
A18: 11 | G18: 0 | H18: 11 | I18: 55 | L18: 0 | M18: 11 | N18: 55 | O18: 55 | R18: 0 | U18: 0 | V18: 0.01818181818 | W18: 11 | X18: =IF(W18<31,AVERAGE(OFFSET(INDEX('Points team et quota finales'!$C$5:$C$34,W18),0,0,COUNTIF($W$6:$W$104,W18))),0) -> 13.3
A19: 11 | G19: 0 | H19: 11 | I19: 55 | L19: 0 | M19: 11 | N19: 55 | O19: 55 | R19: 0 | U19: 0 | V19: 0.01818181818 | W19: 11 | X19: =IF(W19<31,AVERAGE(OFFSET(INDEX('Points team et quota finales'!$C$5:$C$34,W19),0,0,COUNTIF($W$6:$W$104,W19))),0) -> 13.3
A20: 11 | G20: 0 | H20: 11 | I20: 55 | L20: 0 | M20: 11 | N20: 55 | O20: 55 | R20: 0 | U20: 0 | V20: 0.01818181818 | W20: 11 | X20: =IF(W20<31,AVERAGE(OFFSET(INDEX('Points team et quota finales'!$C$5:$C$34,W20),0,0,COUNTIF($W$6:$W$104,W20))),0) -> 13.3
A21: 11 | G21: 0 | H21: 11 | I21: 55 | L21: 0 | M21: 11 | N21: 55 | O21: 55 | R21: 0 | U21: 0 | V21: 0.01818181818 | W21: 11 | X21: =IF(W21<31,AVERAGE(OFFSET(INDEX('Points team et quota finales'!$C$5:$C$34,W21),0,0,COUNTIF($W$6:$W$104,W21))),0) -> 13.3
A22: 11 | G22: 0 | H22: 11 | I22: 55 | L22: 0 | M22: 11 | N22: 55 | O22: 55 | R22: 0 | U22: 0 | V22: 0.01818181818 | W22: 11 | X22: =IF(W22<31,AVERAGE(OFFSET(INDEX('Points team et quota finales'!$C$5:$C$34,W22),0,0,COUNTIF($W$6:$W$104,W22))),0) -> 13.3
A23: 11 | G23: 0 | H23: 11 | I23: 55 | L23: 0 | M23: 11 | N23: 55 | O23: 55 | R23: 0 | U23: 0 | V23: 0.01818181818 | W23: 11 | X23: =IF(W23<31,AVERAGE(OFFSET(INDEX('Points team et quota finales'!$C$5:$C$34,W23),0,0,COUNTIF($W$6:$W$104,W23))),0) -> 13.3
A24: 11 | G24: 0 | H24: 11 | I24: 55 | L24: 0 | M24: 11 | N24: 55 | O24: 55 | R24: 0 | U24: 0 | V24: 0.01818181818 | W24: 11 | X24: =IF(W24<31,AVERAGE(OFFSET(INDEX('Points team et quota finales'!$C$5:$C$34,W24),0,0,COUNTIF($W$6:$W$104,W24))),0) -> 13.3
A25: 11 | G25: 0 | H25: 11 | I25: 55 | L25: 0 | M25: 11 | N25: 55 | O25: 55 | R25: 0 | U25: 0 | V25: 0.01818181818 | W25: 11 | X25: =IF(W25<31,AVERAGE(OFFSET(INDEX('Points team et quota finales'!$C$5:$C$34,W25),0,0,COUNTIF($W$6:$W$104,W25))),0) -> 13.3
A26: 11 | G26: 0 | H26: 11 | I26: 55 | L26: 0 | M26: 11 | N26: 55 | O26: 55 | R26: 0 | U26: 0 | V26: 0.01818181818 | W26: 11 | X26: =IF(W26<31,AVERAGE(OFFSET(INDEX('Points team et quota finales'!$C$5:$C$34,W26),0,0,COUNTIF($W$6:$W$104,W26))),0) -> 13.3
A27: 11 | G27: 0 | H27: 11 | I27: 55 | L27: 0 | M27: 11 | N27: 55 | O27: 55 | R27: 0 | U27: 0 | V27: 0.01818181818 | W27: 11 | X27: =IF(W27<31,AVERAGE(OFFSET(INDEX('Points team et quota finales'!$C$5:$C$34,W27),0,0,COUNTIF($W$6:$W$104,W27))),0) -> 13.3
A28: 11 | G28: 0 | H28: 11 | I28: 55 | L28: 0 | M28: 11 | N28: 55 | O28: 55 | R28: 0 | U28: 0 | V28: 0.01818181818 | W28: 11 | X28: =IF(W28<31,AVERAGE(OFFSET(INDEX('Points team et quota finales'!$C$5:$C$34,W28),0,0,COUNTIF($W$6:$W$104,W28))),0) -> 13.3
A29: 11 | G29: 0 | H29: 11 | I29: 55 | L29: 0 | M29: 11 | N29: 55 | O29: 55 | R29: 0 | U29: 0 | V29: 0.01818181818 | W29: 11 | X29: =IF(W29<31,AVERAGE(OFFSET(INDEX('Points team et quota finales'!$C$5:$C$34,W29),0,0,COUNTIF($W$6:$W$104,W29))),0) -> 13.3
A30: 11 | G30: 0 | H30: 11 | I30: 55 | L30: 0 | M30: 11 | N30: 55 | O30: 55 | R30: 0 | U30: 0 | V30: 0.01818181818 | W30: 11 | X30: =IF(W30<31,AVERAGE(OFFSET(INDEX('Points team et quota finales'!$C$5:$C$34,W30),0,0,COUNTIF($W$6:$W$104,W30))),0) -> 13.3
A31: 11 | G31: 0 | H31: 11 | I31: 55 | L31: 0 | M31: 11 | N31: 55 | O31: 55 | R31: 0 | U31: 0 | V31: 0.01818181818 | W31: 11 | X31: =IF(W31<31,AVERAGE(OFFSET(INDEX('Points team et quota finales'!$C$5:$C$34,W31),0,0,COUNTIF($W$6:$W$104,W31))),0) -> 13.3
A32: 11 | G32: 0 | H32: 11 | I32: 55 | L32: 0 | M32: 11 | N32: 55 | O32: 55 | R32: 0 | U32: 0 | V32: 0.01818181818 | W32: 11 | X32: =IF(W32<31,AVERAGE(OFFSET(INDEX('Points team et quota finales'!$C$5:$C$34,W32),0,0,COUNTIF($W$6:$W$104,W32))),0) -> 13.3
A33: 11 | G33: 0 | H33: 11 | I33: 55 | L33: 0 | M33: 11 | N33: 55 | O33: 55 | R33: 0 | U33: 0 | V33: 0.01818181818 | W33: 11 | X33: =IF(W33<31,AVERAGE(OFFSET(INDEX('Points team et quota finales'!$C$5:$C$34,W33),0,0,COUNTIF($W$6:$W$104,W33))),0) -> 13.3
A34: 11 | G34: 0 | H34: 11 | I34: 55 | L34: 0 | M34: 11 | N34: 55 | O34: 55 | R34: 0 | U34: 0 | V34: 0.01818181818 | W34: 11 | X34: =IF(W34<31,AVERAGE(OFFSET(INDEX('Points team et quota finales'!$C$5:$C$34,W34),0,0,COUNTIF($W$6:$W$104,W34))),0) -> 13.3
A35: 11 | G35: 0 | H35: 11 | I35: 55 | L35: 0 | M35: 11 | N35: 55 | O35: 55 | R35: 0 | U35: 0 | V35: 0.01818181818 | W35: 11 | X35: =IF(W35<31,AVERAGE(OFFSET(INDEX('Points team et quota finales'!$C$5:$C$34,W35),0,0,COUNTIF($W$6:$W$104,W35))),0) -> 13.3
A36: 11 | G36: 0 | H36: 11 | I36: 55 | L36: 0 | M36: 11 | N36: 55 | O36: 55 | R36: 0 | U36: 0 | V36: 0.01818181818 | W36: 11 | X36: =IF(W36<31,AVERAGE(OFFSET(INDEX('Points team et quota finales'!$C$5:$C$34,W36),0,0,COUNTIF($W$6:$W$104,W36))),0) -> 13.3
A37: 11 | G37: 0 | H37: 11 | I37: 55 | L37: 0 | M37: 11 | N37: 55 | O37: 55 | R37: 0 | U37: 0 | V37: 0.01818181818 | W37: 11 | X37: =IF(W37<31,AVERAGE(OFFSET(INDEX('Points team et quota finales'!$C$5:$C$34,W37),0,0,COUNTIF($W$6:$W$104,W37))),0) -> 13.3
A38: =RANK(V38,$V$6:$V$104) -> 11 | G38: =IF(E38="TOP",$F$107,IF(F38="-",E38-0.01,IF(F38="+",E38+0.01,E38))) -> 0 | H38: =RANK(G38,$G$6:$G$104) -> 11 | I38: =IF(COUNTIF($H$6:$H$104,H38)=1,H38,(H38*2+COUNTIF($H$6:$H$104,H38)-1)/2) -> 55 | L38: =IF(J38="TOP",$K$107,IF(K38="-",J38-0.01,IF(K38="+",J38+0.01,J38))) -> 0 | M38: =RANK(L38,$L$6:$L$104) -> 11 | N38: =IF(COUNTIF($M$6:$M$104,M38)=1,M38,(M38*2+COUNTIF($M$6:$M$104,M38)-1)/2) -> 55 | O38: =SQRT(I38*N38) -> 55 | R38: =IF(P38="TOP",$Q$107,IF(Q38="-",P38-0.01,IF(Q38="+",P38+0.01,P38))) -> 0 | U38: =IF($S38="TOP",$T$107,IF($T38="-",$S38-0.01,IF($T38="+",$S38+0.01,$S38))) -> 0 | V38: =IF(U38<>0,U38*1000+R38*100+1/O38,IF(R38<>0,R38*100+1/O38,1/O38)) -> 0.01818181818 | W38: 11 | X38: =IF(W38<31,AVERAGE(OFFSET(INDEX('Points team et quota finales'!$C$5:$C$34,W38),0,0,COUNTIF($W$6:$W$104,W38))),0) -> 13.3
A39: 11 | G39: 0 | H39: 11 | I39: 55 | L39: 0 | M39: 11 | N39: 55 | O39: 55 | R39: 0 | U39: 0 | V39: 0.01818181818 | W39: 11 | X39: =IF(W39<31,AVERAGE(OFFSET(INDEX('Points team et quota finales'!$C$5:$C$34,W39),0,0,COUNTIF($W$6:$W$104,W39))),0) -> 13.3
A40: 11 | G40: 0 | H40: 11 | I40: 55 | L40: 0 | M40: 11 | N40: 55 | O40: 55 | R40: 0 | U40: 0 | V40: 0.01818181818 | W40: 11 | X40: =IF(W40<31,AVERAGE(OFFSET(INDEX('Points team et quota finales'!$C$5:$C$34,W40),0,0,COUNTIF($W$6:$W$104,W40))),0) -> 13.3
A41: 11 | G41: 0 | H41: 11 | I41: 55 | L41: 0 | M41: 11 | N41: 55 | O41: 55 | R41: 0 | U41: 0 | V41: 0.01818181818 | W41: 11 | X41: =IF(W41<31,AVERAGE(OFFSET(INDEX('Points team et quota finales'!$C$5:$C$34,W41),0,0,COUNTIF($W$6:$W$104,W41))),0) -> 13.3
A42: 11 | G42: 0 | H42: 11 | I42: 55 | L42: 0 | M42: 11 | N42: 55 | O42: 55 | R42: 0 | U42: 0 | V42: 0.01818181818 | W42: 11 | X42: =IF(W42<31,AVERAGE(OFFSET(INDEX('Points team et quota finales'!$C$5:$C$34,W42),0,0,COUNTIF($W$6:$W$104,W42))),0) -> 13.3
A43: 11 | G43: 0 | H43: 11 | I43: 55 | L43: 0 | M43: 11 | N43: 55 | O43: 55 | R43: 0 | U43: 0 | V43: 0.01818181818 | W43: 11 | X43: =IF(W43<31,AVERAGE(OFFSET(INDEX('Points team et quota finales'!$C$5:$C$34,W43),0,0,COUNTIF($W$6:$W$104,W43))),0) -> 13.3
A44: 11 | G44: 0 | H44: 11 | I44: 55 | L44: 0 | M44: 11 | N44: 55 | O44: 55 | R44: 0 | U44: 0 | V44: 0.01818181818 | W44: 11 | X44: =IF(W44<31,AVERAGE(OFFSET(INDEX('Points team et quota finales'!$C$5:$C$34,W44),0,0,COUNTIF($W$6:$W$104,W44))),0) -> 13.3
A45: 11 | G45: 0 | H45: 11 | I45: 55 | L45: 0 | M45: 11 | N45: 55 | O45: 55 | R45: 0 | U45: 0 | V45: 0.01818181818 | W45: 11 | X45: =IF(W45<31,AVERAGE(OFFSET(INDEX('Points team et quota finales'!$C$5:$C$34,W45),0,0,COUNTIF($W$6:$W$104,W45))),0) -> 13.3
A46: 11 | G46: 0 | H46: 11 | I46: 55 | L46: 0 | M46: 11 | N46: 55 | O46: 55 | R46: 0 | U46: 0 | V46: 0.01818181818 | W46: 11 | X46: =IF(W46<31,AVERAGE(OFFSET(INDEX('Points team et quota finales'!$C$5:$C$34,W46),0,0,COUNTIF($W$6:$W$104,W46))),0) -> 13.3
A47: 11 | G47: 0 | H47: 11 | I47: 55 | L47: 0 | M47: 11 | N47: 55 | O47: 55 | R47: 0 | U47: 0 | V47: 0.01818181818 | W47: 11 | X47: =IF(W47<31,AVERAGE(OFFSET(INDEX('Points team et quota finales'!$C$5:$C$34,W47),0,0,COUNTIF($W$6:$W$104,W47))),0) -> 13.3
A48: 11 | G48: 0 | H48: 11 | I48: 55 | L48: 0 | M48: 11 | N48: 55 | O48: 55 | R48: 0 | U48: 0 | V48: 0.01818181818 | W48: 11 | X48: =IF(W48<31,AVERAGE(OFFSET(INDEX('Points team et quota finales'!$C$5:$C$34,W48),0,0,COUNTIF($W$6:$W$104,W48))),0) -> 13.3
A49: 11 | G49: 0 | H49: 11 | I49: 55 | L49: 0 | M49: 11 | N49: 55 | O49: 55 | R49: 0 | U49: 0 | V49: 0.01818181818 | W49: 11 | X49: =IF(W49<31,AVERAGE(OFFSET(INDEX('Points team et quota finales'!$C$5:$C$34,W49),0,0,COUNTIF($W$6:$W$104,W49))),0) -> 13.3
A50: 11 | G50: 0 | H50: 11 | I50: 55 | L50: 0 | M50: 11 | N50: 55 | O50: 55 | R50: 0 | U50: 0 | V50: 0.01818181818 | W50: 11 | X50: =IF(W50<31,AVERAGE(OFFSET(INDEX('Points team et quota finales'!$C$5:$C$34,W50),0,0,COUNTIF($W$6:$W$104,W50))),0) -> 13.3
A51: 11 | G51: 0 | H51: 11 | I51: 55 | L51: 0 | M51: 11 | N51: 55 | O51: 55 | R51: 0 | U51: 0 | V51: 0.01818181818 | W51: 11 | X51: =IF(W51<31,AVERAGE(OFFSET(INDEX('Points team et quota finales'!$C$5:$C$34,W51),0,0,COUNTIF($W$6:$W$104,W51))),0) -> 13.3
A52: 11 | G52: 0 | H52: 11 | I52: 55 | L52: 0 | M52: 11 | N52: 55 | O52: 55 | R52: 0 | U52: 0 | V52: 0.01818181818 | W52: 11 | X52: =IF(W52<31,AVERAGE(OFFSET(INDEX('Points team et quota finales'!$C$5:$C$34,W52),0,0,COUNTIF($W$6:$W$104,W52))),0) -> 13.3
A53: 11 | G53: 0 | H53: 11 | I53: 55 | L53: 0 | M53: 11 | N53: 55 | O53: 55 | R53: 0 | U53: 0 | V53: 0.01818181818 | W53: 11 | X53: =IF(W53<31,AVERAGE(OFFSET(INDEX('Points team et quota finales'!$C$5:$C$34,W53),0,0,COUNTIF($W$6:$W$104,W53))),0) -> 13.3
A54: 11 | G54: 0 | H54: 11 | I54: 55 | L54: 0 | M54: 11 | N54: 55 | O54: 55 | R54: 0 | U54: 0 | V54: 0.01818181818 | W54: 11 | X54: =IF(W54<31,AVERAGE(OFFSET(INDEX('Points team et quota finales'!$C$5:$C$34,W54),0,0,COUNTIF($W$6:$W$104,W54))),0) -> 13.3
A55: 11 | G55: 0 | H55: 11 | I55: 55 | L55: 0 | M55: 11 | N55: 55 | O55: 55 | R55: 0 | U55: 0 | V55: 0.01818181818 | W55: 11 | X55: =IF(W55<31,AVERAGE(OFFSET(INDEX('Points team et quota finales'!$C$5:$C$34,W55),0,0,COUNTIF($W$6:$W$104,W55))),0) -> 13.3
A56: 11 | G56: 0 | H56: 11 | I56: 55 | L56: 0 | M56: 11 | N56: 55 | O56: 55 | R56: 0 | U56: 0 | V56: 0.01818181818 | W56: 11 | X56: =IF(W56<31,AVERAGE(OFFSET(INDEX('Points team et quota finales'!$C$5:$C$34,W56),0,0,COUNTIF($W$6:$W$104,W56))),0) -> 13.3
A57: 11 | G57: 0 | H57: 11 | I57: 55 | L57: 0 | M57: 11 | N57: 55 | O57: 55 | R57: 0 | U57: 0 | V57: 0.01818181818 | W57: 11 | X57: =IF(W57<31,AVERAGE(OFFSET(INDEX('Points team et quota finales'!$C$5:$C$34,W57),0,0,COUNTIF($W$6:$W$104,W57))),0) -> 13.3
A58: 11 | G58: 0 | H58: 11 | I58: 55 | L58: 0 | M58: 11 | N58: 55 | O58: 55 | R58: 0 | U58: 0 | V58: 0.01818181818 | W58: 11 | X58: =IF(W58<31,AVERAGE(OFFSET(INDEX('Points team et quota finales'!$C$5:$C$34,W58),0,0,COUNTIF($W$6:$W$104,W58))),0) -> 13.3
A59: 11 | G59: 0 | H59: 11 | I59: 55 | L59: 0 | M59: 11 | N59: 55 | O59: 55 | R59: 0 | U59: 0 | V59: 0.01818181818 | W59: 11 | X59: =IF(W59<31,AVERAGE(OFFSET(INDEX('Points team et quota finales'!$C$5:$C$34,W59),0,0,COUNTIF($W$6:$W$104,W59))),0) -> 13.3
A60: 11 | G60: 0 | H60: 11 | I60: 55 | L60: 0 | M60: 11 | N60: 55 | O60: 55 | R60: 0 | U60: 0 | V60: 0.01818181818 | W60: 11 | X60: =IF(W60<31,AVERAGE(OFFSET(INDEX('Points team et quota finales'!$C$5:$C$34,W60),0,0,COUNTIF($W$6:$W$104,W60))),0) -> 13.3
A61: 11 | G61: 0 | H61: 11 | I61: 55 | L61: 0 | M61: 11 | N61: 55 | O61: 55 | R61: 0 | U61: 0 | V61: 0.01818181818 | W61: 11 | X61: =IF(W61<31,AVERAGE(OFFSET(INDEX('Points team et quota finales'!$C$5:$C$34,W61),0,0,COUNTIF($W$6:$W$104,W61))),0) -> 13.3
A62: 11 | G62: 0 | H62: 11 | I62: 55 | L62: 0 | M62: 11 | N62: 55 | O62: 55 | R62: 0 | U62: 0 | V62: 0.01818181818 | W62: 11 | X62: =IF(W62<31,AVERAGE(OFFSET(INDEX('Points team et quota finales'!$C$5:$C$34,W62),0,0,COUNTIF($W$6:$W$104,W62))),0) -> 13.3
A63: 11 | G63: 0 | H63: 11 | I63: 55 | L63: 0 | M63: 11 | N63: 55 | O63: 55 | R63: 0 | U63: 0 | V63: 0.01818181818 | W63: 11 | X63: =IF(W63<31,AVERAGE(OFFSET(INDEX('Points team et quota finales'!$C$5:$C$34,W63),0,0,COUNTIF($W$6:$W$104,W63))),0) -> 13.3
A64: 11 | G64: 0 | H64: 11 | I64: 55 | L64: 0 | M64: 11 | N64: 55 | O64: 55 | R64: 0 | U64: 0 | V64: 0.01818181818 | W64: 11 | X64: =IF(W64<31,AVERAGE(OFFSET(INDEX('Points team et quota finales'!$C$5:$C$34,W64),0,0,COUNTIF($W$6:$W$104,W64))),0) -> 13.3
A65: 11 | G65: 0 | H65: 11 | I65: 55 | L65: 0 | M65: 11 | N65: 55 | O65: 55 | R65: 0 | U65: 0 | V65: 0.01818181818 | W65: 11 | X65: =IF(W65<31,AVERAGE(OFFSET(INDEX('Points team et quota finales'!$C$5:$C$34,W65),0,0,COUNTIF($W$6:$W$104,W65))),0) -> 13.3
A66: 11 | G66: 0 | H66: 11 | I66: 55 | L66: 0 | M66: 11 | N66: 55 | O66: 55 | R66: 0 | U66: 0 | V66: 0.01818181818 | W66: 11 | X66: =IF(W66<31,AVERAGE(OFFSET(INDEX('Points team et quota finales'!$C$5:$C$34,W66),0,0,COUNTIF($W$6:$W$104,W66))),0) -> 13.3
A67: 11 | G67: 0 | H67: 11 | I67: 55 | L67: 0 | M67: 11 | N67: 55 | O67: 55 | R67: 0 | U67: 0 | V67: 0.01818181818 | W67: 11 | X67: =IF(W67<31,AVERAGE(OFFSET(INDEX('Points team et quota finales'!$C$5:$C$34,W67),0,0,COUNTIF($W$6:$W$104,W67))),0) -> 13.3
A68: 11 | G68: 0 | H68: 11 | I68: 55 | L68: 0 | M68: 11 | N68: 55 | O68: 55 | R68: 0 | U68: 0 | V68: 0.01818181818 | W68: 11 | X68: =IF(W68<31,AVERAGE(OFFSET(INDEX('Points team et quota finales'!$C$5:$C$34,W68),0,0,COUNTIF($W$6:$W$104,W68))),0) -> 13.3
A69: 11 | G69: 0 | H69: 11 | I69: 55 | L69: 0 | M69: 11 | N69: 55 | O69: 55 | R69: 0 | U69: 0 | V69: 0.01818181818 | W69: =A69 -> 11 | X69: =IF(W69<31,AVERAGE(OFFSET(INDEX('Points team et quota finales'!$C$5:$C$34,W69),0,0,COUNTIF($W$6:$W$104,W69))),0) -> 13.3
A70: =RANK(V70,$V$6:$V$104) -> 11 | G70: =IF(E70="TOP",$F$107,IF(F70="-",E70-0.01,IF(F70="+",E70+0.01,E70))) -> 0 | H70: =RANK(G70,$G$6:$G$104) -> 11 | I70: =IF(COUNTIF($H$6:$H$104,H70)=1,H70,(H70*2+COUNTIF($H$6:$H$104,H70)-1)/2) -> 55 | L70: =IF(J70="TOP",$K$107,IF(K70="-",J70-0.01,IF(K70="+",J70+0.01,J70))) -> 0 | M70: =RANK(L70,$L$6:$L$104) -> 11 | N70: =IF(COUNTIF($M$6:$M$104,M70)=1,M70,(M70*2+COUNTIF($M$6:$M$104,M70)-1)/2) -> 55 | O70: =SQRT(I70*N70) -> 55 | R70: =IF(P70="TOP",$Q$107,IF(Q70="-",P70-0.01,IF(Q70="+",P70+0.01,P70))) -> 0 | U70: =IF($S70="TOP",$T$107,IF($T70="-",$S70-0.01,IF($T70="+",$S70+0.01,$S70))) -> 0 | V70: =IF(U70<>0,U70*1000+R70*100+1/O70,IF(R70<>0,R70*100+1/O70,1/O70)) -> 0.01818181818 | W70: 11 | X70: =IF(W70<31,AVERAGE(OFFSET(INDEX('Points team et quota finales'!$C$5:$C$34,W70),0,0,COUNTIF($W$6:$W$104,W70))),0) -> 13.3
A71: 11 | G71: 0 | H71: 11 | I71: 55 | L71: 0 | M71: 11 | N71: 55 | O71: 55 | R71: 0 | U71: 0 | V71: 0.01818181818 | W71: 11 | X71: =IF(W71<31,AVERAGE(OFFSET(INDEX('Points team et quota finales'!$C$5:$C$34,W71),0,0,COUNTIF($W$6:$W$104,W71))),0) -> 13.3
A72: 11 | G72: 0 | H72: 11 | I72: 55 | L72: 0 | M72: 11 | N72: 55 | O72: 55 | R72: 0 | U72: 0 | V72: 0.01818181818 | W72: 11 | X72: =IF(W72<31,AVERAGE(OFFSET(INDEX('Points team et quota finales'!$C$5:$C$34,W72),0,0,COUNTIF($W$6:$W$104,W72))),0) -> 13.3
A73: 11 | G73: 0 | H73: 11 | I73: 55 | L73: 0 | M73: 11 | N73: 55 | O73: 55 | R73: 0 | U73: 0 | V73: 0.01818181818 | W73: 11 | X73: =IF(W73<31,AVERAGE(OFFSET(INDEX('Points team et quota finales'!$C$5:$C$34,W73),0,0,COUNTIF($W$6:$W$104,W73))),0) -> 13.3
A74: 11 | G74: 0 | H74: 11 | I74: 55 | L74: 0 | M74: 11 | N74: 55 | O74: 55 | R74: 0 | U74: 0 | V74: 0.01818181818 | W74: 11 | X74: =IF(W74<31,AVERAGE(OFFSET(INDEX('Points team et quota finales'!$C$5:$C$34,W74),0,0,COUNTIF($W$6:$W$104,W74))),0) -> 13.3
A75: 11 | G75: 0 | H75: 11 | I75: 55 | L75: 0 | M75: 11 | N75: 55 | O75: 55 | R75: 0 | U75: 0 | V75: 0.01818181818 | W75: 11 | X75: =IF(W75<31,AVERAGE(OFFSET(INDEX('Points team et quota finales'!$C$5:$C$34,W75),0,0,COUNTIF($W$6:$W$104,W75))),0) -> 13.3
A76: 11 | G76: 0 | H76: 11 | I76: 55 | L76: 0 | M76: 11 | N76: 55 | O76: 55 | R76: 0 | U76: 0 | V76: 0.01818181818 | W76: 11 | X76: =IF(W76<31,AVERAGE(OFFSET(INDEX('Points team et quota finales'!$C$5:$C$34,W76),0,0,COUNTIF($W$6:$W$104,W76))),0) -> 13.3
A77: 11 | G77: 0 | H77: 11 | I77: 55 | L77: 0 | M77: 11 | N77: 55 | O77: 55 | R77: 0 | U77: 0 | V77: 0.01818181818 | W77: 11 | X77: =IF(W77<31,AVERAGE(OFFSET(INDEX('Points team et quota finales'!$C$5:$C$34,W77),0,0,COUNTIF($W$6:$W$104,W77))),0) -> 13.3
A78: 11 | G78: 0 | H78: 11 | I78: 55 | L78: 0 | M78: 11 | N78: 55 | O78: 55 | R78: 0 | U78: 0 | V78: 0.01818181818 | W78: 11 | X78: =IF(W78<31,AVERAGE(OFFSET(INDEX('Points team et quota finales'!$C$5:$C$34,W78),0,0,COUNTIF($W$6:$W$104,W78))),0) -> 13.3
A79: 11 | G79: 0 | H79: 11 | I79: 55 | L79: 0 | M79: 11 | N79: 55 | O79: 55 | R79: 0 | U79: 0 | V79: 0.01818181818 | W79: 11 | X79: =IF(W79<31,AVERAGE(OFFSET(INDEX('Points team et quota finales'!$C$5:$C$34,W79),0,0,COUNTIF($W$6:$W$104,W79))),0) -> 13.3
A80: 11 | G80: 0 | H80: 11 | I80: 55 | L80: 0 | M80: 11 | N80: 55 | O80: 55 | R80: 0 | U80: 0 | V80: 0.01818181818 | W80: 11 | X80: =IF(W80<31,AVERAGE(OFFSET(INDEX('Points team et quota finales'!$C$5:$C$34,W80),0,0,COUNTIF($W$6:$W$104,W80))),0) -> 13.3
A81: 11 | G81: 0 | H81: 11 | I81: 55 | L81: 0 | M81: 11 | N81: 55 | O81: 55 | R81: 0 | U81: 0 | V81: 0.01818181818 | W81: 11 | X81: =IF(W81<31,AVERAGE(OFFSET(INDEX('Points team et quota finales'!$C$5:$C$34,W81),0,0,COUNTIF($W$6:$W$104,W81))),0) -> 13.3
A82: 11 | G82: 0 | H82: 11 | I82: 55 | L82: 0 | M82: 11 | N82: 55 | O82: 55 | R82: 0 | U82: 0 | V82: 0.01818181818 | W82: 11 | X82: =IF(W82<31,AVERAGE(OFFSET(INDEX('Points team et quota finales'!$C$5:$C$34,W82),0,0,COUNTIF($W$6:$W$104,W82))),0) -> 13.3
A83: 11 | G83: 0 | H83: 11 | I83: 55 | L83: 0 | M83: 11 | N83: 55 | O83: 55 | R83: 0 | U83: 0 | V83: 0.01818181818 | W83: 11 | X83: =IF(W83<31,AVERAGE(OFFSET(INDEX('Points team et quota finales'!$C$5:$C$34,W83),0,0,COUNTIF($W$6:$W$104,W83))),0) -> 13.3
A84: 11 | G84: 0 | H84: 11 | I84: 55 | L84: 0 | M84: 11 | N84: 55 | O84: 55 | R84: 0 | U84: 0 | V84: 0.01818181818 | W84: 11 | X84: =IF(W84<31,AVERAGE(OFFSET(INDEX('Points team et quota finales'!$C$5:$C$34,W84),0,0,COUNTIF($W$6:$W$104,W84))),0) -> 13.3
A85: 11 | G85: 0 | H85: 11 | I85: 55 | L85: 0 | M85: 11 | N85: 55 | O85: 55 | R85: 0 | U85: 0 | V85: 0.01818181818 | W85: 11 | X85: =IF(W85<31,AVERAGE(OFFSET(INDEX('Points team et quota finales'!$C$5:$C$34,W85),0,0,COUNTIF($W$6:$W$104,W85))),0) -> 13.3
A86: 11 | G86: 0 | H86: 11 | I86: 55 | L86: 0 | M86: 11 | N86: 55 | O86: 55 | R86: 0 | U86: 0 | V86: 0.01818181818 | W86: 11 | X86: =IF(W86<31,AVERAGE(OFFSET(INDEX('Points team et quota finales'!$C$5:$C$34,W86),0,0,COUNTIF($W$6:$W$104,W86))),0) -> 13.3
A87: 11 | G87: 0 | H87: 11 | I87: 55 | L87: 0 | M87: 11 | N87: 55 | O87: 55 | R87: 0 | U87: 0 | V87: 0.01818181818 | W87: 11 | X87: =IF(W87<31,AVERAGE(OFFSET(INDEX('Points team et quota finales'!$C$5:$C$34,W87),0,0,COUNTIF($W$6:$W$104,W87))),0) -> 13.3
A88: 11 | G88: 0 | H88: 11 | I88: 55 | L88: 0 | M88: 11 | N88: 55 | O88: 55 | R88: 0 | U88: 0 | V88: 0.01818181818 | W88: 11 | X88: =IF(W88<31,AVERAGE(OFFSET(INDEX('Points team et quota finales'!$C$5:$C$34,W88),0,0,COUNTIF($W$6:$W$104,W88))),0) -> 13.3
A89: 11 | G89: 0 | H89: 11 | I89: 55 | L89: 0 | M89: 11 | N89: 55 | O89: 55 | R89: 0 | U89: 0 | V89: 0.01818181818 | W89: 11 | X89: =IF(W89<31,AVERAGE(OFFSET(INDEX('Points team et quota finales'!$C$5:$C$34,W89),0,0,COUNTIF($W$6:$W$104,W89))),0) -> 13.3
A90: 11 | G90: 0 | H90: 11 | I90: 55 | L90: 0 | M90: 11 | N90: 55 | O90: 55 | R90: 0 | U90: 0 | V90: 0.01818181818 | W90: 11 | X90: =IF(W90<31,AVERAGE(OFFSET(INDEX('Points team et quota finales'!$C$5:$C$34,W90),0,0,COUNTIF($W$6:$W$104,W90))),0) -> 13.3
A91: 11 | G91: 0 | H91: 11 | I91: 55 | L91: 0 | M91: 11 | N91: 55 | O91: 55 | R91: 0 | U91: 0 | V91: 0.01818181818 | W91: 11 | X91: =IF(W91<31,AVERAGE(OFFSET(INDEX('Points team et quota finales'!$C$5:$C$34,W91),0,0,COUNTIF($W$6:$W$104,W91))),0) -> 13.3
A92: 11 | G92: 0 | H92: 11 | I92: 55 | L92: 0 | M92: 11 | N92: 55 | O92: 55 | R92: 0 | U92: 0 | V92: 0.01818181818 | W92: 11 | X92: =IF(W92<31,AVERAGE(OFFSET(INDEX('Points team et quota finales'!$C$5:$C$34,W92),0,0,COUNTIF($W$6:$W$104,W92))),0) -> 13.3
A93: 11 | G93: 0 | H93: 11 | I93: 55 | L93: 0 | M93: 11 | N93: 55 | O93: 55 | R93: 0 | U93: 0 | V93: 0.01818181818 | W93: 11 | X93: =IF(W93<31,AVERAGE(OFFSET(INDEX('Points team et quota finales'!$C$5:$C$34,W93),0,0,COUNTIF($W$6:$W$104,W93))),0) -> 13.3
A94: 11 | G94: 0 | H94: 11 | I94: 55 | L94: 0 | M94: 11 | N94: 55 | O94: 55 | R94: 0 | U94: 0 | V94: 0.01818181818 | W94: 11 | X94: =IF(W94<31,AVERAGE(OFFSET(INDEX('Points team et quota finales'!$C$5:$C$34,W94),0,0,COUNTIF($W$6:$W$104,W94))),0) -> 13.3
A95: 11 | G95: 0 | H95: 11 | I95: 55 | L95: 0 | M95: 11 | N95: 55 | O95: 55 | R95: 0 | U95: 0 | V95: 0.01818181818 | W95: 11 | X95: =IF(W95<31,AVERAGE(OFFSET(INDEX('Points team et quota finales'!$C$5:$C$34,W95),0,0,COUNTIF($W$6:$W$104,W95))),0) -> 13.3
A96: 11 | G96: 0 | H96: 11 | I96: 55 | L96: 0 | M96: 11 | N96: 55 | O96: 55 | R96: 0 | U96: 0 | V96: 0.01818181818 | W96: 11 | X96: =IF(W96<31,AVERAGE(OFFSET(INDEX('Points team et quota finales'!$C$5:$C$34,W96),0,0,COUNTIF($W$6:$W$104,W96))),0) -> 13.3
A97: 11 | G97: 0 | H97: 11 | I97: 55 | L97: 0 | M97: 11 | N97: 55 | O97: 55 | R97: 0 | U97: 0 | V97: 0.01818181818 | W97: 11 | X97: =IF(W97<31,AVERAGE(OFFSET(INDEX('Points team et quota finales'!$C$5:$C$34,W97),0,0,COUNTIF($W$6:$W$104,W97))),0) -> 13.3
A98: 11 | G98: 0 | H98: 11 | I98: 55 | L98: 0 | M98: 11 | N98: 55 | O98: 55 | R98: 0 | U98: 0 | V98: 0.01818181818 | W98: 11 | X98: =IF(W98<31,AVERAGE(OFFSET(INDEX('Points team et quota finales'!$C$5:$C$34,W98),0,0,COUNTIF($W$6:$W$104,W98))),0) -> 13.3
A99: 11 | G99: 0 | H99: 11 | I99: 55 | L99: 0 | M99: 11 | N99: 55 | O99: 55 | R99: 0 | U99: 0 | V99: 0.01818181818 | W99: 11 | X99: =IF(W99<31,AVERAGE(OFFSET(INDEX('Points team et quota finales'!$C$5:$C$34,W99),0,0,COUNTIF($W$6:$W$104,W99))),0) -> 13.3
A100: 11 | G100: 0 | H100: 11 | I100: 55 | L100: 0 | M100: 11 | N100: 55 | O100: 55 | R100: 0 | U100: 0 | V100: 0.01818181818 | W100: 11 | X100: =IF(W100<31,AVERAGE(OFFSET(INDEX('Points team et quota finales'!$C$5:$C$34,W100),0,0,COUNTIF($W$6:$W$104,W100))),0) -> 13.3
A101: 11 | G101: 0 | H101: 11 | I101: 55 | L101: 0 | M101: 11 | N101: 55 | O101: 55 | R101: 0 | U101: 0 | V101: 0.01818181818 | W101: 11 | X101: =IF(W101<31,AVERAGE(OFFSET(INDEX('Points team et quota finales'!$C$5:$C$34,W101),0,0,COUNTIF($W$6:$W$104,W101))),0) -> 13.3
A102: 11 | G102: =IF(E102="TOP",$F$107,IF(F102="-",E102-0.01,IF(F102="+",E102+0.01,E102))) -> 0 | H102: =RANK(G102,$G$6:$G$104) -> 11 | I102: =IF(COUNTIF($H$6:$H$104,H102)=1,H102,(H102*2+COUNTIF($H$6:$H$104,H102)-1)/2) -> 55 | L102: =IF(J102="TOP",$K$107,IF(K102="-",J102-0.01,IF(K102="+",J102+0.01,J102))) -> 0 | M102: =RANK(L102,$L$6:$L$104) -> 11 | N102: =IF(COUNTIF($M$6:$M$104,M102)=1,M102,(M102*2+COUNTIF($M$6:$M$104,M102)-1)/2) -> 55 | O102: =SQRT(I102*N102) -> 55 | R102: =IF(P102="TOP",$Q$107,IF(Q102="-",P102-0.01,IF(Q102="+",P102+0.01,P102))) -> 0 | U102: 0 | V102: =IF(U102<>0,U102*1000+R102*100+1/O102,IF(R102<>0,R102*100+1/O102,1/O102)) -> 0.01818181818 | W102: 11 | X102: =IF(W102<31,AVERAGE(OFFSET(INDEX('Points team et quota finales'!$C$5:$C$34,W102),0,0,COUNTIF($W$6:$W$104,W102))),0) -> 13.3
A103: 11 | G103: 0 | H103: 11 | I103: 55 | L103: 0 | M103: 11 | N103: 55 | O103: 55 | R103: 0 | U103: 0 | V103: 0.01818181818 | W103: 11 | X103: =IF(W103<31,AVERAGE(OFFSET(INDEX('Points team et quota finales'!$C$5:$C$34,W103),0,0,COUNTIF($W$6:$W$104,W103))),0) -> 13.3
A104: 11 | G104: 0 | H104: 11 | I104: 55 | L104: 0 | M104: 11 | N104: 55 | O104: 55 | R104: 0 | U104: 0 | V104: 0.01818181818 | W104: 11 | X104: =IF(W104<31,AVERAGE(OFFSET(INDEX('Points team et quota finales'!$C$5:$C$34,W104),0,0,COUNTIF($W$6:$W$104,W104))),0) -> 13.3
E107: Top = | F107: 28 | J107: Top = | K107: 39 | P107: Top = | Q107: 30 | S107: Top =
B108: =CONCATENATE("Jury President: ",General!$B$6) -> Jury President: Lieven Vlassenroot
B110: Appeal until :

Sheet CM
A2: =CONCATENATE(General!$B$5," - RESULTS C Male") -> Youth Lead Championship 09-03-2013 - RESULTS C Male
A5: RANK | B5: Nr | C5: Name | D5: Team | E5: Route 1 | I5: Ranking Points Route 1 | J5: Route 2 | N5: Ranking Points Route 2 | O5: Root R1 x R2 | P5: Final | S5: Super Final | V5: base pour calcul rang | W5: RANK | X5: Team points
A6: =RANK(V6,$V$6:$V$102) -> 1 | B6: CM06 | C6: PEETERS Harold | D6: CC | E6: TOP | G6: =IF(E6="TOP",$F$105,IF(F6="-",E6-0.01,IF(F6="+",E6+0.01,E6))) -> 38 | H6: =RANK(G6,$G$6:$G$102) -> 1 | I6: =IF(COUNTIF($H$6:$H$102,H6)=1,H6,(H6*2+COUNTIF($H$6:$H$102,H6)-1)/2) -> 5 | J6: TOP | L6: =IF(J6="TOP",$K$105,IF(K6="-",J6-0.01,IF(K6="+",J6+0.01,J6))) -> 42 | M6: =RANK(L6,$L$6:$L$102) -> 1 | N6: =IF(COUNTIF($M$6:$M$102,M6)=1,M6,(M6*2+COUNTIF($M$6:$M$102,M6)-1)/2) -> 1.5 | O6: =SQRT(I6*N6) -> 2.738612788 | P6: TOP | R6: =IF(P6="TOP",$Q$105,IF(Q6="-",P6-0.01,IF(Q6="+",P6+0.01,P6))) -> 49 | U6: =IF($S6="TOP",$T$105,IF($T6="-",$S6-0.01,IF($T6="+",$S6+0.01,$S6))) -> 0 | V6: =IF(U6<>0,U6*1000+R6*100+1/O6,IF(R6<>0,R6*100+1/O6,1/O6)) -> 4900.365148 | W6: =A6 -> 1 | X6: =IF(W6<31,AVERAGE(OFFSET(INDEX('Points team et quota finales'!$C$5:$C$34,W6),0,0,COUNTIF($W$6:$W$102,W6))),0) -> 100
A7: 2 | B7: CM14 | C7: DEBRULLE Louis | D7: STC | E7: TOP | G7: 38 | H7: 1 | I7: 5 | J7: TOP | L7: 42 | M7: 1 | N7: 1.5 | O7: 2.738612788 | P7: 39 | R7: 39 | U7: 0 | V7: 3900.365148 | W7: 2 | X7: =IF(W7<31,AVERAGE(OFFSET(INDEX('Points team et quota finales'!$C$5:$C$34,W7),0,0,COUNTIF($W$6:$W$102,W7))),0) -> 80
A8: 3 | B8: CM03 | C8: BAUDOUIN Lionel | D8: BMC | E8: TOP | G8: 38 | H8: 1 | I8: 5 | J8: 37 | K8: + | L8: 37.01 | M8: 3 | N8: 3 | O8: 3.872983346 | P8: 35 | Q8: + | R8: 35.01 | U8: 0 | V8: 3501.258199 | W8: 3 | X8: =IF(W8<31,AVERAGE(OFFSET(INDEX('Points team et quota finales'!$C$5:$C$34,W8),0,0,COUNTIF($W$6:$W$102,W8))),0) -> 65
A9: 4 | B9: CM07 | C9: RASIR Denis | D9: ARE | E9: TOP | G9: 38 | H9: 1 | I9: 5 | J9: 30 | K9: + | L9: 30.01 | M9: 5 | N9: 5.5 | O9: 5.244044241 | P9: 30 | Q9: + | R9: 30.01 | U9: 0 | V9: 3001.190693 | W9: 4 | X9: =IF(W9<31,AVERAGE(OFFSET(INDEX('Points team et quota finales'!$C$5:$C$34,W9),0,0,COUNTIF($W$6:$W$102,W9))),0) -> 55
A10: 5 | B10: CM11 | C10: VAN DEUREN Bram | D10: KLI | E10: TOP | G10: 38 | H10: 1 | I10: 5 | J10: 17 | K10: + | L10: 17.01 | M10: 7 | N10: 7 | O10: 5.916079783 | P10: 29 | Q10: + | R10: 29.01 | U10: 0 | V10: 2901.169031 | W10: 5 | X10: =IF(W10<31,AVERAGE(OFFSET(INDEX('Points team et quota finales'!$C$5:$C$34,W10),0,0,COUNTIF($W$6:$W$102,W10))),0) -> 51
A11: 6 | B11: CM04 | C11: PERILLEUX Hannes | D11: OLY | E11: TOP | G11: 38 | H11: 1 | I11: 5 | J11: 30 | K11: + | L11: 30.01 | M11: 5 | N11: 5.5 | O11: 5.244044241 | P11: 29 | R11: 29 | U11: 0 | V11: 2900.190693 | W11: 6 | X11: =IF(W11<31,AVERAGE(OFFSET(INDEX('Points team et quota finales'!$C$5:$C$34,W11),0,0,COUNTIF($W$6:$W$102,W11))),0) -> 47
A12: 7 | B12: CM15 | C12: VANDERBEECK Michel | D12: STC | E12: TOP | G12: 38 | H12: 1 | I12: 5 | J12: 31 | L12: 31 | M12: 4 | N12: 4 | O12: 4.472135955 | P12: 23 | R12: 23 | U12: 0 | V12: 2300.223607 | W12: 7 | X12: =IF(W12<31,AVERAGE(OFFSET(INDEX('Points team et quota finales'!$C$5:$C$34,W12),0,0,COUNTIF($W$6:$W$102,W12))),0) -> 43
A13: 8 | B13: CM08 | C13: VANCRAEYNEST Mats | D13: KLI | E13: TOP | G13: 38 | H13: 1 | I13: 5 | J13: 13 | K13: + | L13: 13.01 | M13: 8 | N13: 8.5 | O13: 6.519202405 | P13: 22 | Q13: + | R13: 22.01 | U13: 0 | V13: 2201.153393 | W13: 8 | X13: =IF(W13<31,AVERAGE(OFFSET(INDEX('Points team et quota finales'!$C$5:$C$34,W13),0,0,COUNTIF($W$6:$W$102,W13))),0) -> 40
A14: 9 | B14: CM02 | C14: HERBOS Aiko | D14: KLI | E14: TOP | G14: 38 | H14: 1 | I14: 5 | J14: 11 | L14: 11 | M14: 13 | N14: 13 | O14: 8.062257748 | R14: 0 | U14: 0 | V14: 0.1240347346 | W14: 9 | X14: =IF(W14<31,AVERAGE(OFFSET(INDEX('Points team et quota finales'!$C$5:$C$34,W14),0,0,COUNTIF($W$6:$W$102,W14))),0) -> 37
A15: 10 | B15: CM01 | C15: TAMINE Mattéo | D15: CC | E15: 28 | F15: + | G15: 28.01 | H15: 11 | I15: 11.5 | J15: 13 | K15: + | L15: 13.01 | M15: 8 | N15: 8.5 | O15: 9.886859967 | R15: 0 | U15: 0 | V15: 0.1011443475 | W15: 10 | X15: =IF(W15<31,AVERAGE(OFFSET(INDEX('Points team et quota finales'!$C$5:$C$34,W15),0,0,COUNTIF($W$6:$W$102,W15))),0) -> 34
A16: 11 | B16: CM10 | C16: GALLE Arend | D16: HUN | E16: 36 | G16: 36 | H16: 10 | I16: 10 | J16: 12 | K16: + | L16: 12.01 | M16: 11 | N16: 11 | O16: 10.48808848 | R16: 0 | U16: 0 | V16: 0.09534625892 | W16: 11 | X16: =IF(W16<31,AVERAGE(OFFSET(INDEX('Points team et quota finales'!$C$5:$C$34,W16),0,0,COUNTIF($W$6:$W$102,W16))),0) -> 31
A17: 12 | B17: CM05 | C17: WITTOEK Brecht | D17: HUN | E17: 28 | F17: + | G17: 28.01 | H17: 11 | I17: 11.5 | J17: 13 | L17: 13 | M17: 10 | N17: 10 | O17: 10.72380529 | R17: 0 | U17: 0 | V17: 0.09325048082 | W17: 12 | X17: =IF(W17<31,AVERAGE(OFFSET(INDEX('Points team et quota finales'!$C$5:$C$34,W17),0,0,COUNTIF($W$6:$W$102,W17))),0) -> 28
A18: 13 | B18: CM13 | C18: DU BOIS D'ENGHIEN Victor | D18: ECT | E18: 28 | G18: 28 | H18: 13 | I18: 13 | J18: 12 | L18: 12 | M18: 12 | N18: 12 | O18: 12.489996 | R18: 0 | U18: 0 | V18: 0.0800640769 | W18: 13 | X18: =IF(W18<31,AVERAGE(OFFSET(INDEX('Points team et quota finales'!$C$5:$C$34,W18),0,0,COUNTIF($W$6:$W$102,W18))),0) -> 26
A19: 14 | G19: 0 | H19: 14 | I19: 55.5 | L19: 0 | M19: 14 | N19: 55.5 | O19: 55.5 | R19: 0 | U19: 0 | V19: 0.01801801802 | W19: 14 | X19: =IF(W19<31,AVERAGE(OFFSET(INDEX('Points team et quota finales'!$C$5:$C$34,W19),0,0,COUNTIF($W$6:$W$102,W19))),0) -> 10.64705882
A20: 14 | G20: 0 | H20: 14 | I20: 55.5 | L20: 0 | M20: 14 | N20: 55.5 | O20: 55.5 | R20: 0 | U20: 0 | V20: 0.01801801802 | W20: 14 | X20: =IF(W20<31,AVERAGE(OFFSET(INDEX('Points team et quota finales'!$C$5:$C$34,W20),0,0,COUNTIF($W$6:$W$102,W20))),0) -> 10.64705882
A21: 14 | G21: 0 | H21: 14 | I21: 55.5 | L21: 0 | M21: 14 | N21: 55.5 | O21: 55.5 | R21: 0 | U21: 0 | V21: 0.01801801802 | W21: 14 | X21: =IF(W21<31,AVERAGE(OFFSET(INDEX('Points team et quota finales'!$C$5:$C$34,W21),0,0,COUNTIF($W$6:$W$102,W21))),0) -> 10.64705882
A22: 14 | G22: 0 | H22: 14 | I22: 55.5 | L22: 0 | M22: 14 | N22: 55.5 | O22: 55.5 | R22: 0 | U22: 0 | V22: 0.01801801802 | W22: 14 | X22: =IF(W22<31,AVERAGE(OFFSET(INDEX('Points team et quota finales'!$C$5:$C$34,W22),0,0,COUNTIF($W$6:$W$102,W22))),0) -> 10.64705882
A23: 14 | G23: 0 | H23: 14 | I23: 55.5 | L23: 0 | M23: 14 | N23: 55.5 | O23: 55.5 | R23: 0 | U23: 0 | V23: 0.01801801802 | W23: 14 | X23: =IF(W23<31,AVERAGE(OFFSET(INDEX('Points team et quota finales'!$C$5:$C$34,W23),0,0,COUNTIF($W$6:$W$102,W23))),0) -> 10.64705882
A24: 14 | G24: 0 | H24: 14 | I24: 55.5 | L24: 0 | M24: 14 | N24: 55.5 | O24: 55.5 | R24: 0 | U24: 0 | V24: 0.01801801802 | W24: 14 | X24: =IF(W24<31,AVERAGE(OFFSET(INDEX('Points team et quota finales'!$C$5:$C$34,W24),0,0,COUNTIF($W$6:$W$102,W24))),0) -> 10.64705882
A25: 14 | G25: 0 | H25: 14 | I25: 55.5 | L25: 0 | M25: 14 | N25: 55.5 | O25: 55.5 | R25: 0 | U25: 0 | V25: 0.01801801802 | W25: 14 | X25: =IF(W25<31,AVERAGE(OFFSET(INDEX('Points team et quota finales'!$C$5:$C$34,W25),0,0,COUNTIF($W$6:$W$102,W25))),0) -> 10.64705882
A26: 14 | G26: 0 | H26: 14 | I26: 55.5 | L26: 0 | M26: 14 | N26: 55.5 | O26: 55.5 | R26: 0 | U26: 0 | V26: 0.01801801802 | W26: 14 | X26: =IF(W26<31,AVERAGE(OFFSET(INDEX('Points team et quota finales'!$C$5:$C$34,W26),0,0,COUNTIF($W$6:$W$102,W26))),0) -> 10.64705882
A27: 14 | G27: 0 | H27: 14 | I27: 55.5 | L27: 0 | M27: 14 | N27: 55.5 | O27: 55.5 | R27: 0 | U27: 0 | V27: 0.01801801802 | W27: 14 | X27: =IF(W27<31,AVERAGE(OFFSET(INDEX('Points team et quota finales'!$C$5:$C$34,W27),0,0,COUNTIF($W$6:$W$102,W27))),0) -> 10.64705882
A28: 14 | G28: 0 | H28: 14 | I28: 55.5 | L28: 0 | M28: 14 | N28: 55.5 | O28: 55.5 | R28: 0 | U28: 0 | V28: 0.01801801802 | W28: 14 | X28: =IF(W28<31,AVERAGE(OFFSET(INDEX('Points team et quota finales'!$C$5:$C$34,W28),0,0,COUNTIF($W$6:$W$102,W28))),0) -> 10.64705882
A29: 14 | G29: 0 | H29: 14 | I29: 55.5 | L29: 0 | M29: 14 | N29: 55.5 | O29: 55.5 | R29: 0 | U29: 0 | V29: 0.01801801802 | W29: 14 | X29: =IF(W29<31,AVERAGE(OFFSET(INDEX('Points team et quota finales'!$C$5:$C$34,W29),0,0,COUNTIF($W$6:$W$102,W29))),0) -> 10.64705882
A30: 14 | G30: 0 | H30: 14 | I30: 55.5 | L30: 0 | M30: 14 | N30: 55.5 | O30: 55.5 | R30: 0 | U30: 0 | V30: 0.01801801802 | W30: 14 | X30: =IF(W30<31,AVERAGE(OFFSET(INDEX('Points team et quota finales'!$C$5:$C$34,W30),0,0,COUNTIF($W$6:$W$102,W30))),0) -> 10.64705882
A31: 14 | G31: 0 | H31: 14 | I31: 55.5 | L31: 0 | M31: 14 | N31: 55.5 | O31: 55.5 | R31: 0 | U31: 0 | V31: 0.01801801802 | W31: 14 | X31: =IF(W31<31,AVERAGE(OFFSET(INDEX('Points team et quota finales'!$C$5:$C$34,W31),0,0,COUNTIF($W$6:$W$102,W31))),0) -> 10.64705882
A32: 14 | G32: 0 | H32: 14 | I32: 55.5 | L32: 0 | M32: 14 | N32: 55.5 | O32: 55.5 | R32: 0 | U32: 0 | V32: 0.01801801802 | W32: 14 | X32: =IF(W32<31,AVERAGE(OFFSET(INDEX('Points team et quota finales'!$C$5:$C$34,W32),0,0,COUNTIF($W$6:$W$102,W32))),0) -> 10.64705882
A33: 14 | G33: 0 | H33: 14 | I33: 55.5 | L33: 0 | M33: 14 | N33: 55.5 | O33: 55.5 | R33: 0 | U33: 0 | V33: 0.01801801802 | W33: 14 | X33: =IF(W33<31,AVERAGE(OFFSET(INDEX('Points team et quota finales'!$C$5:$C$34,W33),0,0,COUNTIF($W$6:$W$102,W33))),0) -> 10.64705882
A34: 14 | G34: 0 | H34: 14 | I34: 55.5 | L34: 0 | M34: 14 | N34: 55.5 | O34: 55.5 | R34: 0 | U34: 0 | V34: 0.01801801802 | W34: 14 | X34: =IF(W34<31,AVERAGE(OFFSET(INDEX('Points team et quota finales'!$C$5:$C$34,W34),0,0,COUNTIF($W$6:$W$102,W34))),0) -> 10.64705882
A35: 14 | G35: 0 | H35: 14 | I35: 55.5 | L35: 0 | M35: 14 | N35: 55.5 | O35: 55.5 | R35: 0 | U35: 0 | V35: 0.01801801802 | W35: 14 | X35: =IF(W35<31,AVERAGE(OFFSET(INDEX('Points team et quota finales'!$C$5:$C$34,W35),0,0,COUNTIF($W$6:$W$102,W35))),0) -> 10.64705882
A36: 14 | G36: 0 | H36: 14 | I36: 55.5 | L36: 0 | M36: 14 | N36: 55.5 | O36: 55.5 | R36: 0 | U36: 0 | V36: 0.01801801802 | W36: 14 | X36: =IF(W36<31,AVERAGE(OFFSET(INDEX('Points team et quota finales'!$C$5:$C$34,W36),0,0,COUNTIF($W$6:$W$102,W36))),0) -> 10.64705882
A37: 14 | G37: 0 | H37: 14 | I37: 55.5 | L37: 0 | M37: 14 | N37: 55.5 | O37: 55.5 | R37: 0 | U37: 0 | V37: 0.01801801802 | W37: 14 | X37: =IF(W37<31,AVERAGE(OFFSET(INDEX('Points team et quota finales'!$C$5:$C$34,W37),0,0,COUNTIF($W$6:$W$102,W37))),0) -> 10.64705882
A38: =RANK(V38,$V$6:$V$102) -> 14 | G38: =IF(E38="TOP",$F$105,IF(F38="-",E38-0.01,IF(F38="+",E38+0.01,E38))) -> 0 | H38: =RANK(G38,$G$6:$G$102) -> 14 | I38: =IF(COUNTIF($H$6:$H$102,H38)=1,H38,(H38*2+COUNTIF($H$6:$H$102,H38)-1)/2) -> 55.5 | L38: =IF(J38="TOP",$K$105,IF(K38="-",J38-0.01,IF(K38="+",J38+0.01,J38))) -> 0 | M38: =RANK(L38,$L$6:$L$102) -> 14 | N38: =IF(COUNTIF($M$6:$M$102,M38)=1,M38,(M38*2+COUNTIF($M$6:$M$102,M38)-1)/2) -> 55.5 | O38: =SQRT(I38*N38) -> 55.5 | R38: =IF(P38="TOP",$Q$105,IF(Q38="-",P38-0.01,IF(Q38="+",P38+0.01,P38))) -> 0 | U38: =IF($S38="TOP",$T$105,IF($T38="-",$S38-0.01,IF($T38="+",$S38+0.01,$S38))) -> 0 | V38: =IF(U38<>0,U38*1000+R38*100+1/O38,IF(R38<>0,R38*100+1/O38,1/O38)) -> 0.01801801802 | W38: 14 | X38: =IF(W38<31,AVERAGE(OFFSET(INDEX('Points team et quota finales'!$C$5:$C$34,W38),0,0,COUNTIF($W$6:$W$102,W38))),0) -> 10.64705882
A39: 14 | G39: 0 | H39: 14 | I39: 55.5 | L39: 0 | M39: 14 | N39: 55.5 | O39: 55.5 | R39: 0 | U39: 0 | V39: 0.01801801802 | W39: 14 | X39: =IF(W39<31,AVERAGE(OFFSET(INDEX('Points team et quota finales'!$C$5:$C$34,W39),0,0,COUNTIF($W$6:$W$102,W39))),0) -> 10.64705882
A40: 14 | G40: 0 | H40: 14 | I40: 55.5 | L40: 0 | M40: 14 | N40: 55.5 | O40: 55.5 | R40: 0 | U40: 0 | V40: 0.01801801802 | W40: 14 | X40: =IF(W40<31,AVERAGE(OFFSET(INDEX('Points team et quota finales'!$C$5:$C$34,W40),0,0,COUNTIF($W$6:$W$102,W40))),0) -> 10.64705882
A41: 14 | G41: 0 | H41: 14 | I41: 55.5 | L41: 0 | M41: 14 | N41: 55.5 | O41: 55.5 | R41: 0 | U41: 0 | V41: 0.01801801802 | W41: 14 | X41: =IF(W41<31,AVERAGE(OFFSET(INDEX('Points team et quota finales'!$C$5:$C$34,W41),0,0,COUNTIF($W$6:$W$102,W41))),0) -> 10.64705882
A42: 14 | G42: 0 | H42: 14 | I42: 55.5 | L42: 0 | M42: 14 | N42: 55.5 | O42: 55.5 | R42: 0 | U42: 0 | V42: 0.01801801802 | W42: 14 | X42: =IF(W42<31,AVERAGE(OFFSET(INDEX('Points team et quota finales'!$C$5:$C$34,W42),0,0,COUNTIF($W$6:$W$102,W42))),0) -> 10.64705882
A43: 14 | G43: 0 | H43: 14 | I43: 55.5 | L43: 0 | M43: 14 | N43: 55.5 | O43: 55.5 | R43: 0 | U43: 0 | V43: 0.01801801802 | W43: 14 | X43: =IF(W43<31,AVERAGE(OFFSET(INDEX('Points team et quota finales'!$C$5:$C$34,W43),0,0,COUNTIF($W$6:$W$102,W43))),0) -> 10.64705882
A44: 14 | G44: 0 | H44: 14 | I44: 55.5 | L44: 0 | M44: 14 | N44: 55.5 | O44: 55.5 | R44: 0 | U44: 0 | V44: 0.01801801802 | W44: 14 | X44: =IF(W44<31,AVERAGE(OFFSET(INDEX('Points team et quota finales'!$C$5:$C$34,W44),0,0,COUNTIF($W$6:$W$102,W44))),0) -> 10.64705882
A45: 14 | G45: 0 | H45: 14 | I45: 55.5 | L45: 0 | M45: 14 | N45: 55.5 | O45: 55.5 | R45: 0 | U45: 0 | V45: 0.01801801802 | W45: 14 | X45: =IF(W45<31,AVERAGE(OFFSET(INDEX('Points team et quota finales'!$C$5:$C$34,W45),0,0,COUNTIF($W$6:$W$102,W45))),0) -> 10.64705882
A46: 14 | G46: 0 | H46: 14 | I46: 55.5 | L46: 0 | M46: 14 | N46: 55.5 | O46: 55.5 | R46: 0 | U46: 0 | V46: 0.01801801802 | W46: 14 | X46: =IF(W46<31,AVERAGE(OFFSET(INDEX('Points team et quota finales'!$C$5:$C$34,W46),0,0,COUNTIF($W$6:$W$102,W46))),0) -> 10.64705882
A47: 14 | G47: 0 | H47: 14 | I47: 55.5 | L47: 0 | M47: 14 | N47: 55.5 | O47: 55.5 | R47: 0 | U47: 0 | V47: 0.01801801802 | W47: 14 | X47: =IF(W47<31,AVERAGE(OFFSET(INDEX('Points team et quota finales'!$C$5:$C$34,W47),0,0,COUNTIF($W$6:$W$102,W47))),0) -> 10.64705882
A48: 14 | G48: 0 | H48: 14 | I48: 55.5 | L48: 0 | M48: 14 | N48: 55.5 | O48: 55.5 | R48: 0 | U48: 0 | V48: 0.01801801802 | W48: 14 | X48: =IF(W48<31,AVERAGE(OFFSET(INDEX('Points team et quota finales'!$C$5:$C$34,W48),0,0,COUNTIF($W$6:$W$102,W48))),0) -> 10.64705882
A49: 14 | G49: 0 | H49: 14 | I49: 55.5 | L49: 0 | M49: 14 | N49: 55.5 | O49: 55.5 | R49: 0 | U49: 0 | V49: 0.01801801802 | W49: 14 | X49: =IF(W49<31,AVERAGE(OFFSET(INDEX('Points team et quota finales'!$C$5:$C$34,W49),0,0,COUNTIF($W$6:$W$102,W49))),0) -> 10.64705882
A50: 14 | G50: 0 | H50: 14 | I50: 55.5 | L50: 0 | M50: 14 | N50: 55.5 | O50: 55.5 | R50: 0 | U50: 0 | V50: 0.01801801802 | W50: 14 | X50: =IF(W50<31,AVERAGE(OFFSET(INDEX('Points team et quota finales'!$C$5:$C$34,W50),0,0,COUNTIF($W$6:$W$102,W50))),0) -> 10.64705882
A51: 14 | G51: 0 | H51: 14 | I51: 55.5 | L51: 0 | M51: 14 | N51: 55.5 | O51: 55.5 | R51: 0 | U51: 0 | V51: 0.01801801802 | W51: 14 | X51: =IF(W51<31,AVERAGE(OFFSET(INDEX('Points team et quota finales'!$C$5:$C$34,W51),0,0,COUNTIF($W$6:$W$102,W51))),0) -> 10.64705882
A52: 14 | G52: 0 | H52: 14 | I52: 55.5 | L52: 0 | M52: 14 | N52: 55.5 | O52: 55.5 | R52: 0 | U52: 0 | V52: 0.01801801802 | W52: 14 | X52: =IF(W52<31,AVERAGE(OFFSET(INDEX('Points team et quota finales'!$C$5:$C$34,W52),0,0,COUNTIF($W$6:$W$102,W52))),0) -> 10.64705882
A53: 14 | G53: 0 | H53: 14 | I53: 55.5 | L53: 0 | M53: 14 | N53: 55.5 | O53: 55.5 | R53: 0 | U53: 0 | V53: 0.01801801802 | W53: 14 | X53: =IF(W53<31,AVERAGE(OFFSET(INDEX('Points team et quota finales'!$C$5:$C$34,W53),0,0,COUNTIF($W$6:$W$102,W53))),0) -> 10.64705882
A54: 14 | G54: 0 | H54: 14 | I54: 55.5 | L54: 0 | M54: 14 | N54: 55.5 | O54: 55.5 | R54: 0 | U54: 0 | V54: 0.01801801802 | W54: 14 | X54: =IF(W54<31,AVERAGE(OFFSET(INDEX('Points team et quota finales'!$C$5:$C$34,W54),0,0,COUNTIF($W$6:$W$102,W54))),0) -> 10.64705882
A55: 14 | G55: 0 | H55: 14 | I55: 55.5 | L55: 0 | M55: 14 | N55: 55.5 | O55: 55.5 | R55: 0 | U55: 0 | V55: 0.01801801802 | W55: 14 | X55: =IF(W55<31,AVERAGE(OFFSET(INDEX('Points team et quota finales'!$C$5:$C$34,W55),0,0,COUNTIF($W$6:$W$102,W55))),0) -> 10.64705882
A56: 14 | G56: 0 | H56: 14 | I56: 55.5 | L56: 0 | M56: 14 | N56: 55.5 | O56: 55.5 | R56: 0 | U56: 0 | V56: 0.01801801802 | W56: 14 | X56: =IF(W56<31,AVERAGE(OFFSET(INDEX('Points team et quota finales'!$C$5:$C$34,W56),0,0,COUNTIF($W$6:$W$102,W56))),0) -> 10.64705882
A57: 14 | G57: 0 | H57: 14 | I57: 55.5 | L57: 0 | M57: 14 | N57: 55.5 | O57: 55.5 | R57: 0 | U57: 0 | V57: 0.01801801802 | W57: 14 | X57: =IF(W57<31,AVERAGE(OFFSET(INDEX('Points team et quota finales'!$C$5:$C$34,W57),0,0,COUNTIF($W$6:$W$102,W57))),0) -> 10.64705882
A58: 14 | G58: 0 | H58: 14 | I58: 55.5 | L58: 0 | M58: 14 | N58: 55.5 | O58: 55.5 | R58: 0 | U58: 0 | V58: 0.01801801802 | W58: 14 | X58: =IF(W58<31,AVERAGE(OFFSET(INDEX('Points team et quota finales'!$C$5:$C$34,W58),0,0,COUNTIF($W$6:$W$102,W58))),0) -> 10.64705882
A59: 14 | G59: 0 | H59: 14 | I59: 55.5 | L59: 0 | M59: 14 | N59: 55.5 | O59: 55.5 | R59: 0 | U59: 0 | V59: 0.01801801802 | W59: 14 | X59: =IF(W59<31,AVERAGE(OFFSET(INDEX('Points team et quota finales'!$C$5:$C$34,W59),0,0,COUNTIF($W$6:$W$102,W59))),0) -> 10.64705882
A60: 14 | G60: 0 | H60: 14 | I60: 55.5 | L60: 0 | M60: 14 | N60: 55.5 | O60: 55.5 | R60: 0 | U60: 0 | V60: 0.01801801802 | W60: 14 | X60: =IF(W60<31,AVERAGE(OFFSET(INDEX('Points team et quota finales'!$C$5:$C$34,W60),0,0,COUNTIF($W$6:$W$102,W60))),0) -> 10.64705882
A61: 14 | G61: 0 | H61: 14 | I61: 55.5 | L61: 0 | M61: 14 | N61: 55.5 | O61: 55.5 | R61: 0 | U61: 0 | V61: 0.01801801802 | W61: 14 | X61: =IF(W61<31,AVERAGE(OFFSET(INDEX('Points team et quota finales'!$C$5:$C$34,W61),0,0,COUNTIF($W$6:$W$102,W61))),0) -> 10.64705882
A62: 14 | G62: 0 | H62: 14 | I62: 55.5 | L62: 0 | M62: 14 | N62: 55.5 | O62: 55.5 | R62: 0 | U62: 0 | V62: 0.01801801802 | W62: 14 | X62: =IF(W62<31,AVERAGE(OFFSET(INDEX('Points team et quota finales'!$C$5:$C$34,W62),0,0,COUNTIF($W$6:$W$102,W62))),0) -> 10.64705882
A63: 14 | G63: 0 | H63: 14 | I63: 55.5 | L63: 0 | M63: 14 | N63: 55.5 | O63: 55.5 | R63: 0 | U63: 0 | V63: 0.01801801802 | W63: 14 | X63: =IF(W63<31,AVERAGE(OFFSET(INDEX('Points team et quota finales'!$C$5:$C$34,W63),0,0,COUNTIF($W$6:$W$102,W63))),0) -> 10.64705882
A64: 14 | G64: 0 | H64: 14 | I64: 55.5 | L64: 0 | M64: 14 | N64: 55.5 | O64: 55.5 | R64: 0 | U64: 0 | V64: 0.01801801802 | W64: 14 | X64: =IF(W64<31,AVERAGE(OFFSET(INDEX('Points team et quota finales'!$C$5:$C$34,W64),0,0,COUNTIF($W$6:$W$102,W64))),0) -> 10.64705882
A65: 14 | G65: 0 | H65: 14 | I65: 55.5 | L65: 0 | M65: 14 | N65: 55.5 | O65: 55.5 | R65: 0 | U65: 0 | V65: 0.01801801802 | W65: 14 | X65: =IF(W65<31,AVERAGE(OFFSET(INDEX('Points team et quota finales'!$C$5:$C$34,W65),0,0,COUNTIF($W$6:$W$102,W65))),0) -> 10.64705882
A66: 14 | G66: 0 | H66: 14 | I66: 55.5 | L66: 0 | M66: 14 | N66: 55.5 | O66: 55.5 | R66: 0 | U66: 0 | V66: 0.01801801802 | W66: 14 | X66: =IF(W66<31,AVERAGE(OFFSET(INDEX('Points team et quota finales'!$C$5:$C$34,W66),0,0,COUNTIF($W$6:$W$102,W66))),0) -> 10.64705882
A67: 14 | G67: 0 | H67: 14 | I67: 55.5 | L67: 0 | M67: 14 | N67: 55.5 | O67: 55.5 | R67: 0 | U67: 0 | V67: 0.01801801802 | W67: =A67 -> 14 | X67: =IF(W67<31,AVERAGE(OFFSET(INDEX('Points team et quota finales'!$C$5:$C$34,W67),0,0,COUNTIF($W$6:$W$102,W67))),0) -> 10.64705882
A68: 14 | G68: 0 | H68: 14 | I68: 55.5 | L68: 0 | M68: 14 | N68: 55.5 | O68: 55.5 | R68: 0 | U68: 0 | V68: 0.01801801802 | W68: 14 | X68: =IF(W68<31,AVERAGE(OFFSET(INDEX('Points team et quota finales'!$C$5:$C$34,W68),0,0,COUNTIF($W$6:$W$102,W68))),0) -> 10.64705882
A69: 14 | G69: 0 | H69: 14 | I69: 55.5 | L69: 0 | M69: 14 | N69: 55.5 | O69: 55.5 | R69: 0 | U69: 0 | V69: 0.01801801802 | W69: 14 | X69: =IF(W69<31,AVERAGE(OFFSET(INDEX('Points team et quota finales'!$C$5:$C$34,W69),0,0,COUNTIF($W$6:$W$102,W69))),0) -> 10.64705882
A70: =RANK(V70,$V$6:$V$102) -> 14 | G70: =IF(E70="TOP",$F$105,IF(F70="-",E70-0.01,IF(F70="+",E70+0.01,E70))) -> 0 | H70: =RANK(G70,$G$6:$G$102) -> 14 | I70: =IF(COUNTIF($H$6:$H$102,H70)=1,H70,(H70*2+COUNTIF($H$6:$H$102,H70)-1)/2) -> 55.5 | L70: =IF(J70="TOP",$K$105,IF(K70="-",J70-0.01,IF(K70="+",J70+0.01,J70))) -> 0 | M70: =RANK(L70,$L$6:$L$102) -> 14 | N70: =IF(COUNTIF($M$6:$M$102,M70)=1,M70,(M70*2+COUNTIF($M$6:$M$102,M70)-1)/2) -> 55.5 | O70: =SQRT(I70*N70) -> 55.5 | R70: =IF(P70="TOP",$Q$105,IF(Q70="-",P70-0.01,IF(Q70="+",P70+0.01,P70))) -> 0 | U70: =IF($S70="TOP",$T$105,IF($T70="-",$S70-0.01,IF($T70="+",$S70+0.01,$S70))) -> 0 | V70: =IF(U70<>0,U70*1000+R70*100+1/O70,IF(R70<>0,R70*100+1/O70,1/O70)) -> 0.01801801802 | W70: 14 | X70: =IF(W70<31,AVERAGE(OFFSET(INDEX('Points team et quota finales'!$C$5:$C$34,W70),0,0,COUNTIF($W$6:$W$102,W70))),0) -> 10.64705882
A71: 14 | G71: 0 | H71: 14 | I71: 55.5 | L71: 0 | M71: 14 | N71: 55.5 | O71: 55.5 | R71: 0 | U71: 0 | V71: 0.01801801802 | W71: 14 | X71: =IF(W71<31,AVERAGE(OFFSET(INDEX('Points team et quota finales'!$C$5:$C$34,W71),0,0,COUNTIF($W$6:$W$102,W71))),0) -> 10.64705882
A72: 14 | G72: 0 | H72: 14 | I72: 55.5 | L72: 0 | M72: 14 | N72: 55.5 | O72: 55.5 | R72: 0 | U72: 0 | V72: 0.01801801802 | W72: 14 | X72: =IF(W72<31,AVERAGE(OFFSET(INDEX('Points team et quota finales'!$C$5:$C$34,W72),0,0,COUNTIF($W$6:$W$102,W72))),0) -> 10.64705882
A73: 14 | G73: 0 | H73: 14 | I73: 55.5 | L73: 0 | M73: 14 | N73: 55.5 | O73: 55.5 | R73: 0 | U73: 0 | V73: 0.01801801802 | W73: 14 | X73: =IF(W73<31,AVERAGE(OFFSET(INDEX('Points team et quota finales'!$C$5:$C$34,W73),0,0,COUNTIF($W$6:$W$102,W73))),0) -> 10.64705882
A74: 14 | G74: 0 | H74: 14 | I74: 55.5 | L74: 0 | M74: 14 | N74: 55.5 | O74: 55.5 | R74: 0 | U74: 0 | V74: 0.01801801802 | W74: 14 | X74: =IF(W74<31,AVERAGE(OFFSET(INDEX('Points team et quota finales'!$C$5:$C$34,W74),0,0,COUNTIF($W$6:$W$102,W74))),0) -> 10.64705882
A75: 14 | G75: 0 | H75: 14 | I75: 55.5 | L75: 0 | M75: 14 | N75: 55.5 | O75: 55.5 | R75: 0 | U75: 0 | V75: 0.01801801802 | W75: 14 | X75: =IF(W75<31,AVERAGE(OFFSET(INDEX('Points team et quota finales'!$C$5:$C$34,W75),0,0,COUNTIF($W$6:$W$102,W75))),0) -> 10.64705882
A76: 14 | G76: 0 | H76: 14 | I76: 55.5 | L76: 0 | M76: 14 | N76: 55.5 | O76: 55.5 | R76: 0 | U76: 0 | V76: 0.01801801802 | W76: 14 | X76: =IF(W76<31,AVERAGE(OFFSET(INDEX('Points team et quota finales'!$C$5:$C$34,W76),0,0,COUNTIF($W$6:$W$102,W76))),0) -> 10.64705882
A77: 14 | G77: 0 | H77: 14 | I77: 55.5 | L77: 0 | M77: 14 | N77: 55.5 | O77: 55.5 | R77: 0 | U77: 0 | V77: 0.01801801802 | W77: 14 | X77: =IF(W77<31,AVERAGE(OFFSET(INDEX('Points team et quota finales'!$C$5:$C$34,W77),0,0,COUNTIF($W$6:$W$102,W77))),0) -> 10.64705882
A78: 14 | G78: 0 | H78: 14 | I78: 55.5 | L78: 0 | M78: 14 | N78: 55.5 | O78: 55.5 | R78: 0 | U78: 0 | V78: 0.01801801802 | W78: 14 | X78: =IF(W78<31,AVERAGE(OFFSET(INDEX('Points team et quota finales'!$C$5:$C$34,W78),0,0,COUNTIF($W$6:$W$102,W78))),0) -> 10.64705882
A79: 14 | G79: 0 | H79: 14 | I79: 55.5 | L79: 0 | M79: 14 | N79: 55.5 | O79: 55.5 | R79: 0 | U79: 0 | V79: 0.01801801802 | W79: 14 | X79: =IF(W79<31,AVERAGE(OFFSET(INDEX('Points team et quota finales'!$C$5:$C$34,W79),0,0,COUNTIF($W$6:$W$102,W79))),0) -> 10.64705882
A80: 14 | G80: 0 | H80: 14 | I80: 55.5 | L80: 0 | M80: 14 | N80: 55.5 | O80: 55.5 | R80: 0 | U80: 0 | V80: 0.01801801802 | W80: 14 | X80: =IF(W80<31,AVERAGE(OFFSET(INDEX('Points team et quota finales'!$C$5:$C$34,W80),0,0,COUNTIF($W$6:$W$102,W80))),0) -> 10.64705882
A81: 14 | G81: 0 | H81: 14 | I81: 55.5 | L81: 0 | M81: 14 | N81: 55.5 | O81: 55.5 | R81: 0 | U81: 0 | V81: 0.01801801802 | W81: 14 | X81: =IF(W81<31,AVERAGE(OFFSET(INDEX('Points team et quota finales'!$C$5:$C$34,W81),0,0,COUNTIF($W$6:$W$102,W81))),0) -> 10.64705882
A82: 14 | G82: 0 | H82: 14 | I82: 55.5 | L82: 0 | M82: 14 | N82: 55.5 | O82: 55.5 | R82: 0 | U82: 0 | V82: 0.01801801802 | W82: 14 | X82: =IF(W82<31,AVERAGE(OFFSET(INDEX('Points team et quota finales'!$C$5:$C$34,W82),0,0,COUNTIF($W$6:$W$102,W82))),0) -> 10.64705882
A83: 14 | G83: 0 | H83: 14 | I83: 55.5 | L83: 0 | M83: 14 | N83: 55.5 | O83: 55.5 | R83: 0 | U83: 0 | V83: 0.01801801802 | W83: 14 | X83: =IF(W83<31,AVERAGE(OFFSET(INDEX('Points team et quota finales'!$C$5:$C$34,W83),0,0,COUNTIF($W$6:$W$102,W83))),0) -> 10.64705882
A84: 14 | G84: 0 | H84: 14 | I84: 55.5 | L84: 0 | M84: 14 | N84: 55.5 | O84: 55.5 | R84: 0 | U84: 0 | V84: 0.01801801802 | W84: 14 | X84: =IF(W84<31,AVERAGE(OFFSET(INDEX('Points team et quota finales'!$C$5:$C$34,W84),0,0,COUNTIF($W$6:$W$102,W84))),0) -> 10.64705882
A85: 14 | G85: 0 | H85: 14 | I85: 55.5 | L85: 0 | M85: 14 | N85: 55.5 | O85: 55.5 | R85: 0 | U85: 0 | V85: 0.01801801802 | W85: 14 | X85: =IF(W85<31,AVERAGE(OFFSET(INDEX('Points team et quota finales'!$C$5:$C$34,W85),0,0,COUNTIF($W$6:$W$102,W85))),0) -> 10.64705882
A86: 14 | G86: 0 | H86: 14 | I86: 55.5 | L86: 0 | M86: 14 | N86: 55.5 | O86: 55.5 | R86: 0 | U86: 0 | V86: 0.01801801802 | W86: 14 | X86: =IF(W86<31,AVERAGE(OFFSET(INDEX('Points team et quota finales'!$C$5:$C$34,W86),0,0,COUNTIF($W$6:$W$102,W86))),0) -> 10.64705882
A87: 14 | G87: 0 | H87: 14 | I87: 55.5 | L87: 0 | M87: 14 | N87: 55.5 | O87: 55.5 | R87: 0 | U87: 0 | V87: 0.01801801802 | W87: 14 | X87: =IF(W87<31,AVERAGE(OFFSET(INDEX('Points team et quota finales'!$C$5:$C$34,W87),0,0,COUNTIF($W$6:$W$102,W87))),0) -> 10.64705882
A88: 14 | G88: 0 | H88: 14 | I88: 55.5 | L88: 0 | M88: 14 | N88: 55.5 | O88: 55.5 | R88: 0 | U88: 0 | V88: 0.01801801802 | W88: 14 | X88: =IF(W88<31,AVERAGE(OFFSET(INDEX('Points team et quota finales'!$C$5:$C$34,W88),0,0,COUNTIF($W$6:$W$102,W88))),0) -> 10.64705882
A89: 14 | G89: 0 | H89: 14 | I89: 55.5 | L89: 0 | M89: 14 | N89: 55.5 | O89: 55.5 | R89: 0 | U89: 0 | V89: 0.01801801802 | W89: 14 | X89: =IF(W89<31,AVERAGE(OFFSET(INDEX('Points team et quota finales'!$C$5:$C$34,W89),0,0,COUNTIF($W$6:$W$102,W89))),0) -> 10.64705882
A90: 14 | G90: 0 | H90: 14 | I90: 55.5 | L90: 0 | M90: 14 | N90: 55.5 | O90: 55.5 | R90: 0 | U90: 0 | V90: 0.01801801802 | W90: 14 | X90: =IF(W90<31,AVERAGE(OFFSET(INDEX('Points team et quota finales'!$C$5:$C$34,W90),0,0,COUNTIF($W$6:$W$102,W90))),0) -> 10.64705882
A91: 14 | G91: 0 | H91: 14 | I91: 55.5 | L91: 0 | M91: 14 | N91: 55.5 | O91: 55.5 | R91: 0 | U91: 0 | V91: 0.01801801802 | W91: 14 | X91: =IF(W91<31,AVERAGE(OFFSET(INDEX('Points team et quota finales'!$C$5:$C$34,W91),0,0,COUNTIF($W$6:$W$102,W91))),0) -> 10.64705882
A92: 14 | G92: 0 | H92: 14 | I92: 55.5 | L92: 0 | M92: 14 | N92: 55.5 | O92: 55.5 | R92: 0 | U92: 0 | V92: 0.01801801802 | W92: 14 | X92: =IF(W92<31,AVERAGE(OFFSET(INDEX('Points team et quota finales'!$C$5:$C$34,W92),0,0,COUNTIF($W$6:$W$102,W92))),0) -> 10.64705882
A93: 14 | G93: 0 | H93: 14 | I93: 55.5 | L93: 0 | M93: 14 | N93: 55.5 | O93: 55.5 | R93: 0 | U93: 0 | V93: 0.01801801802 | W93: 14 | X93: =IF(W93<31,AVERAGE(OFFSET(INDEX('Points team et quota finales'!$C$5:$C$34,W93),0,0,COUNTIF($W$6:$W$102,W93))),0) -> 10.64705882
A94: 14 | G94: 0 | H94: 14 | I94: 55.5 | L94: 0 | M94: 14 | N94: 55.5 | O94: 55.5 | R94: 0 | U94: 0 | V94: 0.01801801802 | W94: 14 | X94: =IF(W94<31,AVERAGE(OFFSET(INDEX('Points team et quota finales'!$C$5:$C$34,W94),0,0,COUNTIF($W$6:$W$102,W94))),0) -> 10.64705882
A95: 14 | G95: 0 | H95: 14 | I95: 55.5 | L95: 0 | M95: 14 | N95: 55.5 | O95: 55.5 | R95: 0 | U95: 0 | V95: 0.01801801802 | W95: 14 | X95: =IF(W95<31,AVERAGE(OFFSET(INDEX('Points team et quota finales'!$C$5:$C$34,W95),0,0,COUNTIF($W$6:$W$102,W95))),0) -> 10.64705882
A96: 14 | G96: 0 | H96: 14 | I96: 55.5 | L96: 0 | M96: 14 | N96: 55.5 | O96: 55.5 | R96: 0 | U96: 0 | V96: 0.01801801802 | W96: 14 | X96: =IF(W96<31,AVERAGE(OFFSET(INDEX('Points team et quota finales'!$C$5:$C$34,W96),0,0,COUNTIF($W$6:$W$102,W96))),0) -> 10.64705882
A97: 14 | G97: 0 | H97: 14 | I97: 55.5 | L97: 0 | M97: 14 | N97: 55.5 | O97: 55.5 | R97: 0 | U97: 0 | V97: 0.01801801802 | W97: 14 | X97: =IF(W97<31,AVERAGE(OFFSET(INDEX('Points team et quota finales'!$C$5:$C$34,W97),0,0,COUNTIF($W$6:$W$102,W97))),0) -> 10.64705882
A98: 14 | G98: 0 | H98: 14 | I98: 55.5 | L98: 0 | M98: 14 | N98: 55.5 | O98: 55.5 | R98: 0 | U98: 0 | V98: 0.01801801802 | W98: 14 | X98: =IF(W98<31,AVERAGE(OFFSET(INDEX('Points team et quota finales'!$C$5:$C$34,W98),0,0,COUNTIF($W$6:$W$102,W98))),0) -> 10.64705882
A99: 14 | G99: 0 | H99: 14 | I99: 55.5 | L99: 0 | M99: 14 | N99: 55.5 | O99: 55.5 | R99: 0 | U99: 0 | V99: 0.01801801802 | W99: 14 | X99: =IF(W99<31,AVERAGE(OFFSET(INDEX('Points team et quota finales'!$C$5:$C$34,W99),0,0,COUNTIF($W$6:$W$102,W99))),0) -> 10.64705882
A100: 14 | G100: 0 | H100: 14 | I100: 55.5 | L100: 0 | M100: 14 | N100: 55.5 | O100: 55.5 | R100: 0 | U100: 0 | V100: 0.01801801802 | W100: 14 | X100: =IF(W100<31,AVERAGE(OFFSET(INDEX('Points team et quota finales'!$C$5:$C$34,W100),0,0,COUNTIF($W$6:$W$102,W100))),0) -> 10.64705882
A101: 14 | G101: 0 | H101: 14 | I101: 55.5 | L101: 0 | M101: 14 | N101: 55.5 | O101: 55.5 | R101: 0 | U101: 0 | V101: 0.01801801802 | W101: 14 | X101: =IF(W101<31,AVERAGE(OFFSET(INDEX('Points team et quota finales'!$C$5:$C$34,W101),0,0,COUNTIF($W$6:$W$102,W101))),0) -> 10.64705882
A102: 14 | G102: =IF(E102="TOP",$F$105,IF(F102="-",E102-0.01,IF(F102="+",E102+0.01,E102))) -> 0 | H102: =RANK(G102,$G$6:$G$102) -> 14 | I102: =IF(COUNTIF($H$6:$H$102,H102)=1,H102,(H102*2+COUNTIF($H$6:$H$102,H102)-1)/2) -> 55.5 | L102: =IF(J102="TOP",$K$105,IF(K102="-",J102-0.01,IF(K102="+",J102+0.01,J102))) -> 0 | M102: =RANK(L102,$L$6:$L$102) -> 14 | N102: =IF(COUNTIF($M$6:$M$102,M102)=1,M102,(M102*2+COUNTIF($M$6:$M$102,M102)-1)/2) -> 55.5 | O102: =SQRT(I102*N102) -> 55.5 | R102: =IF(P102="TOP",$Q$105,IF(Q102="-",P102-0.01,IF(Q102="+",P102+0.01,P102))) -> 0 | U102: 0 | V102: =IF(U102<>0,U102*1000+R102*100+1/O102,IF(R102<>0,R102*100+1/O102,1/O102)) -> 0.01801801802 | W102: 14 | X102: =IF(W102<31,AVERAGE(OFFSET(INDEX('Points team et quota finales'!$C$5:$C$34,W102),0,0,COUNTIF($W$6:$W$102,W102))),0) -> 10.64705882
E105: Top = | F105: 38 | J105: Top = | K105: 42 | P105: Top = | Q105: 49 | S105: Top =
B106: =CONCATENATE("Jury President: ",General!$B$6) -> Jury President: Lieven Vlassenroot
B108: Appeal until :

Sheet BM
A2: =CONCATENATE(General!$B$5," - RESULTS B Male") -> Youth Lead Championship 09-03-2013 - RESULTS B Male
A5: RANK | B5: Nr | C5: Name | D5: Team | E5: Route 1 | I5: Ranking Points Route 1 | J5: Route 2 | N5: Ranking Points Route 2 | O5: Root R1 x R2 | P5: Final | S5: Super Final | V5: base pour calcul rang | W5: RANK | X5: Team points
A6: =RANK(V6,$V$6:$V$103) -> 1 | B6: BM02 | C6: COLLIN Nicolas | D6: STC | E6: TOP | G6: =IF(E6="TOP",$F$106,IF(F6="-",E6-0.01,IF(F6="+",E6+0.01,E6))) -> 42 | H6: =RANK(G6,$G$6:$G$103) -> 1 | I6: =IF(COUNTIF($H$6:$H$103,H6)=1,H6,(H6*2+COUNTIF($H$6:$H$103,H6)-1)/2) -> 3 | J6: 27 | L6: =IF(J6="TOP",$K$106,IF(K6="-",J6-0.01,IF(K6="+",J6+0.01,J6))) -> 27 | M6: =RANK(L6,$L$6:$L$103) -> 2 | N6: =IF(COUNTIF($M$6:$M$103,M6)=1,M6,(M6*2+COUNTIF($M$6:$M$103,M6)-1)/2) -> 2.5 | O6: =SQRT(I6*N6) -> 2.738612788 | P6: TOP | R6: =IF(P6="TOP",$Q$106,IF(Q6="-",P6-0.01,IF(Q6="+",P6+0.01,P6))) -> 33 | U6: =IF($S6="TOP",$T$106,IF($T6="-",$S6-0.01,IF($T6="+",$S6+0.01,$S6))) -> 0 | V6: =IF(U6<>0,U6*1000+R6*100+1/O6,IF(R6<>0,R6*100+1/O6,1/O6)) -> 3300.365148 | W6: =A6 -> 1 | X6: =IF(W6<31,AVERAGE(OFFSET(INDEX('Points team et quota finales'!$C$5:$C$34,W6),0,0,COUNTIF($W$6:$W$103,W6))),0) -> 100
A7: 2 | B7: BM08 | C7: ANSION Arnaud | D7: ESC | E7: TOP | G7: 42 | H7: 1 | I7: 3 | J7: 27 | L7: 27 | M7: 2 | N7: 2.5 | O7: 2.738612788 | P7: 31 | R7: 31 | U7: 0 | V7: 3100.365148 | W7: 2 | X7: =IF(W7<31,AVERAGE(OFFSET(INDEX('Points team et quota finales'!$C$5:$C$34,W7),0,0,COUNTIF($W$6:$W$103,W7))),0) -> 80
A8: 3 | B8: BM15 | C8: MATHEYS Merlin | D8: ESC | E8: TOP | G8: 42 | H8: 1 | I8: 3 | J8: TOP | L8: 30 | M8: 1 | N8: 1 | O8: 1.732050808 | P8: 29 | Q8: + | R8: 29.01 | U8: 0 | V8: 2901.57735 | W8: 3 | X8: =IF(W8<31,AVERAGE(OFFSET(INDEX('Points team et quota finales'!$C$5:$C$34,W8),0,0,COUNTIF($W$6:$W$103,W8))),0) -> 65
A9: 4 | B9: BM05 | C9: LEMPEREUR Sven | D9: REJ | E9: 39 | G9: 39 | H9: 7 | I9: 7 | J9: 21 | L9: 21 | M9: 9 | N9: 9.5 | O9: 8.154753215 | P9: 26 | Q9: + | R9: 26.01 | U9: 0 | V9: 2601.122628 | W9: 4 | X9: =IF(W9<31,AVERAGE(OFFSET(INDEX('Points team et quota finales'!$C$5:$C$34,W9),0,0,COUNTIF($W$6:$W$103,W9))),0) -> 55
A10: 5 | B10: BM01 | C10: ANTOINE Dylan | D10: ESC | E10: TOP | G10: 42 | H10: 1 | I10: 3 | J10: 26 | L10: 26 | M10: 4 | N10: 4 | O10: 3.464101615 | P10: 26 | R10: 26 | U10: 0 | V10: 2600.288675 | W10: 5 | X10: =IF(W10<31,AVERAGE(OFFSET(INDEX('Points team et quota finales'!$C$5:$C$34,W10),0,0,COUNTIF($W$6:$W$103,W10))),0) -> 51
A11: 6 | B11: BM11 | C11: RAUCQ Benoit | D11: ESC | E11: TOP | G11: 42 | H11: 1 | I11: 3 | J11: 23 | K11: + | L11: 23.01 | M11: 6 | N11: 6 | O11: 4.242640687 | P11: 21 | Q11: + | R11: 21.01 | U11: 0 | V11: 2101.235702 | W11: 6 | X11: =IF(W11<31,AVERAGE(OFFSET(INDEX('Points team et quota finales'!$C$5:$C$34,W11),0,0,COUNTIF($W$6:$W$103,W11))),0) -> 47
A12: 7 | B12: BM10 | C12: LEMIERE Nils | D12: KLI | E12: 37 | F12: + | G12: 37.01 | H12: 8 | I12: 8 | J12: 25 | K12: + | L12: 25.01 | M12: 5 | N12: 5 | O12: 6.32455532 | P12: 16 | Q12: + | R12: 16.01 | U12: 0 | V12: 1601.158114 | W12: 7 | X12: =IF(W12<31,AVERAGE(OFFSET(INDEX('Points team et quota finales'!$C$5:$C$34,W12),0,0,COUNTIF($W$6:$W$103,W12))),0) -> 43
A13: 8 | B13: BM12 | C13: CAVIOLA Sebastien | D13: GT | E13: 39 | F13: + | G13: 39.01 | H13: 6 | I13: 6 | J13: 19 | K13: + | L13: 19.01 | M13: 12 | N13: 12 | O13: 8.485281374 | P13: 16 | R13: 16 | U13: 0 | V13: 1600.117851 | W13: 8 | X13: =IF(W13<31,AVERAGE(OFFSET(INDEX('Points team et quota finales'!$C$5:$C$34,W13),0,0,COUNTIF($W$6:$W$103,W13))),0) -> 40
A14: 9 | B14: BM09 | C14: LUYPAERT Arno | D14: KLI | E14: 30 | F14: + | G14: 30.01 | H14: 9 | I14: 10 | J14: 23 | L14: 23 | M14: 7 | N14: 7.5 | O14: 8.660254038 | R14: 0 | U14: 0 | V14: 0.1154700538 | W14: 9 | X14: =IF(W14<31,AVERAGE(OFFSET(INDEX('Points team et quota finales'!$C$5:$C$34,W14),0,0,COUNTIF($W$6:$W$103,W14))),0) -> 37
A15: 10 | B15: BM18 | C15: STEVENS Nicolas | D15: KLI | E15: 30 | F15: + | G15: 30.01 | H15: 9 | I15: 10 | J15: 21 | L15: 21 | M15: 9 | N15: 9.5 | O15: 9.746794345 | R15: 0 | U15: 0 | V15: 0.1025978352 | W15: 10 | X15: =IF(W15<31,AVERAGE(OFFSET(INDEX('Points team et quota finales'!$C$5:$C$34,W15),0,0,COUNTIF($W$6:$W$103,W15))),0) -> 34
A16: 11 | B16: BM03 | C16: LORENT Sam | D16: CC | E16: 21 | F16: + | G16: 21.01 | H16: 14 | I16: 14 | J16: 23 | L16: 23 | M16: 7 | N16: 7.5 | O16: 10.24695077 | R16: 0 | U16: 0 | V16: 0.09759000729 | W16: 11 | X16: =IF(W16<31,AVERAGE(OFFSET(INDEX('Points team et quota finales'!$C$5:$C$34,W16),0,0,COUNTIF($W$6:$W$103,W16))),0) -> 31
A17: 12 | B17: BM17 | C17: ROSOUX Noé | D17: GT | E17: 30 | G17: 30 | H17: 12 | I17: 12.5 | J17: 19.5 | K17: + | L17: 19.51 | M17: 11 | N17: 11 | O17: 11.7260394 | R17: 0 | U17: 0 | V17: 0.08528028654 | W17: 12 | X17: =IF(W17<31,AVERAGE(OFFSET(INDEX('Points team et quota finales'!$C$5:$C$34,W17),0,0,COUNTIF($W$6:$W$103,W17))),0) -> 28
A18: 13 | B18: BM16 | C18: INGHELRAM Lander | D18: HUN | E18: 30 | F18: + | G18: 30.01 | H18: 9 | I18: 10 | J18: 9 | K18: + | L18: 9.01 | M18: 15 | N18: 15.5 | O18: 12.4498996 | R18: 0 | U18: 0 | V18: 0.08032193289 | W18: 13 | X18: =IF(W18<31,AVERAGE(OFFSET(INDEX('Points team et quota finales'!$C$5:$C$34,W18),0,0,COUNTIF($W$6:$W$103,W18))),0) -> 26
A19: 14 | B19: BM04 | C19: DALOZE Raphaël | D19: CC | E19: 30 | G19: 30 | H19: 12 | I19: 12.5 | J19: 10 | L19: 10 | M19: 14 | N19: 14 | O19: 13.22875656 | R19: 0 | U19: 0 | V19: 0.0755928946 | W19: 14 | X19: =IF(W19<31,AVERAGE(OFFSET(INDEX('Points team et quota finales'!$C$5:$C$34,W19),0,0,COUNTIF($W$6:$W$103,W19))),0) -> 24
A20: 15 | B20: BM07 | C20: WINAND François | D20: ARE | E20: 20 | G20: 20 | H20: 15 | I20: 15 | J20: 11 | L20: 11 | M20: 13 | N20: 13 | O20: 13.96424004 | R20: 0 | U20: 0 | V20: 0.0716114874 | W20: 15 | X20: =IF(W20<31,AVERAGE(OFFSET(INDEX('Points team et quota finales'!$C$5:$C$34,W20),0,0,COUNTIF($W$6:$W$103,W20))),0) -> 22
A21: 16 | B21: BM13 | C21: BOULLE Benjamin | D21: STC | E21: 18 | G21: 18 | H21: 16 | I21: 16 | J21: 9 | K21: + | L21: 9.01 | M21: 15 | N21: 15.5 | O21: 15.74801575 | R21: 0 | U21: 0 | V21: 0.0635000635 | W21: 16 | X21: =IF(W21<31,AVERAGE(OFFSET(INDEX('Points team et quota finales'!$C$5:$C$34,W21),0,0,COUNTIF($W$6:$W$103,W21))),0) -> 20
A22: 17 | G22: 0 | H22: 17 | I22: 57.5 | L22: 0 | M22: 17 | N22: 57.5 | O22: 57.5 | R22: 0 | U22: 0 | V22: 0.01739130435 | W22: 17 | X22: =IF(W22<31,AVERAGE(OFFSET(INDEX('Points team et quota finales'!$C$5:$C$34,W22),0,0,COUNTIF($W$6:$W$103,W22))),0) -> 8.214285714
A23: 17 | G23: 0 | H23: 17 | I23: 57.5 | L23: 0 | M23: 17 | N23: 57.5 | O23: 57.5 | R23: 0 | U23: 0 | V23: 0.01739130435 | W23: 17 | X23: =IF(W23<31,AVERAGE(OFFSET(INDEX('Points team et quota finales'!$C$5:$C$34,W23),0,0,COUNTIF($W$6:$W$103,W23))),0) -> 8.214285714
A24: 17 | G24: 0 | H24: 17 | I24: 57.5 | L24: 0 | M24: 17 | N24: 57.5 | O24: 57.5 | R24: 0 | U24: 0 | V24: 0.01739130435 | W24: 17 | X24: =IF(W24<31,AVERAGE(OFFSET(INDEX('Points team et quota finales'!$C$5:$C$34,W24),0,0,COUNTIF($W$6:$W$103,W24))),0) -> 8.214285714
A25: 17 | G25: 0 | H25: 17 | I25: 57.5 | L25: 0 | M25: 17 | N25: 57.5 | O25: 57.5 | R25: 0 | U25: 0 | V25: 0.01739130435 | W25: 17 | X25: =IF(W25<31,AVERAGE(OFFSET(INDEX('Points team et quota finales'!$C$5:$C$34,W25),0,0,COUNTIF($W$6:$W$103,W25))),0) -> 8.214285714
A26: 17 | G26: 0 | H26: 17 | I26: 57.5 | L26: 0 | M26: 17 | N26: 57.5 | O26: 57.5 | R26: 0 | U26: 0 | V26: 0.01739130435 | W26: 17 | X26: =IF(W26<31,AVERAGE(OFFSET(INDEX('Points team et quota finales'!$C$5:$C$34,W26),0,0,COUNTIF($W$6:$W$103,W26))),0) -> 8.214285714
A27: 17 | G27: 0 | H27: 17 | I27: 57.5 | L27: 0 | M27: 17 | N27: 57.5 | O27: 57.5 | R27: 0 | U27: 0 | V27: 0.01739130435 | W27: 17 | X27: =IF(W27<31,AVERAGE(OFFSET(INDEX('Points team et quota finales'!$C$5:$C$34,W27),0,0,COUNTIF($W$6:$W$103,W27))),0) -> 8.214285714
A28: 17 | G28: 0 | H28: 17 | I28: 57.5 | L28: 0 | M28: 17 | N28: 57.5 | O28: 57.5 | R28: 0 | U28: 0 | V28: 0.01739130435 | W28: 17 | X28: =IF(W28<31,AVERAGE(OFFSET(INDEX('Points team et quota finales'!$C$5:$C$34,W28),0,0,COUNTIF($W$6:$W$103,W28))),0) -> 8.214285714
A29: 17 | G29: 0 | H29: 17 | I29: 57.5 | L29: 0 | M29: 17 | N29: 57.5 | O29: 57.5 | R29: 0 | U29: 0 | V29: 0.01739130435 | W29: 17 | X29: =IF(W29<31,AVERAGE(OFFSET(INDEX('Points team et quota finales'!$C$5:$C$34,W29),0,0,COUNTIF($W$6:$W$103,W29))),0) -> 8.214285714
A30: 17 | G30: 0 | H30: 17 | I30: 57.5 | L30: 0 | M30: 17 | N30: 57.5 | O30: 57.5 | R30: 0 | U30: 0 | V30: 0.01739130435 | W30: 17 | X30: =IF(W30<31,AVERAGE(OFFSET(INDEX('Points team et quota finales'!$C$5:$C$34,W30),0,0,COUNTIF($W$6:$W$103,W30))),0) -> 8.214285714
A31: 17 | G31: 0 | H31: 17 | I31: 57.5 | L31: 0 | M31: 17 | N31: 57.5 | O31: 57.5 | R31: 0 | U31: 0 | V31: 0.01739130435 | W31: 17 | X31: =IF(W31<31,AVERAGE(OFFSET(INDEX('Points team et quota finales'!$C$5:$C$34,W31),0,0,COUNTIF($W$6:$W$103,W31))),0) -> 8.214285714
A32: 17 | G32: 0 | H32: 17 | I32: 57.5 | L32: 0 | M32: 17 | N32: 57.5 | O32: 57.5 | R32: 0 | U32: 0 | V32: 0.01739130435 | W32: 17 | X32: =IF(W32<31,AVERAGE(OFFSET(INDEX('Points team et quota finales'!$C$5:$C$34,W32),0,0,COUNTIF($W$6:$W$103,W32))),0) -> 8.214285714
A33: 17 | G33: 0 | H33: 17 | I33: 57.5 | L33: 0 | M33: 17 | N33: 57.5 | O33: 57.5 | R33: 0 | U33: 0 | V33: 0.01739130435 | W33: 17 | X33: =IF(W33<31,AVERAGE(OFFSET(INDEX('Points team et quota finales'!$C$5:$C$34,W33),0,0,COUNTIF($W$6:$W$103,W33))),0) -> 8.214285714
A34: 17 | G34: 0 | H34: 17 | I34: 57.5 | L34: 0 | M34: 17 | N34: 57.5 | O34: 57.5 | R34: 0 | U34: 0 | V34: 0.01739130435 | W34: 17 | X34: =IF(W34<31,AVERAGE(OFFSET(INDEX('Points team et quota finales'!$C$5:$C$34,W34),0,0,COUNTIF($W$6:$W$103,W34))),0) -> 8.214285714
A35: 17 | G35: 0 | H35: 17 | I35: 57.5 | L35: 0 | M35: 17 | N35: 57.5 | O35: 57.5 | R35: 0 | U35: 0 | V35: 0.01739130435 | W35: 17 | X35: =IF(W35<31,AVERAGE(OFFSET(INDEX('Points team et quota finales'!$C$5:$C$34,W35),0,0,COUNTIF($W$6:$W$103,W35))),0) -> 8.214285714
A36: 17 | G36: 0 | H36: 17 | I36: 57.5 | L36: 0 | M36: 17 | N36: 57.5 | O36: 57.5 | R36: 0 | U36: 0 | V36: 0.01739130435 | W36: 17 | X36: =IF(W36<31,AVERAGE(OFFSET(INDEX('Points team et quota finales'!$C$5:$C$34,W36),0,0,COUNTIF($W$6:$W$103,W36))),0) -> 8.214285714
A37: 17 | G37: 0 | H37: 17 | I37: 57.5 | L37: 0 | M37: 17 | N37: 57.5 | O37: 57.5 | R37: 0 | U37: 0 | V37: 0.01739130435 | W37: 17 | X37: =IF(W37<31,AVERAGE(OFFSET(INDEX('Points team et quota finales'!$C$5:$C$34,W37),0,0,COUNTIF($W$6:$W$103,W37))),0) -> 8.214285714
A38: =RANK(V38,$V$6:$V$103) -> 17 | G38: =IF(E38="TOP",$F$106,IF(F38="-",E38-0.01,IF(F38="+",E38+0.01,E38))) -> 0 | H38: =RANK(G38,$G$6:$G$103) -> 17 | I38: =IF(COUNTIF($H$6:$H$103,H38)=1,H38,(H38*2+COUNTIF($H$6:$H$103,H38)-1)/2) -> 57.5 | L38: =IF(J38="TOP",$K$106,IF(K38="-",J38-0.01,IF(K38="+",J38+0.01,J38))) -> 0 | M38: =RANK(L38,$L$6:$L$103) -> 17 | N38: =IF(COUNTIF($M$6:$M$103,M38)=1,M38,(M38*2+COUNTIF($M$6:$M$103,M38)-1)/2) -> 57.5 | O38: =SQRT(I38*N38) -> 57.5 | R38: =IF(P38="TOP",$Q$106,IF(Q38="-",P38-0.01,IF(Q38="+",P38+0.01,P38))) -> 0 | U38: =IF($S38="TOP",$T$106,IF($T38="-",$S38-0.01,IF($T38="+",$S38+0.01,$S38))) -> 0 | V38: =IF(U38<>0,U38*1000+R38*100+1/O38,IF(R38<>0,R38*100+1/O38,1/O38)) -> 0.01739130435 | W38: 17 | X38: =IF(W38<31,AVERAGE(OFFSET(INDEX('Points team et quota finales'!$C$5:$C$34,W38),0,0,COUNTIF($W$6:$W$103,W38))),0) -> 8.214285714
A39: 17 | G39: 0 | H39: 17 | I39: 57.5 | L39: 0 | M39: 17 | N39: 57.5 | O39: 57.5 | R39: 0 | U39: 0 | V39: 0.01739130435 | W39: 17 | X39: =IF(W39<31,AVERAGE(OFFSET(INDEX('Points team et quota finales'!$C$5:$C$34,W39),0,0,COUNTIF($W$6:$W$103,W39))),0) -> 8.214285714
A40: 17 | G40: 0 | H40: 17 | I40: 57.5 | L40: 0 | M40: 17 | N40: 57.5 | O40: 57.5 | R40: 0 | U40: 0 | V40: 0.01739130435 | W40: 17 | X40: =IF(W40<31,AVERAGE(OFFSET(INDEX('Points team et quota finales'!$C$5:$C$34,W40),0,0,COUNTIF($W$6:$W$103,W40))),0) -> 8.214285714
A41: 17 | G41: 0 | H41: 17 | I41: 57.5 | L41: 0 | M41: 17 | N41: 57.5 | O41: 57.5 | R41: 0 | U41: 0 | V41: 0.01739130435 | W41: 17 | X41: =IF(W41<31,AVERAGE(OFFSET(INDEX('Points team et quota finales'!$C$5:$C$34,W41),0,0,COUNTIF($W$6:$W$103,W41))),0) -> 8.214285714
A42: 17 | G42: 0 | H42: 17 | I42: 57.5 | L42: 0 | M42: 17 | N42: 57.5 | O42: 57.5 | R42: 0 | U42: 0 | V42: 0.01739130435 | W42: 17 | X42: =IF(W42<31,AVERAGE(OFFSET(INDEX('Points team et quota finales'!$C$5:$C$34,W42),0,0,COUNTIF($W$6:$W$103,W42))),0) -> 8.214285714
A43: 17 | G43: 0 | H43: 17 | I43: 57.5 | L43: 0 | M43: 17 | N43: 57.5 | O43: 57.5 | R43: 0 | U43: 0 | V43: 0.01739130435 | W43: 17 | X43: =IF(W43<31,AVERAGE(OFFSET(INDEX('Points team et quota finales'!$C$5:$C$34,W43),0,0,COUNTIF($W$6:$W$103,W43))),0) -> 8.214285714
A44: 17 | G44: 0 | H44: 17 | I44: 57.5 | L44: 0 | M44: 17 | N44: 57.5 | O44: 57.5 | R44: 0 | U44: 0 | V44: 0.01739130435 | W44: 17 | X44: =IF(W44<31,AVERAGE(OFFSET(INDEX('Points team et quota finales'!$C$5:$C$34,W44),0,0,COUNTIF($W$6:$W$103,W44))),0) -> 8.214285714
A45: 17 | G45: 0 | H45: 17 | I45: 57.5 | L45: 0 | M45: 17 | N45: 57.5 | O45: 57.5 | R45: 0 | U45: 0 | V45: 0.01739130435 | W45: 17 | X45: =IF(W45<31,AVERAGE(OFFSET(INDEX('Points team et quota finales'!$C$5:$C$34,W45),0,0,COUNTIF($W$6:$W$103,W45))),0) -> 8.214285714
A46: 17 | G46: 0 | H46: 17 | I46: 57.5 | L46: 0 | M46: 17 | N46: 57.5 | O46: 57.5 | R46: 0 | U46: 0 | V46: 0.01739130435 | W46: 17 | X46: =IF(W46<31,AVERAGE(OFFSET(INDEX('Points team et quota finales'!$C$5:$C$34,W46),0,0,COUNTIF($W$6:$W$103,W46))),0) -> 8.214285714
A47: 17 | G47: 0 | H47: 17 | I47: 57.5 | L47: 0 | M47: 17 | N47: 57.5 | O47: 57.5 | R47: 0 | U47: 0 | V47: 0.01739130435 | W47: 17 | X47: =IF(W47<31,AVERAGE(OFFSET(INDEX('Points team et quota finales'!$C$5:$C$34,W47),0,0,COUNTIF($W$6:$W$103,W47))),0) -> 8.214285714
A48: 17 | G48: 0 | H48: 17 | I48: 57.5 | L48: 0 | M48: 17 | N48: 57.5 | O48: 57.5 | R48: 0 | U48: 0 | V48: 0.01739130435 | W48: 17 | X48: =IF(W48<31,AVERAGE(OFFSET(INDEX('Points team et quota finales'!$C$5:$C$34,W48),0,0,COUNTIF($W$6:$W$103,W48))),0) -> 8.214285714
A49: 17 | G49: 0 | H49: 17 | I49: 57.5 | L49: 0 | M49: 17 | N49: 57.5 | O49: 57.5 | R49: 0 | U49: 0 | V49: 0.01739130435 | W49: 17 | X49: =IF(W49<31,AVERAGE(OFFSET(INDEX('Points team et quota finales'!$C$5:$C$34,W49),0,0,COUNTIF($W$6:$W$103,W49))),0) -> 8.214285714
A50: 17 | G50: 0 | H50: 17 | I50: 57.5 | L50: 0 | M50: 17 | N50: 57.5 | O50: 57.5 | R50: 0 | U50: 0 | V50: 0.01739130435 | W50: 17 | X50: =IF(W50<31,AVERAGE(OFFSET(INDEX('Points team et quota finales'!$C$5:$C$34,W50),0,0,COUNTIF($W$6:$W$103,W50))),0) -> 8.214285714
A51: 17 | G51: 0 | H51: 17 | I51: 57.5 | L51: 0 | M51: 17 | N51: 57.5 | O51: 57.5 | R51: 0 | U51: 0 | V51: 0.01739130435 | W51: 17 | X51: =IF(W51<31,AVERAGE(OFFSET(INDEX('Points team et quota finales'!$C$5:$C$34,W51),0,0,COUNTIF($W$6:$W$103,W51))),0) -> 8.214285714
A52: 17 | G52: 0 | H52: 17 | I52: 57.5 | L52: 0 | M52: 17 | N52: 57.5 | O52: 57.5 | R52: 0 | U52: 0 | V52: 0.01739130435 | W52: 17 | X52: =IF(W52<31,AVERAGE(OFFSET(INDEX('Points team et quota finales'!$C$5:$C$34,W52),0,0,COUNTIF($W$6:$W$103,W52))),0) -> 8.214285714
A53: 17 | G53: 0 | H53: 17 | I53: 57.5 | L53: 0 | M53: 17 | N53: 57.5 | O53: 57.5 | R53: 0 | U53: 0 | V53: 0.01739130435 | W53: 17 | X53: =IF(W53<31,AVERAGE(OFFSET(INDEX('Points team et quota finales'!$C$5:$C$34,W53),0,0,COUNTIF($W$6:$W$103,W53))),0) -> 8.214285714
A54: 17 | G54: 0 | H54: 17 | I54: 57.5 | L54: 0 | M54: 17 | N54: 57.5 | O54: 57.5 | R54: 0 | U54: 0 | V54: 0.01739130435 | W54: 17 | X54: =IF(W54<31,AVERAGE(OFFSET(INDEX('Points team et quota finales'!$C$5:$C$34,W54),0,0,COUNTIF($W$6:$W$103,W54))),0) -> 8.214285714
A55: 17 | G55: 0 | H55: 17 | I55: 57.5 | L55: 0 | M55: 17 | N55: 57.5 | O55: 57.5 | R55: 0 | U55: 0 | V55: 0.01739130435 | W55: 17 | X55: =IF(W55<31,AVERAGE(OFFSET(INDEX('Points team et quota finales'!$C$5:$C$34,W55),0,0,COUNTIF($W$6:$W$103,W55))),0) -> 8.214285714
A56: 17 | G56: 0 | H56: 17 | I56: 57.5 | L56: 0 | M56: 17 | N56: 57.5 | O56: 57.5 | R56: 0 | U56: 0 | V56: 0.01739130435 | W56: 17 | X56: =IF(W56<31,AVERAGE(OFFSET(INDEX('Points team et quota finales'!$C$5:$C$34,W56),0,0,COUNTIF($W$6:$W$103,W56))),0) -> 8.214285714
A57: 17 | G57: 0 | H57: 17 | I57: 57.5 | L57: 0 | M57: 17 | N57: 57.5 | O57: 57.5 | R57: 0 | U57: 0 | V57: 0.01739130435 | W57: 17 | X57: =IF(W57<31,AVERAGE(OFFSET(INDEX('Points team et quota finales'!$C$5:$C$34,W57),0,0,COUNTIF($W$6:$W$103,W57))),0) -> 8.214285714
A58: 17 | G58: 0 | H58: 17 | I58: 57.5 | L58: 0 | M58: 17 | N58: 57.5 | O58: 57.5 | R58: 0 | U58: 0 | V58: 0.01739130435 | W58: 17 | X58: =IF(W58<31,AVERAGE(OFFSET(INDEX('Points team et quota finales'!$C$5:$C$34,W58),0,0,COUNTIF($W$6:$W$103,W58))),0) -> 8.214285714
A59: 17 | G59: 0 | H59: 17 | I59: 57.5 | L59: 0 | M59: 17 | N59: 57.5 | O59: 57.5 | R59: 0 | U59: 0 | V59: 0.01739130435 | W59: 17 | X59: =IF(W59<31,AVERAGE(OFFSET(INDEX('Points team et quota finales'!$C$5:$C$34,W59),0,0,COUNTIF($W$6:$W$103,W59))),0) -> 8.214285714
A60: 17 | G60: 0 | H60: 17 | I60: 57.5 | L60: 0 | M60: 17 | N60: 57.5 | O60: 57.5 | R60: 0 | U60: 0 | V60: 0.01739130435 | W60: 17 | X60: =IF(W60<31,AVERAGE(OFFSET(INDEX('Points team et quota finales'!$C$5:$C$34,W60),0,0,COUNTIF($W$6:$W$103,W60))),0) -> 8.214285714
A61: 17 | G61: 0 | H61: 17 | I61: 57.5 | L61: 0 | M61: 17 | N61: 57.5 | O61: 57.5 | R61: 0 | U61: 0 | V61: 0.01739130435 | W61: 17 | X61: =IF(W61<31,AVERAGE(OFFSET(INDEX('Points team et quota finales'!$C$5:$C$34,W61),0,0,COUNTIF($W$6:$W$103,W61))),0) -> 8.214285714
A62: 17 | G62: 0 | H62: 17 | I62: 57.5 | L62: 0 | M62: 17 | N62: 57.5 | O62: 57.5 | R62: 0 | U62: 0 | V62: 0.01739130435 | W62: 17 | X62: =IF(W62<31,AVERAGE(OFFSET(INDEX('Points team et quota finales'!$C$5:$C$34,W62),0,0,COUNTIF($W$6:$W$103,W62))),0) -> 8.214285714
A63: 17 | G63: 0 | H63: 17 | I63: 57.5 | L63: 0 | M63: 17 | N63: 57.5 | O63: 57.5 | R63: 0 | U63: 0 | V63: 0.01739130435 | W63: 17 | X63: =IF(W63<31,AVERAGE(OFFSET(INDEX('Points team et quota finales'!$C$5:$C$34,W63),0,0,COUNTIF($W$6:$W$103,W63))),0) -> 8.214285714
A64: 17 | G64: 0 | H64: 17 | I64: 57.5 | L64: 0 | M64: 17 | N64: 57.5 | O64: 57.5 | R64: 0 | U64: 0 | V64: 0.01739130435 | W64: 17 | X64: =IF(W64<31,AVERAGE(OFFSET(INDEX('Points team et quota finales'!$C$5:$C$34,W64),0,0,COUNTIF($W$6:$W$103,W64))),0) -> 8.214285714
A65: 17 | G65: 0 | H65: 17 | I65: 57.5 | L65: 0 | M65: 17 | N65: 57.5 | O65: 57.5 | R65: 0 | U65: 0 | V65: 0.01739130435 | W65: 17 | X65: =IF(W65<31,AVERAGE(OFFSET(INDEX('Points team et quota finales'!$C$5:$C$34,W65),0,0,COUNTIF($W$6:$W$103,W65))),0) -> 8.214285714
A66: 17 | G66: 0 | H66: 17 | I66: 57.5 | L66: 0 | M66: 17 | N66: 57.5 | O66: 57.5 | R66: 0 | U66: 0 | V66: 0.01739130435 | W66: 17 | X66: =IF(W66<31,AVERAGE(OFFSET(INDEX('Points team et quota finales'!$C$5:$C$34,W66),0,0,COUNTIF($W$6:$W$103,W66))),0) -> 8.214285714
A67: 17 | G67: 0 | H67: 17 | I67: 57.5 | L67: 0 | M67: 17 | N67: 57.5 | O67: 57.5 | R67: 0 | U67: 0 | V67: 0.01739130435 | W67: 17 | X67: =IF(W67<31,AVERAGE(OFFSET(INDEX('Points team et quota finales'!$C$5:$C$34,W67),0,0,COUNTIF($W$6:$W$103,W67))),0) -> 8.214285714
A68: 17 | G68: 0 | H68: 17 | I68: 57.5 | L68: 0 | M68: 17 | N68: 57.5 | O68: 57.5 | R68: 0 | U68: 0 | V68: 0.01739130435 | W68: =A68 -> 17 | X68: =IF(W68<31,AVERAGE(OFFSET(INDEX('Points team et quota finales'!$C$5:$C$34,W68),0,0,COUNTIF($W$6:$W$103,W68))),0) -> 8.214285714
A69: 17 | G69: 0 | H69: 17 | I69: 57.5 | L69: 0 | M69: 17 | N69: 57.5 | O69: 57.5 | R69: 0 | U69: 0 | V69: 0.01739130435 | W69: 17 | X69: =IF(W69<31,AVERAGE(OFFSET(INDEX('Points team et quota finales'!$C$5:$C$34,W69),0,0,COUNTIF($W$6:$W$103,W69))),0) -> 8.214285714
A70: =RANK(V70,$V$6:$V$103) -> 17 | G70: =IF(E70="TOP",$F$106,IF(F70="-",E70-0.01,IF(F70="+",E70+0.01,E70))) -> 0 | H70: =RANK(G70,$G$6:$G$103) -> 17 | I70: =IF(COUNTIF($H$6:$H$103,H70)=1,H70,(H70*2+COUNTIF($H$6:$H$103,H70)-1)/2) -> 57.5 | L70: =IF(J70="TOP",$K$106,IF(K70="-",J70-0.01,IF(K70="+",J70+0.01,J70))) -> 0 | M70: =RANK(L70,$L$6:$L$103) -> 17 | N70: =IF(COUNTIF($M$6:$M$103,M70)=1,M70,(M70*2+COUNTIF($M$6:$M$103,M70)-1)/2) -> 57.5 | O70: =SQRT(I70*N70) -> 57.5 | R70: =IF(P70="TOP",$Q$106,IF(Q70="-",P70-0.01,IF(Q70="+",P70+0.01,P70))) -> 0 | U70: =IF($S70="TOP",$T$106,IF($T70="-",$S70-0.01,IF($T70="+",$S70+0.01,$S70))) -> 0 | V70: =IF(U70<>0,U70*1000+R70*100+1/O70,IF(R70<>0,R70*100+1/O70,1/O70)) -> 0.01739130435 | W70: 17 | X70: =IF(W70<31,AVERAGE(OFFSET(INDEX('Points team et quota finales'!$C$5:$C$34,W70),0,0,COUNTIF($W$6:$W$103,W70))),0) -> 8.214285714
A71: 17 | G71: 0 | H71: 17 | I71: 57.5 | L71: 0 | M71: 17 | N71: 57.5 | O71: 57.5 | R71: 0 | U71: 0 | V71: 0.01739130435 | W71: 17 | X71: =IF(W71<31,AVERAGE(OFFSET(INDEX('Points team et quota finales'!$C$5:$C$34,W71),0,0,COUNTIF($W$6:$W$103,W71))),0) -> 8.214285714
A72: 17 | G72: 0 | H72: 17 | I72: 57.5 | L72: 0 | M72: 17 | N72: 57.5 | O72: 57.5 | R72: 0 | U72: 0 | V72: 0.01739130435 | W72: 17 | X72: =IF(W72<31,AVERAGE(OFFSET(INDEX('Points team et quota finales'!$C$5:$C$34,W72),0,0,COUNTIF($W$6:$W$103,W72))),0) -> 8.214285714
A73: 17 | G73: 0 | H73: 17 | I73: 57.5 | L73: 0 | M73: 17 | N73: 57.5 | O73: 57.5 | R73: 0 | U73: 0 | V73: 0.01739130435 | W73: 17 | X73: =IF(W73<31,AVERAGE(OFFSET(INDEX('Points team et quota finales'!$C$5:$C$34,W73),0,0,COUNTIF($W$6:$W$103,W73))),0) -> 8.214285714
A74: 17 | G74: 0 | H74: 17 | I74: 57.5 | L74: 0 | M74: 17 | N74: 57.5 | O74: 57.5 | R74: 0 | U74: 0 | V74: 0.01739130435 | W74: 17 | X74: =IF(W74<31,AVERAGE(OFFSET(INDEX('Points team et quota finales'!$C$5:$C$34,W74),0,0,COUNTIF($W$6:$W$103,W74))),0) -> 8.214285714
A75: 17 | G75: 0 | H75: 17 | I75: 57.5 | L75: 0 | M75: 17 | N75: 57.5 | O75: 57.5 | R75: 0 | U75: 0 | V75: 0.01739130435 | W75: 17 | X75: =IF(W75<31,AVERAGE(OFFSET(INDEX('Points team et quota finales'!$C$5:$C$34,W75),0,0,COUNTIF($W$6:$W$103,W75))),0) -> 8.214285714
A76: 17 | G76: 0 | H76: 17 | I76: 57.5 | L76: 0 | M76: 17 | N76: 57.5 | O76: 57.5 | R76: 0 | U76: 0 | V76: 0.01739130435 | W76: 17 | X76: =IF(W76<31,AVERAGE(OFFSET(INDEX('Points team et quota finales'!$C$5:$C$34,W76),0,0,COUNTIF($W$6:$W$103,W76))),0) -> 8.214285714
A77: 17 | G77: 0 | H77: 17 | I77: 57.5 | L77: 0 | M77: 17 | N77: 57.5 | O77: 57.5 | R77: 0 | U77: 0 | V77: 0.01739130435 | W77: 17 | X77: =IF(W77<31,AVERAGE(OFFSET(INDEX('Points team et quota finales'!$C$5:$C$34,W77),0,0,COUNTIF($W$6:$W$103,W77))),0) -> 8.214285714
A78: 17 | G78: 0 | H78: 17 | I78: 57.5 | L78: 0 | M78: 17 | N78: 57.5 | O78: 57.5 | R78: 0 | U78: 0 | V78: 0.01739130435 | W78: 17 | X78: =IF(W78<31,AVERAGE(OFFSET(INDEX('Points team et quota finales'!$C$5:$C$34,W78),0,0,COUNTIF($W$6:$W$103,W78))),0) -> 8.214285714
A79: 17 | G79: 0 | H79: 17 | I79: 57.5 | L79: 0 | M79: 17 | N79: 57.5 | O79: 57.5 | R79: 0 | U79: 0 | V79: 0.01739130435 | W79: 17 | X79: =IF(W79<31,AVERAGE(OFFSET(INDEX('Points team et quota finales'!$C$5:$C$34,W79),0,0,COUNTIF($W$6:$W$103,W79))),0) -> 8.214285714
A80: 17 | G80: 0 | H80: 17 | I80: 57.5 | L80: 0 | M80: 17 | N80: 57.5 | O80: 57.5 | R80: 0 | U80: 0 | V80: 0.01739130435 | W80: 17 | X80: =IF(W80<31,AVERAGE(OFFSET(INDEX('Points team et quota finales'!$C$5:$C$34,W80),0,0,COUNTIF($W$6:$W$103,W80))),0) -> 8.214285714
A81: 17 | G81: 0 | H81: 17 | I81: 57.5 | L81: 0 | M81: 17 | N81: 57.5 | O81: 57.5 | R81: 0 | U81: 0 | V81: 0.01739130435 | W81: 17 | X81: =IF(W81<31,AVERAGE(OFFSET(INDEX('Points team et quota finales'!$C$5:$C$34,W81),0,0,COUNTIF($W$6:$W$103,W81))),0) -> 8.214285714
A82: 17 | G82: 0 | H82: 17 | I82: 57.5 | L82: 0 | M82: 17 | N82: 57.5 | O82: 57.5 | R82: 0 | U82: 0 | V82: 0.01739130435 | W82: 17 | X82: =IF(W82<31,AVERAGE(OFFSET(INDEX('Points team et quota finales'!$C$5:$C$34,W82),0,0,COUNTIF($W$6:$W$103,W82))),0) -> 8.214285714
A83: 17 | G83: 0 | H83: 17 | I83: 57.5 | L83: 0 | M83: 17 | N83: 57.5 | O83: 57.5 | R83: 0 | U83: 0 | V83: 0.01739130435 | W83: 17 | X83: =IF(W83<31,AVERAGE(OFFSET(INDEX('Points team et quota finales'!$C$5:$C$34,W83),0,0,COUNTIF($W$6:$W$103,W83))),0) -> 8.214285714
A84: 17 | G84: 0 | H84: 17 | I84: 57.5 | L84: 0 | M84: 17 | N84: 57.5 | O84: 57.5 | R84: 0 | U84: 0 | V84: 0.01739130435 | W84: 17 | X84: =IF(W84<31,AVERAGE(OFFSET(INDEX('Points team et quota finales'!$C$5:$C$34,W84),0,0,COUNTIF($W$6:$W$103,W84))),0) -> 8.214285714
A85: 17 | G85: 0 | H85: 17 | I85: 57.5 | L85: 0 | M85: 17 | N85: 57.5 | O85: 57.5 | R85: 0 | U85: 0 | V85: 0.01739130435 | W85: 17 | X85: =IF(W85<31,AVERAGE(OFFSET(INDEX('Points team et quota finales'!$C$5:$C$34,W85),0,0,COUNTIF($W$6:$W$103,W85))),0) -> 8.214285714
A86: 17 | G86: 0 | H86: 17 | I86: 57.5 | L86: 0 | M86: 17 | N86: 57.5 | O86: 57.5 | R86: 0 | U86: 0 | V86: 0.01739130435 | W86: 17 | X86: =IF(W86<31,AVERAGE(OFFSET(INDEX('Points team et quota finales'!$C$5:$C$34,W86),0,0,COUNTIF($W$6:$W$103,W86))),0) -> 8.214285714
A87: 17 | G87: 0 | H87: 17 | I87: 57.5 | L87: 0 | M87: 17 | N87: 57.5 | O87: 57.5 | R87: 0 | U87: 0 | V87: 0.01739130435 | W87: 17 | X87: =IF(W87<31,AVERAGE(OFFSET(INDEX('Points team et quota finales'!$C$5:$C$34,W87),0,0,COUNTIF($W$6:$W$103,W87))),0) -> 8.214285714
A88: 17 | G88: 0 | H88: 17 | I88: 57.5 | L88: 0 | M88: 17 | N88: 57.5 | O88: 57.5 | R88: 0 | U88: 0 | V88: 0.01739130435 | W88: 17 | X88: =IF(W88<31,AVERAGE(OFFSET(INDEX('Points team et quota finales'!$C$5:$C$34,W88),0,0,COUNTIF($W$6:$W$103,W88))),0) -> 8.214285714
A89: 17 | G89: 0 | H89: 17 | I89: 57.5 | L89: 0 | M89: 17 | N89: 57.5 | O89: 57.5 | R89: 0 | U89: 0 | V89: 0.01739130435 | W89: 17 | X89: =IF(W89<31,AVERAGE(OFFSET(INDEX('Points team et quota finales'!$C$5:$C$34,W89),0,0,COUNTIF($W$6:$W$103,W89))),0) -> 8.214285714
A90: 17 | G90: 0 | H90: 17 | I90: 57.5 | L90: 0 | M90: 17 | N90: 57.5 | O90: 57.5 | R90: 0 | U90: 0 | V90: 0.01739130435 | W90: 17 | X90: =IF(W90<31,AVERAGE(OFFSET(INDEX('Points team et quota finales'!$C$5:$C$34,W90),0,0,COUNTIF($W$6:$W$103,W90))),0) -> 8.214285714
A91: 17 | G91: 0 | H91: 17 | I91: 57.5 | L91: 0 | M91: 17 | N91: 57.5 | O91: 57.5 | R91: 0 | U91: 0 | V91: 0.01739130435 | W91: 17 | X91: =IF(W91<31,AVERAGE(OFFSET(INDEX('Points team et quota finales'!$C$5:$C$34,W91),0,0,COUNTIF($W$6:$W$103,W91))),0) -> 8.214285714
A92: 17 | G92: 0 | H92: 17 | I92: 57.5 | L92: 0 | M92: 17 | N92: 57.5 | O92: 57.5 | R92: 0 | U92: 0 | V92: 0.01739130435 | W92: 17 | X92: =IF(W92<31,AVERAGE(OFFSET(INDEX('Points team et quota finales'!$C$5:$C$34,W92),0,0,COUNTIF($W$6:$W$103,W92))),0) -> 8.214285714
A93: 17 | G93: 0 | H93: 17 | I93: 57.5 | L93: 0 | M93: 17 | N93: 57.5 | O93: 57.5 | R93: 0 | U93: 0 | V93: 0.01739130435 | W93: 17 | X93: =IF(W93<31,AVERAGE(OFFSET(INDEX('Points team et quota finales'!$C$5:$C$34,W93),0,0,COUNTIF($W$6:$W$103,W93))),0) -> 8.214285714
A94: 17 | G94: 0 | H94: 17 | I94: 57.5 | L94: 0 | M94: 17 | N94: 57.5 | O94: 57.5 | R94: 0 | U94: 0 | V94: 0.01739130435 | W94: 17 | X94: =IF(W94<31,AVERAGE(OFFSET(INDEX('Points team et quota finales'!$C$5:$C$34,W94),0,0,COUNTIF($W$6:$W$103,W94))),0) -> 8.214285714
A95: 17 | G95: 0 | H95: 17 | I95: 57.5 | L95: 0 | M95: 17 | N95: 57.5 | O95: 57.5 | R95: 0 | U95: 0 | V95: 0.01739130435 | W95: 17 | X95: =IF(W95<31,AVERAGE(OFFSET(INDEX('Points team et quota finales'!$C$5:$C$34,W95),0,0,COUNTIF($W$6:$W$103,W95))),0) -> 8.214285714
A96: 17 | G96: 0 | H96: 17 | I96: 57.5 | L96: 0 | M96: 17 | N96: 57.5 | O96: 57.5 | R96: 0 | U96: 0 | V96: 0.01739130435 | W96: 17 | X96: =IF(W96<31,AVERAGE(OFFSET(INDEX('Points team et quota finales'!$C$5:$C$34,W96),0,0,COUNTIF($W$6:$W$103,W96))),0) -> 8.214285714
A97: 17 | G97: 0 | H97: 17 | I97: 57.5 | L97: 0 | M97: 17 | N97: 57.5 | O97: 57.5 | R97: 0 | U97: 0 | V97: 0.01739130435 | W97: 17 | X97: =IF(W97<31,AVERAGE(OFFSET(INDEX('Points team et quota finales'!$C$5:$C$34,W97),0,0,COUNTIF($W$6:$W$103,W97))),0) -> 8.214285714
A98: 17 | G98: 0 | H98: 17 | I98: 57.5 | L98: 0 | M98: 17 | N98: 57.5 | O98: 57.5 | R98: 0 | U98: 0 | V98: 0.01739130435 | W98: 17 | X98: =IF(W98<31,AVERAGE(OFFSET(INDEX('Points team et quota finales'!$C$5:$C$34,W98),0,0,COUNTIF($W$6:$W$103,W98))),0) -> 8.214285714
A99: 17 | G99: 0 | H99: 17 | I99: 57.5 | L99: 0 | M99: 17 | N99: 57.5 | O99: 57.5 | R99: 0 | U99: 0 | V99: 0.01739130435 | W99: 17 | X99: =IF(W99<31,AVERAGE(OFFSET(INDEX('Points team et quota finales'!$C$5:$C$34,W99),0,0,COUNTIF($W$6:$W$103,W99))),0) -> 8.214285714
A100: 17 | G100: 0 | H100: 17 | I100: 57.5 | L100: 0 | M100: 17 | N100: 57.5 | O100: 57.5 | R100: 0 | U100: 0 | V100: 0.01739130435 | W100: 17 | X100: =IF(W100<31,AVERAGE(OFFSET(INDEX('Points team et quota finales'!$C$5:$C$34,W100),0,0,COUNTIF($W$6:$W$103,W100))),0) -> 8.214285714
A101: 17 | G101: 0 | H101: 17 | I101: 57.5 | L101: 0 | M101: 17 | N101: 57.5 | O101: 57.5 | R101: 0 | U101: 0 | V101: 0.01739130435 | W101: 17 | X101: =IF(W101<31,AVERAGE(OFFSET(INDEX('Points team et quota finales'!$C$5:$C$34,W101),0,0,COUNTIF($W$6:$W$103,W101))),0) -> 8.214285714
A102: 17 | G102: =IF(E102="TOP",$F$106,IF(F102="-",E102-0.01,IF(F102="+",E102+0.01,E102))) -> 0 | H102: =RANK(G102,$G$6:$G$103) -> 17 | I102: =IF(COUNTIF($H$6:$H$103,H102)=1,H102,(H102*2+COUNTIF($H$6:$H$103,H102)-1)/2) -> 57.5 | L102: =IF(J102="TOP",$K$106,IF(K102="-",J102-0.01,IF(K102="+",J102+0.01,J102))) -> 0 | M102: =RANK(L102,$L$6:$L$103) -> 17 | N102: =IF(COUNTIF($M$6:$M$103,M102)=1,M102,(M102*2+COUNTIF($M$6:$M$103,M102)-1)/2) -> 57.5 | O102: =SQRT(I102*N102) -> 57.5 | R102: =IF(P102="TOP",$Q$106,IF(Q102="-",P102-0.01,IF(Q102="+",P102+0.01,P102))) -> 0 | U102: 0 | V102: =IF(U102<>0,U102*1000+R102*100+1/O102,IF(R102<>0,R102*100+1/O102,1/O102)) -> 0.01739130435 | W102: 17 | X102: =IF(W102<31,AVERAGE(OFFSET(INDEX('Points team et quota finales'!$C$5:$C$34,W102),0,0,COUNTIF($W$6:$W$103,W102))),0) -> 8.214285714
A103: 17 | G103: 0 | H103: 17 | I103: 57.5 | L103: 0 | M103: 17 | N103: 57.5 | O103: 57.5 | R103: 0 | U103: 0 | V103: 0.01739130435 | W103: 17 | X103: =IF(W103<31,AVERAGE(OFFSET(INDEX('Points team et quota finales'!$C$5:$C$34,W103),0,0,COUNTIF($W$6:$W$103,W103))),0) -> 8.214285714
E106: Top = | F106: 42 | J106: Top = | K106: 30 | P106: Top = | Q106: 33 | S106: Top =
B107: =CONCATENATE("Jury President: ",General!$B$6) -> Jury President: Lieven Vlassenroot
B109: Appeal until :

Sheet AM
A2: =CONCATENATE(General!$B$5," - RESULTS A Male") -> Youth Lead Championship 09-03-2013 - RESULTS A Male
A5: RANK | B5: Nr | C5: Name | D5: Team | E5: Route 1 | I5: Ranking Points Route 1 | J5: Route 2 | N5: Ranking Points Route 2 | O5: Root R1 x R2 | P5: Final | S5: Super Final | V5: base pour calcul rang | W5: RANK | X5: Team points
A6: =RANK(V6,$V$6:$V$105) -> 1 | B6: AM08 | C6: VANCAYZEELE Nicolas | D6: CC | E6: TOP | G6: =IF(E6="TOP",$F$108,IF(F6="-",E6-0.01,IF(F6="+",E6+0.01,E6))) -> 28 | H6: =RANK(G6,$G$6:$G$105) -> 1 | I6: =IF(COUNTIF($H$6:$H$105,H6)=1,H6,(H6*2+COUNTIF($H$6:$H$105,H6)-1)/2) -> 1.5 | J6: 27 | K6: + | L6: =IF(J6="TOP",$K$108,IF(K6="-",J6-0.01,IF(K6="+",J6+0.01,J6))) -> 27.01 | M6: =RANK(L6,$L$6:$L$105) -> 1 | N6: =IF(COUNTIF($M$6:$M$105,M6)=1,M6,(M6*2+COUNTIF($M$6:$M$105,M6)-1)/2) -> 1.5 | O6: =SQRT(I6*N6) -> 1.5 | P6: 34 | Q6: + | R6: =IF(P6="TOP",$Q$108,IF(Q6="-",P6-0.01,IF(Q6="+",P6+0.01,P6))) -> 34.01 | U6: =IF($S6="TOP",$T$108,IF($T6="-",$S6-0.01,IF($T6="+",$S6+0.01,$S6))) -> 0 | V6: =IF(U6<>0,U6*1000+R6*100+1/O6,IF(R6<>0,R6*100+1/O6,1/O6)) -> 3401.666667 | W6: =A6 -> 1 | X6: =IF(W6<31,AVERAGE(OFFSET(INDEX('Points team et quota finales'!$C$5:$C$34,W6),0,0,COUNTIF($W$6:$W$105,W6))),0) -> 100
A7: =RANK(V7,$V$6:$V$105) -> 2 | B7: AM04 | C7: KLASSEN Jacques | D7: ESC | E7: 12 | G7: 12 | H7: 10 | I7: 10 | J7: 25 | K7: + | L7: 25.01 | M7: 4 | N7: 4 | O7: 6.32455532 | P7: 31 | Q7: + | R7: 31.01 | U7: 0 | V7: 3101.158114 | W7: 2 | X7: =IF(W7<31,AVERAGE(OFFSET(INDEX('Points team et quota finales'!$C$5:$C$34,W7),0,0,COUNTIF($W$6:$W$105,W7))),0) -> 80
A8: 3 | B8: AM01 | C8: LORENZI Simon | D8: CC | E8: 26 | F8: + | G8: 26.01 | H8: 3 | I8: 3 | J8: 27 | K8: + | L8: 27.01 | M8: 1 | N8: 1.5 | O8: 2.121320344 | P8: 29 | R8: 29 | U8: 0 | V8: 2900.471405 | W8: 3 | X8: =IF(W8<31,AVERAGE(OFFSET(INDEX('Points team et quota finales'!$C$5:$C$34,W8),0,0,COUNTIF($W$6:$W$105,W8))),0) -> 65
A9: 4 | B9: AM10 | C9: FRIMOUT William | D9: KLI | E9: TOP | G9: 28 | H9: 1 | I9: 1.5 | J9: 27 | L9: 27 | M9: 3 | N9: 3 | O9: 2.121320344 | P9: 28 | Q9: + | R9: 28.01 | U9: 0 | V9: 2801.471405 | W9: 4 | X9: =IF(W9<31,AVERAGE(OFFSET(INDEX('Points team et quota finales'!$C$5:$C$34,W9),0,0,COUNTIF($W$6:$W$105,W9))),0) -> 55
A10: 5 | B10: AM02 | C10: DAL MASO Léon | D10: CC | E10: 23 | G10: 23 | H10: 4 | I10: 4 | J10: 25 | L10: 25 | M10: 5 | N10: 5 | O10: 4.472135955 | P10: 28 | Q10: + | R10: 28.01 | U10: 0 | V10: 2801.223607 | W10: 5 | X10: =IF(W10<31,AVERAGE(OFFSET(INDEX('Points team et quota finales'!$C$5:$C$34,W10),0,0,COUNTIF($W$6:$W$105,W10))),0) -> 51
A11: 6 | B11: AM07 | C11: MATHEYS Antoine | D11: ESC | E11: 13 | G11: 13 | H11: 6 | I11: 6.5 | J11: 23 | L11: 23 | M11: 6 | N11: 6 | O11: 6.244997998 | P11: 22 | Q11: + | R11: 22.01 | U11: 0 | V11: 2201.160128 | W11: 6 | X11: =IF(W11<31,AVERAGE(OFFSET(INDEX('Points team et quota finales'!$C$5:$C$34,W11),0,0,COUNTIF($W$6:$W$105,W11))),0) -> 47
A12: 7 | B12: AM11 | C12: GOURGUE Florian | D12: STC | E12: 19 | G12: 19 | H12: 5 | I12: 5 | J12: 13 | K12: + | L12: 13.01 | M12: 8 | N12: 9.5 | O12: 6.892024376 | P12: 17 | R12: 17 | U12: 0 | V12: 1700.145095 | W12: 7 | X12: =IF(W12<31,AVERAGE(OFFSET(INDEX('Points team et quota finales'!$C$5:$C$34,W12),0,0,COUNTIF($W$6:$W$105,W12))),0) -> 43
A13: 8 | B13: AM12 | C13: PAREIN Guillaume | D13: CC | E13: 13 | G13: 13 | H13: 6 | I13: 6.5 | J13: 14 | K13: + | L13: 14.01 | M13: 7 | N13: 7 | O13: 6.745368782 | P13: 13 | Q13: + | R13: 13.01 | U13: 0 | V13: 1301.14825 | W13: 8 | X13: =IF(W13<31,AVERAGE(OFFSET(INDEX('Points team et quota finales'!$C$5:$C$34,W13),0,0,COUNTIF($W$6:$W$105,W13))),0) -> 40
A14: 9 | B14: AM05 | C14: DAVISTER Guillaume | D14: STC | E14: 12 | F14: + | G14: 12.01 | H14: 8 | I14: 8.5 | J14: 13 | K14: + | L14: 13.01 | M14: 8 | N14: 9.5 | O14: 8.986100378 | R14: 0 | U14: 0 | V14: 0.1112829768 | W14: 9 | X14: =IF(W14<31,AVERAGE(OFFSET(INDEX('Points team et quota finales'!$C$5:$C$34,W14),0,0,COUNTIF($W$6:$W$105,W14))),0) -> 35.5
A15: 9 | B15: AM09 | C15: ANDRÉ Guillaume | D15: ESC | E15: 12 | F15: + | G15: 12.01 | H15: 8 | I15: 8.5 | J15: 13 | K15: + | L15: 13.01 | M15: 8 | N15: 9.5 | O15: 8.986100378 | R15: 0 | U15: 0 | V15: 0.1112829768 | W15: 9 | X15: =IF(W15<31,AVERAGE(OFFSET(INDEX('Points team et quota finales'!$C$5:$C$34,W15),0,0,COUNTIF($W$6:$W$105,W15))),0) -> 35.5
A16: 11 | B16: AM13 | C16: GIELEN Seppe | D16: HUN | E16: 9 | G16: 9 | H16: 12 | I16: 12 | J16: 13 | K16: + | L16: 13.01 | M16: 8 | N16: 9.5 | O16: 10.67707825 | R16: 0 | U16: 0 | V16: 0.09365858116 | W16: 11 | X16: =IF(W16<31,AVERAGE(OFFSET(INDEX('Points team et quota finales'!$C$5:$C$34,W16),0,0,COUNTIF($W$6:$W$105,W16))),0) -> 31
A17: 12 | B17: AM06 | C17: GERARD Simon | D17: STC | E17: 11 | G17: 11 | H17: 11 | I17: 11 | J17: 7 | L17: 7 | M17: 13 | N17: 13 | O17: 11.95826074 | R17: 0 | U17: 0 | V17: 0.083624201 | W17: 12 | X17: =IF(W17<31,AVERAGE(OFFSET(INDEX('Points team et quota finales'!$C$5:$C$34,W17),0,0,COUNTIF($W$6:$W$105,W17))),0) -> 28
A18: 13 | B18: AM03 | C18: MARGRAFF Nicolas | D18: STC | E18: 7 | F18: + | G18: 7.01 | H18: 13 | I18: 13 | J18: 13 | L18: 13 | M18: 12 | N18: 12 | O18: 12.489996 | R18: 0 | U18: 0 | V18: 0.0800640769 | W18: 13 | X18: =IF(W18<31,AVERAGE(OFFSET(INDEX('Points team et quota finales'!$C$5:$C$34,W18),0,0,COUNTIF($W$6:$W$105,W18))),0) -> 26
A19: 14 | G19: =IF(E19="TOP",$F$108,IF(F19="-",E19-0.01,IF(F19="+",E19+0.01,E19))) -> 0 | H19: =RANK(G19,$G$6:$G$105) -> 14 | I19: =IF(COUNTIF($H$6:$H$105,H19)=1,H19,(H19*2+COUNTIF($H$6:$H$105,H19)-1)/2) -> 57 | L19: =IF(J19="TOP",$K$108,IF(K19="-",J19-0.01,IF(K19="+",J19+0.01,J19))) -> 0 | M19: =RANK(L19,$L$6:$L$105) -> 14 | N19: =IF(COUNTIF($M$6:$M$105,M19)=1,M19,(M19*2+COUNTIF($M$6:$M$105,M19)-1)/2) -> 57 | O19: =SQRT(I19*N19) -> 57 | R19: =IF(P19="TOP",$Q$108,IF(Q19="-",P19-0.01,IF(Q19="+",P19+0.01,P19))) -> 0 | U19: =IF($S19="TOP",$T$108,IF($T19="-",$S19-0.01,IF($T19="+",$S19+0.01,$S19))) -> 0 | V19: =IF(U19<>0,U19*1000+R19*100+1/O19,IF(R19<>0,R19*100+1/O19,1/O19)) -> 0.01754385965 | W19: 14 | X19: =IF(W19<31,AVERAGE(OFFSET(INDEX('Points team et quota finales'!$C$5:$C$34,W19),0,0,COUNTIF($W$6:$W$105,W19))),0) -> 10.64705882
A20: 14 | G20: 0 | H20: 14 | I20: 57 | L20: 0 | M20: 14 | N20: 57 | O20: 57 | R20: 0 | U20: 0 | V20: 0.01754385965 | W20: 14 | X20: =IF(W20<31,AVERAGE(OFFSET(INDEX('Points team et quota finales'!$C$5:$C$34,W20),0,0,COUNTIF($W$6:$W$105,W20))),0) -> 10.64705882
A21: 14 | G21: 0 | H21: 14 | I21: 57 | L21: 0 | M21: 14 | N21: 57 | O21: 57 | R21: 0 | U21: 0 | V21: 0.01754385965 | W21: 14 | X21: =IF(W21<31,AVERAGE(OFFSET(INDEX('Points team et quota finales'!$C$5:$C$34,W21),0,0,COUNTIF($W$6:$W$105,W21))),0) -> 10.64705882
A22: 14 | G22: 0 | H22: 14 | I22: 57 | L22: 0 | M22: 14 | N22: 57 | O22: 57 | R22: 0 | U22: 0 | V22: 0.01754385965 | W22: 14 | X22: =IF(W22<31,AVERAGE(OFFSET(INDEX('Points team et quota finales'!$C$5:$C$34,W22),0,0,COUNTIF($W$6:$W$105,W22))),0) -> 10.64705882
A23: 14 | G23: 0 | H23: 14 | I23: 57 | L23: 0 | M23: 14 | N23: 57 | O23: 57 | R23: 0 | U23: 0 | V23: 0.01754385965 | W23: 14 | X23: =IF(W23<31,AVERAGE(OFFSET(INDEX('Points team et quota finales'!$C$5:$C$34,W23),0,0,COUNTIF($W$6:$W$105,W23))),0) -> 10.64705882
A24: 14 | G24: 0 | H24: 14 | I24: 57 | L24: 0 | M24: 14 | N24: 57 | O24: 57 | R24: 0 | U24: 0 | V24: 0.01754385965 | W24: 14 | X24: =IF(W24<31,AVERAGE(OFFSET(INDEX('Points team et quota finales'!$C$5:$C$34,W24),0,0,COUNTIF($W$6:$W$105,W24))),0) -> 10.64705882
A25: 14 | G25: 0 | H25: 14 | I25: 57 | L25: 0 | M25: 14 | N25: 57 | O25: 57 | R25: 0 | U25: 0 | V25: 0.01754385965 | W25: 14 | X25: =IF(W25<31,AVERAGE(OFFSET(INDEX('Points team et quota finales'!$C$5:$C$34,W25),0,0,COUNTIF($W$6:$W$105,W25))),0) -> 10.64705882
A26: 14 | G26: 0 | H26: 14 | I26: 57 | L26: 0 | M26: 14 | N26: 57 | O26: 57 | R26: 0 | U26: 0 | V26: 0.01754385965 | W26: 14 | X26: =IF(W26<31,AVERAGE(OFFSET(INDEX('Points team et quota finales'!$C$5:$C$34,W26),0,0,COUNTIF($W$6:$W$105,W26))),0) -> 10.64705882
A27: 14 | G27: 0 | H27: 14 | I27: 57 | L27: 0 | M27: 14 | N27: 57 | O27: 57 | R27: 0 | U27: 0 | V27: 0.01754385965 | W27: 14 | X27: =IF(W27<31,AVERAGE(OFFSET(INDEX('Points team et quota finales'!$C$5:$C$34,W27),0,0,COUNTIF($W$6:$W$105,W27))),0) -> 10.64705882
A28: 14 | G28: 0 | H28: 14 | I28: 57 | L28: 0 | M28: 14 | N28: 57 | O28: 57 | R28: 0 | U28: 0 | V28: 0.01754385965 | W28: 14 | X28: =IF(W28<31,AVERAGE(OFFSET(INDEX('Points team et quota finales'!$C$5:$C$34,W28),0,0,COUNTIF($W$6:$W$105,W28))),0) -> 10.64705882
A29: 14 | G29: 0 | H29: 14 | I29: 57 | L29: 0 | M29: 14 | N29: 57 | O29: 57 | R29: 0 | U29: 0 | V29: 0.01754385965 | W29: 14 | X29: =IF(W29<31,AVERAGE(OFFSET(INDEX('Points team et quota finales'!$C$5:$C$34,W29),0,0,COUNTIF($W$6:$W$105,W29))),0) -> 10.64705882
A30: 14 | G30: 0 | H30: 14 | I30: 57 | L30: 0 | M30: 14 | N30: 57 | O30: 57 | R30: 0 | U30: 0 | V30: 0.01754385965 | W30: 14 | X30: =IF(W30<31,AVERAGE(OFFSET(INDEX('Points team et quota finales'!$C$5:$C$34,W30),0,0,COUNTIF($W$6:$W$105,W30))),0) -> 10.64705882
A31: 14 | G31: 0 | H31: 14 | I31: 57 | L31: 0 | M31: 14 | N31: 57 | O31: 57 | R31: 0 | U31: 0 | V31: 0.01754385965 | W31: 14 | X31: =IF(W31<31,AVERAGE(OFFSET(INDEX('Points team et quota finales'!$C$5:$C$34,W31),0,0,COUNTIF($W$6:$W$105,W31))),0) -> 10.64705882
A32: 14 | G32: 0 | H32: 14 | I32: 57 | L32: 0 | M32: 14 | N32: 57 | O32: 57 | R32: 0 | U32: 0 | V32: 0.01754385965 | W32: 14 | X32: =IF(W32<31,AVERAGE(OFFSET(INDEX('Points team et quota finales'!$C$5:$C$34,W32),0,0,COUNTIF($W$6:$W$105,W32))),0) -> 10.64705882
A33: 14 | G33: 0 | H33: 14 | I33: 57 | L33: 0 | M33: 14 | N33: 57 | O33: 57 | R33: 0 | U33: 0 | V33: 0.01754385965 | W33: 14 | X33: =IF(W33<31,AVERAGE(OFFSET(INDEX('Points team et quota finales'!$C$5:$C$34,W33),0,0,COUNTIF($W$6:$W$105,W33))),0) -> 10.64705882
A34: 14 | G34: 0 | H34: 14 | I34: 57 | L34: 0 | M34: 14 | N34: 57 | O34: 57 | R34: 0 | U34: 0 | V34: 0.01754385965 | W34: 14 | X34: =IF(W34<31,AVERAGE(OFFSET(INDEX('Points team et quota finales'!$C$5:$C$34,W34),0,0,COUNTIF($W$6:$W$105,W34))),0) -> 10.64705882
A35: 14 | G35: 0 | H35: 14 | I35: 57 | L35: 0 | M35: 14 | N35: 57 | O35: 57 | R35: 0 | U35: 0 | V35: 0.01754385965 | W35: 14 | X35: =IF(W35<31,AVERAGE(OFFSET(INDEX('Points team et quota finales'!$C$5:$C$34,W35),0,0,COUNTIF($W$6:$W$105,W35))),0) -> 10.64705882
A36: 14 | G36: 0 | H36: 14 | I36: 57 | L36: 0 | M36: 14 | N36: 57 | O36: 57 | R36: 0 | U36: 0 | V36: 0.01754385965 | W36: 14 | X36: =IF(W36<31,AVERAGE(OFFSET(INDEX('Points team et quota finales'!$C$5:$C$34,W36),0,0,COUNTIF($W$6:$W$105,W36))),0) -> 10.64705882
A37: 14 | G37: 0 | H37: 14 | I37: 57 | L37: 0 | M37: 14 | N37: 57 | O37: 57 | R37: 0 | U37: 0 | V37: 0.01754385965 | W37: 14 | X37: =IF(W37<31,AVERAGE(OFFSET(INDEX('Points team et quota finales'!$C$5:$C$34,W37),0,0,COUNTIF($W$6:$W$105,W37))),0) -> 10.64705882
A38: 14 | G38: 0 | H38: 14 | I38: 57 | L38: 0 | M38: 14 | N38: 57 | O38: 57 | R38: 0 | U38: 0 | V38: 0.01754385965 | W38: 14 | X38: =IF(W38<31,AVERAGE(OFFSET(INDEX('Points team et quota finales'!$C$5:$C$34,W38),0,0,COUNTIF($W$6:$W$105,W38))),0) -> 10.64705882
A39: 14 | G39: 0 | H39: 14 | I39: 57 | L39: 0 | M39: 14 | N39: 57 | O39: 57 | R39: 0 | U39: 0 | V39: 0.01754385965 | W39: 14 | X39: =IF(W39<31,AVERAGE(OFFSET(INDEX('Points team et quota finales'!$C$5:$C$34,W39),0,0,COUNTIF($W$6:$W$105,W39))),0) -> 10.64705882
A40: 14 | G40: 0 | H40: 14 | I40: 57 | L40: 0 | M40: 14 | N40: 57 | O40: 57 | R40: 0 | U40: 0 | V40: 0.01754385965 | W40: 14 | X40: =IF(W40<31,AVERAGE(OFFSET(INDEX('Points team et quota finales'!$C$5:$C$34,W40),0,0,COUNTIF($W$6:$W$105,W40))),0) -> 10.64705882
A41: 14 | G41: 0 | H41: 14 | I41: 57 | L41: 0 | M41: 14 | N41: 57 | O41: 57 | R41: 0 | U41: 0 | V41: 0.01754385965 | W41: 14 | X41: =IF(W41<31,AVERAGE(OFFSET(INDEX('Points team et quota finales'!$C$5:$C$34,W41),0,0,COUNTIF($W$6:$W$105,W41))),0) -> 10.64705882
A42: 14 | G42: 0 | H42: 14 | I42: 57 | L42: 0 | M42: 14 | N42: 57 | O42: 57 | R42: 0 | U42: 0 | V42: 0.01754385965 | W42: 14 | X42: =IF(W42<31,AVERAGE(OFFSET(INDEX('Points team et quota finales'!$C$5:$C$34,W42),0,0,COUNTIF($W$6:$W$105,W42))),0) -> 10.64705882
A43: 14 | G43: 0 | H43: 14 | I43: 57 | L43: 0 | M43: 14 | N43: 57 | O43: 57 | R43: 0 | U43: 0 | V43: 0.01754385965 | W43: 14 | X43: =IF(W43<31,AVERAGE(OFFSET(INDEX('Points team et quota finales'!$C$5:$C$34,W43),0,0,COUNTIF($W$6:$W$105,W43))),0) -> 10.64705882
A44: 14 | G44: 0 | H44: 14 | I44: 57 | L44: 0 | M44: 14 | N44: 57 | O44: 57 | R44: 0 | U44: 0 | V44: 0.01754385965 | W44: 14 | X44: =IF(W44<31,AVERAGE(OFFSET(INDEX('Points team et quota finales'!$C$5:$C$34,W44),0,0,COUNTIF($W$6:$W$105,W44))),0) -> 10.64705882
A45: 14 | G45: 0 | H45: 14 | I45: 57 | L45: 0 | M45: 14 | N45: 57 | O45: 57 | R45: 0 | U45: 0 | V45: 0.01754385965 | W45: 14 | X45: =IF(W45<31,AVERAGE(OFFSET(INDEX('Points team et quota finales'!$C$5:$C$34,W45),0,0,COUNTIF($W$6:$W$105,W45))),0) -> 10.64705882
A46: 14 | G46: 0 | H46: 14 | I46: 57 | L46: 0 | M46: 14 | N46: 57 | O46: 57 | R46: 0 | U46: 0 | V46: 0.01754385965 | W46: 14 | X46: =IF(W46<31,AVERAGE(OFFSET(INDEX('Points team et quota finales'!$C$5:$C$34,W46),0,0,COUNTIF($W$6:$W$105,W46))),0) -> 10.64705882
A47: 14 | G47: 0 | H47: 14 | I47: 57 | L47: 0 | M47: 14 | N47: 57 | O47: 57 | R47: 0 | U47: 0 | V47: 0.01754385965 | W47: 14 | X47: =IF(W47<31,AVERAGE(OFFSET(INDEX('Points team et quota finales'!$C$5:$C$34,W47),0,0,COUNTIF($W$6:$W$105,W47))),0) -> 10.64705882
A48: 14 | G48: 0 | H48: 14 | I48: 57 | L48: 0 | M48: 14 | N48: 57 | O48: 57 | R48: 0 | U48: 0 | V48: 0.01754385965 | W48: 14 | X48: =IF(W48<31,AVERAGE(OFFSET(INDEX('Points team et quota finales'!$C$5:$C$34,W48),0,0,COUNTIF($W$6:$W$105,W48))),0) -> 10.64705882
A49: 14 | G49: 0 | H49: 14 | I49: 57 | L49: 0 | M49: 14 | N49: 57 | O49: 57 | R49: 0 | U49: 0 | V49: 0.01754385965 | W49: 14 | X49: =IF(W49<31,AVERAGE(OFFSET(INDEX('Points team et quota finales'!$C$5:$C$34,W49),0,0,COUNTIF($W$6:$W$105,W49))),0) -> 10.64705882
A50: 14 | G50: 0 | H50: 14 | I50: 57 | L50: 0 | M50: 14 | N50: 57 | O50: 57 | R50: 0 | U50: 0 | V50: 0.01754385965 | W50: 14 | X50: =IF(W50<31,AVERAGE(OFFSET(INDEX('Points team et quota finales'!$C$5:$C$34,W50),0,0,COUNTIF($W$6:$W$105,W50))),0) -> 10.64705882
A51: 14 | G51: 0 | H51: 14 | I51: 57 | L51: 0 | M51: 14 | N51: 57 | O51: 57 | R51: 0 | U51: 0 | V51: 0.01754385965 | W51: 14 | X51: =IF(W51<31,AVERAGE(OFFSET(INDEX('Points team et quota finales'!$C$5:$C$34,W51),0,0,COUNTIF($W$6:$W$105,W51))),0) -> 10.64705882
A52: 14 | G52: 0 | H52: 14 | I52: 57 | L52: 0 | M52: 14 | N52: 57 | O52: 57 | R52: 0 | U52: 0 | V52: 0.01754385965 | W52: 14 | X52: =IF(W52<31,AVERAGE(OFFSET(INDEX('Points team et quota finales'!$C$5:$C$34,W52),0,0,COUNTIF($W$6:$W$105,W52))),0) -> 10.64705882
A53: 14 | G53: 0 | H53: 14 | I53: 57 | L53: 0 | M53: 14 | N53: 57 | O53: 57 | R53: 0 | U53: 0 | V53: 0.01754385965 | W53: 14 | X53: =IF(W53<31,AVERAGE(OFFSET(INDEX('Points team et quota finales'!$C$5:$C$34,W53),0,0,COUNTIF($W$6:$W$105,W53))),0) -> 10.64705882
A54: 14 | G54: 0 | H54: 14 | I54: 57 | L54: 0 | M54: 14 | N54: 57 | O54: 57 | R54: 0 | U54: 0 | V54: 0.01754385965 | W54: 14 | X54: =IF(W54<31,AVERAGE(OFFSET(INDEX('Points team et quota finales'!$C$5:$C$34,W54),0,0,COUNTIF($W$6:$W$105,W54))),0) -> 10.64705882
A55: 14 | G55: 0 | H55: 14 | I55: 57 | L55: 0 | M55: 14 | N55: 57 | O55: 57 | R55: 0 | U55: 0 | V55: 0.01754385965 | W55: 14 | X55: =IF(W55<31,AVERAGE(OFFSET(INDEX('Points team et quota finales'!$C$5:$C$34,W55),0,0,COUNTIF($W$6:$W$105,W55))),0) -> 10.64705882
A56: 14 | G56: 0 | H56: 14 | I56: 57 | L56: 0 | M56: 14 | N56: 57 | O56: 57 | R56: 0 | U56: 0 | V56: 0.01754385965 | W56: 14 | X56: =IF(W56<31,AVERAGE(OFFSET(INDEX('Points team et quota finales'!$C$5:$C$34,W56),0,0,COUNTIF($W$6:$W$105,W56))),0) -> 10.64705882
A57: 14 | G57: 0 | H57: 14 | I57: 57 | L57: 0 | M57: 14 | N57: 57 | O57: 57 | R57: 0 | U57: 0 | V57: 0.01754385965 | W57: 14 | X57: =IF(W57<31,AVERAGE(OFFSET(INDEX('Points team et quota finales'!$C$5:$C$34,W57),0,0,COUNTIF($W$6:$W$105,W57))),0) -> 10.64705882
A58: 14 | G58: 0 | H58: 14 | I58: 57 | L58: 0 | M58: 14 | N58: 57 | O58: 57 | R58: 0 | U58: 0 | V58: 0.01754385965 | W58: 14 | X58: =IF(W58<31,AVERAGE(OFFSET(INDEX('Points team et quota finales'!$C$5:$C$34,W58),0,0,COUNTIF($W$6:$W$105,W58))),0) -> 10.64705882
A59: 14 | G59: 0 | H59: 14 | I59: 57 | L59: 0 | M59: 14 | N59: 57 | O59: 57 | R59: 0 | U59: 0 | V59: 0.01754385965 | W59: 14 | X59: =IF(W59<31,AVERAGE(OFFSET(INDEX('Points team et quota finales'!$C$5:$C$34,W59),0,0,COUNTIF($W$6:$W$105,W59))),0) -> 10.64705882
A60: 14 | G60: 0 | H60: 14 | I60: 57 | L60: 0 | M60: 14 | N60: 57 | O60: 57 | R60: 0 | U60: 0 | V60: 0.01754385965 | W60: 14 | X60: =IF(W60<31,AVERAGE(OFFSET(INDEX('Points team et quota finales'!$C$5:$C$34,W60),0,0,COUNTIF($W$6:$W$105,W60))),0) -> 10.64705882
A61: 14 | G61: 0 | H61: 14 | I61: 57 | L61: 0 | M61: 14 | N61: 57 | O61: 57 | R61: 0 | U61: 0 | V61: 0.01754385965 | W61: 14 | X61: =IF(W61<31,AVERAGE(OFFSET(INDEX('Points team et quota finales'!$C$5:$C$34,W61),0,0,COUNTIF($W$6:$W$105,W61))),0) -> 10.64705882
A62: 14 | G62: 0 | H62: 14 | I62: 57 | L62: 0 | M62: 14 | N62: 57 | O62: 57 | R62: 0 | U62: 0 | V62: 0.01754385965 | W62: 14 | X62: =IF(W62<31,AVERAGE(OFFSET(INDEX('Points team et quota finales'!$C$5:$C$34,W62),0,0,COUNTIF($W$6:$W$105,W62))),0) -> 10.64705882
A63: 14 | G63: 0 | H63: 14 | I63: 57 | L63: 0 | M63: 14 | N63: 57 | O63: 57 | R63: 0 | U63: 0 | V63: 0.01754385965 | W63: 14 | X63: =IF(W63<31,AVERAGE(OFFSET(INDEX('Points team et quota finales'!$C$5:$C$34,W63),0,0,COUNTIF($W$6:$W$105,W63))),0) -> 10.64705882
A64: 14 | G64: 0 | H64: 14 | I64: 57 | L64: 0 | M64: 14 | N64: 57 | O64: 57 | R64: 0 | U64: 0 | V64: 0.01754385965 | W64: 14 | X64: =IF(W64<31,AVERAGE(OFFSET(INDEX('Points team et quota finales'!$C$5:$C$34,W64),0,0,COUNTIF($W$6:$W$105,W64))),0) -> 10.64705882
A65: 14 | G65: 0 | H65: 14 | I65: 57 | L65: 0 | M65: 14 | N65: 57 | O65: 57 | R65: 0 | U65: 0 | V65: 0.01754385965 | W65: 14 | X65: =IF(W65<31,AVERAGE(OFFSET(INDEX('Points team et quota finales'!$C$5:$C$34,W65),0,0,COUNTIF($W$6:$W$105,W65))),0) -> 10.64705882
A66: 14 | G66: 0 | H66: 14 | I66: 57 | L66: 0 | M66: 14 | N66: 57 | O66: 57 | R66: 0 | U66: 0 | V66: 0.01754385965 | W66: 14 | X66: =IF(W66<31,AVERAGE(OFFSET(INDEX('Points team et quota finales'!$C$5:$C$34,W66),0,0,COUNTIF($W$6:$W$105,W66))),0) -> 10.64705882
A67: 14 | G67: 0 | H67: 14 | I67: 57 | L67: 0 | M67: 14 | N67: 57 | O67: 57 | R67: 0 | U67: 0 | V67: 0.01754385965 | W67: 14 | X67: =IF(W67<31,AVERAGE(OFFSET(INDEX('Points team et quota finales'!$C$5:$C$34,W67),0,0,COUNTIF($W$6:$W$105,W67))),0) -> 10.64705882
A68: 14 | G68: 0 | H68: 14 | I68: 57 | L68: 0 | M68: 14 | N68: 57 | O68: 57 | R68: 0 | U68: 0 | V68: 0.01754385965 | W68: 14 | X68: =IF(W68<31,AVERAGE(OFFSET(INDEX('Points team et quota finales'!$C$5:$C$34,W68),0,0,COUNTIF($W$6:$W$105,W68))),0) -> 10.64705882
A69: 14 | G69: 0 | H69: 14 | I69: 57 | L69: 0 | M69: 14 | N69: 57 | O69: 57 | R69: 0 | U69: 0 | V69: 0.01754385965 | W69: 14 | X69: =IF(W69<31,AVERAGE(OFFSET(INDEX('Points team et quota finales'!$C$5:$C$34,W69),0,0,COUNTIF($W$6:$W$105,W69))),0) -> 10.64705882
A70: 14 | G70: =IF(E70="TOP",$F$108,IF(F70="-",E70-0.01,IF(F70="+",E70+0.01,E70))) -> 0 | H70: =RANK(G70,$G$6:$G$105) -> 14 | I70: =IF(COUNTIF($H$6:$H$105,H70)=1,H70,(H70*2+COUNTIF($H$6:$H$105,H70)-1)/2) -> 57 | L70: =IF(J70="TOP",$K$108,IF(K70="-",J70-0.01,IF(K70="+",J70+0.01,J70))) -> 0 | M70: =RANK(L70,$L$6:$L$105) -> 14 | N70: =IF(COUNTIF($M$6:$M$105,M70)=1,M70,(M70*2+COUNTIF($M$6:$M$105,M70)-1)/2) -> 57 | O70: =SQRT(I70*N70) -> 57 | R70: =IF(P70="TOP",$Q$108,IF(Q70="-",P70-0.01,IF(Q70="+",P70+0.01,P70))) -> 0 | U70: =IF($S70="TOP",$T$108,IF($T70="-",$S70-0.01,IF($T70="+",$S70+0.01,$S70))) -> 0 | V70: =IF(U70<>0,U70*1000+R70*100+1/O70,IF(R70<>0,R70*100+1/O70,1/O70)) -> 0.01754385965 | W70: =A70 -> 14 | X70: =IF(W70<31,AVERAGE(OFFSET(INDEX('Points team et quota finales'!$C$5:$C$34,W70),0,0,COUNTIF($W$6:$W$105,W70))),0) -> 10.64705882
A71: =RANK(V71,$V$6:$V$105) -> 14 | G71: 0 | H71: 14 | I71: 57 | L71: 0 | M71: 14 | N71: 57 | O71: 57 | R71: 0 | U71: 0 | V71: 0.01754385965 | W71: 14 | X71: =IF(W71<31,AVERAGE(OFFSET(INDEX('Points team et quota finales'!$C$5:$C$34,W71),0,0,COUNTIF($W$6:$W$105,W71))),0) -> 10.64705882
A72: 14 | G72: 0 | H72: 14 | I72: 57 | L72: 0 | M72: 14 | N72: 57 | O72: 57 | R72: 0 | U72: 0 | V72: 0.01754385965 | W72: 14 | X72: =IF(W72<31,AVERAGE(OFFSET(INDEX('Points team et quota finales'!$C$5:$C$34,W72),0,0,COUNTIF($W$6:$W$105,W72))),0) -> 10.64705882
A73: 14 | G73: 0 | H73: 14 | I73: 57 | L73: 0 | M73: 14 | N73: 57 | O73: 57 | R73: 0 | U73: 0 | V73: 0.01754385965 | W73: 14 | X73: =IF(W73<31,AVERAGE(OFFSET(INDEX('Points team et quota finales'!$C$5:$C$34,W73),0,0,COUNTIF($W$6:$W$105,W73))),0) -> 10.64705882
A74: 14 | G74: 0 | H74: 14 | I74: 57 | L74: 0 | M74: 14 | N74: 57 | O74: 57 | R74: 0 | U74: 0 | V74: 0.01754385965 | W74: 14 | X74: =IF(W74<31,AVERAGE(OFFSET(INDEX('Points team et quota finales'!$C$5:$C$34,W74),0,0,COUNTIF($W$6:$W$105,W74))),0) -> 10.64705882
A75: 14 | G75: 0 | H75: 14 | I75: 57 | L75: 0 | M75: 14 | N75: 57 | O75: 57 | R75: 0 | U75: 0 | V75: 0.01754385965 | W75: 14 | X75: =IF(W75<31,AVERAGE(OFFSET(INDEX('Points team et quota finales'!$C$5:$C$34,W75),0,0,COUNTIF($W$6:$W$105,W75))),0) -> 10.64705882
A76: 14 | G76: 0 | H76: 14 | I76: 57 | L76: 0 | M76: 14 | N76: 57 | O76: 57 | R76: 0 | U76: 0 | V76: 0.01754385965 | W76: 14 | X76: =IF(W76<31,AVERAGE(OFFSET(INDEX('Points team et quota finales'!$C$5:$C$34,W76),0,0,COUNTIF($W$6:$W$105,W76))),0) -> 10.64705882
A77: 14 | G77: 0 | H77: 14 | I77: 57 | L77: 0 | M77: 14 | N77: 57 | O77: 57 | R77: 0 | U77: 0 | V77: 0.01754385965 | W77: 14 | X77: =IF(W77<31,AVERAGE(OFFSET(INDEX('Points team et quota finales'!$C$5:$C$34,W77),0,0,COUNTIF($W$6:$W$105,W77))),0) -> 10.64705882
A78: 14 | G78: 0 | H78: 14 | I78: 57 | L78: 0 | M78: 14 | N78: 57 | O78: 57 | R78: 0 | U78: 0 | V78: 0.01754385965 | W78: 14 | X78: =IF(W78<31,AVERAGE(OFFSET(INDEX('Points team et quota finales'!$C$5:$C$34,W78),0,0,COUNTIF($W$6:$W$105,W78))),0) -> 10.64705882
A79: 14 | G79: 0 | H79: 14 | I79: 57 | L79: 0 | M79: 14 | N79: 57 | O79: 57 | R79: 0 | U79: 0 | V79: 0.01754385965 | W79: 14 | X79: =IF(W79<31,AVERAGE(OFFSET(INDEX('Points team et quota finales'!$C$5:$C$34,W79),0,0,COUNTIF($W$6:$W$105,W79))),0) -> 10.64705882
A80: 14 | G80: 0 | H80: 14 | I80: 57 | L80: 0 | M80: 14 | N80: 57 | O80: 57 | R80: 0 | U80: 0 | V80: 0.01754385965 | W80: 14 | X80: =IF(W80<31,AVERAGE(OFFSET(INDEX('Points team et quota finales'!$C$5:$C$34,W80),0,0,COUNTIF($W$6:$W$105,W80))),0) -> 10.64705882
A81: 14 | G81: 0 | H81: 14 | I81: 57 | L81: 0 | M81: 14 | N81: 57 | O81: 57 | R81: 0 | U81: 0 | V81: 0.01754385965 | W81: 14 | X81: =IF(W81<31,AVERAGE(OFFSET(INDEX('Points team et quota finales'!$C$5:$C$34,W81),0,0,COUNTIF($W$6:$W$105,W81))),0) -> 10.64705882
A82: 14 | G82: 0 | H82: 14 | I82: 57 | L82: 0 | M82: 14 | N82: 57 | O82: 57 | R82: 0 | U82: 0 | V82: 0.01754385965 | W82: 14 | X82: =IF(W82<31,AVERAGE(OFFSET(INDEX('Points team et quota finales'!$C$5:$C$34,W82),0,0,COUNTIF($W$6:$W$105,W82))),0) -> 10.64705882
A83: 14 | G83: 0 | H83: 14 | I83: 57 | L83: 0 | M83: 14 | N83: 57 | O83: 57 | R83: 0 | U83: 0 | V83: 0.01754385965 | W83: 14 | X83: =IF(W83<31,AVERAGE(OFFSET(INDEX('Points team et quota finales'!$C$5:$C$34,W83),0,0,COUNTIF($W$6:$W$105,W83))),0) -> 10.64705882
A84: 14 | G84: 0 | H84: 14 | I84: 57 | L84: 0 | M84: 14 | N84: 57 | O84: 57 | R84: 0 | U84: 0 | V84: 0.01754385965 | W84: 14 | X84: =IF(W84<31,AVERAGE(OFFSET(INDEX('Points team et quota finales'!$C$5:$C$34,W84),0,0,COUNTIF($W$6:$W$105,W84))),0) -> 10.64705882
A85: 14 | G85: 0 | H85: 14 | I85: 57 | L85: 0 | M85: 14 | N85: 57 | O85: 57 | R85: 0 | U85: 0 | V85: 0.01754385965 | W85: 14 | X85: =IF(W85<31,AVERAGE(OFFSET(INDEX('Points team et quota finales'!$C$5:$C$34,W85),0,0,COUNTIF($W$6:$W$105,W85))),0) -> 10.64705882
A86: 14 | G86: 0 | H86: 14 | I86: 57 | L86: 0 | M86: 14 | N86: 57 | O86: 57 | R86: 0 | U86: 0 | V86: 0.01754385965 | W86: 14 | X86: =IF(W86<31,AVERAGE(OFFSET(INDEX('Points team et quota finales'!$C$5:$C$34,W86),0,0,COUNTIF($W$6:$W$105,W86))),0) -> 10.64705882
A87: 14 | G87: 0 | H87: 14 | I87: 57 | L87: 0 | M87: 14 | N87: 57 | O87: 57 | R87: 0 | U87: 0 | V87: 0.01754385965 | W87: 14 | X87: =IF(W87<31,AVERAGE(OFFSET(INDEX('Points team et quota finales'!$C$5:$C$34,W87),0,0,COUNTIF($W$6:$W$105,W87))),0) -> 10.64705882
A88: 14 | G88: 0 | H88: 14 | I88: 57 | L88: 0 | M88: 14 | N88: 57 | O88: 57 | R88: 0 | U88: 0 | V88: 0.01754385965 | W88: 14 | X88: =IF(W88<31,AVERAGE(OFFSET(INDEX('Points team et quota finales'!$C$5:$C$34,W88),0,0,COUNTIF($W$6:$W$105,W88))),0) -> 10.64705882
A89: 14 | G89: 0 | H89: 14 | I89: 57 | L89: 0 | M89: 14 | N89: 57 | O89: 57 | R89: 0 | U89: 0 | V89: 0.01754385965 | W89: 14 | X89: =IF(W89<31,AVERAGE(OFFSET(INDEX('Points team et quota finales'!$C$5:$C$34,W89),0,0,COUNTIF($W$6:$W$105,W89))),0) -> 10.64705882
A90: 14 | G90: 0 | H90: 14 | I90: 57 | L90: 0 | M90: 14 | N90: 57 | O90: 57 | R90: 0 | U90: 0 | V90: 0.01754385965 | W90: 14 | X90: =IF(W90<31,AVERAGE(OFFSET(INDEX('Points team et quota finales'!$C$5:$C$34,W90),0,0,COUNTIF($W$6:$W$105,W90))),0) -> 10.64705882
A91: 14 | G91: 0 | H91: 14 | I91: 57 | L91: 0 | M91: 14 | N91: 57 | O91: 57 | R91: 0 | U91: 0 | V91: 0.01754385965 | W91: 14 | X91: =IF(W91<31,AVERAGE(OFFSET(INDEX('Points team et quota finales'!$C$5:$C$34,W91),0,0,COUNTIF($W$6:$W$105,W91))),0) -> 10.64705882
A92: 14 | G92: 0 | H92: 14 | I92: 57 | L92: 0 | M92: 14 | N92: 57 | O92: 57 | R92: 0 | U92: 0 | V92: 0.01754385965 | W92: 14 | X92: =IF(W92<31,AVERAGE(OFFSET(INDEX('Points team et quota finales'!$C$5:$C$34,W92),0,0,COUNTIF($W$6:$W$105,W92))),0) -> 10.64705882
A93: 14 | G93: 0 | H93: 14 | I93: 57 | L93: 0 | M93: 14 | N93: 57 | O93: 57 | R93: 0 | U93: 0 | V93: 0.01754385965 | W93: 14 | X93: =IF(W93<31,AVERAGE(OFFSET(INDEX('Points team et quota finales'!$C$5:$C$34,W93),0,0,COUNTIF($W$6:$W$105,W93))),0) -> 10.64705882
A94: 14 | G94: 0 | H94: 14 | I94: 57 | L94: 0 | M94: 14 | N94: 57 | O94: 57 | R94: 0 | U94: 0 | V94: 0.01754385965 | W94: 14 | X94: =IF(W94<31,AVERAGE(OFFSET(INDEX('Points team et quota finales'!$C$5:$C$34,W94),0,0,COUNTIF($W$6:$W$105,W94))),0) -> 10.64705882
A95: 14 | G95: 0 | H95: 14 | I95: 57 | L95: 0 | M95: 14 | N95: 57 | O95: 57 | R95: 0 | U95: 0 | V95: 0.01754385965 | W95: 14 | X95: =IF(W95<31,AVERAGE(OFFSET(INDEX('Points team et quota finales'!$C$5:$C$34,W95),0,0,COUNTIF($W$6:$W$105,W95))),0) -> 10.64705882
A96: 14 | G96: 0 | H96: 14 | I96: 57 | L96: 0 | M96: 14 | N96: 57 | O96: 57 | R96: 0 | U96: 0 | V96: 0.01754385965 | W96: 14 | X96: =IF(W96<31,AVERAGE(OFFSET(INDEX('Points team et quota finales'!$C$5:$C$34,W96),0,0,COUNTIF($W$6:$W$105,W96))),0) -> 10.64705882
A97: 14 | G97: 0 | H97: 14 | I97: 57 | L97: 0 | M97: 14 | N97: 57 | O97: 57 | R97: 0 | U97: 0 | V97: 0.01754385965 | W97: 14 | X97: =IF(W97<31,AVERAGE(OFFSET(INDEX('Points team et quota finales'!$C$5:$C$34,W97),0,0,COUNTIF($W$6:$W$105,W97))),0) -> 10.64705882
A98: 14 | G98: 0 | H98: 14 | I98: 57 | L98: 0 | M98: 14 | N98: 57 | O98: 57 | R98: 0 | U98: 0 | V98: 0.01754385965 | W98: 14 | X98: =IF(W98<31,AVERAGE(OFFSET(INDEX('Points team et quota finales'!$C$5:$C$34,W98),0,0,COUNTIF($W$6:$W$105,W98))),0) -> 10.64705882
A99: 14 | G99: 0 | H99: 14 | I99: 57 | L99: 0 | M99: 14 | N99: 57 | O99: 57 | R99: 0 | U99: 0 | V99: 0.01754385965 | W99: 14 | X99: =IF(W99<31,AVERAGE(OFFSET(INDEX('Points team et quota finales'!$C$5:$C$34,W99),0,0,COUNTIF($W$6:$W$105,W99))),0) -> 10.64705882
A100: 14 | G100: 0 | H100: 14 | I100: 57 | L100: 0 | M100: 14 | N100: 57 | O100: 57 | R100: 0 | U100: 0 | V100: 0.01754385965 | W100: 14 | X100: =IF(W100<31,AVERAGE(OFFSET(INDEX('Points team et quota finales'!$C$5:$C$34,W100),0,0,COUNTIF($W$6:$W$105,W100))),0) -> 10.64705882
A101: 14 | G101: 0 | H101: 14 | I101: 57 | L101: 0 | M101: 14 | N101: 57 | O101: 57 | R101: 0 | U101: 0 | V101: 0.01754385965 | W101: 14 | X101: =IF(W101<31,AVERAGE(OFFSET(INDEX('Points team et quota finales'!$C$5:$C$34,W101),0,0,COUNTIF($W$6:$W$105,W101))),0) -> 10.64705882
A102: 14 | G102: 0 | H102: 14 | I102: 57 | L102: 0 | M102: 14 | N102: 57 | O102: 57 | R102: 0 | U102: 0 | V102: 0.01754385965 | W102: 14 | X102: =IF(W102<31,AVERAGE(OFFSET(INDEX('Points team et quota finales'!$C$5:$C$34,W102),0,0,COUNTIF($W$6:$W$105,W102))),0) -> 10.64705882
A103: 14 | G103: 0 | H103: 14 | I103: 57 | L103: 0 | M103: 14 | N103: 57 | O103: 57 | R103: 0 | U103: 0 | V103: 0.01754385965 | W103: 14 | X103: =IF(W103<31,AVERAGE(OFFSET(INDEX('Points team et quota finales'!$C$5:$C$34,W103),0,0,COUNTIF($W$6:$W$105,W103))),0) -> 10.64705882
A104: 14 | G104: 0 | H104: 14 | I104: 57 | L104: 0 | M104: 14 | N104: 57 | O104: 57 | R104: 0 | U104: 0 | V104: 0.01754385965 | W104: 14 | X104: =IF(W104<31,AVERAGE(OFFSET(INDEX('Points team et quota finales'!$C$5:$C$34,W104),0,0,COUNTIF($W$6:$W$105,W104))),0) -> 10.64705882
A105: 14 | G105: 0 | H105: 14 | I105: 57 | L105: 0 | M105: 14 | N105: 57 | O105: 57 | R105: 0 | U105: 0 | V105: 0.01754385965 | W105: 14 | X105: =IF(W105<31,AVERAGE(OFFSET(INDEX('Points team et quota finales'!$C$5:$C$34,W105),0,0,COUNTIF($W$6:$W$105,W105))),0) -> 10.64705882
E108: Top = | F108: 28 | J108: Top = | K108: 35 | P108: Top = | Q108: 41 | S108: Top =
B109: =CONCATENATE("Jury President: ",General!$B$6) -> Jury President: Lieven Vlassenroot
B111: Appeal until :

Sheet JM
A2: =CONCATENATE(General!$B$5," - RESULTS Junior Male") -> Youth Lead Championship 09-03-2013 - RESULTS Junior Male
A5: RANK | B5: Nr | C5: Name | D5: Team | E5: Route 1 | I5: Ranking Points Route 1 | J5: Route 2 | N5: Ranking Points Route 2 | O5: Root R1 x R2 | P5: Final | S5: Super Final | V5: base pour calcul rang | W5: RANK | X5: Team points
A6: =RANK(V6,$V$6:$V$105) -> 1 | B6: JM05 | C6: TIMMERMANS Loïc | D6: STC | E6: TOP | G6: =IF(E6="TOP",$F$108,IF(F6="-",E6-0.01,IF(F6="+",E6+0.01,E6))) -> 28 | H6: =RANK(G6,$G$6:$G$105) -> 1 | I6: =IF(COUNTIF($H$6:$H$105,H6)=1,H6,(H6*2+COUNTIF($H$6:$H$105,H6)-1)/2) -> 3 | J6: 33 | K6: + | L6: =IF(J6="TOP",$K$108,IF(K6="-",J6-0.01,IF(K6="+",J6+0.01,J6))) -> 33.01 | M6: =RANK(L6,$L$6:$L$105) -> 1 | N6: =IF(COUNTIF($M$6:$M$105,M6)=1,M6,(M6*2+COUNTIF($M$6:$M$105,M6)-1)/2) -> 1 | O6: =SQRT(I6*N6) -> 1.732050808 | P6: TOP | R6: =IF(P6="TOP",$Q$108,IF(Q6="-",P6-0.01,IF(Q6="+",P6+0.01,P6))) -> 41 | U6: =IF($S6="TOP",$T$108,IF($T6="-",$S6-0.01,IF($T6="+",$S6+0.01,$S6))) -> 0 | V6: =IF(U6<>0,U6*1000+R6*100+1/O6,IF(R6<>0,R6*100+1/O6,1/O6)) -> 4100.57735 | W6: =A6 -> 1 | X6: =IF(W6<31,AVERAGE(OFFSET(INDEX('Points team et quota finales'!$C$5:$C$34,W6),0,0,COUNTIF($W$6:$W$105,W6))),0) -> 100
A7: =RANK(V7,$V$6:$V$105) -> 2 | B7: JM04 | C7: GEUKENS Lukas | D7: HUN | E7: TOP | G7: 28 | H7: 1 | I7: 3 | J7: 29 | K7: + | L7: 29.01 | M7: 2 | N7: 2 | O7: 2.449489743 | P7: 32 | Q7: + | R7: 32.01 | U7: 0 | V7: 3201.408248 | W7: 2 | X7: =IF(W7<31,AVERAGE(OFFSET(INDEX('Points team et quota finales'!$C$5:$C$34,W7),0,0,COUNTIF($W$6:$W$105,W7))),0) -> 80
A8: 3 | B8: JM06 | C8: SALAKENOS Thomas | D8: ECT | E8: 26 | G8: 26 | H8: 7 | I8: 7 | J8: 25 | K8: + | L8: 25.01 | M8: 3 | N8: 3 | O8: 4.582575695 | P8: 32 | Q8: + | R8: 32.01 | U8: 0 | V8: 3201.218218 | W8: 3 | X8: =IF(W8<31,AVERAGE(OFFSET(INDEX('Points team et quota finales'!$C$5:$C$34,W8),0,0,COUNTIF($W$6:$W$105,W8))),0) -> 65
A9: 4 | B9: JM07 | C9: DEBREYNE Ignace | D9: KLI | E9: TOP | G9: 28 | H9: 1 | I9: 3 | J9: 20 | K9: + | L9: 20.01 | M9: 7 | N9: 7 | O9: 4.582575695 | P9: 24 | R9: 24 | U9: 0 | V9: 2400.218218 | W9: 4 | X9: =IF(W9<31,AVERAGE(OFFSET(INDEX('Points team et quota finales'!$C$5:$C$34,W9),0,0,COUNTIF($W$6:$W$105,W9))),0) -> 55
A10: 5 | B10: JM01 | C10: BAEKELANDT Koen | D10: BCT | E10: TOP | G10: 28 | H10: 1 | I10: 3 | J10: 22 | K10: + | L10: 22.01 | M10: 4 | N10: 4 | O10: 3.464101615 | P10: 23 | R10: 23 | U10: 0 | V10: 2300.288675 | W10: 5 | X10: =IF(W10<31,AVERAGE(OFFSET(INDEX('Points team et quota finales'!$C$5:$C$34,W10),0,0,COUNTIF($W$6:$W$105,W10))),0) -> 51
A11: 6 | B11: JM08 | C11: DE KNOOP Alexis | D11: ECT | E11: TOP | G11: 28 | H11: 1 | I11: 3 | J11: 21 | K11: + | L11: 21.01 | M11: 5 | N11: 5 | O11: 3.872983346 | P11: 7 | R11: 7 | U11: 0 | V11: 700.2581989 | W11: 6 | X11: =IF(W11<31,AVERAGE(OFFSET(INDEX('Points team et quota finales'!$C$5:$C$34,W11),0,0,COUNTIF($W$6:$W$105,W11))),0) -> 47
A12: 7 | B12: JM03 | C12: BERTHE Jonathan | D12: ESC | E12: 19 | G12: 19 | H12: 9 | I12: 9 | J12: 21 | L12: 21 | M12: 6 | N12: 6 | O12: 7.348469228 | R12: 0 | U12: 0 | V12: 0.1360827635 | W12: 7 | X12: =IF(W12<31,AVERAGE(OFFSET(INDEX('Points team et quota finales'!$C$5:$C$34,W12),0,0,COUNTIF($W$6:$W$105,W12))),0) -> 41.5
A13: 7 | B13: JM09 | C13: HEMROULLE Sylvain | D13: GT | E13: 26 | F13: + | G13: 26.01 | H13: 6 | I13: 6 | J13: 14 | K13: + | L13: 14.01 | M13: 9 | N13: 9 | O13: 7.348469228 | R13: 0 | U13: 0 | V13: 0.1360827635 | W13: 7 | X13: =IF(W13<31,AVERAGE(OFFSET(INDEX('Points team et quota finales'!$C$5:$C$34,W13),0,0,COUNTIF($W$6:$W$105,W13))),0) -> 41.5
A14: 9 | B14: JM02 | C14: MERTENS Pierre | D14: ECT | E14: 21 | F14: + | G14: 21.01 | H14: 8 | I14: 8 | J14: 20 | L14: 20 | M14: 8 | N14: 8 | O14: 8 | R14: 0 | U14: 0 | V14: 0.125 | W14: 9 | X14: =IF(W14<31,AVERAGE(OFFSET(INDEX('Points team et quota finales'!$C$5:$C$34,W14),0,0,COUNTIF($W$6:$W$105,W14))),0) -> 37
A15: 10 | G15: =IF(E15="TOP",$F$108,IF(F15="-",E15-0.01,IF(F15="+",E15+0.01,E15))) -> 0 | H15: =RANK(G15,$G$6:$G$105) -> 10 | I15: =IF(COUNTIF($H$6:$H$105,H15)=1,H15,(H15*2+COUNTIF($H$6:$H$105,H15)-1)/2) -> 55 | L15: =IF(J15="TOP",$K$108,IF(K15="-",J15-0.01,IF(K15="+",J15+0.01,J15))) -> 0 | M15: =RANK(L15,$L$6:$L$105) -> 10 | N15: =IF(COUNTIF($M$6:$M$105,M15)=1,M15,(M15*2+COUNTIF($M$6:$M$105,M15)-1)/2) -> 55 | O15: =SQRT(I15*N15) -> 55 | R15: =IF(P15="TOP",$Q$108,IF(Q15="-",P15-0.01,IF(Q15="+",P15+0.01,P15))) -> 0 | U15: =IF($S15="TOP",$T$108,IF($T15="-",$S15-0.01,IF($T15="+",$S15+0.01,$S15))) -> 0 | V15: =IF(U15<>0,U15*1000+R15*100+1/O15,IF(R15<>0,R15*100+1/O15,1/O15)) -> 0.01818181818 | W15: 10 | X15: =IF(W15<31,AVERAGE(OFFSET(INDEX('Points team et quota finales'!$C$5:$C$34,W15),0,0,COUNTIF($W$6:$W$105,W15))),0) -> 14.28571429
A16: 10 | G16: 0 | H16: 10 | I16: 55 | L16: 0 | M16: 10 | N16: 55 | O16: 55 | R16: 0 | U16: 0 | V16: 0.01818181818 | W16: 10 | X16: =IF(W16<31,AVERAGE(OFFSET(INDEX('Points team et quota finales'!$C$5:$C$34,W16),0,0,COUNTIF($W$6:$W$105,W16))),0) -> 14.28571429
A17: 10 | G17: 0 | H17: 10 | I17: 55 | L17: 0 | M17: 10 | N17: 55 | O17: 55 | R17: 0 | U17: 0 | V17: 0.01818181818 | W17: 10 | X17: =IF(W17<31,AVERAGE(OFFSET(INDEX('Points team et quota finales'!$C$5:$C$34,W17),0,0,COUNTIF($W$6:$W$105,W17))),0) -> 14.28571429
A18: 10 | G18: 0 | H18: 10 | I18: 55 | L18: 0 | M18: 10 | N18: 55 | O18: 55 | R18: 0 | U18: 0 | V18: 0.01818181818 | W18: 10 | X18: =IF(W18<31,AVERAGE(OFFSET(INDEX('Points team et quota finales'!$C$5:$C$34,W18),0,0,COUNTIF($W$6:$W$105,W18))),0) -> 14.28571429
A19: 10 | G19: 0 | H19: 10 | I19: 55 | L19: 0 | M19: 10 | N19: 55 | O19: 55 | R19: 0 | U19: 0 | V19: 0.01818181818 | W19: 10 | X19: =IF(W19<31,AVERAGE(OFFSET(INDEX('Points team et quota finales'!$C$5:$C$34,W19),0,0,COUNTIF($W$6:$W$105,W19))),0) -> 14.28571429
A20: 10 | G20: 0 | H20: 10 | I20: 55 | L20: 0 | M20: 10 | N20: 55 | O20: 55 | R20: 0 | U20: 0 | V20: 0.01818181818 | W20: 10 | X20: =IF(W20<31,AVERAGE(OFFSET(INDEX('Points team et quota finales'!$C$5:$C$34,W20),0,0,COUNTIF($W$6:$W$105,W20))),0) -> 14.28571429
A21: 10 | G21: 0 | H21: 10 | I21: 55 | L21: 0 | M21: 10 | N21: 55 | O21: 55 | R21: 0 | U21: 0 | V21: 0.01818181818 | W21: 10 | X21: =IF(W21<31,AVERAGE(OFFSET(INDEX('Points team et quota finales'!$C$5:$C$34,W21),0,0,COUNTIF($W$6:$W$105,W21))),0) -> 14.28571429
A22: 10 | G22: 0 | H22: 10 | I22: 55 | L22: 0 | M22: 10 | N22: 55 | O22: 55 | R22: 0 | U22: 0 | V22: 0.01818181818 | W22: 10 | X22: =IF(W22<31,AVERAGE(OFFSET(INDEX('Points team et quota finales'!$C$5:$C$34,W22),0,0,COUNTIF($W$6:$W$105,W22))),0) -> 14.28571429
A23: 10 | G23: 0 | H23: 10 | I23: 55 | L23: 0 | M23: 10 | N23: 55 | O23: 55 | R23: 0 | U23: 0 | V23: 0.01818181818 | W23: 10 | X23: =IF(W23<31,AVERAGE(OFFSET(INDEX('Points team et quota finales'!$C$5:$C$34,W23),0,0,COUNTIF($W$6:$W$105,W23))),0) -> 14.28571429
A24: 10 | G24: 0 | H24: 10 | I24: 55 | L24: 0 | M24: 10 | N24: 55 | O24: 55 | R24: 0 | U24: 0 | V24: 0.01818181818 | W24: 10 | X24: =IF(W24<31,AVERAGE(OFFSET(INDEX('Points team et quota finales'!$C$5:$C$34,W24),0,0,COUNTIF($W$6:$W$105,W24))),0) -> 14.28571429
A25: 10 | G25: 0 | H25: 10 | I25: 55 | L25: 0 | M25: 10 | N25: 55 | O25: 55 | R25: 0 | U25: 0 | V25: 0.01818181818 | W25: 10 | X25: =IF(W25<31,AVERAGE(OFFSET(INDEX('Points team et quota finales'!$C$5:$C$34,W25),0,0,COUNTIF($W$6:$W$105,W25))),0) -> 14.28571429
A26: 10 | G26: 0 | H26: 10 | I26: 55 | L26: 0 | M26: 10 | N26: 55 | O26: 55 | R26: 0 | U26: 0 | V26: 0.01818181818 | W26: 10 | X26: =IF(W26<31,AVERAGE(OFFSET(INDEX('Points team et quota finales'!$C$5:$C$34,W26),0,0,COUNTIF($W$6:$W$105,W26))),0) -> 14.28571429
A27: 10 | G27: 0 | H27: 10 | I27: 55 | L27: 0 | M27: 10 | N27: 55 | O27: 55 | R27: 0 | U27: 0 | V27: 0.01818181818 | W27: 10 | X27: =IF(W27<31,AVERAGE(OFFSET(INDEX('Points team et quota finales'!$C$5:$C$34,W27),0,0,COUNTIF($W$6:$W$105,W27))),0) -> 14.28571429
A28: 10 | G28: 0 | H28: 10 | I28: 55 | L28: 0 | M28: 10 | N28: 55 | O28: 55 | R28: 0 | U28: 0 | V28: 0.01818181818 | W28: 10 | X28: =IF(W28<31,AVERAGE(OFFSET(INDEX('Points team et quota finales'!$C$5:$C$34,W28),0,0,COUNTIF($W$6:$W$105,W28))),0) -> 14.28571429
A29: 10 | G29: 0 | H29: 10 | I29: 55 | L29: 0 | M29: 10 | N29: 55 | O29: 55 | R29: 0 | U29: 0 | V29: 0.01818181818 | W29: 10 | X29: =IF(W29<31,AVERAGE(OFFSET(INDEX('Points team et quota finales'!$C$5:$C$34,W29),0,0,COUNTIF($W$6:$W$105,W29))),0) -> 14.28571429
A30: 10 | G30: 0 | H30: 10 | I30: 55 | L30: 0 | M30: 10 | N30: 55 | O30: 55 | R30: 0 | U30: 0 | V30: 0.01818181818 | W30: 10 | X30: =IF(W30<31,AVERAGE(OFFSET(INDEX('Points team et quota finales'!$C$5:$C$34,W30),0,0,COUNTIF($W$6:$W$105,W30))),0) -> 14.28571429
